{"text_format":"1","workbook":"xlsx","n_sheets":23,"sheets":["Start","Sys. Input","Billed Cons","Unb. Cons.","Unauth. Cons.","Meter Errors","Network","Pressure","Intermittent Supply","Financial Data","Water Balance m3day","Water Balance m3","Water Balance m3year","PIs","WHAT IF","Historic Data","Getting Started","Language 1","Language 2","Language 3","Used Language","Matrix","Matrix (2)"],"not_rendered":{"charts":0,"images":26,"macros":1,"external_links":0,"defined_names":18,"comments":0,"pivot_tables":0},"unopened":[],"bounds":{"document_bytes":16777216,"sheet_cells":100000,"rows_first":2000,"rows_last":500,"rows_between":2000,"halvings":0,"cell_chars":16384,"cell_head_chars":4096},"cells_cut":0,"cells_raw":0,"read":"whole","date_system":"1900"}

{"sheet":"Start","index":0,"n_rows":36,"n_cols":21,"rows_kept":36,"cut":false,"hidden":false,"merged":[[25,20,25,28],[18,20,18,28],[20,20,20,28],[22,20,22,28],[20,14,23,16],[24,18,36,18],[27,20,27,28],[29,20,29,28],[31,20,31,28],[33,20,33,28],[35,20,35,28],[2,20,2,28],[10,20,10,28],[8,20,8,28],[16,15,16,16],[16,1,16,6],[6,18,22,18],[16,20,16,28],[6,20,6,28],[12,20,12,28],[14,20,14,28],[4,20,4,28],[1,1,5,16],[16,13,16,14],[20,12,23,13],[20,1,23,11],[16,7,16,12],[35,6,36,11],[35,1,36,5],[35,12,36,16],[6,1,10,16],[29,1,33,16]]}
[]
[null,"WB-EasyCalc☺"]
[null,null,null,null,null,null,null,null,null,null,null,null,null,null,null,null,null,null,null,null,{"$f":"'Used Language'!C5","v":"Getting Started"}]
[]
[null,null,null,null,null,null,null,null,null,null,null,null,null,null,null,null,null,null,null,null,{"$f":"'Used Language'!C15","v":"Change Language"}]
[]
[null,"The free water balance software\nVersion 5.12 (22 February 2017)",null,null,null,null,null,null,null,null,null,null,null,null,null,null,null,null,{"$f":"'Used Language'!C114","v":"Data Entry"},"1.)",{"$f":"'Used Language'!C10","v":"System Input Volume"}]
[]
[null,null,null,null,null,null,null,null,null,null,null,null,null,null,null,null,null,null,null,"2.)",{"$f":"'Used Language'!C11","v":"Billed Consumption"}]
[]
[null,null,null,null,null,null,null,null,null,null,null,null,null,null,null,null,null,null,null,"3.)",{"$f":"'Used Language'!C12","v":"Unbilled Consumption"}]
[]
[null,null,null,null,null,null,null,null,null,null,null,null,null,null,null,null,null,null,null,"4.)",{"$f":"'Used Language'!C13","v":"Unauthorized Consumption"}]
[]
[null,null,null,null,null,null,null,null,null,null,null,null,null,null,null,null,null,null,null,"5.)",{"$f":"'Used Language'!C14","v":"Customer Meter Inaccuracies and Data Handling Errors"}]
[]
[null,{"$f":"'Used Language'!C118","v":"Utility Name:"},null,null,null,null,null,null,null,null,null,null,null,{"$f":"'Used Language'!C119","v":"Year:"},null,null,null,null,null,"6.)",{"$f":"'Used Language'!C8","v":"Network Data"}]
[]
[null,null,null,null,null,null,null,null,null,null,null,null,null,null,null,null,null,null,null,"7.)",{"$f":"'Used Language'!C9","v":"Pressure"}]
[]
[null,{"$f":"'Used Language'!C149","v":"The volumes used for this water balance are for a period of:"},null,null,null,null,null,null,null,null,null,null,365,null,{"$f":"'Used Language'!C150","v":"days"},null,null,null,null,"8.)",{"$f":"'Used Language'!C71","v":"Intermittent Supply"}]
[]
[null,null,null,null,null,null,null,null,null,null,null,null,null,null,null,null,null,null,null,"9.)",{"$f":"'Used Language'!C80","v":"Financial Information"}]
[]
[null,null,null,null,null,null,null,null,null,null,null,null,null,null,null,null,null,null,{"$f":"'Used Language'!C115","v":"Results"}]
[null,null,null,null,null,null,null,null,null,null,null,null,null,null,null,null,null,null,null,"A",{"$f":"'Used Language'!C152","v":"Water Balance in m3/year"}]
[]
[null,null,null,null,null,null,null,null,null,null,null,null,null,null,null,null,null,null,null,"B",{"$f":"'Used Language'!C153","v":"Water Balance in m3/day"}]
[]
[null,"                       by courtesy of Liemberger & Partners\n                                            ... because the best things in life are free! ...",null,null,null,null,null,null,null,null,null,null,null,null,null,null,null,null,null,"C",{"$f":"'Used Language'!C156","v":"Water Balance for Period"}]
[]
[null,null,null,null,null,null,null,null,null,null,null,null,null,null,null,null,null,null,null,"D",{"$f":"'Used Language'!C7","v":"Performance Indicators"}]
[]
[null,null,null,null,null,null,null,null,null,null,null,null,null,null,null,null,null,null,null,"E",{"$f":"'Used Language'!$C$159","v":"THE \"WHAT IF\" TOOL"}]
[]
[null,"check for updates on:",null,null,null,null,"    www.liemberger.cc",null,null,null,null,null,null,null,null,null,null,null,null,"F",{"$f":"'Used Language'!C199","v":"Historic data"}]

{"sheet":"Sys. Input","index":1,"n_rows":79,"n_cols":11,"rows_kept":79,"cut":false,"hidden":false,"merged":[[45,10,45,11],[29,10,29,11],[30,10,30,11],[31,10,31,11],[32,10,32,11],[40,10,40,11],[41,10,41,11],[42,10,42,11],[43,10,43,11],[44,10,44,11],[51,10,51,11],[52,10,52,11],[53,10,53,11],[46,10,46,11],[47,10,47,11],[48,10,48,11],[49,10,49,11],[50,10,50,11],[24,10,24,11],[25,10,25,11],[26,10,26,11],[27,10,27,11],[3,7,3,12],[17,10,17,11],[18,10,18,11],[19,10,19,11],[20,10,20,11],[21,10,21,11],[22,10,22,11],[23,10,23,11],[1,1,1,5],[71,10,71,11],[63,10,63,11],[61,10,61,11],[62,10,62,11],[64,10,64,11],[65,10,65,11],[66,10,66,11],[69,10,69,11],[5,10,5,11],[39,10,39,11],[35,10,35,11],[36,10,36,11],[37,10,37,11],[38,10,38,11],[68,10,68,11],[59,10,59,11],[60,10,60,11],[58,10,58,11],[55,10,55,11],[56,10,56,11],[57,10,57,11],[67,10,67,11],[54,10,54,11],[6,10,6,11],[7,10,7,11],[8,10,8,11],[9,10,9,11],[10,10,10,11],[13,10,13,11],[14,10,14,11],[11,10,11,11],[33,10,33,11],[34,10,34,11],[12,10,12,11],[15,10,15,11],[16,10,16,11],[28,10,28,11]]}
[]
[null,{"$f":"'Used Language'!C16","v":"System Input Volume"}]
[]
[null,{"$f":"'Used Language'!C78","v":"Water Source"},null,{"$f":"'Used Language'!C91","v":"[m3]"},null,{"$f":"'Used Language'!C33","v":"Error Margin\n[+/- %]"},null,{"$f":"'Used Language'!C128","v":"Home"}]
[]
[null,null,null,null,null,null,null,null,null,{"$f":"D6*F6/1.96","v":0},{"$f":"J6*J6","v":0}]
[null,null,null,null,null,null,null,null,null,0,0]
[null,null,null,null,null,null,null,null,null,0,0]
[null,null,null,null,null,null,null,null,null,0,0]
[null,null,null,null,null,null,null,null,null,0,0]
[null,null,null,null,null,null,null,null,null,0,0]
[null,null,null,null,null,null,null,null,null,0,0]
[null,null,null,null,null,null,null,null,null,0,0]
[null,null,null,null,null,null,null,null,null,0,0]
[null,null,null,null,null,null,null,null,null,0,0]
[null,null,null,null,null,null,null,null,null,0,0]
[null,null,null,null,null,null,null,null,null,0,0]
[null,null,null,null,null,null,null,null,null,0,0]
[null,null,null,null,null,null,null,null,null,0,0]
[null,null,null,null,null,null,null,null,null,0,0]
[null,null,null,null,null,null,null,null,null,0,0]
[null,null,null,null,null,null,null,null,null,0,0]
[null,null,null,null,null,null,null,null,null,0,0]
[null,null,null,null,null,null,null,null,null,0,0]
[null,null,null,null,null,null,null,null,null,0,0]
[null,null,null,null,null,null,null,null,null,0,0]
[null,null,null,null,null,null,null,null,null,0,0]
[null,null,null,null,null,null,null,null,null,0,0]
[null,null,null,null,null,null,null,null,null,0,0]
[null,null,null,null,null,null,null,null,null,0,0]
[null,null,null,null,null,null,null,null,null,0,0]
[null,null,null,null,null,null,null,null,null,0,0]
[null,null,null,null,null,null,null,null,null,0,0]
[null,null,null,null,null,null,null,null,null,0,0]
[null,null,null,null,null,null,null,null,null,0,0]
[null,null,null,null,null,null,null,null,null,0,0]
[null,null,null,null,null,null,null,null,null,0,0]
[null,null,null,null,null,null,null,null,null,{"$f":"D38*F38/1.96","v":0},{"$f":"J38*J38","v":0}]
[null,null,null,null,null,null,null,null,null,0,0]
[null,null,null,null,null,null,null,null,null,0,0]
[null,null,null,null,null,null,null,null,null,0,0]
[null,null,null,null,null,null,null,null,null,0,0]
[null,null,null,null,null,null,null,null,null,0,0]
[null,null,null,null,null,null,null,null,null,0,0]
[null,null,null,null,null,null,null,null,null,0,0]
[null,null,null,null,null,null,null,null,null,0,0]
[null,null,null,null,null,null,null,null,null,0,0]
[null,null,null,null,null,null,null,null,null,0,0]
[null,null,null,null,null,null,null,null,null,0,0]
[null,null,null,null,null,null,null,null,null,0,0]
[null,null,null,null,null,null,null,null,null,0,0]
[null,null,null,null,null,null,null,null,null,0,0]
[null,null,null,null,null,null,null,null,null,0,0]
[null,null,null,null,null,null,null,null,null,0,0]
[null,null,null,null,null,null,null,null,null,0,0]
[null,null,null,null,null,null,null,null,null,0,0]
[null,null,null,null,null,null,null,null,null,0,0]
[null,null,null,null,null,null,null,null,null,0,0]
[null,null,null,null,null,null,null,null,null,0,0]
[null,null,null,null,null,null,null,null,null,0,0]
[null,null,null,null,null,null,null,null,null,0,0]
[null,null,null,null,null,null,null,null,null,0,0]
[null,null,null,null,null,null,null,null,null,0,0]
[null,null,null,null,null,null,null,null,null,0,0]
[null,null,null,null,null,null,null,null,null,0,0]
[null,null,null,null,null,null,null,null,null,0,0]
[null,null,null,null,null,null,null,null,null,0,0]
[null,null,null,null,null,null,null,null,null,0,0]
[null,null,null,null,null,null,null,null,null,0,0]
[null,null,null,null,null,null,null,null,null,0,{"$f":"J70*J70","v":0}]
[]
[null,{"$f":"'Used Language'!$C$30","v":"Error Margin [+/-]:"},null,null,null,{"$f":"IF(D79=0,0,J72*1.96/D79)","v":0},null,null,null,{"$f":"SQRT(K72)","v":0},{"$f":"SUM(K6:K70)","v":0}]
[]
[null,{"$f":"'Used Language'!C79","v":"System Input Volume [m3]"}]
[null,{"$f":"'Used Language'!$C$62","v":"Minimum"},null,{"$f":"IF(D$79=0, 0,D$79*(1-F$72))","v":0}]
[]
[null,{"$f":"'Used Language'!$C$63","v":"Maximum"},null,{"$f":"IF(D$79=0, 0,D$79*(1+F$72))","v":0}]
[]
[null,{"$f":"'Used Language'!$C$64","v":"Best Estimate"},null,{"$f":"SUM(D6:D70)","v":0}]

{"sheet":"Billed Cons","index":2,"n_rows":28,"n_cols":10,"rows_kept":28,"cut":false,"hidden":false,"merged":[[1,5,1,7],[1,1,1,3],[3,9,3,11]]}
[]
[null,{"$f":"'Used Language'!C23","v":"Billed Metered Consumption"},null,null,null,{"$f":"'Used Language'!C24","v":"Billed Unmetered Consumption"}]
[]
[null,{"$f":"'Used Language'!$C$56","v":"Description"},null,{"$f":"'Used Language'!$C$91","v":"[m3]"},null,{"$f":"'Used Language'!$C$56","v":"Description"},null,{"$f":"'Used Language'!$C$91","v":"[m3]"},null,{"$f":"'Used Language'!C128","v":"Home"}]
[]
[null,{"$f":"'Used Language'!$C$104","v":"Bulk Water Supply (Export)"},null,null,null,{"$f":"'Used Language'!$C$104","v":"Bulk Water Supply (Export)"}]
[]
[]
[]
[]
[]
[]
[]
[]
[]
[]
[]
[]
[]
[]
[]
[]
[]
[]
[]
[]
[]
[null,{"$f":"'Used Language'!$C$91","v":"[m3]"},null,{"$f":"SUM(D6:D25)","v":0},null,{"$f":"'Used Language'!$C$91","v":"[m3]"},null,{"$f":"SUM(H6:H25)","v":0}]

{"sheet":"Unb. Cons.","index":3,"n_rows":32,"n_cols":16,"rows_kept":32,"cut":false,"hidden":false,"merged":[[1,1,1,3],[1,5,1,9],[3,11,3,13]]}
[]
[null,{"$f":"'Used Language'!C25","v":"Unbilled Metered Consumption"},null,null,null,{"$f":"'Used Language'!C26","v":"Unbilled Unmetered Consumption"}]
[]
[null,{"$f":"'Used Language'!$C$56","v":"Description"},null,{"$f":"'Used Language'!$C$91","v":"[m3]"},null,{"$f":"'Used Language'!$C$56","v":"Description"},null,{"$f":"'Used Language'!$C$91","v":"[m3]"},null,{"$f":"'Used Language'!$C$33","v":"Error Margin\n[+/- %]"},null,{"$f":"'Used Language'!C128","v":"Home"}]
[]
[null,{"$f":"'Used Language'!C90","v":"Bulk Water Supply (Export)"},null,null,null,null,null,null,null,null,null,null,null,null,{"$f":"H6*J6/1.96","v":0},{"$f":"O6*O6","v":0}]
[null,null,null,null,null,null,null,null,null,null,null,null,null,null,0,0]
[null,null,null,null,null,null,null,null,null,null,null,null,null,null,0,0]
[null,null,null,null,null,null,null,null,null,null,null,null,null,null,0,0]
[null,null,null,null,null,null,null,null,null,null,null,null,null,null,0,0]
[null,null,null,null,null,null,null,null,null,null,null,null,null,null,0,0]
[null,null,null,null,null,null,null,null,null,null,null,null,null,null,0,0]
[null,null,null,null,null,null,null,null,null,null,null,null,null,null,0,0]
[null,null,null,null,null,null,null,null,null,null,null,null,null,null,0,0]
[null,null,null,null,null,null,null,null,null,null,null,null,null,null,0,0]
[null,null,null,null,null,null,null,null,null,null,null,null,null,null,0,0]
[null,null,null,null,null,null,null,null,null,null,null,null,null,null,0,0]
[null,null,null,null,null,null,null,null,null,null,null,null,null,null,0,0]
[null,null,null,null,null,null,null,null,null,null,null,null,null,null,0,0]
[null,null,null,null,null,null,null,null,null,null,null,null,null,null,0,0]
[null,null,null,null,null,null,null,null,null,null,null,null,null,null,0,0]
[null,null,null,null,null,null,null,null,null,null,null,null,null,null,0,0]
[null,null,null,null,null,null,null,null,null,null,null,null,null,null,0,0]
[]
[null,null,null,null,null,{"$f":"'Used Language'!$C$30","v":"Error Margin [+/-]:"},null,null,null,{"$f":"IF(H32=0,0,O25*1.96/H32)","v":0},null,null,null,null,{"$f":"SQRT(P25)","v":0},{"$f":"SUM(P6:P24)","v":0}]
[]
[null,{"$f":"'Used Language'!C25","v":"Unbilled Metered Consumption"},null,null,null,{"$f":"'Used Language'!C108","v":"Unbilled Unmetered Consumption [m3]"}]
[null,null,null,null,null,{"$f":"'Used Language'!$C$62","v":"Minimum"},null,{"$f":"IF(H$32=0, 0,H$32*(1-J$25))","v":0}]
[]
[null,null,null,null,null,{"$f":"'Used Language'!$C$63","v":"Maximum"},null,{"$f":"IF(H$32=0, 0,H$32*(1+J$25))","v":0}]
[]
[null,{"$f":"'Used Language'!$C$91","v":"[m3]"},null,{"$f":"D6+SUM(D8:D23)","v":0},null,{"$f":"'Used Language'!$C$64","v":"Best Estimate"},null,{"$f":"SUM(H6:H23)","v":0}]

{"sheet":"Unauth. Cons.","index":4,"n_rows":31,"n_cols":17,"rows_kept":31,"cut":false,"hidden":false,"merged":[[1,1,1,11],[3,13,3,17]]}
[]
[null,{"$f":"'Used Language'!C13","v":"Unauthorized Consumption"}]
[]
[null,{"$f":"'Used Language'!$C$56","v":"Description"},null,{"$f":"'Used Language'!$C$92","v":"Estimated Number"},null,{"$f":"'Used Language'!$C$33","v":"Error Margin\n[+/- %]"},null,{"$f":"'Used Language'!$C$93","v":"Persons per House"},null,{"$f":"'Used Language'!$C$94","v":"Consumption [liters/person/day]"},null,{"$f":"'Used Language'!$C$95","v":"Total\n[m3]"},"SD",{"$f":"'Used Language'!C128","v":"Home"}]
[]
[null,{"$f":"'Used Language'!$C$110","v":"Illegal Connections - domestic"},null,null,null,null,null,null,null,null,null,{"$f":"D6*H6*J6*Start!M21/1000","v":0},null,null,null,{"$f":"L6*F6/1.96","v":0},{"$f":"P6*P6","v":0}]
[]
[null,null,null,null,null,null,null,null,null,{"$f":"'Used Language'!$C$96","v":"Consumption\n[liters/connection/day]"}]
[]
[null,{"$f":"'Used Language'!$C$111","v":"Illegal Connections - others"},null,null,null,null,null,null,null,null,null,{"$f":"D10*J10*Start!M21/1000","v":0},null,null,null,{"$f":"L10*F10/1.96","v":0},{"$f":"P10*P10","v":0}]
[]
[null,null,null,null,null,null,null,null,null,{"$f":"'Used Language'!$C$97","v":"Consumption\n[liters/customer/day]"}]
[]
[null,{"$f":"'Used Language'!$C$112","v":"Meter tampering, bypasses, etc. at registered customers"},null,null,null,null,null,null,null,null,null,{"$f":"D14*J14*Start!M21/1000","v":0},null,null,null,{"$f":"L14*F14/1.96","v":0},{"$f":"P14*P14","v":0}]
[]
[null,null,null,null,null,null,null,null,null,{"$f":"'Used Language'!C109","v":"Consumption [m3/day]"}]
[]
[null,null,null,null,null,null,null,null,null,null,null,{"$f":"J18*Start!M21","v":0},null,null,null,{"$f":"L18*F18/1.96","v":0},{"$f":"P18*P18","v":0}]
[null,null,null,null,null,null,null,null,null,null,null,{"$f":"J19*Start!M21","v":0},null,null,null,{"$f":"L19*F19/1.96","v":0},{"$f":"P19*P19","v":0}]
[null,null,null,null,null,null,null,null,null,null,null,{"$f":"J20*Start!M21","v":0},null,null,null,{"$f":"L20*F20/1.96","v":0},{"$f":"P20*P20","v":0}]
[null,null,null,null,null,null,null,null,null,null,null,{"$f":"J21*Start!M21","v":0},null,null,null,{"$f":"L21*F21/1.96","v":0},{"$f":"P21*P21","v":0}]
[null,null,null,null,null,null,null,null,null,null,null,{"$f":"J22*Start!M21","v":0},null,null,null,{"$f":"L22*F22/1.96","v":0},{"$f":"P22*P22","v":0}]
[]
[null,{"$f":"'Used Language'!$C$30","v":"Error Margin [+/-]:"},null,null,null,{"$f":"IF(L31=0,0,P24*1.96/L31)","v":0},null,null,null,null,null,null,null,null,null,{"$f":"SQRT(Q24)","v":0},{"$f":"SUM(Q6:Q23)","v":0}]
[]
[null,{"$f":"'Used Language'!C98","v":"Unauthorized Consumption [m3]"}]
[null,{"$f":"'Used Language'!$C$62","v":"Minimum"},null,null,null,null,null,null,null,null,null,{"$f":"L31*(1-F24)","v":0}]
[]
[null,{"$f":"'Used Language'!$C$63","v":"Maximum"},null,null,null,null,null,null,null,null,null,{"$f":"L31*(1+F24)","v":0}]
[]
[null,{"$f":"'Used Language'!$C$64","v":"Best Estimate"},null,null,null,null,null,null,null,null,null,{"$f":"SUM(L6:L22)","v":0}]

{"sheet":"Meter Errors","index":5,"n_rows":49,"n_cols":19,"rows_kept":49,"cut":false,"hidden":false,"merged":[[1,3,1,13],[43,3,43,7],[5,3,5,7],[3,15,3,19]]}
[]
[null,null,null,{"$f":"'Used Language'!C27","v":"Customer Meter Inaccuracies and Data Handling Errors"}]
[]
[null,null,null,{"$f":"'Used Language'!$C$56","v":"Description"},null,{"$f":"'Used Language'!$C$95","v":"Total\n[m3]"},null,{"$f":"'Used Language'!C99","v":"Meter under-registration"},null,null,null,{"$f":"'Used Language'!$C$95","v":"Total\n[m3]"},null,{"$f":"'Used Language'!$C$33","v":"Error Margin\n[+/- %]"},null,{"$f":"'Used Language'!C128","v":"Home"}]
[]
[null,null,null,{"$f":"'Used Language'!C147","v":"Enter 1 to use an overall % for meter under-registration or 2 for manual entering of volumes and under-registration of different meter or customer types"},null,null,null,null,null,2]
[]
[null,1,null,{"$f":"'Used Language'!C101","v":"Billed Metered Consumption (without Bulk Supply)"},null,{"$f":"IF(J6=1,SUM('Billed Cons'!D8:D25),0)","v":0},null,null,null,null,null,{"$f":"F8/(1-H8)-F8","v":0},null,null,null,null,null,{"$f":"N8*L8/1.96","v":0},{"$f":"R8*R8","v":0}]
[]
[null,2,null,{"$f":"'Used Language'!C101","v":"Billed Metered Consumption (without Bulk Supply)"},null,{"$f":"'Used Language'!$C$95","v":"Total\n[m3]"},null,{"$f":"'Used Language'!C99","v":"Meter under-registration"}]
[]
[null,null,null,null,null,null,null,null,null,null,null,{"$f":"IF(J$6=2,F12/(1-H12)-F12,0)","v":0},null,null,null,null,null,{"$f":"N12*L12/1.96","v":0},{"$f":"R12*R12","v":0}]
[null,null,null,null,null,null,null,null,null,null,null,0,null,null,null,null,null,0,0]
[null,null,null,null,null,null,null,null,null,null,null,0,null,null,null,null,null,0,0]
[null,null,null,null,null,null,null,null,null,null,null,0,null,null,null,null,null,0,0]
[null,null,null,null,null,null,null,null,null,null,null,0,null,null,null,null,null,0,0]
[null,null,null,null,null,null,null,null,null,null,null,0,null,null,null,null,null,0,0]
[null,null,null,null,null,null,null,null,null,null,null,0,null,null,null,null,null,0,0]
[null,null,null,null,null,null,null,null,null,null,null,0,null,null,null,null,null,0,0]
[null,null,null,null,null,null,null,null,null,null,null,0,null,null,null,null,null,0,0]
[null,null,null,null,null,null,null,null,null,null,null,0,null,null,null,null,null,0,0]
[null,null,null,null,null,null,null,null,null,null,null,0,null,null,null,null,null,0,0]
[null,null,null,null,null,null,null,null,null,null,null,0,null,null,null,null,null,0,0]
[null,null,null,null,null,null,null,null,null,null,null,0,null,null,null,null,null,0,0]
[null,null,null,null,null,null,null,null,null,null,null,0,null,null,null,null,null,0,0]
[null,null,null,null,null,null,null,null,null,null,null,0,null,null,null,null,null,0,0]
[null,null,null,null,null,null,null,null,null,null,null,0,null,null,null,null,null,0,0]
[null,null,null,null,null,null,null,null,null,null,null,0,null,null,null,null,null,0,0]
[]
[]
[]
[null,null,null,{"$f":"'Used Language'!C102","v":"Metered Bulk Supply (Export)"},null,{"$f":"'Billed Cons'!D6+'Unb. Cons.'!D6","v":0},null,null,null,null,null,{"$f":"F32/(1-H32)-F32","v":0},null,null,null,null,null,{"$f":"N32*L32/1.96","v":0},{"$f":"R32*R32","v":0}]
[]
[null,null,null,{"$f":"'Used Language'!C103","v":"Unbilled Metered Consumption (without Bulk Supply)"},null,{"$f":"SUM('Unb. Cons.'!D8:D23)","v":0},null,null,null,null,null,{"$f":"F34/(1-H34)-F34","v":0},null,null,null,null,null,{"$f":"N34*L34/1.96","v":0},{"$f":"R34*R34","v":0}]
[]
[null,null,null,null,null,null,null,{"$f":"'Used Language'!C100","v":"Estimated % of under-reading"}]
[]
[null,null,null,{"$f":"'Used Language'!C105","v":"Corrupt Meter Reading Practices"},null,{"$f":"'Billed Cons'!D28+'Billed Cons'!H28","v":0},null,null,null,null,null,{"$f":"F38/(1-H38)-F38","v":0},null,null,null,null,null,{"$f":"N38*L38/1.96","v":0},{"$f":"R38*R38","v":0}]
[]
[null,null,null,{"$f":"'Used Language'!C106","v":"Data Handling Errors (Office)"},null,null,null,null,null,null,null,null,null,null,null,null,null,{"$f":"N40*L40/1.96","v":0},{"$f":"R40*R40","v":0}]
[]
[null,null,null,{"$f":"'Used Language'!$C$30","v":"Error Margin [+/-]:"},null,null,null,null,null,null,null,null,null,{"$f":"IF(L49=0,0,R42*1.96/L49)","v":0},null,null,null,{"$f":"SQRT(S42)","v":0},{"$f":"SUM(S8:S40)","v":0}]
[]
[null,null,null,{"$f":"'Used Language'!C27","v":"Customer Meter Inaccuracies and Data Handling Errors"}]
[null,null,null,{"$f":"'Used Language'!$C$62","v":"Minimum"},null,null,null,null,null,null,null,{"$f":"L49*(1-N42)","v":0}]
[]
[null,null,null,{"$f":"'Used Language'!$C$63","v":"Maximum"},null,null,null,null,null,null,null,{"$f":"L49*(1+N42)","v":0}]
[]
[null,null,null,{"$f":"'Used Language'!$C$64","v":"Best Estimate"},null,null,null,null,null,null,null,{"$f":"IF(J6=2,SUM(L12:L28)+L32+L34+L38+L40,L8+L32+L34+L38+L40)","v":0}]

{"sheet":"Network","index":6,"n_rows":39,"n_cols":14,"rows_kept":39,"cut":false,"hidden":false,"merged":[[6,12,12,12],[3,9,4,9],[1,11,4,14],[1,1,1,3],[3,5,4,5],[3,1,4,1],[3,7,4,7],[3,3,4,3],[1,5,1,9],[9,9,15,9],[9,5,15,5],[9,7,15,7],[6,5,7,5],[6,7,7,7],[6,9,7,9],[17,5,18,5],[17,7,18,7],[17,9,18,9],[14,12,15,12],[38,5,43,5],[38,7,43,7],[38,9,43,9],[31,5,36,5],[31,7,36,7],[31,9,36,9],[17,12,18,12],[20,5,21,5],[20,7,21,7],[20,9,21,9]]}
[]
[null,{"$f":"'Used Language'!C54","v":"Distribution and Transmission Mains"},null,null,null,{"$f":"'Used Language'!C55","v":"Service Connections"},null,null,null,null,null,{"$f":"'Used Language'!C128","v":"Home"}]
[]
[null,{"$f":"'Used Language'!$C$56","v":"Description"},null,{"$f":"'Used Language'!C57","v":"Length\n[km]"},null,{"$f":"'Used Language'!$C$56","v":"Description"},null,{"$f":"'Used Language'!C58","v":"Number"},null,{"$f":"'Used Language'!C33","v":"Error Margin\n[+/- %]"}]
[]
[]
[null,null,null,null,null,{"$f":"'Used Language'!C184","v":"Number of Customers (active)"},null,null,null,null,null,null,{"$f":"H10*J10/1.96","v":0},{"$f":"M7*M7","v":0}]
[]
[]
[null,null,null,null,null,{"$f":"'Used Language'!C65","v":"Number of Connections of Registered Customers\n\nNote: this figure is most likely (a little bit) less than the number of customers"}]
[]
[]
[]
[]
[null,null,null,null,null,null,null,null,null,null,null,null,{"$f":"H18*J18/1.96","v":0},{"$f":"M15*M15","v":0}]
[]
[]
[null,null,null,null,null,{"$f":"'Used Language'!C148","v":"Number of inactive accounts with existing service connection"},null,null,null,null,null,null,{"$f":"H21*J21/1.96","v":0},{"$f":"M18*M18","v":0}]
[]
[]
[null,null,null,null,null,{"$f":"'Used Language'!C66","v":"Estimated Number of Illegal Connections"},null,{"$f":"'Unauth. Cons.'!D6+'Unauth. Cons.'!D10","v":0},null,{"$f":"'Unauth. Cons.'!F6","v":0}]
[null,null,null,null,null,null,null,null,null,null,null,null,null,{"$f":"N7+N18+N15","v":0}]
[]
[null,null,null,null,null,{"$f":"'Used Language'!$C$30","v":"Error Margin [+/-]:"},null,null,null,{"$f":"IF(H30=0,0,$M$24*1.96/H30)","v":0},null,null,{"$f":"SQRT(N22)","v":0}]
[null,null,null,null,null,{"$f":"'Used Language'!C67","v":"Number of Connections"}]
[null,null,null,null,null,{"$f":"'Used Language'!$C$62","v":"Minimum"},null,{"$f":"IF(H$30=0,0,H$30*(1-$J$24))","v":0}]
[null,null,null,null,null,null,null,null,null,"Total SD"]
[null,{"$f":"'Used Language'!C59","v":"Total [km]"},null,{"$f":"SUM(D6:D26)","v":0},null,{"$f":"'Used Language'!$C$63","v":"Maximum"},null,{"$f":"IF(H$30=0,0,H$30*(1+$J$24))","v":0},null,"Total Accuracy"]
[]
[null,{"$f":"'Used Language'!C60","v":"Possible underestimation"},null,null,null,{"$f":"'Used Language'!$C$64","v":"Best Estimate"},null,{"$f":"$H$10+$H$21+$H$18","v":0}]
[]
[null,{"$f":"'Used Language'!C61","v":"Pipe Length [km]"},null,null,null,{"$f":"'Used Language'!C68","v":"Average Length of Service Connection from Property Boundary to Customer Meter [meter]"}]
[null,{"$f":"'Used Language'!$C$62","v":"Minimum"},null,{"$f":"D28","v":0}]
[]
[null,{"$f":"'Used Language'!$C$63","v":"Maximum"},null,{"$f":"D28*(1+D30)","v":0}]
[]
[null,{"$f":"'Used Language'!$C$64","v":"Best Estimate"},null,{"$f":"(D33+D35)/2","v":0}]
[]
[null,null,null,null,null,{"$f":"'Used Language'!C69","v":"Total Length of Service Connections from Property Boundary to Customer Meter [kilometer]"},null,{"$f":"H32*H30/1000","v":0},null,{"$f":"SQRT(J24*J24+J32*J32)","v":0}]

{"sheet":"Pressure","index":7,"n_rows":33,"n_cols":8,"rows_kept":33,"cut":false,"hidden":false,"merged":[[3,7,4,9],[3,5,4,5],[3,3,4,3],[1,1,1,5],[3,1,4,1]]}
[]
[null,{"$f":"'Used Language'!C70","v":"Average Pressure"}]
[]
[null,{"$f":"'Used Language'!C72","v":"Area"},null,{"$f":"'Used Language'!$C$73","v":"Approximate Number of Connections"},null,{"$f":"'Used Language'!C74","v":"Daily Average Pressure\n[m]"},null,{"$f":"'Used Language'!C128","v":"Home"}]
[]
[]
[]
[]
[]
[]
[]
[]
[]
[]
[]
[]
[]
[]
[]
[]
[]
[]
[]
[]
[]
[null,{"$f":"'Used Language'!$C$30","v":"Error Margin [+/-]:"}]
[]
[null,{"$f":"'Used Language'!$C$45","v":"Average Pressure [m]"}]
[null,{"$f":"'Used Language'!$C$62","v":"Minimum"},null,null,null,{"$f":"IF(F$33=\" \", \" \",F$33*(1-F$26))","v":0}]
[]
[null,{"$f":"'Used Language'!$C$63","v":"Maximum"},null,null,null,{"$f":"IF(F$33=\" \", \" \",F$33*(1+F$26))","v":0}]
[]
[null,{"$f":"'Used Language'!$C$64","v":"Best Estimate"},null,null,null,{"$f":"IF(SUM(D$7:D$24)>0,((D$7*F$7+D$8*F$8+D$9*F$9+D$10*F$10+D$11*F$11+D$12*F$12+D$13*F$13+D$14*F$14+D$15*F$15+D$16*F$16+D$17*F$17+D$18*F$18+D$19*F$19+D$20*F$20+D$21*F$21+D$22*F$22+D$23*F$23+D$24*F$24)/SUM(D$7:D$24)),0)","v":0}]

{"sheet":"Intermittent Supply","index":8,"n_rows":33,"n_cols":10,"rows_kept":33,"cut":false,"hidden":false,"merged":[[3,9,4,11],[1,1,1,7],[3,5,4,5],[3,7,4,7],[3,1,4,1],[3,3,4,3]]}
[]
[null,{"$f":"'Used Language'!C71","v":"Intermittent Supply"}]
[]
[null,{"$f":"'Used Language'!C72","v":"Area"},null,{"$f":"'Used Language'!$C$73","v":"Approximate Number of Connections"},null,{"$f":"'Used Language'!C75","v":"Supply Time\n[days per week]"},null,{"$f":"'Used Language'!C76","v":"Supply Time\n[hours per day]"},null,{"$f":"'Used Language'!C128","v":"Home"}]
[]
[]
[null,null,null,null,null,null,null,null,{"$f":"D7*F7*H7","v":0}]
[null,null,null,null,null,null,null,null,0]
[null,null,null,null,null,null,null,null,0]
[null,null,null,null,null,null,null,null,0]
[null,null,null,null,null,null,null,null,0]
[null,null,null,null,null,null,null,null,0]
[null,null,null,null,null,null,null,null,0]
[null,null,null,null,null,null,null,null,0]
[null,null,null,null,null,null,null,null,0]
[null,null,null,null,null,null,null,null,0]
[null,null,null,null,null,null,null,null,0]
[null,null,null,null,null,null,null,null,0]
[null,null,null,null,null,null,null,null,0]
[null,null,null,null,null,null,null,null,0]
[null,null,null,null,null,null,null,null,0]
[null,null,null,null,null,null,null,null,0]
[null,null,null,null,null,null,null,null,0]
[null,null,null,null,null,null,null,null,0]
[]
[null,{"$f":"'Used Language'!$C$30","v":"Error Margin [+/-]:"}]
[]
[null,{"$f":"'Used Language'!$C$44","v":"Average Supply Time [h/day]"}]
[null,{"$f":"'Used Language'!$C$62","v":"Minimum"},null,null,null,null,null,{"$f":"H$33*(1-H$26)","v":24}]
[]
[null,{"$f":"'Used Language'!$C$63","v":"Maximum"},null,null,null,null,null,{"$f":"IF(H$33=24,24,IF(H$33*(1+H$26)>24,24,(H$33*(1+H$26))))","v":24}]
[]
[null,{"$f":"'Used Language'!$C$64","v":"Best Estimate"},null,null,null,null,null,{"$f":"IF(SUM(H$7:H$24)>0,SUM(I7:I24)/SUM(D$7:D$24)/7,24)","v":24}]

{"sheet":"Financial Data","index":9,"n_rows":35,"n_cols":13,"rows_kept":35,"cut":false,"hidden":false,"merged":[[34,10,35,10],[30,1,32,4],[34,1,35,4],[34,6,35,8],[16,1,16,4],[25,3,27,3],[30,10,32,10],[21,6,21,8],[25,1,27,2],[18,1,18,2],[19,1,19,2],[12,1,12,4],[10,1,10,4],[7,1,7,4],[3,6,3,8],[5,6,5,8],[7,6,7,8],[5,1,5,4],[1,12,4,14],[1,1,1,10],[14,13,14,14],[15,13,15,14],[21,1,21,3],[21,13,21,14],[11,13,11,14],[5,13,5,14],[6,13,6,14],[7,13,7,14],[10,6,10,8],[8,13,8,14],[9,13,9,14],[20,13,20,14],[16,6,16,8],[14,1,14,4],[30,13,30,14],[30,6,32,8],[12,13,12,14],[10,13,10,14],[13,13,13,14],[12,6,12,8],[14,6,14,8],[16,13,16,14],[18,6,18,7],[19,6,19,7]]}
[]
[null,{"$f":"'Used Language'!C80","v":"Financial Information"},null,null,null,null,null,null,null,null,null,null,{"$f":"'Used Language'!C128","v":"Home"}]
[]
[null,null,null,null,null,null,{"$f":"'Used Language'!C83","v":"per m3"},null,null,null,{"$f":"'Used Language'!C84","v":"Currency"}]
[]
[null,{"$f":"'Used Language'!C81","v":"Average Tariff"}]
[]
[null,{"$f":"'Used Language'!C82","v":"Variable Production and Distribution Cost\n(Marginal Cost of Water)"},null,null,null,null,null,null,null,null,{"$f":"IF($K$6=0,\" \",$K$6)","v":" "}]
[]
[]
[null,{"$f":"'Used Language'!C86","v":"NRW Component"},null,null,null,null,{"$f":"'Used Language'!C87","v":"Annual Value"}]
[]
[null,{"$f":"'Used Language'!C25","v":"Unbilled Metered Consumption"},null,null,null,null,{"$f":"'Water Balance m3year'!AC14*G6","v":0},null,null,null,{"$f":"K8","v":" "}]
[]
[null,{"$f":"'Used Language'!C26","v":"Unbilled Unmetered Consumption"},null,null,null,null,{"$f":"'Water Balance m3year'!AC19*G6","v":0},null,null,null,{"$f":"K8","v":" "}]
[]
[null,{"$f":"'Used Language'!C21","v":"Commercial Losses"},null,null,null,null,{"$f":"'Water Balance m3year'!T26*G6","v":0},null,null,null,{"$f":"K8","v":" "}]
[]
[null,{"$f":"'Used Language'!C27","v":"Customer Meter Inaccuracies and Data Handling Errors"},null,null,null,null,{"$f":"'Water Balance m3year'!AC29*G6","v":0},null,null,null,{"$f":"K17","v":" "}]
[null,{"$f":"'Used Language'!C13","v":"Unauthorized Consumption"},null,null,null,null,{"$f":"'Water Balance m3year'!AC24*G6","v":0},null,null,null,{"$f":"K17","v":" "}]
[]
[null,{"$f":"'Used Language'!C22","v":"Physical Losses"},null,null,null,null,{"$f":"IF(Start!M21=366,((D24-D26)*G8+(D26*G6))*366,((D24-D26)*G8+(D26*G6))*365)","v":0},null,null,null,{"$f":"K8","v":" "}]
[]
[null,{"$f":"'Used Language'!C194","v":"Total Volume (m3/d)"},null,{"$f":"'Water Balance m3day'!T34","v":0}]
[]
[null,{"$f":"'Used Language'!C195","v":"Volume which could be sold to existing or new customers (m3/d)"}]
[]
[]
[]
[]
[null,{"$f":"'Used Language'!C88","v":"Total Value of NRW"},null,null,null,null,{"$f":"IF(OR(G13=\"ERROR\",G15=\"ERROR\",G17=\"ERROR\",G22=\"ERROR\"),0,G13+G15+G17+G22)","v":0},null,null,null,{"$f":"K8","v":" "}]
[]
[]
[]
[null,{"$f":"'Used Language'!C89","v":"Annual Operating Cost (without Depreciation)"},null,null,null,null,null,null,null,null,{"$f":"IF($K$6=0,\" \",$K$6)","v":" "}]

{"sheet":"Water Balance m3day","index":10,"n_rows":35,"n_cols":67,"rows_kept":35,"cut":false,"hidden":false,"merged":[[4,65,5,73],[5,28,5,39],[5,40,5,49],[7,19,7,23],[7,24,7,27],[7,28,7,49],[7,50,7,54],[7,55,7,58],[2,19,4,27],[2,28,2,49],[2,50,4,58],[3,28,3,39],[3,40,3,49],[1,66,3,67],[8,10,10,18],[8,19,8,27],[8,28,8,39],[8,40,8,49],[9,19,9,27],[10,28,10,39],[10,40,10,49],[11,10,12,14],[11,15,12,18],[12,19,14,27],[12,28,12,49],[13,10,13,18],[13,28,13,39],[13,40,13,49],[14,10,14,18],[20,1,21,9],[20,28,20,39],[20,40,20,49],[15,19,16,23],[15,24,16,27],[15,28,15,39],[15,40,15,49],[17,1,17,9],[17,19,18,27],[17,28,17,49],[18,1,18,5],[18,6,18,9],[18,28,18,39],[18,40,18,49],[19,1,19,9],[19,19,19,27],[19,28,19,39],[19,40,19,49],[27,10,27,18],[27,19,27,27],[27,28,27,49],[25,19,26,23],[25,24,26,27],[25,28,25,39],[25,40,25,49],[22,19,24,27],[22,28,22,49],[23,55,23,58],[24,28,24,39],[24,40,24,49],[24,50,24,58],[29,40,29,49],[25,50,26,58],[23,28,23,39],[23,40,23,49],[23,50,23,54],[35,35,35,49],[0,1,0,58],[30,10,31,18],[32,19,32,49],[33,19,33,32],[33,33,33,49],[34,19,34,32],[34,33,34,49],[28,10,28,14],[28,15,28,18],[28,19,28,27],[28,28,28,39],[28,40,28,49],[29,10,29,18],[29,28,29,39],[20,50,22,58]]}
[null,{"$f":"'Used Language'!C153","v":"Water Balance in m3/day"}]
[null,null,null,null,null,null,null,null,null,null,null,null,null,null,null,null,null,null,null,null,null,null,null,null,null,null,null,null,null,null,null,null,null,null,null,null,null,null,null,null,null,null,null,null,null,null,null,null,null,null,null,null,null,null,null,null,null,null,null,null,null,null,null,null,null,null,{"$f":"'Used Language'!C128","v":"Home"}]
[null,null,null,null,null,null,null,null,null,null,null,null,null,null,null,null,null,null,null,{"$f":"'Used Language'!$C$19","v":"Billed Authorized Consumption"},null,null,null,null,null,null,null,null,{"$f":"'Used Language'!$C$23","v":"Billed Metered Consumption"},null,null,null,null,null,null,null,null,null,null,null,null,null,null,null,null,null,null,null,null,null,{"$f":"'Used Language'!$C$28","v":"Revenue Water"}]
[null,null,null,null,null,null,null,null,null,null,null,null,null,null,null,null,null,null,null,null,null,null,null,null,null,null,null,null,{"$f":"IF(Start!M21>0,'Billed Cons'!D28/Start!M21,0)","v":0},null,null,null,null,null,null,null,null,null,null,null,{"$f":"'Used Language'!$C$31","v":"m3/day"}]
[null,null,null,null,null,null,null,null,null,null,null,null,null,null,null,null,null,null,null,null,null,null,null,null,null,null,null,null,null,null,null,null,null,null,null,null,null,null,null,null,null,null,null,null,null,null,null,null,null,null,null,null,null,null,null,null,null,null,null,null,null,null,null,null,null,{"$f":"'Used Language'!C128","v":"Home"}]
[]
[]
[null,null,null,null,null,null,null,null,null,null,null,null,null,null,null,null,null,null,null,{"$f":"AC4+AC9","v":0},null,null,null,null,{"$f":"'Used Language'!$C$31","v":"m3/day"},null,null,null,{"$f":"'Used Language'!$C$24","v":"Billed Unmetered Consumption"},null,null,null,null,null,null,null,null,null,null,null,null,null,null,null,null,null,null,null,null,null,{"$f":"T8","v":0},null,null,null,null,{"$f":"'Used Language'!$C$31","v":"m3/day"}]
[null,null,null,null,null,null,null,null,null,null,{"$f":"'Used Language'!$C$17","v":"Authorized Consumption"},null,null,null,null,null,null,null,null,null,null,null,null,null,null,null,null,null,{"$f":"IF(Start!M21>0,'Billed Cons'!H28/Start!M21,0)","v":0},null,null,null,null,null,null,null,null,null,null,null,{"$f":"'Used Language'!$C$31","v":"m3/day"}]
[]
[]
[null,null,null,null,null,null,null,null,null,null,{"$f":"T8+T16","v":0},null,null,null,null,{"$f":"'Used Language'!$C$31","v":"m3/day"}]
[null,null,null,null,null,null,null,null,null,null,null,null,null,null,null,null,null,null,null,{"$f":"'Used Language'!$C$20","v":"Unbilled Authorized Consumption"},null,null,null,null,null,null,null,null,{"$f":"'Used Language'!$C$25","v":"Unbilled Metered Consumption"}]
[null,null,null,null,null,null,null,null,null,null,{"$f":"'Used Language'!$C$30","v":"Error Margin [+/-]:"},null,null,null,null,null,null,null,null,null,null,null,null,null,null,null,null,null,{"$f":"IF(Start!M21>0,'Unb. Cons.'!D32/Start!M21,0)","v":0},null,null,null,null,null,null,null,null,null,null,null,{"$f":"'Used Language'!$C$31","v":"m3/day"}]
[null,null,null,null,null,null,null,null,null,null,{"$f":"IF(K12=0,0,'Unb. Cons.'!O25/Start!M21*1.96/K12)","v":0},null,null,null,null,null,null,null,null,null,null,null,null,null,null,null,null,null,null,null,null,null,null,null,null,null,null,null,null,null,null,null,null,null,null,null,null,null,null,null,null,null,null,null,null,null,null,null,null,null,null,null,null,{"$f":"K12*K15/1.96","v":0},{"$f":"BL15*BL15","v":0}]
[null,null,null,null,null,null,null,null,null,null,null,null,null,null,null,null,null,null,null,{"$f":"AC14+AC19","v":0},null,null,null,null,{"$f":"'Used Language'!$C$31","v":"m3/day"}]
[]
[null,{"$f":"'Used Language'!C16","v":"System Input Volume"},null,null,null,null,null,null,null,null,null,null,null,null,null,null,null,null,null,{"$f":"'Used Language'!$C$30","v":"Error Margin [+/-]:"},null,null,null,null,null,null,null,null,{"$f":"'Used Language'!$C$26","v":"Unbilled Unmetered Consumption"}]
[null,{"$f":"IF(Start!M21>0,'Sys. Input'!D79/Start!M21,0)","v":0},null,null,null,null,{"$f":"'Used Language'!$C$31","v":"m3/day"},null,null,null,null,null,null,null,null,null,null,null,null,null,null,null,null,null,null,null,null,null,{"$f":"IF(Start!M21>0,'Unb. Cons.'!H32/Start!M21,0)","v":0},null,null,null,null,null,null,null,null,null,null,null,{"$f":"'Used Language'!$C$31","v":"m3/day"}]
[null,{"$f":"'Used Language'!$C$30","v":"Error Margin [+/-]:"},null,null,null,null,null,null,null,null,null,null,null,null,null,null,null,null,null,{"$f":"IF(T16=0,0,'Unb. Cons.'!O25/Start!M21*1.96/T16)","v":0},null,null,null,null,null,null,null,null,{"$f":"'Used Language'!$C$30","v":"Error Margin [+/-]:"},null,null,null,null,null,null,null,null,null,null,null,{"$f":"'Unb. Cons.'!J25","v":0}]
[null,{"$f":"'Sys. Input'!F72","v":0},null,null,null,null,null,null,null,null,null,null,null,null,null,null,null,null,null,null,null,null,null,null,null,null,null,null,null,null,null,null,null,null,null,null,null,null,null,null,null,null,null,null,null,null,null,null,null,null,{"$f":"'Used Language'!$C$29","v":"Non-Revenue Water"}]
[]
[null,null,null,null,null,null,null,null,null,null,null,null,null,null,null,null,null,null,null,{"$f":"'Used Language'!$C$21","v":"Commercial Losses"},null,null,null,null,null,null,null,null,{"$f":"'Used Language'!C13","v":"Unauthorized Consumption"}]
[null,null,null,null,null,null,null,null,null,null,null,null,null,null,null,null,null,null,null,null,null,null,null,null,null,null,null,null,{"$f":"IF(Start!M21>0,'Unauth. Cons.'!L31/Start!M21,0)","v":0},null,null,null,null,null,null,null,null,null,null,null,{"$f":"'Used Language'!$C$31","v":"m3/day"},null,null,null,null,null,null,null,null,null,{"$f":"B19-AY8","v":0},null,null,null,null,{"$f":"'Used Language'!$C$31","v":"m3/day"}]
[null,null,null,null,null,null,null,null,null,null,null,null,null,null,null,null,null,null,null,null,null,null,null,null,null,null,null,null,{"$f":"'Used Language'!$C$30","v":"Error Margin [+/-]:"},null,null,null,null,null,null,null,null,null,null,null,{"$f":"'Unauth. Cons.'!F24","v":0},null,null,null,null,null,null,null,null,null,{"$f":"'Used Language'!$C$30","v":"Error Margin [+/-]:"},null,null,null,null,null,null,null,null,null,null,{"$f":"AC24*AO25/1.96","v":0},{"$f":"BJ25*BJ25","v":0},{"$f":"B21*B19/1.96","v":0},{"$f":"BL25*BL25","v":0}]
[null,null,null,null,null,null,null,null,null,null,null,null,null,null,null,null,null,null,null,{"$f":"AC24+AC29","v":0},null,null,null,null,{"$f":"'Used Language'!$C$31","v":"m3/day"},null,null,null,null,null,null,null,null,null,null,null,null,null,null,null,null,null,null,null,null,null,null,null,null,null,{"$f":"IF(AY24=0,0,BL25*1.96/AY24)","v":0}]
[]
[null,null,null,null,null,null,null,null,null,null,{"$f":"'Used Language'!$C$18","v":"Water Losses"},null,null,null,null,null,null,null,null,{"$f":"'Used Language'!$C$30","v":"Error Margin [+/-]:"},null,null,null,null,null,null,null,null,{"$f":"'Used Language'!$C$27","v":"Customer Meter Inaccuracies and Data Handling Errors"}]
[null,null,null,null,null,null,null,null,null,null,{"$f":"B19-K12","v":0},null,null,null,null,{"$f":"'Used Language'!$C$31","v":"m3/day"},null,null,null,{"$f":"IF(T26=0,0,BJ32*1.96/T26)","v":0},null,null,null,null,null,null,null,null,{"$f":"IF(Start!M21>0,'Meter Errors'!L49/Start!M21,0)","v":0},null,null,null,null,null,null,null,null,null,null,null,{"$f":"'Used Language'!$C$31","v":"m3/day"}]
[null,null,null,null,null,null,null,null,null,null,{"$f":"'Used Language'!$C$30","v":"Error Margin [+/-]:"},null,null,null,null,null,null,null,null,null,null,null,null,null,null,null,null,null,{"$f":"'Used Language'!$C$30","v":"Error Margin [+/-]:"},null,null,null,null,null,null,null,null,null,null,null,{"$f":"'Meter Errors'!N42","v":0},null,null,null,null,null,null,null,null,null,null,null,null,null,null,null,null,null,null,null,null,{"$f":"AC29*AO30/1.96","v":0},{"$f":"BJ30*BJ30","v":0},{"$f":"T29*T26/1.96","v":0},{"$f":"BL30*BL30","v":0}]
[null,null,null,null,null,null,null,null,null,null,{"$f":"IF(K29=0,0,BL34*1.96/K29)","v":0}]
[null,null,null,null,null,null,null,null,null,null,null,null,null,null,null,null,null,null,null,null,null,null,null,null,null,null,null,null,null,null,null,null,null,null,null,null,null,null,null,null,null,null,null,null,null,null,null,null,null,null,null,null,null,null,null,null,null,null,null,null,null,{"$f":"SQRT(BK32)","v":0},{"$f":"BK25+BK30","v":0}]
[null,null,null,null,null,null,null,null,null,null,null,null,null,null,null,null,null,null,null,{"$f":"'Used Language'!C22","v":"Physical Losses"}]
[null,null,null,null,null,null,null,null,null,null,null,null,null,null,null,null,null,null,null,{"$f":"K29-T26","v":0},null,null,null,null,null,null,null,null,null,null,null,null,null,{"$f":"'Used Language'!C31","v":"m3/day"},null,null,null,null,null,null,null,null,null,null,null,null,null,null,null,null,null,null,null,null,null,null,null,null,null,null,null,null,null,{"$f":"SQRT(BM34)","v":0},{"$f":"BM15+BM25","v":0}]
[null,null,null,null,null,null,null,null,null,null,null,null,null,null,null,null,null,null,null,{"$f":"'Used Language'!$C$30","v":"Error Margin [+/-]:"},null,null,null,null,null,null,null,null,null,null,null,null,null,{"$f":"IF(T34=0,0,BL35*1.96/T34)","v":0},null,null,null,null,null,null,null,null,null,null,null,null,null,null,null,null,null,null,null,null,null,null,null,null,null,null,null,null,null,{"$f":"SQRT(BM35)","v":0},{"$f":"BM15+BM25+BM30","v":0}]

{"sheet":"Water Balance m3","index":11,"n_rows":35,"n_cols":67,"rows_kept":35,"cut":false,"hidden":false,"merged":[[0,31,0,34],[0,35,0,58],[1,66,3,67],[8,10,10,18],[4,65,5,73],[5,28,5,39],[5,40,5,49],[7,19,7,23],[7,24,7,27],[7,28,7,49],[7,50,7,54],[7,55,7,58],[2,19,4,27],[2,28,2,49],[2,50,4,58],[3,28,3,39],[3,40,3,49],[8,19,8,27],[8,28,8,39],[8,40,8,49],[9,19,9,27],[10,28,10,39],[10,40,10,49],[15,19,16,23],[15,24,16,27],[14,10,14,18],[15,28,15,39],[15,40,15,49],[12,19,14,27],[12,28,12,49],[13,28,13,39],[13,40,13,49],[11,10,12,14],[11,15,12,18],[13,10,13,18],[17,19,18,27],[17,28,17,49],[18,28,18,39],[18,40,18,49],[24,28,24,39],[24,40,24,49],[19,19,19,27],[19,28,19,39],[19,40,19,49],[20,28,20,39],[20,40,20,49],[30,10,31,18],[35,35,35,49],[0,1,0,30],[27,19,27,27],[25,50,26,58],[32,19,32,49],[23,50,23,54],[23,55,23,58],[28,28,28,39],[28,40,28,49],[24,50,24,58],[28,10,28,14],[28,15,28,18],[28,19,28,27],[34,33,34,49],[34,19,34,32],[33,33,33,49],[33,19,33,32],[20,50,22,58],[29,28,29,39],[29,40,29,49],[25,19,26,23],[25,24,26,27],[25,28,25,39],[25,40,25,49],[27,28,27,49],[22,19,24,27],[22,28,22,49],[23,28,23,39],[23,40,23,49],[27,10,27,18],[29,10,29,18],[17,1,17,9],[20,1,21,9],[18,1,18,5],[18,6,18,9],[19,1,19,9]]}
[null,{"$f":"'Used Language'!C155","v":"Water Balance in m3 for a period of"},null,null,null,null,null,null,null,null,null,null,null,null,null,null,null,null,null,null,null,null,null,null,null,null,null,null,null,null,null,{"$f":"Start!M21","v":365},null,null,null,{"$f":"'Used Language'!C150","v":"days"}]
[null,null,null,null,null,null,null,null,null,null,null,null,null,null,null,null,null,null,null,null,null,null,null,null,null,null,null,null,null,null,null,null,null,null,null,null,null,null,null,null,null,null,null,null,null,null,null,null,null,null,null,null,null,null,null,null,null,null,null,null,null,null,null,null,null,null,{"$f":"'Used Language'!C128","v":"Home"}]
[null,null,null,null,null,null,null,null,null,null,null,null,null,null,null,null,null,null,null,{"$f":"'Used Language'!$C$19","v":"Billed Authorized Consumption"},null,null,null,null,null,null,null,null,{"$f":"'Used Language'!$C$23","v":"Billed Metered Consumption"},null,null,null,null,null,null,null,null,null,null,null,null,null,null,null,null,null,null,null,null,null,{"$f":"'Used Language'!$C$28","v":"Revenue Water"}]
[null,null,null,null,null,null,null,null,null,null,null,null,null,null,null,null,null,null,null,null,null,null,null,null,null,null,null,null,{"$f":"IF(Start!M21>0,'Billed Cons'!D28,0)","v":0},null,null,null,null,null,null,null,null,null,null,null,"m3"]
[null,null,null,null,null,null,null,null,null,null,null,null,null,null,null,null,null,null,null,null,null,null,null,null,null,null,null,null,null,null,null,null,null,null,null,null,null,null,null,null,null,null,null,null,null,null,null,null,null,null,null,null,null,null,null,null,null,null,null,null,null,null,null,null,null,{"$f":"'Used Language'!C128","v":"Home"}]
[]
[]
[null,null,null,null,null,null,null,null,null,null,null,null,null,null,null,null,null,null,null,{"$f":"AC4+AC9","v":0},null,null,null,null,{"$f":"'Used Language'!$C$183","v":"m3"},null,null,null,{"$f":"'Used Language'!$C$24","v":"Billed Unmetered Consumption"},null,null,null,null,null,null,null,null,null,null,null,null,null,null,null,null,null,null,null,null,null,{"$f":"T8","v":0},null,null,null,null,{"$f":"'Used Language'!$C$183","v":"m3"}]
[null,null,null,null,null,null,null,null,null,null,{"$f":"'Used Language'!$C$17","v":"Authorized Consumption"},null,null,null,null,null,null,null,null,null,null,null,null,null,null,null,null,null,{"$f":"IF(Start!M21>0,'Billed Cons'!H28,0)","v":0},null,null,null,null,null,null,null,null,null,null,null,"m3"]
[]
[]
[null,null,null,null,null,null,null,null,null,null,{"$f":"T8+T16","v":0},null,null,null,null,"m3"]
[null,null,null,null,null,null,null,null,null,null,null,null,null,null,null,null,null,null,null,{"$f":"'Used Language'!$C$20","v":"Unbilled Authorized Consumption"},null,null,null,null,null,null,null,null,{"$f":"'Used Language'!$C$25","v":"Unbilled Metered Consumption"}]
[null,null,null,null,null,null,null,null,null,null,{"$f":"'Used Language'!$C$30","v":"Error Margin [+/-]:"},null,null,null,null,null,null,null,null,null,null,null,null,null,null,null,null,null,{"$f":"IF(Start!M21>0,'Unb. Cons.'!D32,0)","v":0},null,null,null,null,null,null,null,null,null,null,null,"m3"]
[null,null,null,null,null,null,null,null,null,null,{"$f":"IF(K12=0,0,'Unb. Cons.'!O25*1.96/K12)","v":0},null,null,null,null,null,null,null,null,null,null,null,null,null,null,null,null,null,null,null,null,null,null,null,null,null,null,null,null,null,null,null,null,null,null,null,null,null,null,null,null,null,null,null,null,null,null,null,null,null,null,null,null,{"$f":"K12*K15/1.96","v":0},{"$f":"BL15*BL15","v":0}]
[null,null,null,null,null,null,null,null,null,null,null,null,null,null,null,null,null,null,null,{"$f":"AC14+AC19","v":0},null,null,null,null,"m3"]
[]
[null,{"$f":"'Used Language'!C16","v":"System Input Volume"},null,null,null,null,null,null,null,null,null,null,null,null,null,null,null,null,null,{"$f":"'Used Language'!$C$30","v":"Error Margin [+/-]:"},null,null,null,null,null,null,null,null,{"$f":"'Used Language'!$C$26","v":"Unbilled Unmetered Consumption"}]
[null,{"$f":"IF(Start!M21>0,'Sys. Input'!D79,0)","v":0},null,null,null,null,{"$f":"'Used Language'!$C$183","v":"m3"},null,null,null,null,null,null,null,null,null,null,null,null,null,null,null,null,null,null,null,null,null,{"$f":"IF(Start!M21>0,'Unb. Cons.'!H32,0)","v":0},null,null,null,null,null,null,null,null,null,null,null,"m3"]
[null,{"$f":"'Used Language'!$C$30","v":"Error Margin [+/-]:"},null,null,null,null,null,null,null,null,null,null,null,null,null,null,null,null,null,{"$f":"IF(T16=0,0,'Unb. Cons.'!O25*1.96/T16)","v":0},null,null,null,null,null,null,null,null,{"$f":"'Used Language'!$C$30","v":"Error Margin [+/-]:"},null,null,null,null,null,null,null,null,null,null,null,{"$f":"'Unb. Cons.'!J25","v":0}]
[null,{"$f":"'Sys. Input'!F72","v":0},null,null,null,null,null,null,null,null,null,null,null,null,null,null,null,null,null,null,null,null,null,null,null,null,null,null,null,null,null,null,null,null,null,null,null,null,null,null,null,null,null,null,null,null,null,null,null,null,{"$f":"'Used Language'!$C$29","v":"Non-Revenue Water"}]
[]
[null,null,null,null,null,null,null,null,null,null,null,null,null,null,null,null,null,null,null,{"$f":"'Used Language'!$C$21","v":"Commercial Losses"},null,null,null,null,null,null,null,null,{"$f":"'Used Language'!C13","v":"Unauthorized Consumption"}]
[null,null,null,null,null,null,null,null,null,null,null,null,null,null,null,null,null,null,null,null,null,null,null,null,null,null,null,null,{"$f":"IF(Start!M21>0,'Unauth. Cons.'!L31,0)","v":0},null,null,null,null,null,null,null,null,null,null,null,"m3",null,null,null,null,null,null,null,null,null,{"$f":"B19-AY8","v":0},null,null,null,null,{"$f":"'Used Language'!$C$183","v":"m3"}]
[null,null,null,null,null,null,null,null,null,null,null,null,null,null,null,null,null,null,null,null,null,null,null,null,null,null,null,null,{"$f":"'Used Language'!$C$30","v":"Error Margin [+/-]:"},null,null,null,null,null,null,null,null,null,null,null,{"$f":"'Unauth. Cons.'!F24","v":0},null,null,null,null,null,null,null,null,null,{"$f":"'Used Language'!$C$30","v":"Error Margin [+/-]:"},null,null,null,null,null,null,null,null,null,null,{"$f":"AC24*AO25/1.96","v":0},{"$f":"BJ25*BJ25","v":0},{"$f":"B21*B19/1.96","v":0},{"$f":"BL25*BL25","v":0}]
[null,null,null,null,null,null,null,null,null,null,null,null,null,null,null,null,null,null,null,{"$f":"AC24+AC29","v":0},null,null,null,null,"m3",null,null,null,null,null,null,null,null,null,null,null,null,null,null,null,null,null,null,null,null,null,null,null,null,null,{"$f":"IF(AY24=0,0,BL25*1.96/AY24)","v":0}]
[]
[null,null,null,null,null,null,null,null,null,null,{"$f":"'Used Language'!$C$18","v":"Water Losses"},null,null,null,null,null,null,null,null,{"$f":"'Used Language'!$C$30","v":"Error Margin [+/-]:"},null,null,null,null,null,null,null,null,{"$f":"'Used Language'!$C$27","v":"Customer Meter Inaccuracies and Data Handling Errors"}]
[null,null,null,null,null,null,null,null,null,null,{"$f":"B19-K12","v":0},null,null,null,null,{"$f":"'Used Language'!$C$183","v":"m3"},null,null,null,{"$f":"IF(T26=0,0,BJ32*1.96/T26)","v":0},null,null,null,null,null,null,null,null,{"$f":"IF(Start!M21>0,'Meter Errors'!L49,0)","v":0},null,null,null,null,null,null,null,null,null,null,null,"m3"]
[null,null,null,null,null,null,null,null,null,null,{"$f":"'Used Language'!$C$30","v":"Error Margin [+/-]:"},null,null,null,null,null,null,null,null,null,null,null,null,null,null,null,null,null,{"$f":"'Used Language'!$C$30","v":"Error Margin [+/-]:"},null,null,null,null,null,null,null,null,null,null,null,{"$f":"'Meter Errors'!N42","v":0},null,null,null,null,null,null,null,null,null,null,null,null,null,null,null,null,null,null,null,null,{"$f":"AC29*AO30/1.96","v":0},{"$f":"BJ30*BJ30","v":0},{"$f":"T29*T26/1.96","v":0},{"$f":"BL30*BL30","v":0}]
[null,null,null,null,null,null,null,null,null,null,{"$f":"IF(K29=0,0,BL34*1.96/K29)","v":0}]
[null,null,null,null,null,null,null,null,null,null,null,null,null,null,null,null,null,null,null,null,null,null,null,null,null,null,null,null,null,null,null,null,null,null,null,null,null,null,null,null,null,null,null,null,null,null,null,null,null,null,null,null,null,null,null,null,null,null,null,null,null,{"$f":"SQRT(BK32)","v":0},{"$f":"BK25+BK30","v":0}]
[null,null,null,null,null,null,null,null,null,null,null,null,null,null,null,null,null,null,null,{"$f":"'Used Language'!C22","v":"Physical Losses"}]
[null,null,null,null,null,null,null,null,null,null,null,null,null,null,null,null,null,null,null,{"$f":"K29-T26","v":0},null,null,null,null,null,null,null,null,null,null,null,null,null,"m3",null,null,null,null,null,null,null,null,null,null,null,null,null,null,null,null,null,null,null,null,null,null,null,null,null,null,null,null,null,{"$f":"SQRT(BM34)","v":0},{"$f":"BM15+BM25","v":0}]
[null,null,null,null,null,null,null,null,null,null,null,null,null,null,null,null,null,null,null,{"$f":"'Used Language'!$C$30","v":"Error Margin [+/-]:"},null,null,null,null,null,null,null,null,null,null,null,null,null,{"$f":"IF(T34=0,0,BL35*1.96/T34)","v":0},null,null,null,null,null,null,null,null,null,null,null,null,null,null,null,null,null,null,null,null,null,null,null,null,null,null,null,null,null,{"$f":"SQRT(BM35)","v":0},{"$f":"BM15+BM25+BM30","v":0}]

{"sheet":"Water Balance m3year","index":12,"n_rows":35,"n_cols":67,"rows_kept":35,"cut":false,"hidden":false,"merged":[[35,35,35,49],[30,10,31,18],[32,19,32,49],[33,19,33,32],[33,33,33,49],[34,19,34,32],[34,33,34,49],[29,10,29,18],[29,28,29,39],[29,40,29,49],[25,19,26,23],[25,24,26,27],[25,28,25,39],[25,40,25,49],[28,10,28,14],[28,15,28,18],[28,19,28,27],[28,28,28,39],[28,40,28,49],[19,28,19,39],[19,40,19,49],[25,50,26,58],[27,10,27,18],[27,19,27,27],[27,28,27,49],[20,50,22,58],[22,19,24,27],[22,28,22,49],[23,28,23,39],[23,40,23,49],[23,50,23,54],[23,55,23,58],[24,28,24,39],[24,40,24,49],[24,50,24,58],[20,1,21,9],[20,28,20,39],[20,40,20,49],[15,19,16,23],[15,24,16,27],[15,28,15,39],[15,40,15,49],[17,1,17,9],[17,19,18,27],[17,28,17,49],[18,1,18,5],[18,6,18,9],[18,28,18,39],[18,40,18,49],[19,1,19,9],[19,19,19,27],[11,10,12,14],[11,15,12,18],[12,19,14,27],[12,28,12,49],[13,10,13,18],[13,28,13,39],[13,40,13,49],[14,10,14,18],[8,10,10,18],[8,19,8,27],[8,28,8,39],[8,40,8,49],[9,19,9,27],[10,28,10,39],[10,40,10,49],[0,1,0,58],[4,65,5,73],[5,28,5,39],[5,40,5,49],[7,19,7,23],[7,24,7,27],[7,28,7,49],[7,50,7,54],[7,55,7,58],[1,66,3,67],[2,19,4,27],[2,28,2,49],[2,50,4,58],[3,28,3,39],[3,40,3,49]]}
[null,{"$f":"'Used Language'!C152","v":"Water Balance in m3/year"}]
[null,null,null,null,null,null,null,null,null,null,null,null,null,null,null,null,null,null,null,null,null,null,null,null,null,null,null,null,null,null,null,null,null,null,null,null,null,null,null,null,null,null,null,null,null,null,null,null,null,null,null,null,null,null,null,null,null,null,null,null,null,null,null,null,null,null,{"$f":"'Used Language'!C128","v":"Home"}]
[null,null,null,null,null,null,null,null,null,null,null,null,null,null,null,null,null,null,null,{"$f":"'Used Language'!$C$19","v":"Billed Authorized Consumption"},null,null,null,null,null,null,null,null,{"$f":"'Used Language'!$C$23","v":"Billed Metered Consumption"},null,null,null,null,null,null,null,null,null,null,null,null,null,null,null,null,null,null,null,null,null,{"$f":"'Used Language'!$C$28","v":"Revenue Water"}]
[null,null,null,null,null,null,null,null,null,null,null,null,null,null,null,null,null,null,null,null,null,null,null,null,null,null,null,null,{"$f":"IF(Start!M21>364,'Billed Cons'!D28,'Water Balance m3day'!AC4*365)","v":0},null,null,null,null,null,null,null,null,null,null,null,"m3/year"]
[null,null,null,null,null,null,null,null,null,null,null,null,null,null,null,null,null,null,null,null,null,null,null,null,null,null,null,null,null,null,null,null,null,null,null,null,null,null,null,null,null,null,null,null,null,null,null,null,null,null,null,null,null,null,null,null,null,null,null,null,null,null,null,null,null,{"$f":"'Used Language'!C128","v":"Home"}]
[]
[]
[null,null,null,null,null,null,null,null,null,null,null,null,null,null,null,null,null,null,null,{"$f":"AC4+AC9","v":0},null,null,null,null,{"$f":"'Used Language'!$C$151","v":"m3/year"},null,null,null,{"$f":"'Used Language'!$C$24","v":"Billed Unmetered Consumption"},null,null,null,null,null,null,null,null,null,null,null,null,null,null,null,null,null,null,null,null,null,{"$f":"T8","v":0},null,null,null,null,{"$f":"'Used Language'!$C$151","v":"m3/year"}]
[null,null,null,null,null,null,null,null,null,null,{"$f":"'Used Language'!$C$17","v":"Authorized Consumption"},null,null,null,null,null,null,null,null,null,null,null,null,null,null,null,null,null,{"$f":"IF(Start!M21>364,'Billed Cons'!H28,'Water Balance m3day'!AC9*365)","v":0},null,null,null,null,null,null,null,null,null,null,null,"m3/year"]
[]
[]
[null,null,null,null,null,null,null,null,null,null,{"$f":"T8+T16","v":0},null,null,null,null,"m3/year"]
[null,null,null,null,null,null,null,null,null,null,null,null,null,null,null,null,null,null,null,{"$f":"'Used Language'!$C$20","v":"Unbilled Authorized Consumption"},null,null,null,null,null,null,null,null,{"$f":"'Used Language'!$C$25","v":"Unbilled Metered Consumption"}]
[null,null,null,null,null,null,null,null,null,null,{"$f":"'Used Language'!$C$30","v":"Error Margin [+/-]:"},null,null,null,null,null,null,null,null,null,null,null,null,null,null,null,null,null,{"$f":"IF(Start!M21>364,'Unb. Cons.'!D32,'Water Balance m3day'!AC14*365)","v":0},null,null,null,null,null,null,null,null,null,null,null,"m3/year"]
[null,null,null,null,null,null,null,null,null,null,{"$f":"'Water Balance m3day'!K15:S15","v":0},null,null,null,null,null,null,null,null,null,null,null,null,null,null,null,null,null,null,null,null,null,null,null,null,null,null,null,null,null,null,null,null,null,null,null,null,null,null,null,null,null,null,null,null,null,null,null,null,null,null,null,null,{"$f":"K12*K15/1.96","v":0},{"$f":"BL15*BL15","v":0}]
[null,null,null,null,null,null,null,null,null,null,null,null,null,null,null,null,null,null,null,{"$f":"AC14+AC19","v":0},null,null,null,null,"m3/year"]
[]
[null,{"$f":"'Used Language'!C16","v":"System Input Volume"},null,null,null,null,null,null,null,null,null,null,null,null,null,null,null,null,null,{"$f":"'Used Language'!$C$30","v":"Error Margin [+/-]:"},null,null,null,null,null,null,null,null,{"$f":"'Used Language'!$C$26","v":"Unbilled Unmetered Consumption"}]
[null,{"$f":"IF(Start!M21>364,'Sys. Input'!D79,'Water Balance m3day'!B19*365)","v":0},null,null,null,null,{"$f":"'Used Language'!$C$151","v":"m3/year"},null,null,null,null,null,null,null,null,null,null,null,null,null,null,null,null,null,null,null,null,null,{"$f":"IF(Start!M21>364,'Unb. Cons.'!H32,'Water Balance m3day'!AC19*365)","v":0},null,null,null,null,null,null,null,null,null,null,null,"m3/year"]
[null,{"$f":"'Used Language'!$C$30","v":"Error Margin [+/-]:"},null,null,null,null,null,null,null,null,null,null,null,null,null,null,null,null,null,{"$f":"'Water Balance m3day'!T20:AB20","v":0},null,null,null,null,null,null,null,null,{"$f":"'Used Language'!$C$30","v":"Error Margin [+/-]:"},null,null,null,null,null,null,null,null,null,null,null,{"$f":"'Water Balance m3day'!AO20:AX20","v":0}]
[null,{"$f":"'Sys. Input'!F72","v":0},null,null,null,null,null,null,null,null,null,null,null,null,null,null,null,null,null,null,null,null,null,null,null,null,null,null,null,null,null,null,null,null,null,null,null,null,null,null,null,null,null,null,null,null,null,null,null,null,{"$f":"'Used Language'!$C$29","v":"Non-Revenue Water"}]
[]
[null,null,null,null,null,null,null,null,null,null,null,null,null,null,null,null,null,null,null,{"$f":"'Used Language'!$C$21","v":"Commercial Losses"},null,null,null,null,null,null,null,null,{"$f":"'Used Language'!C13","v":"Unauthorized Consumption"}]
[null,null,null,null,null,null,null,null,null,null,null,null,null,null,null,null,null,null,null,null,null,null,null,null,null,null,null,null,{"$f":"IF(Start!M21>364,'Unauth. Cons.'!L31,'Water Balance m3day'!AC24*365)","v":0},null,null,null,null,null,null,null,null,null,null,null,"m3/year",null,null,null,null,null,null,null,null,null,{"$f":"B19-AY8","v":0},null,null,null,null,{"$f":"'Used Language'!$C$151","v":"m3/year"}]
[null,null,null,null,null,null,null,null,null,null,null,null,null,null,null,null,null,null,null,null,null,null,null,null,null,null,null,null,{"$f":"'Used Language'!$C$30","v":"Error Margin [+/-]:"},null,null,null,null,null,null,null,null,null,null,null,{"$f":"'Water Balance m3day'!AO25:AX25","v":0},null,null,null,null,null,null,null,null,null,{"$f":"'Used Language'!$C$30","v":"Error Margin [+/-]:"},null,null,null,null,null,null,null,null,null,null,{"$f":"AC24*AO25/1.96","v":0},{"$f":"BJ25*BJ25","v":0},{"$f":"B21*B19/1.96","v":0},{"$f":"BL25*BL25","v":0}]
[null,null,null,null,null,null,null,null,null,null,null,null,null,null,null,null,null,null,null,{"$f":"AC24+AC29","v":0},null,null,null,null,"m3/year",null,null,null,null,null,null,null,null,null,null,null,null,null,null,null,null,null,null,null,null,null,null,null,null,null,{"$f":"'Water Balance m3day'!AY26:BG27","v":0}]
[]
[null,null,null,null,null,null,null,null,null,null,{"$f":"'Used Language'!$C$18","v":"Water Losses"},null,null,null,null,null,null,null,null,{"$f":"'Used Language'!$C$30","v":"Error Margin [+/-]:"},null,null,null,null,null,null,null,null,{"$f":"'Used Language'!$C$27","v":"Customer Meter Inaccuracies and Data Handling Errors"}]
[null,null,null,null,null,null,null,null,null,null,{"$f":"B19-K12","v":0},null,null,null,null,{"$f":"'Used Language'!$C$151","v":"m3/year"},null,null,null,{"$f":"'Water Balance m3day'!T29:AB29","v":0},null,null,null,null,null,null,null,null,{"$f":"IF(Start!M21>364,'Meter Errors'!L49,'Water Balance m3day'!AC29*365)","v":0},null,null,null,null,null,null,null,null,null,null,null,"m3/year"]
[null,null,null,null,null,null,null,null,null,null,{"$f":"'Used Language'!$C$30","v":"Error Margin [+/-]:"},null,null,null,null,null,null,null,null,null,null,null,null,null,null,null,null,null,{"$f":"'Used Language'!$C$30","v":"Error Margin [+/-]:"},null,null,null,null,null,null,null,null,null,null,null,{"$f":"'Water Balance m3day'!AO30:AX30","v":0},null,null,null,null,null,null,null,null,null,null,null,null,null,null,null,null,null,null,null,null,{"$f":"AC29*AO30/1.96","v":0},{"$f":"BJ30*BJ30","v":0},{"$f":"T29*T26/1.96","v":0},{"$f":"BL30*BL30","v":0}]
[null,null,null,null,null,null,null,null,null,null,{"$f":"'Water Balance m3day'!K31:S32","v":0}]
[null,null,null,null,null,null,null,null,null,null,null,null,null,null,null,null,null,null,null,null,null,null,null,null,null,null,null,null,null,null,null,null,null,null,null,null,null,null,null,null,null,null,null,null,null,null,null,null,null,null,null,null,null,null,null,null,null,null,null,null,null,{"$f":"SQRT(BK32)","v":0},{"$f":"BK25+BK30","v":0}]
[null,null,null,null,null,null,null,null,null,null,null,null,null,null,null,null,null,null,null,{"$f":"'Used Language'!C22","v":"Physical Losses"}]
[null,null,null,null,null,null,null,null,null,null,null,null,null,null,null,null,null,null,null,{"$f":"K29-T26","v":0},null,null,null,null,null,null,null,null,null,null,null,null,null,"m3/year",null,null,null,null,null,null,null,null,null,null,null,null,null,null,null,null,null,null,null,null,null,null,null,null,null,null,null,null,null,{"$f":"SQRT(BM34)","v":0},{"$f":"BM15+BM25","v":0}]
[null,null,null,null,null,null,null,null,null,null,null,null,null,null,null,null,null,null,null,{"$f":"'Used Language'!$C$30","v":"Error Margin [+/-]:"},null,null,null,null,null,null,null,null,null,null,null,null,null,{"$f":"'Water Balance m3day'!AH35:AX35","v":0},null,null,null,null,null,null,null,null,null,null,null,null,null,null,null,null,null,null,null,null,null,null,null,null,null,null,null,null,null,{"$f":"SQRT(BM35)","v":0},{"$f":"BM15+BM25+BM30","v":0}]

{"sheet":"PIs","index":13,"n_rows":72,"n_cols":30,"rows_kept":72,"cut":false,"hidden":false,"merged":[[50,1,50,3],[48,1,48,3],[26,13,29,13],[26,1,26,3],[28,1,28,3],[42,13,43,15],[44,13,45,13],[46,13,48,13],[46,15,48,15],[44,15,45,15],[26,15,29,15],[32,1,32,11],[42,1,42,11],[46,1,46,3],[36,1,36,3],[38,1,38,3],[30,1,30,3],[40,1,40,3],[1,1,1,11],[16,1,16,3],[18,1,18,3],[8,1,8,3],[10,1,10,3],[4,1,4,11],[12,1,12,11],[6,13,7,15],[24,1,24,3],[22,13,24,13],[22,15,24,15],[20,13,21,15],[20,1,20,11]]}
[]
[null,{"$f":"'Used Language'!C7","v":"Performance Indicators"}]
[]
[]
[null,{"$f":"'Used Language'!$C$36","v":"Level of Service"}]
[]
[null,null,null,null,null,{"$f":"'Used Language'!$C$32","v":"Best Estimate"},null,{"$f":"'Used Language'!$C$33","v":"Error Margin\n[+/- %]"},null,{"$f":"'Used Language'!$C$34","v":"Lower Bound"},null,{"$f":"'Used Language'!$C$35","v":"Upper Bound"},null,{"$f":"'Used Language'!C128","v":"Home"}]
[]
[null,{"$f":"'Used Language'!$C$44","v":"Average Supply Time [h/day]"},null,null,null,{"$f":"'Intermittent Supply'!H33","v":24},null,{"$f":"'Intermittent Supply'!H26","v":0},null,{"$f":"F9*(1-H9)","v":24},null,{"$f":"'Intermittent Supply'!H31","v":24}]
[]
[null,{"$f":"'Used Language'!$C$45","v":"Average Pressure [m]"},null,null,null,{"$f":"Pressure!F33","v":0},null,{"$f":"Pressure!F26","v":0},null,{"$f":"F11*(1-H11)","v":0},null,{"$f":"F11*(1+H11)","v":0}]
[]
[null,{"$f":"'Used Language'!$C$37","v":"Volume of Physical Losses"},null,null,null,null,null,null,null,null,null,null,null,null,null,null,null,null,"daily volume","error","variance"]
[]
[null,null,null,null,null,{"$f":"'Used Language'!$C$32","v":"Best Estimate"},null,{"$f":"'Used Language'!$C$33","v":"Error Margin\n[+/- %]"},null,{"$f":"'Used Language'!$C$34","v":"Lower Bound"},null,{"$f":"'Used Language'!$C$35","v":"Upper Bound"},null,null,null,"LM",null,{"$f":"Network!D35","v":0},{"$f":"R15*18*$F$11/24*$F$9/1000","v":0},{"$f":"SQRT($H$9*$H$9+$H$11*$H$11+Network!D30*Network!D30)","v":0},{"$f":"((S15*T15)/1.96)^2","v":0}]
[]
[null,{"$f":"'Used Language'!$C$46","v":"CAPL - Current Annual Volume of Physical Losses [m3/day]"},null,null,null,{"$f":"'Water Balance m3day'!T34","v":0},null,{"$f":"'Water Balance m3day'!AH35","v":0},null,{"$f":"F17*(1-H17)","v":0},null,{"$f":"F17*(1+H17)","v":0},null,null,null,"NC",null,{"$f":"Network!H30","v":0},{"$f":"R17*0.8*$F$11/24*$F$9/1000","v":0},{"$f":"SQRT($H$9*$H$9+$H$11*$H$11+Network!J24*Network!J24)","v":0},{"$f":"((S17*T17)/1.96)^2","v":0}]
[]
[null,{"$f":"'Used Language'!$C$47","v":"MAPL - Minimum Achievable Volume of Physical Losses [m3/day]"},null,null,null,{"$f":"IF((((Network!D37*18+Network!H30*0.8+Network!H39*25)*PIs!F11)/24*PIs!F9)*365/1000>0,(((Network!D37*18+Network!H30*0.8+Network!H39*25)*PIs!F11)/24*PIs!F9)/1000,0)","v":0},null,{"$f":"IF(F19=0,0,(SQRT(U20))*1.96/F19)","v":0},null,{"$f":"F19*(1-H19)","v":0},null,{"$f":"F19*(1+H19)","v":0},null,null,null,"LP",null,{"$f":"Network!H39","v":0},{"$f":"R19*25*365*$F$11/24*$F$9/1000/1000","v":0},{"$f":"SQRT($H$9*$H$9+$H$11*$H$11+Network!J39*Network!J39)","v":0},{"$f":"((S19*T19)/1.96)^2","v":0}]
[null,null,null,null,null,null,null,null,null,null,null,null,null,null,null,null,null,null,null,null,{"$f":"SUM(U17:U19)","v":0}]
[null,{"$f":"'Used Language'!$C$38","v":"Physical Loss Performance Indicators"},null,null,null,null,null,null,null,null,null,null,null,{"$f":"'Used Language'!C41","v":"Performance Group"}]
[]
[null,null,null,null,null,{"$f":"'Used Language'!$C$32","v":"Best Estimate"},null,{"$f":"'Used Language'!$C$33","v":"Error Margin\n[+/- %]"},null,{"$f":"'Used Language'!$C$34","v":"Lower Bound"},null,{"$f":"'Used Language'!$C$35","v":"Upper Bound"},null,{"$f":"'Used Language'!C42","v":"Standard"},null,{"$f":"'Used Language'!C43","v":"Low and Middle Income Countries"}]
[]
[null,{"$f":"'Used Language'!$C$50","v":"Infrastructure Leakage Index (ILI)"},null,null,null,{"$f":"IF(F19=0,0,F17/F19)","v":0},null,{"$f":"SQRT(H17*H17+H19*H19)","v":0},null,{"$f":"F25*(1-H25)","v":0},null,{"$f":"F25*(1+H25)","v":0}]
[]
[null,{"$f":"'Used Language'!$C$48","v":"Liters per Connection per Day (w.s.p.)\n\nw.s.p.: when the system is pressurized - this means the value is already corrected in the case of intermittent supply"},null,null,null,{"$f":"IF(OR(Network!H30=0,F9=0),0,F17/Network!H30*1000/F9*24)","v":0},null,{"$f":"SQRT(H9*H9+Network!J24*Network!J24+'Water Balance m3year'!AH35*'Water Balance m3year'!AH35)","v":0},null,{"$f":"F27*(1-H27)","v":0},null,{"$f":"F27*(1+H27)","v":0},null,{"$f":"IF(F25=0,\"\",IF(F25<1.51,\"A1\",(IF($F$25<2.01,\"A2\",(IF($F$25<4.01,\"B\",(IF($F$25<8,\"C\",\"D\"))))))))","v":""},null,{"$f":"IF(F25=0,\"\",IF(F25<2.01,\"A1\",(IF(F25<4.01,\"A2\",(IF(F25<8.01,\"B\",(IF(F25<16.01,\"C\",\"D\"))))))))","v":""}]
[]
[null,{"$f":"'Used Language'!$C$49","v":"Liters per Connection per Day per meter Pressure (w.s.p.)"},null,null,null,{"$f":"IF(F11=0,0,F27/F11)","v":0},null,{"$f":"SQRT(H27*H27+H11*H11)","v":0},null,{"$f":"F29*(1-H29)","v":0},null,{"$f":"F29*(1+H29)","v":0},null,null,null,null,null,null,"volume","error","variance"]
[null,null,null,null,null,null,null,null,null,null,null,null,null,null,null,null,null,"AUT Cons",{"$f":"'Water Balance m3year'!K12","v":0},{"$f":"'Water Balance m3year'!K15","v":0},{"$f":"((S30*T30)/1.96)^2","v":0}]
[null,{"$f":"'Used Language'!C107","v":"m3/km mains per hour (w.s.p.)"},null,null,null,{"$f":"IF(OR(Network!D37=0,F9=0),0,F17/F9/Network!D37)","v":0},null,{"$f":"SQRT(H9*H9+'Water Balance m3year'!AH35*'Water Balance m3year'!AH35+Network!D30*Network!D30)","v":0},null,{"$f":"F31*(1-H31)","v":0},null,{"$f":"F31*(1+H31)","v":0},null,{"$f":"'Used Language'!C116","v":"Explanations"},null,{"$f":"'Used Language'!C116","v":"Explanations"}]
[null,null,null,null,null,null,null,null,null,null,null,null,null,null,null,null,null,"Comm Loss",{"$f":"'Water Balance m3year'!T26","v":0},{"$f":"'Water Balance m3year'!T29","v":0},{"$f":"((S32*T32)/1.96)^2","v":0}]
[null,{"$f":"'Used Language'!$C$39","v":"Commercial Loss Performance Indicators"}]
[null,null,null,null,null,null,null,null,null,null,null,null,null,null,null,null,null,null,{"$f":"S30*F37","v":0},null,{"$f":"SUM(U30:U32)","v":0}]
[null,null,null,null,null,{"$f":"'Used Language'!$C$32","v":"Best Estimate"},null,{"$f":"'Used Language'!$C$33","v":"Error Margin\n[+/- %]"},null,{"$f":"'Used Language'!$C$34","v":"Lower Bound"},null,{"$f":"'Used Language'!$C$35","v":"Upper Bound"}]
[null,null,null,null,null,null,null,null,null,null,null,null,null,null,null,null,null,null,"volume","error","variance"]
[null,{"$f":"'Used Language'!$C$51","v":"Commercial Losses expressed in % of Authorized Consumption"},null,null,null,{"$f":"IF('Water Balance m3year'!K12=0,0,'Water Balance m3year'!T26/'Water Balance m3year'!K12)","v":0},null,{"$f":"IF($S$34=0,0,(SQRT($U$34))*1.96/$S$34)","v":0},null,{"$f":"F37*(1-H37)","v":0},null,{"$f":"F37*(1+H37)","v":0}]
[]
[null,{"$f":"'Used Language'!$C$154","v":"liters/connection/day"},null,null,null,{"$f":"IF(Network!H30=0,0,'Water Balance m3day'!T26/Network!H30*1000)","v":0},null,{"$f":"SQRT(Network!J24*Network!J24+T32*T32)","v":0},null,{"$f":"F39*(1-H39)","v":0},null,{"$f":"F39*(1+H39)","v":0}]
[]
[null,{"$f":"'Used Language'!C185","v":"liters/customer/day"},null,null,null,{"$f":"IF(Network!H7=0,0,'Water Balance m3day'!T26/Network!H7*1000)","v":0},null,{"$f":"SQRT(Network!J7*Network!J7+T32*T32)","v":0},null,{"$f":"F41*(1-H41)","v":0},null,{"$f":"F41*(1+H41)","v":0}]
[]
[null,{"$f":"'Used Language'!$C$186","v":"NRW Performance Indicators"},null,null,null,null,null,null,null,null,null,null,null,{"$f":"'Used Language'!C41","v":"Performance Group"}]
[]
[null,null,null,null,null,{"$f":"'Used Language'!$C$32","v":"Best Estimate"},null,{"$f":"'Used Language'!$C$33","v":"Error Margin\n[+/- %]"},null,{"$f":"'Used Language'!$C$34","v":"Lower Bound"},null,{"$f":"'Used Language'!$C$35","v":"Upper Bound"},null,{"$f":"'Used Language'!C42","v":"Standard"},null,{"$f":"'Used Language'!C43","v":"Low and Middle Income Countries"}]
[]
[null,{"$f":"'Used Language'!$C$52","v":"Volume of Non-Revenue Water expressed in % of System Input Volume"},null,null,null,{"$f":"IF('Water Balance m3year'!B19=0,0,'Water Balance m3year'!AY24/'Water Balance m3year'!B19)","v":0},null,{"$f":"'Water Balance m3year'!AY26","v":0},null,{"$f":"F47*(1-H47)","v":0},null,{"$f":"F47*(1+H47)","v":0},null,{"$f":"IF(F51=0,\"\",IF(F51<AA68+0.01,\"A1\",(IF(F51<AA69+0.01,\"A2\",(IF(F51<AA70+0.01,\"B\",(IF(F51<AA71+0.01,\"C\",\"D\"))))))))","v":""},null,{"$f":"IF(F51=0,\"\",IF(F51<Z68+0.01,\"A1\",(IF(F51<Z69+0.01,\"A2\",(IF(F51<Z70+0.01,\"B\",(IF(F51<Z71+0.01,\"C\",\"D\"))))))))","v":""}]
[]
[null,{"$f":"'Used Language'!$C$53","v":"Value of Non-Revenue Water expressed in % of Annual Operating Cost"},null,null,null,{"$f":"IF('Financial Data'!G35=0,0,'Financial Data'!G31/'Financial Data'!G35)","v":0},null,{"$f":"H47","v":0},null,{"$f":"F49*(1-H49)","v":0},null,{"$f":"F49*(1+H49)","v":0}]
[]
[null,{"$f":"'Used Language'!$C$48","v":"Liters per Connection per Day (w.s.p.)\n\nw.s.p.: when the system is pressurized - this means the value is already corrected in the case of intermittent supply"},null,null,null,{"$f":"IF(Network!H30=0,0,'Water Balance m3day'!AY24/Network!H30*1000/F9*24)","v":0},null,{"$f":"SQRT(H9*H9+Network!J10*Network!J10+'Water Balance m3year'!AY26*'Water Balance m3year'!AY26)","v":0},null,{"$f":"F51*(1-H51)","v":0},null,{"$f":"F51*(1+H51)","v":0},null,{"$f":"'Used Language'!C116","v":"Explanations"},null,{"$f":"'Used Language'!C116","v":"Explanations"}]
[]
[]
[null,null,null,null,null,null,null,null,null,null,null,null,null,null,null,null,null,null,null,null,null,null,null,null,null,15,25,35,45,50]
[]
[null,null,null,null,null,null,null,null,null,null,null,null,null,null,null,null,null,null,null,null,null,null,null,null,"A1",null,50,65,75,85]
[null,null,null,null,null,null,null,null,null,null,null,null,null,null,null,null,null,null,null,null,null,null,null,null,"A2",null,100,125,150,175]
[null,null,null,null,null,null,null,null,null,null,null,null,null,null,null,null,null,null,null,null,null,null,null,null,"B",null,200,250,300,350]
[null,null,null,null,null,null,null,null,null,null,null,null,null,null,null,null,null,null,null,null,null,null,null,null,"C",null,350,450,550,650]
[null,null,null,null,null,null,null,null,null,null,null,null,null,null,null,null,null,null,null,null,null,null,null,null,"D"]
[null,null,null,null,null,null,null,null,null,null,null,null,null,null,null,null,null,null,null,null,null,null,null,null,null,15,25,35,45,50]
[null,null,null,null,null,null,null,null,null,null,null,null,null,null,null,null,null,null,null,null,null,null,null,null,"A1",55,80,105,130,155]
[null,null,null,null,null,null,null,null,null,null,null,null,null,null,null,null,null,null,null,null,null,null,null,null,"A2",110,160,210,260,310]
[null,null,null,null,null,null,null,null,null,null,null,null,null,null,null,null,null,null,null,null,null,null,null,null,"B",220,320,420,520,620]
[null,null,null,null,null,null,null,null,null,null,null,null,null,null,null,null,null,null,null,null,null,null,null,null,"C",400,600,800,1000,1200]
[null,null,null,null,null,null,null,null,null,null,null,null,null,null,null,null,null,null,null,null,null,null,null,null,"D"]
[]
[null,null,null,null,null,null,null,null,null,null,null,null,null,null,null,null,null,null,null,null,null,null,null,null,"A1",{"$f":"IF(F11<15.01,Z62,IF(F11<25.01,AA62,IF(F11<35.01,AB62,IF(F11<45.01,AC62,IF(F11>=45.01,AD62)))))","v":55},{"$f":"IF(F11<25.01,AA56,IF(F11<35.01,AB56,IF(F11<45.01,AC56,IF(F11>=45.01,AD56))))","v":50}]
[null,null,null,null,null,null,null,null,null,null,null,null,null,null,null,null,null,null,null,null,null,null,null,null,"A2",{"$f":"IF(F11<15.01,Z63,IF(F11<25.01,AA63,IF(F11<35.01,AB63,IF(F11<45.01,AC63,IF(F11>=45.01,AD63)))))","v":110},{"$f":"IF(F11<25.01,AA57,IF(F11<35.01,AB57,IF(F11<45.01,AC57,IF(F11>=45.01,AD57))))","v":100}]
[null,null,null,null,null,null,null,null,null,null,null,null,null,null,null,null,null,null,null,null,null,null,null,null,"B",{"$f":"IF(F11<15.01,Z64,IF(F11<25.01,AA64,IF(F11<35.01,AB64,IF(F11<45.01,AC64,IF(F11>=45.01,AD64)))))","v":220},{"$f":"IF(F11<25.01,AA58,IF(F11<35.01,AB58,IF(F11<45.01,AC58,IF(F11>=45.01,AD58))))","v":200}]
[null,null,null,null,null,null,null,null,null,null,null,null,null,null,null,null,null,null,null,null,null,null,null,null,"C",{"$f":"IF(F11<15.01,Z65,IF(F11<25.01,AA65,IF(F11<35.01,AB65,IF(F11<45.01,AC65,IF(F11>=45.01,AD65)))))","v":400},{"$f":"IF(F11<25.01,AA59,IF(F11<35.01,AB59,IF(F11<45.01,AC59,IF(F11>=45.01,AD59))))","v":350}]
[null,null,null,null,null,null,null,null,null,null,null,null,null,null,null,null,null,null,null,null,null,null,null,null,"D"]

{"sheet":"WHAT IF","index":14,"n_rows":59,"n_cols":13,"rows_kept":59,"cut":false,"hidden":false,"merged":[[58,9,59,9],[55,9,56,9],[1,12,1,14],[37,6,38,6],[37,9,38,9],[14,6,15,6],[14,9,15,9],[22,2,22,3],[23,2,23,3],[25,2,25,3],[26,2,26,3],[28,2,28,3],[29,2,29,3],[31,2,31,3],[32,2,32,3],[34,2,34,3],[35,2,35,3],[39,2,39,3],[40,2,40,3],[45,2,45,3],[46,2,46,3],[48,2,48,3],[42,2,42,3],[43,2,43,3],[57,2,57,3],[58,2,58,3],[49,2,49,3],[51,2,51,3],[52,2,52,3],[54,2,54,3],[55,2,55,3]]}
[]
[null,{"$f":"'Used Language'!$C$159","v":"THE \"WHAT IF\" TOOL"},null,null,null,null,null,null,null,null,null,null,{"$f":"'Used Language'!C128","v":"Home"}]
[]
[]
[null,null,{"$f":"'Used Language'!$C$160","v":"IF"}]
[]
[null,null,{"$f":"'Used Language'!$C$70","v":"Average Pressure"},{"$f":"'Used Language'!$C$166","v":"changes"},{"$f":"'Used Language'!$C$164","v":"from"},{"$f":"Pressure!F33","v":0},{"$f":"'Used Language'!$C$169","v":"m"},{"$f":"'Used Language'!$C$165","v":"to"},null,{"$f":"'Used Language'!$C$169","v":"m"}]
[]
[null,null,{"$f":"'Used Language'!$C$157","v":"Average Supply Time"},{"$f":"'Used Language'!$C$166","v":"changes"},{"$f":"'Used Language'!$C$164","v":"from"},{"$f":"'Intermittent Supply'!H33","v":24},{"$f":"'Used Language'!$C$162","v":"h/day"},{"$f":"'Used Language'!$C$165","v":"to"},null,{"$f":"'Used Language'!$C$162","v":"h/day"}]
[]
[null,null,{"$f":"'Used Language'!$C$158","v":"Coverage"},{"$f":"'Used Language'!$C$167","v":"increases"},{"$f":"'Used Language'!$C$164","v":"from"},null,"%",{"$f":"'Used Language'!$C$165","v":"to"},null,"%"]
[]
[null,null,{"$f":"'Used Language'!C200","v":"Additional volume sold to existing customers"},null,null,null,null,null,null,{"$f":"'Used Language'!C201","v":"additional m3/d"}]
[]
[null,null,{"$f":"'Used Language'!$C$22","v":"Physical Losses"},{"$f":"'Used Language'!$C$168","v":"change"},{"$f":"'Used Language'!$C$164","v":"from"},{"$f":"PIs!F25","v":0},{"$f":"'Used Language'!$C$181","v":"ILI"},{"$f":"'Used Language'!$C$165","v":"to"},null,{"$f":"'Used Language'!$C$181","v":"ILI"}]
[]
[null,null,{"$f":"'Used Language'!$C$21","v":"Commercial Losses"},{"$f":"'Used Language'!$C$168","v":"change"},{"$f":"'Used Language'!$C$164","v":"from"},{"$f":"PIs!F39","v":0},{"$f":"'Used Language'!$C$163","v":"l/conn./d"},{"$f":"'Used Language'!$C$165","v":"to"},null,{"$f":"'Used Language'!$C$163","v":"l/conn./d"}]
[]
[]
[]
[null,null,{"$f":"'Used Language'!$C$161","v":"THEN"}]
[]
[null,null,{"$f":"'Used Language'!$C$67","v":"Number of Connections"}]
[null,null,{"$f":"'Used Language'!$C$172","v":"will increase approximately "},null,{"$f":"'Used Language'!$C$164","v":"from"},{"$f":"Network!H30","v":0},null,{"$f":"'Used Language'!$C$165","v":"to"},{"$f":"IF(F$11=0,F24,F24/F$11*I$11)","v":0}]
[]
[null,null,{"$f":"'Used Language'!$C$174","v":"Length of mains"}]
[null,null,{"$f":"'Used Language'!$C$172","v":"will increase approximately "},null,{"$f":"'Used Language'!$C$164","v":"from"},{"$f":"Network!D37","v":0},{"$f":"'Used Language'!$C$170","v":"km"},{"$f":"'Used Language'!$C$165","v":"to"},{"$f":"IF(F$11=0,F27,F27/F$11*I$11)","v":0},{"$f":"'Used Language'!$C$170","v":"km"}]
[]
[null,null,{"$f":"'Used Language'!$C$11","v":"Billed Consumption"}]
[null,null,{"$f":"'Used Language'!$C$173","v":"will change approximately"},null,{"$f":"'Used Language'!$C$164","v":"from"},{"$f":"'Water Balance m3day'!T8","v":0},{"$f":"'Used Language'!$C$31","v":"m3/day"},{"$f":"'Used Language'!$C$165","v":"to"},{"$f":"(IF(F11=0,F30+F47-I47,F30/F24*I24+(F47-I47)))+I13","v":0},{"$f":"'Used Language'!$C$31","v":"m3/day"}]
[]
[null,null,{"$f":"'Used Language'!$C$10","v":"System Input Volume"}]
[null,null,{"$f":"'Used Language'!$C$182","v":"will change approximately"},null,{"$f":"'Used Language'!$C$164","v":"from"},{"$f":"'Water Balance m3day'!B19","v":0},{"$f":"'Used Language'!$C$31","v":"m3/day"},{"$f":"'Used Language'!$C$165","v":"to"},{"$f":"I30+I36","v":0},{"$f":"'Used Language'!$C$31","v":"m3/day"}]
[]
[null,null,{"$f":"'Used Language'!$C$29","v":"Non-Revenue Water"}]
[null,null,{"$f":"'Used Language'!$C$182","v":"will change approximately"},null,{"$f":"'Used Language'!$C$164","v":"from"},{"$f":"'Water Balance m3day'!AY24","v":0},{"$f":"'Used Language'!$C$31","v":"m3/day"},{"$f":"'Used Language'!$C$165","v":"to"},{"$f":"IF(F11=\"\",I41+I47+'Water Balance m3day'!T16,I41+I47+'Water Balance m3day'!T16/F11*I11)","v":0},{"$f":"'Used Language'!$C$31","v":"m3/day"}]
[]
[null,null,null,null,{"$f":"'Used Language'!$C$164","v":"from"},{"$f":"PIs!F51","v":0},{"$f":"'Used Language'!$C$171","v":"l/conn./d (w.s.p.)"},{"$f":"'Used Language'!$C$165","v":"to"},{"$f":"IF(AND(I9>0,I24>0),I36/I9*24/I24*1000,0)","v":0},{"$f":"'Used Language'!$C$171","v":"l/conn./d (w.s.p.)"}]
[]
[null,null,{"$f":"'Used Language'!$C$22","v":"Physical Losses"}]
[null,null,{"$f":"'Used Language'!$C$173","v":"will change approximately"},null,{"$f":"'Used Language'!$C$164","v":"from"},{"$f":"'Water Balance m3day'!T34","v":0},{"$f":"'Used Language'!$C$31","v":"m3/day"},{"$f":"'Used Language'!$C$165","v":"to"},{"$f":"(I27*18+I24*0.8+Network!H39*25)*I7/1000/24*I9*I15","v":0},{"$f":"'Used Language'!$C$31","v":"m3/day"}]
[]
[null,null,{"$f":"'Used Language'!$C$202","v":"Annual Production and Distribution Cost"}]
[null,null,{"$f":"'Used Language'!$C$173","v":"will change approximately"},null,{"$f":"'Used Language'!$C$164","v":"from"},{"$f":"F33*365*'Financial Data'!G8","v":0},{"$f":"'Financial Data'!K6","v":0},{"$f":"'Used Language'!$C$165","v":"to"},{"$f":"I33*365*'Financial Data'!G8","v":0},{"$f":"'Financial Data'!K6","v":0}]
[]
[null,null,{"$f":"'Used Language'!$C$21","v":"Commercial Losses"}]
[null,null,{"$f":"'Used Language'!$C$173","v":"will change approximately"},null,{"$f":"'Used Language'!$C$164","v":"from"},{"$f":"'Water Balance m3day'!T26","v":0},{"$f":"'Used Language'!$C$31","v":"m3/day"},{"$f":"'Used Language'!$C$165","v":"to"},{"$f":"I24*I17/1000","v":0},{"$f":"'Used Language'!$C$31","v":"m3/day"}]
[]
[null,null,{"$f":"'Used Language'!$C$175","v":"Annual Revenues"}]
[null,null,{"$f":"'Used Language'!$C$173","v":"will change approximately"},null,{"$f":"'Used Language'!$C$164","v":"from"},{"$f":"F30*'Financial Data'!G6*365","v":0},{"$f":"'Financial Data'!K6","v":0},{"$f":"'Used Language'!$C$165","v":"to"},{"$f":"I30*'Financial Data'!G6*365","v":0},{"$f":"'Financial Data'!K6","v":0}]
[]
[null,null,{"$f":"'Used Language'!$C$176","v":"Annual operating cost"}]
[null,null,{"$f":"'Used Language'!$C$173","v":"will change approximately"},null,{"$f":"'Used Language'!$C$164","v":"from"},{"$f":"'Financial Data'!G35","v":0},{"$f":"G50","v":0},{"$f":"'Used Language'!$C$165","v":"to"},{"$f":"IF(OR(F53=0,I33=0),0,(I33-F33)*'Financial Data'!G8*365+F53)","v":0},{"$f":"J50","v":0}]
[]
[null,null,{"$f":"'Used Language'!$C$177","v":"The volume of NRW"}]
[null,null,{"$f":"'Used Language'!$C$182","v":"will change approximately"},null,{"$f":"'Used Language'!$C$164","v":"from"},{"$f":"PIs!F47*100","v":0},"%",{"$f":"'Used Language'!$C$165","v":"to"},{"$f":"IF(I33=0,0,I36/I33*100)","v":0},{"$f":"'Used Language'!$C$179","v":"% of System Input Volume"}]
[]
[null,null,{"$f":"'Used Language'!$C$178","v":"The value of NRW"}]
[null,null,{"$f":"'Used Language'!$C$182","v":"will change approximately"},null,{"$f":"'Used Language'!$C$164","v":"from"},{"$f":"PIs!F49*100","v":0},"%",{"$f":"'Used Language'!$C$165","v":"to"},{"$f":"IF(I53=0,0,(I41*365*'Financial Data'!G8+I47*365*'Financial Data'!G6+'Financial Data'!G13+'Financial Data'!G15)/I53*100)","v":0},{"$f":"'Used Language'!$C$180","v":"% of Total Annual Operating Cost"}]

{"sheet":"Historic Data","index":15,"n_rows":42,"n_cols":15,"rows_kept":42,"cut":false,"hidden":false,"merged":[[1,14,2,15]]}
[{"$f":"'Used Language'!C196","v":"Store up to 10 years of data and copy/paste easily to other Excel sheets!"},null,{"$f":"Start!P17","v":0},{"$f":"'Used Language'!C197","v":"Click the button to copy \"Present\" to this column"},{"$f":"D1","v":"Click the button to copy \"Present\" to this column"},{"$f":"E1","v":"Click the button to copy \"Present\" to this column"},"Click the button to copy \"Present\" to this column","Click the button to copy \"Present\" to this column","Click the button to copy \"Present\" to this column","Click the button to copy \"Present\" to this column","Click the button to copy \"Present\" to this column","Click the button to copy \"Present\" to this column","Click the button to copy \"Present\" to this column"]
[null,null,{"$f":"'Used Language'!C198","v":"Present"},null,null,null,null,null,null,null,null,null,null,null,"Home"]
[{"$f":"'Water Balance m3day'!B18","v":"System Input Volume"},{"$f":"'Water Balance m3day'!G19","v":"m3/day"},{"$f":"'Water Balance m3day'!B19","v":0}]
[{"$f":"'Water Balance m3day'!K9","v":"Authorized Consumption"},{"$f":"$B$3","v":"m3/day"},{"$f":"'Water Balance m3day'!K12","v":0}]
[{"$f":"'Water Balance m3day'!K28","v":"Water Losses"},{"$f":"$B$3","v":"m3/day"},{"$f":"'Water Balance m3day'!K29","v":0}]
[]
[{"$f":"'Water Balance m3day'!T3","v":"Billed Authorized Consumption"},{"$f":"$B$3","v":"m3/day"},{"$f":"'Water Balance m3day'!T8","v":0}]
[{"$f":"'Water Balance m3day'!T13","v":"Unbilled Authorized Consumption"},{"$f":"$B7","v":"m3/day"},{"$f":"'Water Balance m3day'!T16","v":0}]
[{"$f":"'Water Balance m3day'!T23","v":"Commercial Losses"},{"$f":"$B8","v":"m3/day"},{"$f":"'Water Balance m3day'!T26","v":0}]
[{"$f":"'Water Balance m3day'!T33","v":"Physical Losses"},{"$f":"$B$3","v":"m3/day"},{"$f":"'Water Balance m3day'!T34","v":0}]
[]
[{"$f":"'Water Balance m3day'!AC3","v":"Billed Metered Consumption"},{"$f":"$B$3","v":"m3/day"},{"$f":"'Water Balance m3day'!AC4","v":0}]
[{"$f":"'Water Balance m3day'!AC8","v":"Billed Unmetered Consumption"},"m3/day",{"$f":"'Water Balance m3day'!AC9","v":0}]
[{"$f":"'Water Balance m3day'!AC13","v":"Unbilled Metered Consumption"},"m3/day",{"$f":"'Water Balance m3day'!AC14","v":0}]
[{"$f":"'Water Balance m3day'!AC18","v":"Unbilled Unmetered Consumption"},"m3/day",{"$f":"'Water Balance m3day'!AC19","v":0}]
[{"$f":"'Water Balance m3day'!AC23","v":"Unauthorized Consumption"},"m3/day",{"$f":"'Water Balance m3day'!AC24","v":0}]
[{"$f":"'Water Balance m3day'!AC28","v":"Customer Meter Inaccuracies and Data Handling Errors"},"m3/day",{"$f":"'Water Balance m3day'!AC29","v":0}]
[{"$f":"'Water Balance m3day'!T33","v":"Physical Losses"},"m3/day",{"$f":"C10","v":0}]
[]
[{"$f":"'Water Balance m3day'!AY3","v":"Revenue Water"},{"$f":"$B$3","v":"m3/day"},{"$f":"'Water Balance m3day'!AY8","v":0}]
[{"$f":"'Water Balance m3day'!AY21","v":"Non-Revenue Water"},{"$f":"$B$3","v":"m3/day"},{"$f":"'Water Balance m3day'!AY24","v":0}]
[]
[{"$f":"Network!B32","v":"Pipe Length [km]"},null,{"$f":"Network!D37","v":0}]
[{"$f":"Network!F25","v":"Number of Connections"},null,{"$f":"Network!H30","v":0}]
[{"$f":"Pressure!B28","v":"Average Pressure [m]"},null,{"$f":"Pressure!F33","v":0}]
[{"$f":"'Intermittent Supply'!B28","v":"Average Supply Time [h/day]"},null,{"$f":"'Intermittent Supply'!H33","v":24}]
[]
[{"$f":"'Used Language'!C22","v":"Physical Losses"}]
[{"$f":"PIs!B25","v":"Infrastructure Leakage Index (ILI)"},null,{"$f":"PIs!F25","v":0}]
[{"$f":"PIs!B27","v":"Liters per Connection per Day (w.s.p.)\n\nw.s.p.: when the system is pressurized - this means the value is already corrected in the case of intermittent supply"},null,{"$f":"PIs!F27","v":0}]
[{"$f":"PIs!B29","v":"Liters per Connection per Day per meter Pressure (w.s.p.)"},null,{"$f":"PIs!F29","v":0}]
[{"$f":"PIs!B31","v":"m3/km mains per hour (w.s.p.)"},null,{"$f":"PIs!F31","v":0}]
[]
[{"$f":"'Used Language'!C21","v":"Commercial Losses"}]
[{"$f":"PIs!B37","v":"Commercial Losses expressed in % of Authorized Consumption"},null,{"$f":"PIs!F37","v":0}]
[{"$f":"PIs!B39","v":"liters/connection/day"},null,{"$f":"PIs!F39","v":0}]
[{"$f":"PIs!B41","v":"liters/customer/day"},null,{"$f":"PIs!F41","v":0}]
[]
[{"$f":"PIs!B47","v":"Volume of Non-Revenue Water expressed in % of System Input Volume"},null,{"$f":"PIs!F47","v":0}]
[{"$f":"PIs!B49","v":"Value of Non-Revenue Water expressed in % of Annual Operating Cost"},null,{"$f":"PIs!F49","v":0}]
[{"$f":"PIs!B51","v":"Liters per Connection per Day (w.s.p.)\n\nw.s.p.: when the system is pressurized - this means the value is already corrected in the case of intermittent supply"},null,{"$f":"PIs!F51","v":0}]
[null,null,{"$f":"Start!O65","v":0},null,0]

{"sheet":"Getting Started","index":16,"n_rows":51,"n_cols":4,"rows_kept":51,"cut":false,"hidden":false,"merged":[[1,3,3,5]]}
[]
[null,{"$f":"'Used Language'!C5","v":"Getting Started"},null,{"$f":"'Used Language'!C128","v":"Home"}]
[]
[null,{"$f":"'Used Language'!C133","v":"1.) WB-EasyCalc was designed in 2006 to help water utilities and consultants to properly apply the IWA Water Loss Specialist Group Methodology. During the last 10 years it has become the preferred NRW analysis tool for water utilities around the world. To celebrate its 10th anniversary, version 5 has been launched in August 2016. "}]
[null,{"$f":"'Used Language'!C134","v":"2.) The pre-set Language is English using the IWA terminology. If you would like to use the World Bank favored terms \"Physical Losses\" and \"Commercial Losses\" instead of the IWA terms \"Real Losses\" and \"Apparent Losses\" click on the button \"change language\" and select code 2."}]
[null,{"$f":"'Used Language'!C135","v":"3.) In the World Bank Terminology, the IWA terms \"UARL - Unavoidable Annual Volume of Real Losses\" and \"CARL - Current Annual Volume of Real Losses\" were replaced with the World Bank favored terms \"MAPL - Minimum Achievable Annual Volume of Physical Losses\" and \"CAPL - Current Annual Volume of Physical Losses\". However, the underlying formula remained of course unchanged."},null,{"$f":"'Used Language'!C15","v":"Change Language"}]
[null,{"$f":"'Used Language'!C136","v":"4.) WB-EasyCalc was optimized for a screen resolution of 1024 x 768 Pixel"}]
[null,{"$f":"'Used Language'!C137","v":"5.) Color Coding: "}]
[null,{"$f":"'Used Language'!C138","v":"white cells are for data entry"}]
[]
[null,{"$f":"'Used Language'!C139","v":"dark blue cells are calculated values"}]
[null,{"$f":"'Used Language'!C140","v":"6.) While every effort has been made by the developers to ensure that WB-EasyCalc is free from error, those using the model do so at their own risk. Liemberger & Partners accept no liability of any nature for losses (direct or indirect) incurred through the use of this model."}]
[null,{"$f":"'Used Language'!C141","v":"7.) The program is protected with passwords which will not be revealed."}]
[null,{"$f":"'Used Language'!C142","v":"8.) GIGO - Garbage in Garbage out! The user has to be aware that results calculated with this program can be extremely wrong if base data is wrong or incomplete."}]
[null,{"$f":"'Used Language'!C143","v":"9.) It is ALWAYS recommended to carry out a thorough leakage analysis based on measurements in the distribution network to support and verify the physical loss figure calculated with this program."}]
[null,{"$f":"'Used Language'!C144","v":"10.) When using this program for the first time, it is recommended to first familiarize with the methodology. A complete set of background reading materials can be downloaded from www.liemberger.cc"}]
[null,{"$f":"'Used Language'!C145","v":"11.) Liemberger & Partners would appreciate feedback! Please send your comments to office@liemberger.cc"}]
[null,{"$f":"'Used Language'!C146","v":"12.) WB-EasyCalc will be continuously improved and upgraded - revisit www.liemberger.cc from time to time to check for new versions."}]
[null,"13.) My thanks go to many friends and colleagues who have helped to improve and complement this free software (and apologies to those that are not mentioned here):"]
[null,"Ronnie McKenzie (South Africa) has ensured that the statistical concept used follows the principles brought to the Water Industry by Allan Lambert (UK)"]
[null,"Gary McLay (Australia) has detected a few fundamental bugs in the beta version!!!"]
[null,"Malcolm Farley has convinced me that the US spelling hurts too much for most people - therefore it is now only one of the language options!"]
[null,"Pham Thach (Vietnam) has prepared the translations for the first Non-English version and NT Dan from ECO-Asia has translated additional bits and pieces."]
[null,"Ms. Asel Abylgazieva (Kyrgyz Republic) has kindly translated everything into Russian language"]
[null,"Ms. Yulfarida Arini (Indonesia) has prepared the Bahasa Indonesia version that is now appreciated by many PDAMs (water utilities) in her country."]
[null,"Hervé Guibentif (France) has used WB-EasyCalc to analyze the water losses of SIG, the water utility of Geneve, and was so kind to share the French language terms with us. Merci!"]
[null,"Philippe Marin (France) who contributed the slogan: ... because the best things in life are free! ..."]
[null,"Marcello Schiatti (Italy) was so kind to prepare the Italian language version (thanks also to my friend Dewi Rogers!)"]
[null,"Ms. Debora Soares (Brazil) from the water utility of São Paulo (SABESP) was so kind to prepare the Portuguese version."]
[null,"Professor Fabio Garzon Contreras (Columbia) from the Pontificia Universidad Javeriana in Cali has contributed the Spanish translation."]
[null,"Gyula Pálfi (Hungary) from Spiderweb Bt. took the initiative to prepare the Hungarian language version."]
[null,"Mohammed Hossam Sallam, an old friend of mine and a seasoned water loss professional from Jordan pioneered this \"first ever\" Arabic language version! Shokran!"]
[null,"Sher Singh and his team from USAID's ECO-Asia program have jointly with their Thai colleagues from the Provincial Waterworks Authority, namely Khun Kittiya, have produced the Thai language version."]
[null,"Ms. Kelly Arikawa from BBL Engenharia in Brazil was kind enough to make the necessary changes in version 2 of the WB-EasyCalc in the Portuguese language."]
[null,"Ms. Natalia Sicora (from Chisinau, Moldova) has prepared the initial Romanian language version and Ms. Afrodita Popa (from Bucharest, Romania) has made the effort to correct mistakes and improve the terminology. Thanks ladies!"]
[null,"Mr. Nebojša Tanasković from Nis, Serbia,  was so kind and has prepared the Serbian language version"]
[null,"Ms. Annie Chai, a good friend of mine and senior manager at SALCON (Malaysia),  kindly provided me with the Chinese language version prepared together with her colleagues."]
[null,"Mr. Edin Rustempasic, a water engineer from Bosnia and Herzegovina, prepared the version in Bosnian language."]
[null,"Mr. Winstone Mulaku from Kenya has made me aware of a mistake in the error margin calculations of one of the performance indicators. Thanks a lot for this!"]
[null,"Mr. Kuo-Ding JOU, a Senior Engineer of the Taiwan Water Corporation, has kindly produced two alternative Chinese language versions. Since it is impossible for me to decide which version is the best and most appropriate, I have decided to leave the decision which version to use to the Chinese users of WB-EasyCalc."]
[null,"Mr. Josef Bramberger from the Austrian consulting firm Hydro Ingenieure spotted a serious mistake in the Serbian language translation. Thank you!"]
[null,"Albanian language translation kindly provided by the staff of the IPA Energy+Water Economics (London) as part of their support project to the Kosovo water regulatory office – the WWRO"]
[null,"Mr. Kevin Horn motivated his colleagues in Georgia to do the translation into Georgian language. Thank you very much Kevin and team!"]
[null,"The Bulgarian translation was kindly undertaken by the staff of the team of the Support to NRW Reduction in Bulgaria project co-financed by the European Regional Development Fund through the Operational Programme Environment. "]
[null,"Mr. Jörg Kölbl spotted a small bug in version 4.07 - thank you!"]
[null,"My friend Pak Budi Sutjahjo revised and completed the Bahasa Indonesia version! Terima kashi!"]
[null,"Still small hidden bugs after so many years! Mr. Clive Harrison spotted one in version 4.10 - thank you!"]
[null,"And now we start with the contributions to version 5:"]
[null,"Once more, my friend Professor Fabio Garzon Contreras (Columbia) from the Pontificia Universidad Javeriana in Cali has heleped me out with the Spanish translation and has highligted a number of small problems of version 5."]
[null,"Mr. Jörg Kölbl spotted again several small bugs! Thank you Mr master-tester!"]
[null,"Mr. Tomas Suchacek from the Brno University of Technology surprised me with the Czech language version - much appreciated!\n"]

{"sheet":"Language 1","index":17,"n_rows":34,"n_cols":16,"rows_kept":34,"cut":false,"hidden":false,"merged":[[33,12,33,13],[31,5,31,6],[29,12,29,13],[27,5,27,6],[21,5,21,6],[29,5,29,6],[31,12,31,13],[25,5,25,6],[27,12,27,13],[19,5,19,6],[25,12,25,13],[15,12,15,13],[15,8,16,8],[7,5,7,6],[7,12,7,13],[11,1,11,13],[17,12,17,13],[23,12,23,13],[19,12,19,13],[17,5,17,6],[23,5,23,6],[21,12,21,13],[9,1,9,2],[13,12,13,13],[9,5,9,6],[13,5,13,6],[15,5,15,6],[1,15,3,17],[1,1,1,13],[3,1,3,6],[5,5,5,6],[3,10,3,13],[5,12,5,13]]}
[]
[null,{"$f":"'Used Language'!C15","v":"Change Language"},null,null,null,null,null,null,null,null,null,null,null,null,null,{"$f":"'Used Language'!C128","v":"Home"}]
[]
[null,"Enter Code for preferred Language:",null,null,null,null,null,null,2,null,"if you have chosen 3, click here to go to language customisation"]
[]
[null,null,null,null,null,"Language Code",null,null,null,null,null,null,"Language Code"]
[]
[null,null,null,"IWA Teminology\n(English)",null,1,null,null,null,null,"Customise for your own language",null,3]
[]
[null,null,null,"World Bank reccomended Terminology (US English)",null,2]
[]
[null,"Pre-set languages"]
[]
[null,null,null,{"$f":"'Language 2'!D4","v":"French"},null,4,null,null,null,null,{"$f":"'Language 2'!N4","v":"Thai"},null,14]
[]
[null,null,null,{"$f":"'Language 2'!E4","v":"Deutsch"},null,5,null,null,null,null,{"$f":"'Language 2'!O4","v":"Serbian"},null,15]
[]
[null,null,null,{"$f":"'Language 2'!F4","v":"Russian"},null,6,null,null,null,null,{"$f":"'Language 2'!P4","v":"Chinese (1)"},null,16]
[]
[null,null,null,{"$f":"'Language 2'!G4","v":"Vietnamese"},null,7,null,null,null,null,{"$f":"'Language 2'!Q4","v":"Chinese (2)"},null,17]
[]
[null,null,null,{"$f":"'Language 2'!H4","v":"Bahasa Indonesia"},null,8,null,null,null,null,{"$f":"'Language 2'!R4","v":"Chinese (3)"},null,18]
[]
[null,null,null,{"$f":"'Language 2'!I4","v":"Español"},null,9,null,null,null,null,{"$f":"'Language 2'!S4","v":"Romanian"},null,19]
[]
[null,null,null,{"$f":"'Language 2'!J4","v":"Italian"},null,10,null,null,null,null,{"$f":"'Language 2'!T4","v":"Bosnian"},null,20]
[]
[null,null,null,{"$f":"'Language 2'!K4","v":"Portuguese (Brazil)"},null,11,null,null,null,null,{"$f":"'Language 2'!U4","v":"Albanian"},null,21]
[]
[null,null,null,{"$f":"'Language 2'!L4","v":"Hungarian"},null,12,null,null,null,null,{"$f":"'Language 2'!V4","v":"Georgian"},null,22]
[]
[null,null,null,{"$f":"'Language 2'!M4","v":"Arabic"},null,13,null,null,null,null,{"$f":"'Language 2'!W4","v":"Bulgarian"},null,23]
[]
[null,null,null,null,null,null,null,null,null,null,{"$f":"'Language 2'!X4","v":"Czech"},null,{"$f":"'Language 2'!X2","v":24}]

{"sheet":"Language 2","index":18,"n_rows":202,"n_cols":24,"rows_kept":202,"cut":false,"hidden":false,"merged":[]}
[]
[1,2,3,4,5,6,7,8,9,10,11,12,13,14,15,16,17,18,19,20,21,22,23,24]
[]
["IWA (English)","World Bank (US English)","Customised","French","Deutsch","Russian","Vietnamese","Bahasa Indonesia","Español","Italian","Portuguese (Brazil)","Hungarian","Arabic","Thai","Serbian","Chinese (1)","Chinese (2)","Chinese (3)","Romanian","Bosnian","Albanian","Georgian","Bulgarian","Czech"]
["Getting Started","Getting Started",{"$f":"'Language 3'!C5","v":0},"Démarrer","Einleitung","Начало работы","Khởi động","Mulai","Inicio","Avvio Calcolo","Iniciando","Kezdjük!","أبدأ","เริ่มต้น","Početak","开始","计算开始","計算開始","Înainte de a începe","Početak","Fillimi","დაწყება","Начало","Začínáme"]
["Water Balance","Water Balance",{"$f":"'Language 3'!C6","v":0},"Bilan de l'Eau","Wasserbilanz","Водный баланс","Cân bằng Nước","Neraca Air","Balance hídrico","Bilancio Idrico","Balanço Hídrico","Vízmérleg","الميزان المائي","การตรวจสอบปริมาณน้ำ","Balans vode","水量平衡","水平衡","水平衡","Bilanţul apei","Vodni bilans","Bilanci i ujit","წყლის ბალანსი","Воден баланс","Bilance vody"]
["Performance Indicators","Performance Indicators",{"$f":"'Language 3'!C7","v":0},"Indicateurs de Performance","Kennzahlen","Индикаторы производительности","Các chỉ số vận hành","Indikator Kinerja","Indicadores de gestión","Indicatori","Indicadores de Performance","Teljesítmény mutatók","مؤشر الأداء","ตัวชี้วัดการดำเนินงาน","Indikator performansi","性能指標","性能指针","績效指標","Indicatori de performanţă","Pokazatelji uspješnosti","Treguesit e performances","საქმიანობის ეფექტურობის ინდიკატორი","Индикатори","Výkonnostní Ukazatele"]
["Network Data","Network Data",{"$f":"'Language 3'!C8","v":0},"Données du Réseau","Rohrnetzdaten","Данные сетей","Dữ liệu về mạng lưới","Data Jaringan","Información del sistema","Dati Rete","Dados da rede","Hálózat adatai","معلومات الشبكه","ข้อมูลเครือข่าย","Podaci o mreži","管网資料","管网资料","管網資料","Datele despre reţea","Podaci o mreži","Të dhënat e rrjetit","ქსელის მონაცემები","Данни за мрежата","Data o síti"]
["Pressure","Pressure",{"$f":"'Language 3'!C9","v":0},"Pression","Druck","Напор","Áp lực","Tekanan","Presión","Pressione","Pressão","Nyomás","الضغط","แรงดันน้ำ","Pritisak","水压","水压","水壓","Presiunea","Pritisak","Presioni","წნევა","Налягане","Tlak"]
["System Input Volume","System Input Volume",{"$f":"'Language 3'!C10","v":0},"Volume Introduit","Einspeisemenge","V воды, подаваемый в систему","Lưu lượng đầu vào hệ thống","Volume Input Sistem","Volumen de entrada al sistema","Volume Immesso nel Sistema","Volume de Entrada no Sistema","Betáplált mennyiség","حجم المياه الداخله للشبكه","ปริมาณน้ำผลิตรวม","Zapremina ulaza u sistem","系统输入水量","系统进水量","系統載入量","Volumul de apă intrat în sistem","Ulazna količina vode u sistem","Vëllimi hyrës në sistem","სისტემაში გაშვებული მოცულობა","Общо кол. Вода на входа на системата","Vstupní objem vody"]
["Billed Consumption","Billed Consumption",{"$f":"'Language 3'!C11","v":0},"Consommation Facturée","Entgeltlicher Verbrauch","Потребление, на которое выставлен счет","Tiêu thụ có hoá đơn","Konsumsi Berekening","Consumo facturado","Consumo Fatturato","Consumo faturado","Számlázott fogyasztás"," الاستهلاك (الموفوتر)","น้ำใช้ที่เรียกเก็บเงิน","Fakturisana potrošnja","收费用水","收费用水量","收費取水量","Consumul facturat","Obračunata potrošnja","Konsumi i faturuar","დარიცხული მოხმარება","Фактурирана консумация","Fakturovaná spotřeba"]
["Unbilled Consumption","Unbilled Consumption",{"$f":"'Language 3'!C12","v":0},"Consommation Non Facturée","Unentgeltlicher Verbrauch","Потреб-ие, на которое не выставлен счет","Tiêu thụ không có hoá đơn","Konsumsi Tak Berekening","Consumo no facturado","Consumo Non Fatturato","Consumo não faturado","Nem számlázott fogyasztás","الاستهلاك الغير (موفوتر)","น้ำใช้ที่ไม่ได้เรียกเก็บเงิน","Nefakturisana potrošnja","不收费用水","未收费用水量","不收費取水量","Consumul nefacturat","Neobračunata potrošnja","Konsumi i pa-faturuar","დაურიცხავი მოხმარება","Нефактурирана консумация","Nefakturovaná spotřeba"]
["Unauthorised Consumption","Unauthorized Consumption",{"$f":"'Language 3'!C13","v":0},"Consommation Non Autorisée","Unzulässige Wasserentnahmen","Несанкционированное потребление ","Tiêu thụ bất hợp pháp","Konsumsi Tak Resmi","Consumo no autorizado","Consumo Non Autorizzato","Consumo não autorizado","Jogtalan fogyasztás","الاستهلاك الغير مسموح به","น้ำที่ถูกลักใช้","Ilegalna potrošnja","未许可用水","未授权用水量","非法取水量","Consumul neautorizat","Neovlaštena potrošnja","Konsumi ilegal","არასანქცირებული მოხმარება","Незаконно ползване","Neautorizovaná spotřeba"]
["Customer Meter Inaccuracies and Data Handling Errors","Customer Meter Inaccuracies and Data Handling Errors",{"$f":"'Language 3'!C14","v":0},"Sous-Comptage Compteurs et Erreurs de Manipulation de Données","Zählerabweichungen und Fehler bei der Rechnungslegung","Погрешности в показ.счетчика и ошибки при обраб.данных ","Sai số đồng hồ khách hàng và lỗi xử lý dữ liệu ","Ketidakakuratan Meter dan Penanganan Data","Inexactitud de la micromedición y errores en el manejo de los datos de lectura","Imprecisione Misura Contatori e Errori sui Dati","Imprecisões dos medidores e erros de manipulação dos dados","Fogyasztói mérők pontatlansága és adatkezelési hibák","أخطاء عداد المشترك ونقل المعلومات","ความไม่เที่ยงตรงของมาตรผู้ใช้น้ำ และความผิดพลาดจากการดำเนินการด้านข้อมูล","Netačnosti vodomera i greška rukovanja podacima","用戶水表失准和数据處理误差","用户水表误差及数据处理误差","用戶水錶不準度及資料處理誤差","Erori de măsurare apometre şi de prelucrare a datelor","Nepreciznost brojila i greške pri obradi podataka","Pasaktësitë e ujëmatësve të konsumatorëve dhe gabimi në trajtimin e të dhënave","მრიცხველის უზუსტობები და შეცდომები მონაცემთა დამუშავებისას","Неточност при измерване","Nepřesnosti měření u zákazníků a chyby při práci s daty"]
["Change Language","Change Language","Change Language","Changer de Langue \nChange Language","Sprachauswahl \nChange Language","Изменить язык \nChange Language","Thay đổi ngôn ngữ \nChange Language","Ganti Bahasa \nChange Language","Cambiar de idioma\nChange Language","Cambio Lingua\nChange Language","Mudar a língua\nChange Language","Nyelv váltása\nChange Language","تبديل اللغه\nChange Language","เปลี่ยนภาษา\nChange Language","Promena jezika\nChange Language","转换语文  \nChange Language","切换语言\nChange Language","切換語言\nChange Language","Modifică limba\nChange Language","Change Language","Ndryshimi i gjuhës\nChange Language","Change Language","Change Language","Change Language"]
["System Input Volume","System Input Volume",{"$f":"'Language 3'!C16","v":0},"Volume Introduit","Einspeisemenge","V воды, подаваемый в систему","Lưu lượng đầu vào hệ thống","Volume Input Sistem","Volumen de entrada al sistema","Volume Immesso nel Sistema","Volume de Entrada no Sistema","Betáplált mennyiség","حجم المياه الداخله للشبكه","ปริมาณน้ำผลิตรวม","Zapremina ulaza u sistem","系统每年输入水量","系统进水量","系統載入量","Volumul de apă intrat în sistem","Ulazna količina vode u sistem","Vëllimi hyrës në sistem","სისტემაში გაშვებული მოცულობა","Общо кол. Вода на входа на системата","Vstupní objem vody"]
["Authorised Consumption","Authorized Consumption",{"$f":"'Language 3'!C17","v":0},"Consommation Autorisée","Wasserverbrauch","Санкционированное потребление ","Tiêu thụ hợp pháp","Konsumsi Resmi","Consumo autorizado","Consumo Autorizzato ","Consumo autorizado","Jogosultak fogyasztása","الاستهلاك المسموح به","น้ำที่ใช้อย่างถูกต้อง","Legalna potrošnja","许可用水","授权用水量","合法取水量","Consumul autorizat","Ovlaštena potrošnja","Konsumi i autorizuar","სანქცირებული მოხმარება","Обща законна консумация","Autorizovaná spotřeba"]
["Water Losses","Water Losses",{"$f":"'Language 3'!C18","v":0},"Pertes en Eau","Wasserverluste","Потери воды","Thất thoát nước","Kehilangan Air","Pérdidas de agua","Perdite Acqua","Perdas de água","Vízveszteség"," فواقد المياة ","น้ำสูญเสีย","Gubici vode","耗损水","水损失","水流失量","Pierderi de apă","Gubici vode","Humbjet e ujit","წყლის დანაკარგები","Общи загуби на вода","Ztráty vody"]
["Billed Authorised Consumption","Billed Authorized Consumption",{"$f":"'Language 3'!C19","v":0},"Consommation Autorisée Facturée","Entgeltlicher Verbrauch","Санкц-ое потребл., на кот. выставлен счет","Tiêu thụ hợp pháp có hoá đơn","Konsumsi Resmi Berekening","Consumo autorizado facturado","Consumo Fatturato Autorizzato","Consumo autorizado faturado","Számlázott fogyasztás"," الاستهلاك المسموح به و(الموفوتر)","น้ำใช้อย่างถูกต้อง และเรียกเก็บเงิน","Fakturisana legalna potrošnja","收费的许可用水","收费授权用水量","收費合法取水量","Consumul autorizat facturat","Obračunata ovlaštena potrošnja","Konsumi i autorizuar i faturuar","დარიცხული სანქცირებული მოხმარება","Продадена фактурирана вода","Fakturovaná autorizovaná spotřeba"]
["Unbilled Authorised Consumption","Unbilled Authorized Consumption",{"$f":"'Language 3'!C20","v":0},"Consommation Autorisée Non Facturée","Unentgeltlicher Verbrauch","Санкц-ое потребл., на кот. не выставлен счет","Tiêu thụ hợp pháp không có hoá đơn","Konsumsi Resmi Tak Berekening","Consumo autorizado no facturado","Consumo Non Fatturato Autorizzato","Consumo autorizado não faturado","Nem számlázott fogyasztás","الاستهلاك المسموح به والغير (الموفوتر)","น้ำใช้อย่างถูกต้อง แต่ไม่เรียกเก็บเงิน","Nefakturisana legalna potrošnja","不收费的许可用水","未收费授权用水量","不收費合法取水量","Consumul autorizat nefacturat","Neobračunata ovlaštena potrošnja","Konsumi i autorizuar i pa-faturuar","დაურიცხავი სანქცირებული მოხმარება","Продадена нефактурирана вода","Nefakturovaná sutorizovaná spotřeba"]
["Apparent Losses","Commercial Losses",{"$f":"'Language 3'!C21","v":0},"Pertes Apparentes","Scheinbare Verluste","Коммерческие потери","Thất thoát thương mại","Kehilangan Air Non-Fisik","Pérdidas aparentes (comerciales)","Perdite Commerciali","Perdas Aparentes","Kereskedelmi veszteség","الفواقد التجاريه","น้ำสูญเสียเชิงพาณิชย์","Komercijalni gubici","表觀損失","表观损失水量","表面損失水量","Pierderi aparente ","Komercijalni gubici","Humbjet komerciale","კომერციული დანაკარგები ","Търговски загуби на вода","Zdánlivé ztráty"]
["Real Losses","Physical Losses",{"$f":"'Language 3'!C22","v":0},"Pertes Réelles","Reale Verluste","Физические потери","Thất thoát cơ học","Kehilangan Air Fisik","Pérdidas reales (físicas)","Perdite Tecniche","Perdas Reais","Fizikai veszteség","الفواقد الحقيقيه","น้ำสูญเสียที่เกิดจริง (น้ำสูญเสียหลัก)","Fizički gubici","实 際損失","实际损失水量","實際損失水量","Pierderi reale","Fizički gubici","Humbjet fizike","ფიზიკური დანაკარგები","Реални загуби на вода","Skutečné ztráty"]
["Billed Metered Consumption","Billed Metered Consumption",{"$f":"'Language 3'!C23","v":0},"Consommation Facturée Mesurée","Gemessener entgeltlicher Verbrauch","Измеряемое потребл., на кот. выставлен счет","Tiêu thụ có đồng hồ đo, có hoá đơn","Konsumsi Bermeter Berekening","Consumo facturado medido ","Consumo Fatturato Misurato","Consumo medido faturado","Számlázott, mért fogyasztás","الاستهلاك المسجل و(الموفوتر)","น้ำผ่านมาตรที่เรียกเก็บเงิน","Izmerena fakturisana potrošnja","据表收费用水","计量收费用水量","有水錶計量取水量","Consumul contorizat facturat","Obračunata izmjerena potrošnja","Konsumi i matur i faturuar","დარიცხული გამრიცხველიანებული მოხმარება","Фактурирана измерена конс. На вода","Fakturovaná měřená spotřeba"]
["Billed Unmetered Consumption","Billed Unmetered Consumption",{"$f":"'Language 3'!C24","v":0},"Consommation Facturée Non Mesurée","Nicht gemessener entgeltlicher Verbrauch","Неизмер-ое потребл., на кот. выставлен счет","Tiêu thụ không có đồng hồ đo, có hoá đơn","Konsumsi Tak Bermeter Berekening","Consumo facturado no medido ","Consumo Fatturato Non Misurato","Consumo não medido faturado","Számlázott, nem mért fogyasztás","الاستهلاك الغير المسجل والموفوتر","น้ำไม่ผ่านมาตรที่เรียกเก็บเงิน","Neizmerena fakturisana potrošnja","不据表收费用水","未计量收费用水量","無水錶計量取水量","Consumul necontorizat facturat","Obračunata paušalna/neizmjerena potrošnja","Konsumi i pa-matur i faturuar","დარიცხული გაუმრიცხველიანებელი მოხმარება","Фактурирана неизмерена консумация на вода","Fakturovaná neměřená spotřeba"]
["Unbilled Metered Consumption","Unbilled Metered Consumption",{"$f":"'Language 3'!C25","v":0},"Consommation Non Facturée Mesurée","Gemessener unentgeltlicher Verbrauch","Измер-ое потребл., на кот. не выставлен счет","Tiêu thụ có đồng hồ đo, không có hoá đơn","Konsumsi Bermeter Tak Berekening","Consumo no facturado medido ","Consumo Non Fatturato Misurato","Consumo medido não faturado","Nem számlázott, mért fogyasztás","الاستهلاك المسجل والغيرموفوتر","น้ำผ่านมาตรที่ไม่เรียกเก็บเงิน","Izmerena  nefakturisana potrošnja","据表不收费用水","未收费计量用水量","有水錶計量不收費取水量","Consumul contorizat nefacturat","Neobračunata izmjerena potrošnja","Konsumi i matur i pa-faturuar","დაურიცხავი გამროცხველიანებული მოხმარება","Нефактурирана измерена консумация на вода","Nefakturovaná neměřená spotřeba"]
["Unbilled Unmetered Consumption","Unbilled Unmetered Consumption",{"$f":"'Language 3'!C26","v":0},"Consommation Non Facturée Non Mesurée","Nicht gemessener unentgeltlicher Verbrauch","Неизмер. потребл., на кот.не выставлен счет","Tiêu thụ không có đồng hồ đo, không có hoá đơn","Konsumsi Tak Bermeter Tak Berekening","Consumo no facturado no medido ","Consumo Non Fatturato Non Misurato","Consumo não medido não faturado","Nem számlázott, nem mért fogyasztás","الاستهلاك الغير مسجل والغير(موفوتر)","น้ำที่ไม่ผ่านมาตรและไม่เรียกเก็บเงิน","Neizmerena nefakturisana potrošnja","不据表不收费用水","未收费未计量用水量","無水錶計量不收費取水量","Consumul necontorizat nefacturat","Neobračunata neizmjerena potrošnja","Konsumi i pa-matur i pa-faturuar","დაურიცხავი გაუმრიცხველიანებელი მოხმარება","Нефактурирана неизмерена консумация на вода","Nefakturovaná neměřená spotřeba"]
["Customer Meter Inaccuracies and Data Handling Errors","Customer Meter Inaccuracies and Data Handling Errors",{"$f":"'Language 3'!C27","v":0},"Sous-Comptage Compteurs et Erreurs de Manipulation de Données","Zählerabweichungen und Fehler bei der Rechnungslegung","Погрешности показ. счетчика и ошибки при обраб. данных ","Sai số đồng hồ khách hàng và lỗi xử lý dữ liệu ","Ketidakakuratan Meter dan Penanganan Data","Inexactitud de la micromedición y errores en el manejo de los datos de lectura","Imprecisione Misura Contatori e Errori sui Dati","Imprecisões dos medidores e erros de manipulação dos dados","Fogyasztói mérők pontatlansága és adatkezelési hibák","اخطاء عداد المشترك ونقل المعلومات","ความไม่เที่ยงตรงของมาตรผู้ใช้น้ำ และความผิดพลาดจากการดำเนินการด้านข้อมูล","Netačnosti vodomera i greška rukovanja podacima","用戶水表失准和数据處理误差","用户水表误差及数据处理之误差","用戶水錶不準度及資料處理之誤差","Erori de măsurare apometre şi de prelucrare a datelor","Nepreciznost brojila i greške pri obradi podataka","Pasaktësitë e ujëmatësve të konsumatorëve dhe gabimi në trajtimin e të dhënave ","მრიცხველის უზუსტობები და შეცდომები მონაცემთა დამუშავებისას","Неточност при измерване и грешки при обработване","Nepřesnosti měření u zákazníků a chyby při práci s daty"]
["Revenue Water","Revenue Water",{"$f":"'Language 3'!C28","v":0},"Eau Vendue","In Rechnung gestellte Wassermenge","Водоснабжение, приносящее доход","Nước có doanh thu","Air Berekening","Agua facturada","Ricavo da Vendita Acqua","Água faturada","Bevétel (víz)","المياه التي لها عائد","น้ำที่ก่อให้เกิดรายได้","Fakturisana voda","收益水","得到收入用水量","計費水量","Apa facturată","Obračunata voda","Uji i faturuar","შემოსავლის მომტანი წყალი","Фактурирана носеща приходи вода","Fakturovaná voda"]
["Non-Revenue Water","Non-Revenue Water",{"$f":"'Language 3'!C29","v":0},"Eau Non Vendue","Nicht in Rechnung gestellte Wassermenge","Водоснабжение, не приносящее доход","Nước không có doanh thu","Air Tak Berekening","Agua no facturada","Mancato Ricavo da Vendita Acqua","Água não faturada","Nem bevétel (víz)","المياه التي ليس لها عائد","น้ำที่ไม่ก่อให้เกิดรายได้","Nefakturisana voda","无收益水","未得到收入用水量","無計費水量","Apa nefacturată","Neobračunata voda","Uji i pa-faturuar","აღურიცხავი წყალი","Вода неносеща приходи","Nefakturovaná voda"]
["Error Margin [+/-]:","Error Margin [+/-]:",{"$f":"'Language 3'!C30","v":0},"Marge d'Erreur [±]","Möglicher Fehler [+/-]:","Допустимая погрешность [+/-]:","Mức độ sai số [+/-]:","Margin Error [+/-]","Margen de error [+/-]","Fascia di Errore [+/-]","Margem de erro [+/-]","Hiba [+/-]","اخطاء هامشية (+\\-)","ความคลาดเคลื่อน (+/-)","Granica greške [+/- %]:","误差幅度 [+/-]","误差幅度 [+/-]：","誤差幅度 [+/-]：","Marja de eroare [+/-]:","Dozvoljena greška [+/-]:","Margjina e gabimit [+/-]","შეცდომის დასაშვები ზღვარი [+/-]","Ниво на грешка (+/–)","Rozsah chyby [+/-]"]
["m3/day","m3/day",{"$f":"'Language 3'!C31","v":0},"m3/jour","m3/Tag","м3/день","m3/ngày","m3/hari","m3/día","m3/g","m3/dia","m3/nap","م3\\يوم","ลบ.ม./วัน","m3/dan","立方米/年","m3/day","m3/day","m3/zi","m3/dan","m3/ditë","მ3/დღეში","м3/ден","m3/den"]
["Best Estimate","Best Estimate",{"$f":"'Language 3'!C32","v":0},"Estimation Retenue","Wahrscheinlichster Wert","Наилучшая оценка","Ước tính tốt nhất","Estimasi Terbaik","Mejor estimación","Migliore Valutazione","Melhor estimativa","Legjobb becslés","افضل تقدير","การประมาณการที่ดีที่สุด","Najbolja procena","最佳估计","最佳估计值","最佳估計值","Cea mai bună estimare","Najbolja procjena","Vlerësimi më i mirë","საუკეთესო შეფასება","Най-добра оценка","Nejlepší Odhad"]
["Error Margin\n[+/- %]","Error Margin\n[+/- %]",{"$f":"'Language 3'!C33","v":0},"Marge d'Erreur\n[±%]","Möglicher Fehler\n[+/- %]","Допустимая погрешность     [+/-]:","Mức độ sai số                      [+/- %]","Margin Error\n[+/- %]","Margen de error\n[+/- %]","Margine di Errore\n[+/-]","Margem de erro\n[+/- %]","Hiba [+/- %]","اخطاء هامشية\n(+\\-)","ความคลาดเคลื่อน\n(+/-%)","Granica greške\n[+/- %]:","误差幅度","误差幅度\n[+/- %]","誤差幅度\n[+/- %]","Marja de eroare [+/- %]","Dozvoljena greška [+/- %]","Margjina e gabimit [+/- %]","შეცდომის დასაშვები ზღვარი [+/-%]","Ниво на грешка (+/–)","Rozsah chyby      [+/- %]"]
["Lower Bound","Lower Bound",{"$f":"'Language 3'!C34","v":0},"Limite Inférieure","Untere Bandbreite","Нижний предел ","Giới hạn dưới","Batas Bawah","Limite inferior","Limite Inferiore","Limite inferior","Alsó határ","الحد الادنى","ปริมาณด้านต่ำ","Donja granica","上限(下限)","下限","下限","Limita inferioară","Donja granica","Kufiri i poshtëm","ქვედა ზღვარი","Долна граница","Spodní hranice"]
["Upper Bound","Upper Bound",{"$f":"'Language 3'!C35","v":0},"Limite Supérieure","Obere Bandbreite","Верхний предел","Giới hạn trên","Batas Atas","Limite superior","Limite Superiore","Limite superior","Felső határ","الحد الاعلى","ปริมาณด้านสูง","Gornja granica","下限(上限)","上限","上限","Limita superioară","Gornja granica","Kufiri i sipërm","ზედა ზღვარი","Горна граница","Horní hranice"]
["Level of Service","Level of Service",{"$f":"'Language 3'!C36","v":0},"Niveau de Service","Versorgungsqualität","Уровень обслуживания ","Mức dịch vụ","Tingkat Pelayanan","Nivel de servicio","Livello di Servizio","Nível de serviço","Szolgáltatási szint","مستوى الخدمة","ระดับการให้บริการ","Nivo usluge","服务水平","服务水平","服務程度","Nivelul serviciului","Nivo usluga","Niveli i shërbimit","სერვისის დონე","Ниво на услугите","Úroveň služby"]
["Volume of Real Losses","Volume of Physical Losses",{"$f":"'Language 3'!C37","v":0},"Volume des Pertes Réelles","Volumen der Realen Verluste","Объем физических потерь","Khối lượng thất thoát cơ học","Volume Kehilangan Air Fisik","Volumen de pérdidas reales (físicas)","Volume di Perdite Tecniche","Volume de perdas reais","Fizikai veszteség mennyisége","حجم الفاقد الحقيقي ","ปริมาณน้ำสูญเสียหลัก","Zapremina fizičkih gubitaka","实際損失容量 ","实际损失水量","實際損失水量","Volumul pierderilor reale","Obim fizičkih gubitaka","Sasia e humbjeve fizike","ფიზიკური დანაკარგების მოცულობა","Обем физически загуби","Objem skutečných ztrát"]
["Real Loss Performance Indicators","Physical Loss Performance Indicators",{"$f":"'Language 3'!C38","v":0},"Indicateurs de Performance des Pertes Réelles","Kennzahlen für die Realen Verluste","Показатели физических потерь","Các chỉ số vận hành thất thoát cơ học","Indikator Kinerja Kehilangan Air Fisik","Indicadores de gestión para las pérdidas reales (físicas)","Indicatori Perdita Tecnica","Indicadores de Performance de perdas reais","Fizikai veszteség teljesítmény mutató","مؤشرات الأداء للفاقد الحقيقي","ตัวชี้วัดการดำเนินงานด้านน้ำสูญเสียหลัก","Indikatori performansi fizičkih gubitaka","实際損失性能指標","实际损失水量性能指针","實際損失水量績效指標","Indicatori de performanţă ai pierderilor reale","Pokazatelji fizičkih gubitaka","Treguesit e performances për humbjet fizike","შესრულების ინდიკატორები ფიზიკური დანაკარგებისთვის","Индикатори за физически загуби","Výkonnostní ukazatele skutečných ztrát"]
["Apparent Loss Performance Indicators","Commercial Loss Performance Indicators",{"$f":"'Language 3'!C39","v":0},"Indicateur de Performance des Pertes Apparentes","Kennzahlen für die Scheinbaren Verluste","Показатели коммерческих потерь","Các chỉ số vận hành thất thoát thương mại","Indikator Kinerja Kehilangan Air Non-Fisik","Indicadores de gestión para las pérdidas aparentes (comerciales)","Indicatori Perdita Commerciale","Indicadores de Performance de perdas aparentes","Kereskedelmi veszteség teljesítmény mutató","مؤشرات الأداء للفاقد التجاري ","ตัวชี้วัดการดำเนินงานด้านน้ำสูญเสียเชิงพาณิชย์","Indikatori performansi finansijskih gubitaka","表觀損失性能指標","表观损失水量性能指针","表面損失水量績效指標","Indicatori de performanţă ai pierderilor aparente","Pokazatelji komercijalnih gubitaka","Treguesit e performances për humbjet komerciale ","შესრულების ინდიკატორიები კომერციული დანაკარგებისთვის","Индикатори за търговски загуби","Výkonnostní ukazatele zdánlivých ztrát"]
["Financial Performance Indicators","Financial Performance Indicators",{"$f":"'Language 3'!C40","v":0},"Indicateurs de Performance Financiers","Finanzielle Kennzahlen","Финансовые показатели","Các chỉ số vận hành tài chính","Indikator Kinerja Keuangan","Indicadores financieros de gestión de pérdidas","Indicatori Finanziari","Indicadores de Performance financeira","Pénzügyi teljesítmény mutató","مؤشرات الأداء المالي","ตัวชี้วัดการดำเนินงานทางการเงิน","Indikatori finansijskih performansi","财务性能指標","财务性能指针","財務績效指標","Indicatori de performanţă financiară","Financijski pokazatelji","Treguesit e performances financiare","ფინანსური შესრულების ინდიკატორები","Финансови индикатори","Výkonnostní ukazatele finanční"]
["Performance Group","Performance Group",{"$f":"'Language 3'!C41","v":0},"Groupes de Performance","Kategorie","Группа производственных показателей","Nhóm tác nghiệp","Penggolongan Kinerja","Grupo de desempeño","Gruppo di Prestazioni","Grupo de performance","Teljesítmény csoport","اداء المجموعة","กลุ่มผู้ดำเนินงาน","Grupa performansi","性能組合","性能群组","績效群組","Grupul de indicatori de performanţă","Kategorije uspješnosti","Grupi i performances","შესრულების ჯგუფი","Група за състояние","Výkonnostní skupina"]
["Standard","Standard",{"$f":"'Language 3'!C42","v":0},"Pays Développés","Standard","Ситуация в развитых странах","Tình hình quốc gia phát triển","Situasi Negara Maju","Estándar","Condizione Paese Sviluppato","País Desenvolvido","Fejlett ország","وضع البلد المتطور","สถานการณ์ของประเทศที่พัฒนาแล้ว","Situacija u razvijenim zemljama","发达国家状况","发达国家情况","已開發國家情況","Situaţia din ţările dezvoltate","Situacija u razvijenim zemljama","Gjendja në shtetet e zhvilluara","განვითარევული ქვეყნის მდგომარეობა","Ситуация в развити страни","Standard"]
["Low and Middle Income Countries","Low and Middle Income Countries",{"$f":"'Language 3'!C43","v":0},"Pays en Voie de Développement","Entwicklungsländer","Ситуация в развивающихся странах","Tình hình quốc gia đang phát triển","Situasi Negara Sedang Berkembang","Países de baja y media renta","Condizione Paese in Via di Sviluppo","País em Desenvolvimento","Fejlődő ország","وضع البلد النامي","สถานการณ์ของประเทศที่กำลังพัฒนา","Situacija u zemljama u razvoju","发展中国家状况","发展中国家情况","開發中國家情況","Situaţia din ţările în curs de dezvoltare","Situacija u zemljama u razvoju","Gjendja në shtetet në zhvillim","განვითარებადი ქვეყნის მდგომარეობა","Ситуация в развиващи се страни","Nízko a středně příjmové země"]
["Average Supply Time [h/day]","Average Supply Time [h/day]",{"$f":"'Language 3'!C44","v":0},"Durée Moyenne d'Alimentation [h/jour]","Durchschnittliche Versorgungszeit [h/Tag]","Среднее время подачи [ч/день]","Thời gian cấp nước trung bình [h/ngày]","Jam Pelayanan Rata-rata [jam/hari]","Tiempo promedio de suministro [h/día]","Durata Media Erogazione [ore/giorno]","Tempo de abastecimento médio [h/dia]","Átlag szolgáltatási idő [h/nap]","معدل التزويد   (ساعة\\يوم)","เวลาจ่ายน้ำโดยเฉลี่ย (ชั่วโมง/วัน)","Prosečno vreme snavdevenosti [sati/dan]","平均供水时间 [小時/日]","平均每日供水时间 [小时/日]","平均每日供水時間［小時／日］","Timpul mediu de alimentare [ore/zi]","Prosječna snabdjevenost [sati/dan]","Koha mesatare e furnizimit [orë/ditë]","მიწოდების საშუალო დრო [სთ/დღეში]","Средно време за доставка на вода (ч/ден)","Průměrná doba zásobování [h/den]"]
["Average Pressure [m]","Average Pressure [m]",{"$f":"'Language 3'!C45","v":0},"Pression Moyenne [m]","Durchschnittsdruck [m]","Среднее давление [м]","Áp lực trung bình [m]","Tekanan Rata-rata [m]","Presión promedio [m]","Pressione Media [m]","Pressão média [m]","Átlagnyomás [m]","معدل الضغط (م)","แรงดันน้ำเฉลี่ย (เมตร)","Prosečan pritisak [m]","平均水压[米]","平均水压 [米]","平均水壓 [公尺]","Presiunea medie [m]","Prosječan pritisak [m]","Presioni mesatar [m]","საშუალო წნევა [მ]","Средно налягане (м)","Průměrný tlak [m]"]
["CARL - Current Annual Volume of Real Losses [m3/day]","CAPL - Current Annual Volume of Physical Losses [m3/day]",{"$f":"'Language 3'!C46","v":0},"VAPR Volume Annuel des Pertes Réelles","DJRV - Derzeitige Jährliche Reale Verluste [m3/Tag]","CAPL - Текущий Годовой Объем Физических Потерь [м3/день]","CAPL - Khối lượng nước thất thoát cơ học hiện tại hàng năm [m3/ngày]","CAPL - Volume Tahunan Kehilangan Air Fisik Saat Ini [m3/hari]","CAPL - Volumen actual anual de pérdidas reales [m3/día]","CAPL - Condizione Attuale Vol Perdite Tecniche [m3/g]","AAPF - Volume Anual Atual de Perdas Reais [m3/dia]","CAPL -Aktuális éves fizikai veszteség [m3/nap]","حجم الفاقدالحالي الحقيقي  سنوياً (م3\\يوم)","ปริมาณน้ำสูญเสียหลักในปัจจุบันรายปี (ลบ.ม./วัน)","CAPL- Aktuelna godišnja zapremina fizičkih gubitaka [m3/dan]","CAPL - 当前的年度实质损失水量(立方米/天)","CAPL－目前具体年损失水量 [立方米/日]","CAPL－目前具體年漏水量 [m3/day]","CARL – Pierderile Reale Anuale Curente [m3/zi]","TGFG - Tekući godišnji fizički gubici [m3/dan]; eng. CAPL ili CARL","SAHF - Sasia aktuale vjetore e humbjeve fizike ","CAPL-ფუზიკური დანაკარგების არსებული წლიური მოცულობა[მ3/დღეში]","CAPL- Настоящ обем физически загуби","CARL - Stávající roční objem skutečných ztrát [m3/den]"]
["UARL - Unavoidable Annual Real Losses [m3/day]","MAPL - Minimum Achievable Volume of Physical Losses [m3/day]",{"$f":"'Language 3'!C47","v":0},"VMPR Volume Minimum Atteignable des Pertes Réelles","UJRV - Unvermeidbare Jährliche Reale Verluste [m3/Tag]","MAPL - Мин. Достижимый Объем Физических Потерь [м3/день]","MAPL - Khối lượng thất thoát cơ học tối thiểu có thể đạt được [m3/ngày]","MAPL - Volume Minimum Kehilangan Air Fisik Yang Dapat Dicapai [m3/hari]","MAPL - Pérdidas reales anuales inevitables [m3/día]","MAPL - Minimo Raggiungibile Vol Perdite Tecniche [m3/g]","MAPF - Volume Mínimo Atingível de Perdas Reais [m3/dia]","MAPL – Elérhető legkisebb fizikai veszteség [m3/nap]","الحد الادنى لحجم الفاقد الحقيقي المتحقق سنوياً (م3\\يوم)","ปริมาณขั้นต่ำของน้ำสูญเสียหลักที่แก้ไขได้ (ลบ.ม./วัน)","MAPL- Minimalna ostvariva zapremina fizičkih gubitaka [m3/dan]","MAPL - 不可避免的年度实质损失水量(立方米/天)","MAPL－最小可行之实际损失水量 [立方米/日]","MAPL－最小可行之實際漏水量 [m3/day]","UARL – Pierderile Reale Anuale  Inevitabile [m3/zi]","MOFG - Minimalni ostvarivi (neizbježni) fizički gubici [m3/dan]; eng. MAPL ili UARL","MAHF - Sasia minimale e arritshme e humbjeve fizike [m3/ditë]","MAPL-ფიზიკური დანაკარგების მიღწევადი მინიმალური მოცულობა[მ3/დღეში]","MAPL-минимално достижими физ.загуби (м3/ден)","MARL - Minimální dosažitelný roční objem skutečných ztrát [m3/den]"]
["Litres per Connection per Day (w.s.p.)\n\nw.s.p.: when the system is pressurised - this means the value is already corrected in the case of intermittent supply","Liters per Connection per Day (w.s.p.)\n\nw.s.p.: when the system is pressurized - this means the value is already corrected in the case of intermittent supply",{"$f":"'Language 3'!C48","v":0},"Litres par Branchement par Jour (r.s.p)\n\nr.s.p. : quand le réseau est sous pression - i.e. la valeur est déjà corrigée en cas d'alimentation discontinue","Liter pro Hausanschluss pro Tag","Литры на отводящую линию в сутки (к.с.н.): (когда система под напором) - т.е. объем уже откорректирован при периодической подаче","Lít/đấu nối/ngày (w.s.p: khi hệ thống được điều áp - điều này có nghĩa là giá trị đã được chỉnh sửa trong trường hợp cấp nước gián đoạn)","Liter per Sambungan per Hari (w.s.p)\nw.s.p : saat jaringan bertekanan - artinya nilainya sudah disesuaikan/dikoreksi untuk suplai intermittent","Litros por conexión por día (c.s.p.)  c.s.p.: cuando el sistema esta presurizado. Esto significa que este valor ya está corregido en el caso de sistemas intermitentes","Litri per Allacciamento al Giorno (s.p.)\n\ns.p. sistema in pressione - significa valore corretto nel caso di erogazione parziale","Litros por ligação por dia (q.s.p.)\n\nq.s.p.: quando o sistema está pressurizado - isto significa que o valor já está corrigido no caso de intermitência no abastecimento","Liter/csatlakozás/nap (ny.a) – amikor a rendszer nyomás alatt van (a szakaszos szolgáltatással korrigálva)","ليتر لكل وصله باليوم\nعندما تكون الشبكة مضغوطة هذا يعني أن القيمة معدله لوضع الضخ المتقطع\n ","ลิตร/ราย/วัน (w.s.p.)\n\nเมื่อเพิ่มความดันในระบบ  หมายความว่าค่าน้ำสูญเสียถูกต้องแล้ว (ในกรณีมีการจ่ายน้ำเป็นเวลา)","Litara po priključnoj vezi na dan (kjspp)                                                                                                            (kada je sistem pod pritiskom)-to znači da je vrednost već korigovana u slučaju prekida u snabdevanju","公升/户/天 (w.s.p)                                                            w.s.p.: 当系统处在加压情况下 : 数据是依循间歇性供水情况作出调整  ","升/接户管/日 (加压状况下)\n\n加压状况下：当供水系统在加压状况下，表示当间歇供水时该值已做了修正","公升/接管/日（加壓狀況下）\n\n加壓狀況下：當供水系統在加壓狀況下，表示當間歇供水時該值已作了修正","Litri pe branşament pe zi (p.a.a.)\n\np.a.a.: când sistemul este sub presiune – aceasta semnifică că valoarea este deja corectată în cazul de alimentare intermitentă","Litara po priključku na dan (k.s.p.p.)                                                                                                        k.s.p.p.: kad je sistem pod pritiskom - ovo znači da je vrijednost već ispravljena u slučaju prekida u snabdijevanju","Litra për kyçje në ditë (k.s.n.p)\n\nk.s.n.p.:kur sistemi është nën presion - kjo nënkupton se vlera tashmë është korigjuar në rast të furnizimit me ndërprerje (jo të rregullt)","ლიტრი 1 დაერთებაზე დღეში (w.s.p) -როცა სისტემა დაწნეხილია ეს ნიშნავს, რომ მონაცემი უკვე კორექტირებულია გრაფიკით წყალმომარაგების შემთხვევაში.","Литри за сгр. Отклонение за ден (КСП)\n\nКСП когато системата е под налягане- това означава, че стойността е коригирана в случаите когато има прекъсване на подаването на вода","Litrů na přípojku za den (w.s.p.)                                                                                                                       w.s.p.: když je systém natlakovaný - to znamená, že hodnota je již upravena v případě přerušovaného zásobov."]
["Litres per Connection per Day per meter Pressure (w.s.p.)","Liters per Connection per Day per meter Pressure (w.s.p.)",{"$f":"'Language 3'!C49","v":0},"Litres par Branchement par Jour et par Mètre de Pression (r.s.p.)","Liter pro Hausanschluss pro Tag pro Meter Druck","Литры на отводящ. линию в сутки на 1м. напора (к.с.н.)","Lít/đấu nối/ngày/ áp lực đồng hồ (w.s.p) ","Liter per Sambungan per Hari per meter Tekanan (w.s.p)","Litros por conexión por día por metro de presión (c.s.p.)","Litri per Allacciamento al Giorno per metro Pressione (s.p.) ","Litros por ligação por dia por metro de pressão (q.s.p.)","Liter/csatlakozás/nap/m (nyomás) (ny.a)","ليتر لكل وصله باليوم لكل عداد","ลิตร/ราย/วัน/มาตรวัดน้ำที่มีแรงดันน้ำ","Litara po priključnoj vezi na dan po metru pritiska (kjspp) ","公升/戶/天/米水压 (w.s.p)","升/接户管/日/公尺水压 (加压状况下)","公升/接管/日/公尺水壓（加壓狀況下）","Litri pe branşament pe zi pe metru de presiune (p.a.a.)","Litara po priključku na dan po metru pritiska (k.s.p.p.)","Litra për kyçje në ditë për meter shtypje (k.s.n.p)","ლიტრი 1 დაერთებაზე დღეში წნევის 1 მეტრზე(w.s.p).","Литри за метър налягане (КСП)","Litrů na přípojku za den na metr tlaku (w.s.p.)"]
["Infrastructure Leakage Index (ILI)","Infrastructure Leakage Index (ILI)",{"$f":"'Language 3'!C50","v":0},"Index Structurel de Fuites (ISF)","Infrastructure Leakage Index (ILI)","Индекс утечки в инфраструктуре (ИУИ)","Chỉ số rò rỉ hạ tầng (ILI)","Indeks Kebocoran Infrastruktur (ILI)","Índice de fugas estructural (IFE)","Indice Perdita Infrastruttura (ILI)","Índice Infra-estrutural de Perdas (IIE)","Infrastruktúra szivárgási index (ILI) ","مؤشر التسرب للشبكه \n(م ت ش)","ดัชนีสูญเสียของสาธารณูปโภค","Infrastukturni Indeks Curenja (ILI)","基本设施漏失指数 (ILI)","漏损指数 (ILI)","設施漏水指標 (ILI)","Indicele de pierderi în infrastructură (ILI)","Indeks curenja u infrastrukturi (ICI); eng. ILI","Indeksi i rrjedhjeve infrastrukturore (IRI)","ინფრასტრუქტურული გაჟონვის ინდექსი (ILI)","Инфраструктурен индекс на течове (ILI)","Infrastrukturní index ztrát (ILI)"]
["Apparent Losses expressed in % of Authorised Consumption","Commercial Losses expressed in % of Authorized Consumption",{"$f":"'Language 3'!C51","v":0},"Pertes Apparentes exprimées en % de  la Consommation Autorisée","Scheinbare Verluste in % des Wasserverbrauches","Коммерческие потери в % от санкционированного потребления ","Thất thoát thương mại tính theo % của Tiêu thụ hợp pháp","Kehilangan Air Fisik dinyatakan dalam % dari Konsumsi Resmi","Pérdidas aparentes (comerciales) expresadas como % del consumo autorizado","Perdite Commerciali espresse in % di Consumo Autorizzato","Perdas Comerciais expressa em % do Consumo Autorizado","Kereskedelmi veszteség a jogosult fogyasztás %-ban","الفواقد التجاريه بصيغه النسبه المئويه%من الاستهلاك المسموح به","น้ำสูญเสียเชิงพาณิชย์  คิดเป็น % ของน้ำที่ใช้อย่างถูกต้อง","Komercijalni gubici iskazani u % od legalne potrošnje","表觀損失 （以许可用户用水量的百分比計算）","表观损失水量（以占授权用水量之％来表示的表观损失水量）","表面損失水量（以占合法取水量之％來表示）","Pierderi aparente exprimate în % din consumul autorizat","Komercijalni gubici izraženi kao % ovlaštene potrošnje","Humbjet komerciale të shprehura në % të konsumit të autorizuar","კომერციული დანაკარგები გამოხატული სანქცირენული მოხმარების %-ში","Комерсиални загуби в % от общата законна консумация","Zdánlivé ztráty vody vyjádřené v % z autorizované spotřeby"]
["Volume of Non-Revenue Water expressed in % of System Input Volume","Volume of Non-Revenue Water expressed in % of System Input Volume",{"$f":"'Language 3'!C52","v":0},"Volume de l'Eau Non Vendue en % du Volume Introduit","Volumen der nicht in Rechnung gestellten Wassermenge in % der Systemeinspeisung","Объем водоснаб., не принос. доход, в % от объема воды, подаваемой в систему","Lượng Nước thất thu tính theo % của Lưu lượng đầu vào hệ thống","Volume Air Tak Berekening dinyatakan dalam % dari Volume Input Sistem","Volumen de agua no facturada expresado como % del volumen de entrada al sistema ","Volume di Mancata Vendita Acqua in % del Volume Immesso nel Sistema","Volume de água não faturada expressa em % do volume de entrada no sistema","Bevételt nem hozó mennyiség a betáplált mennyiség %-ban","حجم المياه المفقوده بصيغه  النسبه المئويه%من حجم المياه الداخله للشبكه ","ปริมาณน้ำที่ไม่ก่อให้เกิดรายได้  คิดเป็น % ของปริมาณ น้ำผลิตรวม","Zapremina nefakturisane vode iskazana u % od zapremine ulaza u sistem","無收益水量（以系统输入水量的百分比計算）","未得到收入用水量（以占系统进水量之％来表示的未得到收入用水量）","無計費水量（以占系統載入量之％來表示）","Volumul de apă nefacturată exprimat în % din volumul de apă intrat în sistem","Količina neobračunate vode izražena kao % ulazne količine vode u sistem","Sasia e Ujit të pa-faturuar shprehur në % të vëllimit hyrës në sistem","აღურიცხავი წყალის მოცულობა გამოხატული სისტემაში გაშვებული მოცულობის %-ში","Обема на водата неносеща приходи в % от общото кол. Вода на входа на системата","Objem nefakturované vody vyjádřený v % z celkového vstupního objemu"]
["Value of Non-Revenue Water expressed in % of Annual Operating Cost","Value of Non-Revenue Water expressed in % of Annual Operating Cost",{"$f":"'Language 3'!C53","v":0},"Eau Non Vendue exprimée en % des Coûts Annuels d'Exploitation","Monetärer Wert der nicht in Rechnung gestellten Wassermenge in % der Betriebskosten","Стоимость водоснаб., не принос. доход, в % от ежегодных операционных расходов","Giá trị Nước thất thu tính theo % Chi phí vận hành hàng năm","Nilai Air Tak Berekening dinyatakan dalam % dari Biaya Operasional Tahunan","Valor del agua no facturada expresado como % de los costos anuales de operación","Valore di Mancata Vendita Acqua in % del Costo Annuale di Esercizio","Valor da água não faturada expressa em % do custo operacional anual","Bevételt nem hozó mennyiség az éves működési költség %-ban","قيمه المياه المفقوده بصيغه  النسبه المئويه%من تكلفه التشغيل السنويه ","มูลค่าของน้ำที่ไม่ก่อให้เกิดรายได้  คิดเป็น % ของต้นทุน ค่าดำเนินการรายปี","Vrednost nefakturisane vode iskazana u % od Godišnjeg operativnog fonda ","無收益水成本比率（根据占年運營費的百分比計算）","未得到收入用水量之价值（以占年度操作成本之％来表示的未得到收入用水量之价值）","無計費水量之價值（以占年度操作成本之％來表示）","Volumul de apă nefacturată exprimat în % din costurile operaţionale anuale","Vrijednost neobračunate vode izražena kao % godišnjih operativnih troškova","Vlera e Ujit të pa-faturuar e shprehur në % të shpenzimeve operative vjetore","აღურიცხავი წყლის ღირებულება გამოხატული ოპერირების წლიური ხარჯის %-ში","Обема на водата неносеща приходи в % от годишните експлоатац. Разходи","Hodnota nefakturované vody vyjádřená v % z provozních nákladů za posuzované období"]
["Distribution and Transmission Mains","Distribution and Transmission Mains",{"$f":"'Language 3'!C54","v":0},"Réseaux de Distribution et de Transport","Haupt und Verteilungsleitungen (ohne Hausanschlüsse)","Распред. и транспорт. Трубопроводы","Đường ống chuyển tải và phân phối","Pipa Distribusi dan Transmisi","Redes de distribución y transmisión","Condotte di Trasporto e di Distribuzione","Redes de distribuição e adutoras","Elosztó és szállító hálózat","الخطوط التوزيعيه والناقله","ท่อเมนส่งและจ่ายน้ำ","Disttributivni i tranzitni glavni cevovodi","配水和輸水管道","输配水干管","輸配水幹管","Conducte de distribuţie şi transport","Distributivni i transportni cjevovodi","Tubat kryesor të distribucionit dhe transmisionit","ცენტრალური მაგისტრალი და შიდა გამანაწილებელი ქსელი","Системата за пренос и разпределение","Vodovodní a přiváděcí řady"]
["Service Connections","Service Connections",{"$f":"'Language 3'!C55","v":0},"Branchements","Hausanschlussleitungen","Отводящие линии","Đấu nối dịch vụ","Pipa Dinas","Acometidas/Tomas/Conexiones de servicio","Allacciamenti di utenza","Ramais prediais","Fogyasztói csatlakozások","وصلات الخدمات","จุดเชื่อมต่อเข้าอาคาร","Potrošačke veze","接驳用戶","用户接管","用戶接管","Branşamente","Priključci","Kyçjet në shërbime","აბონენტის შემყვანი მილები","Сградни отклонения","Vodovodní přípojky"]
["Description","Description",{"$f":"'Language 3'!C56","v":0},"Description","Beschreibung","Характеристика","Mô tả","Deskripsi","Descripción","Descrizione","Descrição","Leírás","الوصف ","คำบรรยาย (ลักษณะ)","Opis","描述","叙述","敘述","Descrierea","Opis","Përshkrimi","აღწერილობა","Описание","Popis"]
["Length\n[km]","Length\n[km]",{"$f":"'Language 3'!C57","v":0},"Longueur\n[km]","Länge\n[km]","Длина                                [км]","Chiều dài                                                                   [km]","Panjang\n[km]","Longitud [km]","Lunghezza\n[km]","Comprimento [km]","Hossz [km]","الطول(كلم)","ความยาว (กม.)","Dužina [km]","长度[公里]","长度\n［公里］","長度\n［公里］","Lungimea [km]","Dužina [km]","Gjatësia [km]"," სიგრძე [კმ]","Дължина (км)","Délka [km]"]
["Number","Number",{"$f":"'Language 3'!C58","v":0},"Nombre","Anzahl","Количество","Số","Jumlah","Número","Numero","Número","Darab","الرقم","จำนวน","Broj","数目","数目","數目","Numărul","Broj","Numri","რაოდენობა","Брой","Počet"]
["Total [km]","Total [km]",{"$f":"'Language 3'!C59","v":0},"Total [km]","Gesamt [km]","Общая длина [км]","Tổng [km]","Total [km]","Total [km]","Totale [km]","Total [km]","Összesen [km]","الكلي(كلم)","ยอดรวม (กม.)","Ukupno [km]","总数（公里）","总计［公里］","總計［公里］","Total [km]","Ukupno [km]","Totali [km]","საერთო სიგრძე [კმ]","Общо (км)","Celkem [km]"]
["Possible underestimation","Possible underestimation",{"$f":"'Language 3'!C60","v":0},"Sous-estimation possible","Mögliche zusätzliche Leitungslänge [%]","Возможное занижение показателей","ước tính thấp có thể có","Kemungkinan di Bawah Taksiran","Posible subestimación","Sottovalutazione stimata","Submedição estimada","Lehetséges alá becslés","التقدير الاقل المحتمل","การประเมินต่ำกว่าความจริงที่อาจเกิดขึ้น","Moguća greška manjeg očitavanja","可能低估","可能之低估值","可能之估計值","Posibilă subestimare a indicatiilor contorului","Eventualno umanjena dužina [%]","Nënvlerësimi i mundshëm","შესაძლო ნაკლები მაჩვენებელი","Възмпжно недооценяване","Možné podhodnocení"]
["Pipe Length [km]","Pipe Length [km]",{"$f":"'Language 3'!C61","v":0},"Longueur de Conduites [km]","Leitungslänge [km]","Протяженность трубы [км]","Chiều dài đường ống [km]","Panjang Pipa [km]","Longitud de las tuberías [km]","Lunghezza condotte [km]","Comprimento da tubulação [km]","Csőhossz [km]","طول المواسير(كلم)","ความยาวท่อ (กม.)","Dužina cevovoda [km]","管長（公里)","管线长度［公里］","管線長度［公里］","Lungimea conductei [km]","Dužina cjevovoda [km]","Gjatësia e tubit [km] ","მილის სიგრძე[კმ]","Дължина на тръбата (км)","Délka potrubí [km]"]
["Minimum","Minimum",{"$f":"'Language 3'!C62","v":0},"Minimum","Minimum","минимум","Tối thiểu","Minimum","Mínimo","Minimo","Mínimo","Minimum","الحد الادنى","ต่ำสุด","Minimum","最高","最小值","最小值","Minimum","Minimum ","Minimumi","მინიმუმი","Мин.","Minimum"]
["Maximum","Maximum",{"$f":"'Language 3'!C63","v":0},"Maximum","Maximum","максимум","Tối đa","Maksimum","Máximo","Massimo","Máximo","Maximum","الحد الاعلى","สูงสุด","Maksimum","最低","最大值","最大值","Maximum","Maksimum","Maksimumi","მაქსიმუმი","Макс.","Maximum"]
["Best Estimate","Best Estimate",{"$f":"'Language 3'!C64","v":0},"Estimation Retenue","Wahrscheinlichster Wert","Наилучшая оценка","Ước tính tốt nhất","Estimasi Terbaik","Mejor estimación","Migliore Stima","Melhor estimativa","Legvalószínűbb","افضل تقدير","การประมาณการที่ดีที่สุด","Najverovatnije","最佳估计","最佳估计值","最佳估計值","Cea mai bună estimare","Najbolja procjena","Vlerësimi më i mirë","საუკეთესო შეფასება","Най-добра оценка","Nejlepší odhad"]
["Number of Connections of Registered Customers\n\nNote: this figure is most likely (a little bit) less than the number of customers","Number of Connections of Registered Customers\n\nNote: this figure is most likely (a little bit) less than the number of customers",{"$f":"'Language 3'!C65","v":0},"Nombre de Branchements de Consommateurs Enregistrés\n\nNote : ce nombre est en général (légèrement) inférieur au nombre de consommateurs","Anzahl der Hausanschlüsse","Количество врезок зарегистрированных потребителей                                              Примечание: эта цифра скорее всего (немного) ниже, чем количество потребителей ","Số đấu nối khách hàng đăng ký.\n\nLưu ý: con số này nhiều khả năng thấp hơn (một chút) so với số khách hàng","Jumlah Sambungan Pelanggan Terdaftar\n\nCatatan: angka ini biasanya lebih kecil daripada jumlah pelanggan","Número de conexiones de los clientes registrados\n\nNota: este valor es muy probable que sea algo menor que el número de clientes registrados","Numero Allacciamenti Clienti Registrati\n\nNota: numero minore, con buona probabilità, al numero clienti ","Número de ligações de clientes registrados\n\nNota: este número é geralmente (ligeiramente) menor que o número de clientes","Nyilvántartott fogyasztói csatlakozások száma. Megj.: feltétlenül kevesebb (kicsivel), mint a fogyasztók száma","عدد الوصلات للمشتركين المسجلين\nملاحظه : هذه القيمة قد تكون أقل بقليل من عدد المشتركين\n","จำนวนผู้ใช้น้ำที่ลงทะเบียนการใช้น้ำ \n\nยเหตุ : ตัวเลขนี้เป็นไปได้ที่จะน้อยกว่าจำนวนลูกค้า (เล็กน้อย)","Broj priključnih veza registrovanih potrošača                                                                                                        Napomena: ovaj broj je manji od broja potrošača","登記接驳用戶數目(注意:这个数字通常小于用水客户)","注册用户之接户管数\n\n注意：本数目非常有可能小（些许）于用户数","登記用戶之接管數\n\n注意：本數目非常有可能小（些許）於用戶數","Numărul de branşamente ale consumatorilor înregistraţi\n\nNotă: este foarte  probabil ca această cifră să fie (puţin) mai mică decât numărul de consumatori\n","Broj priključaka registriranih potrošača      Napomena: ovaj broj je najvjerovatnije (malo) manji od broja potrošača","Numri i kyçjeve të konsumatorëve të regjistruar\n\nShënim: ky numër ka gjasa (me pak diferencë) që të jetë më i ulët se numri i konsumatorëve","დარეგისტრირებული აბონენტების დაერთებების რაოდენობა.       შენიშვნა: ეს ციფრი სავარაუდოდ აბონენტთა რაოდენობაზე (ცოტათი) მეტია. ","Брой на сгр. отклонения на регистрирани клиенти. Заб.:Тези цифри най-вероятно са (малко) по ниски от броя на клиентите","Počet přípojek registrovaných zákazníků                                                                                                      Pozn.: tento počet je velmi často (nepatrně) nižší než počet zákazníků"]
["Estimated Number of Illegal Connections","Estimated Number of Illegal Connections",{"$f":"'Language 3'!C66","v":0},"Nombre Estimé de Branchements Illégaux","Geschätzte Anzahl Illegaler Hausanschlüsse","Расчетное количество нелегальных врезок","Ước tính con số đấu nối bất hợp pháp","Estimasi Jumlah Sambungan Ilegal","Número estimado de conexiones clandestinas","Stima Numero Allacciamenti Illegali","Número estimado de ligações clandestinas","Illegális csatlakozások becsült száma","عدد الوصلات الغير القانونية المقدرة","ตัวเลขโดยประมาณของผู้ลักลอบใช้น้ำ","Očekivani broj nelegalnih priključaka","非法接驳用戶數目","非法接户管之估计数量","非法接管之估計數量","Numărul estimat al conexiunilor / branşamentelor ilegale","Procijenjeni broj nelegalnih priključaka","Numri i vlerësuar i kyçjeve të paligjshme","უკანონო დაერთებების სავარაუდო რაოდენობა","Оценка за броя на нелегалните отклонения","Odhadnutý počet nelegálních přípojek"]
["Number of Connections","Number of Connections",{"$f":"'Language 3'!C67","v":0},"Nombre de Branchements","Anzahl der Hausanschlüsse","Количество врезок ","Số đấu nối","Jumlah Sambungan","Número de conexiones","Numero di Allacciamenti","Número de ligações","Csatlakozások száma","عدد الوصلات","จำนวนผู้ใช้น้ำ","Broj priključaka","接驳用戶數目","接户管数量","接管數量","Numărul de branşamente","Broj priključaka   ","Numri i kyçjeve","დაერთებათა რაოდენობა","Брой на сградните отклонения","Počet přípojek"]
["Average Length of Service Connection from Property Boundary to Customer Meter [meter]","Average Length of Service Connection from Property Boundary to Customer Meter [meter]",{"$f":"'Language 3'!C68","v":0},"Longueur Moyenne des Branchements depuis la Limite de Propriété au Compteur [m]","Durchschnittliche Länge des Teilstückes der Hausanschlussleitung von der Grundstücksgrenze bis zum Zähler [m]","Средняя длина отводящих линий от границы собственности до водомера потребителя [метр]","Chiều dài trung bình của đấu nối dịch vụ từ ranh giới khu đất ở cho tới đồng hồ khách hàng [m]","Rata-rata Panjang Pipa Dinas dari Batas Persil Pelanggan ke Meter Pelanggan [meter]","Longitud promedio de la tubería desde el limite de la propiedad hasta el medidor de consumos [metros]","Estensione media di Allacciamento da Limite Proprietà a Contatore\n[metri]","Comprimento médio do ramal predial do limite da propriedade até hidrômetro [metro]","Csatlakozó vezeték átlagos hossza a telekhatár és a mérő között [m]","معدل طول ماسوره الوصله من حدود الارض الى عداد المياه (م)","ความยาวของท่อบริการโดยเฉลี่ยจากท่อจ่ายน้ำถึงมาตรผู้ใช้น้ำ\n(เมตร)","Prosečna dužina potrošačke veze od granice imanja do potrošačkog vodomera [m]","平均接驳用戶接驳水管管長（米）- 由房屋限界至水表","房屋边界至用户水表之用户内线平均长度［公尺］","房屋邊界至用戶水錶之用戶內線平均長度［公尺］","Lungimea medie a branşamentelor de la frontiera de proprietate până la contorul consumatorului [metri]","Prosječna dužina priključka od granice posjeda do potrošačkog brojila [metar]","Gjatësia mesatare e kyçjeve në shërbim nga kufiri i pronës deri te ujëmatësi i konsumatorit [meter]","გადამყვანი მილის სიგრძე საკუთრების საზღვრიდან აბონენტის მრიცხველამდე [მეტრი]","Ср. Дължина на сгр. Откл. От границата на имота до водомера на клиента (м)","Průměrná délka přípojky od hranice nemovitosti po vodoměr [metr]"]
["Total Length of Service Connections from Property Boundary to Customer Meter [kilometre]","Total Length of Service Connections from Property Boundary to Customer Meter [kilometer]",{"$f":"'Language 3'!C69","v":0},"Longueur Totale des Branchements depuis la Limite de Propriété au Compteur [km]","Gesamtlänge aller Teilstücke der Hausanschlussleitungen von der Grundstücksgrenze bis zum Zähler [km]","Общая длина отводящих линий от границы собственности до водомера потребителя [км]","Tổng chiều dài đấu nối dịch vụ: từ ranh giới khu đất ở cho tới đồng hồ khách hàng [km]","Total Panjang Pipa Dinas dari Batas Persil Pelanggan ke Meter Pelanggan [kilometer]","Longitud total de las tuberías desde el limite de la propiedad hasta el medidor de consumos [km]","Totale Lunghezza Allacciamenti da Limite Proprietà a Contatore\n[chilometri]","Comprimento total dos ramais prediais do limite da propriedade até hidrômetro [metro]","Csatlakozó vezetékek összes hossza a telekhatár és a mérő között [km]","معدل طول ماسوره الوصله من حد الارض الى عداد المياه (كلم)","ความยาวรวมของท่อบริการทั้งหมดจากท่อจ่ายน้ำถึงมาตรผู้ใช้น้ำ\n(กิโลเมตร)","Ukupna dužina potrošačke veze od granice imanja do potrošačkog vodomera [km]","接驳用戶接驳水管總管長（公里）- 由房屋限界至水表","房屋边界至用户水表之用户内线总长度［公里］","房屋邊界至用戶水錶之用戶內線總長度［公里］","Lungimea totală a branşamentelor de la frontiera de proprietate până la contorul consumatorului [metri]","Ukupna dužina priključaka od granice posjeda do potrošačkog brojila [kilometar]","Gjatësia totale e kyçjeve në shërbim nga kufiri i pronës deri te ujëmatësi i konsumatorit [kilometer] ","გადამყვანი მილის სიგრძე საკუთრების საზღვრიდან აბონენტის მრიცხველამდე [კილო მეტრი]","Обща дължина на сгр. Отклонения от границата на имота до водомера на клиента (км)","Celková délka přípojek od hranice nemovitosti po vodoměr [kilometr]"]
["Average Pressure","Average Pressure",{"$f":"'Language 3'!C70","v":0},"Pression Moyenne","Durchschnittlicher Druck","Среднее давление","Áp lực trung bình","Tekanan Rata-rata","Presión promedio","Pressione Media","Pressão média [m]","Átlagnyomás","معدل الضغط","แรงดันน้ำโดยเฉลี่ย","Prosečan pritisak","平均水壓","平均水压","平均水壓","Presiunea medie","Prosječan pritisak  ","Presioni mesatar","საშუალო წნევა","Средно налягане  ","Průměrný tlak"]
["Intermittent Supply","Intermittent Supply",{"$f":"'Language 3'!C71","v":0},"Alimentation Non Permanente","Nicht-Kontinuierliche Versorgung","Периодическая подача","Cấp nước gián đoạn","Suplai Intermittent","Continuidad del servicio","Erogazione Non Continua","Abastecimento intermitente","Szakaszos szolgáltatás","التزويد المتقطع ","การจ่ายน้ำเป็นเวลา","Isprekidano snabdevanje","間斷供水","间歇供水","間歇供水","Alimentare intermitentă ","Prekidi u snabdijevanju","Furnizimi me ndërprerje","წყლის პერიოდული მიწოდება","прекъсване на водоподаването","Přerušované zásobování"]
["Area","Area",{"$f":"'Language 3'!C72","v":0},"Zone","Gebiet","Участок","Khu vực","Area","Área","Area","Área","Terület","المساحة","พื้นที่","Zona","地區","区域","區域","Suprafaţa","Područje","Zona","ზონა","Площ","Oblast"]
["Approximate Number of Connections","Approximate Number of Connections",{"$f":"'Language 3'!C73","v":0},"Nombre Approximatif de Branchements","Ungefähre Anzahl Hausanschluss-leitungen","Приблизительное количество врезок","Số đấu nối (xấp xỉ)","Perkiraan Jumlah Sambungan","Número aproximado de conexiones","Numero Stimato Allacciamenti","Número de ligações aproximado","Csatlakozások száma – körülbelül","عدد الوصلات التقديري","จำนวนผู้ใช้น้ำโดยประมาณ","Približan broj veza","大概接驳用戶數目","接户管数量之近似值","接管數量之近似值","Numărul aproximativ de branşamente","Približan broj priključaka","Numri i përafërt i kyçjeve","დაერთებების მიახლოებითი რაოდენობა","Приблизителен брой на сгр. Отклонения","Přibližný počet přípojek"]
["Daily Average Pressure\n[m]","Daily Average Pressure\n[m]",{"$f":"'Language 3'!C74","v":0},"Pression Moyenne Journalière [m]","Durchschn. Druck\n[m]","Среднесуточное давление\n[м]","Áp lực trung bình hàng ngày\n[m]","Tekanan Rata-rata Harian\n[m]","Presión promedio diaria [m]","Pressione Media Giornata [m]","Pressão média diária [m]","Napi átlag-nyomás [m]","معدل الضغط اليومي\n(م)","แรงดันน้ำเฉลี่ยรายวัน","Dnevni prosečan pritisak [m]","平均每天水壓（米）","日平均水压\n［公尺］","日平均水壓\n［公尺］","Presiunea medie zilnică [m]","Prosječan dnevni pritisak [m]","Presioni mesatar ditor\n[m]","საშუალო დღიური წნევა","Средно дневно налягане (м)","Denní průměrný tlak [m]"]
["Supply Time\n[days per week]","Supply Time\n[days per week]",{"$f":"'Language 3'!C75","v":0},"Durée d'Alimentation [jours par semaine]","Versorgungs-zeit\n[Tage pro Woche]","Время подачи \n[дней в неделю]","Thời gian cấp nước\n[ngày/tuần]","Waktu Pelayanan\n[hari per minggu]","Periodo de suministro\n[días por semana]","Durata Erogazione\n[g/sett]","Tempo de abastecimento [dias por semana]","Szolgáltatási idő\n[nap/hét]","مده التزويد\n(يوم\\اسبوع)","เวลาจ่ายน้ำ\n(วันต่อสัปดาห์)","Vreme snabdevenosti [dana/nedelji]","每星期供水天數","每周供水日数\n［日／周］","每週供水日數\n［日／週］","Timpul de alimentare [zile pe săptămână]","Snabdjevenost vodom [dana sedmično]","Koha e furnizimit\n[ditë në javë]","წყლის მიწოდების დრო[დღე კვირაში]","Доставка на вода (дни за седмица)","Doba zásobování [dnů za týden]"]
["Supply Time\n[hours per day]","Supply Time\n[hours per day]",{"$f":"'Language 3'!C76","v":0},"Durée d'Alimentation [heures par jour]","Versorgungs-zeit\n[Stunden pro Tag]","Время подачи\n[часов в день]","Thời gian cấp nước\n[h/ngày]","Jam Pelayanan\n[jam per hari]","Periodo de suministro\n[horas por día]","Durata Erogazione\n[ore/g]","Tempo de abastecimento [horas por dia]","Szolgáltatási idő\n[h/nap]","مده التزويد\n(ساعة\\يوم)","เวลาจ่ายน้ำ\n(ชั่วโมงต่อวัน)","Vreme snabdevenosti [sati/dan]","每日供水小時","每日供水时数\n［小时／日］","每日供水時數\n［小時／日］","Timpul de alimentare [ore pe zi]","Snabdjevenost vodom [sati dnevno]","Koha e furnizimit\n[orë në ditë]","წყლის მიწოდების დრო[საათი დღეში]","Доставка на вода (часове на ден)","Doba zásobování [hodin za den]"]
["Average Daily Supply Time [hours]","Average Daily Supply Time [hours]",{"$f":"'Language 3'!C77","v":0},"Durée Moyenne d'Alimentation Quotidienne [heures]","Durchschnittliche Versorgungszeit [h]","Среднесуточное время подачи [час]","Thời gian cấp nước trung bình hàng ngày [h]","Jam Pelayanan Rata-rata [jam]","Periodo promedio diario de suministro [horas]","Durata Erogazione Giorno Medio [ore]","Tempo de abastecimento médio diário [horas]","Átlag napi szolgáltatási idő [h]","معدل  التزويد اليومي  (ساعة) ","เวลาจ่ายน้ำรายวันโดยเฉลี่ย\n(ชั่วโมง)","Prosečno dnevno vreme snabdevenosti [sati]","平均每日供水小時","平均日供水时间［小时］","平均日供水時間［小時］","Timpul mediu zilnic de alimentare [ore]","Prosječna dnevna snabdjevenost [sati]","Koha mesatare e furnizimit ditor\n[orë]","საშალო დღიური მიწოდების დრო [სთ]","Средна дневна доставка на вода (часове)","Průměrná denní doba zásobování [hodiny]"]
["Water Source","Water Source",{"$f":"'Language 3'!C78","v":0},"Ressource / Station","Einspeisung","Источник водоснабжения","Nguồn nước","Sumber Air","Fuente de suministro","Fonti Idriche","Fonte de água","Víz forrása","مصدر المياة","แหล่งน้ำ","Izvor vode","水源","水源","水源","Sursa de apă","Izvorište","Burimi i ujit","სათავე","Водоизточник","Vodní zdroj"]
["System Input Volume [m3]","System Input Volume [m3]",{"$f":"'Language 3'!C79","v":0},"Volume Total Introduit [m3]","Systemeinspeisung\n[m3]","V воды, подав-й в систему [м3]","Lưu lượng đầu vào hệ thống [m3]","Volume Input Sistem [m3]","Volumen de entrada al sistema [m3]","Volume Immesso Sistema\n[m3]","Volume de entrada no sistema [m3]","Betáplált mennyiség [m3]","حجم المياه الدالخله للشبكه (م3)","ปริมาณน้ำผลิตรวม\n(ลบ.ม.)","Ulazna količina sistema [m3]","系统输入水量（立方米/年）","系统进水量 [立方米]","系統載入量 [m3]","Volumul de apă intrat în sistem [m3]","Ulazna količina vode u sistem [m3]","Vëllimi hyrës në sistem [m3]","სისტემაში გაშვებული მოცულობა [მ3]","Общо кол. Вода на входа на системата (м3)","Celkový vstupní objem vody [m3]"]
["Financial Information","Financial Information",{"$f":"'Language 3'!C80","v":0},"Informations Financières","Finanzielle Information","Финансовая информация","Thông tin tài chính","Informasi Keuangan","Información financiera","Informazioni Finanziarie","Informação financeira","Pénzügyi információ","المعلومات المالية","ข้อมูลทางด้านการเงิน","Finansijske informacije","財務信息","财务信息","財務資訊","Date financiare","Financijske informacije","Të dhënat financiare","ფინანსური ინფორმაცია","Финансова информация","Finanční informace"]
["Average Tariff","Average Tariff",{"$f":"'Language 3'!C81","v":0},"Tarif Moyen","Durchschnittlicher Wasserpreis","Средний тариф","Giá nước trung bình","Tarif Rata-rata","Tarifa promedio","Tariffa media","Tarifa média","Átlagos díjszabás","معدل التعرفه","อัตราค่าน้ำเฉลี่ย","Prosečna cena","平均水价","平均水价","平均水價","Tariful mediu","Prosječna cijena vode","Tarifa mesatare","საშუალო ტარიფი","Средна цена","Průměrná sazba"]
["Variable Production and Distribution Cost\n(Marginal Cost of Water)","Variable Production and Distribution Cost\n(Marginal Cost of Water)",{"$f":"'Language 3'!C82","v":0},"Coûts de Production et de Distribution","Variable Aufbereitungs- und Pumpkosten\n(Marginale Kosten)","Затраты на подкачку и отчистку (электричество и химические средства)","Chi phí sản xuất và phân phối","Biaya Produksi dan Distribusi","Costos variables de producción y distribución      (costo marginal del agua)","Produzione Distribuzione Costo Variabile                          (Costo Marginale Acqua)","Custo variável de produção e distribuição (custo marginal da água)","Termelés és elosztás változó költsége (víz határköltsége)","تكلفه الانتاج والتوزيع (سعر المياه الهامشي)","ต้นทุนผันแปรของการผลิตและจ่ายน้ำ\n(ต้นทุนส่วนเพิ่มต่อหน่วย)","Varijabilna proizvodnja i koštanje distribucije                     (granična cena vode)","变动生产成本和配水成本","变动制水及配水成本（水的边际成本）","變動產水及配水成本（水的邊際成本）","Costuri variabile de producţie şi distribuţie (Costul Marginal al Apei)","Varijabilni troškovi proizvodnje i distribucije                        (granični troškovi vode)","Prodhimi variabël dhe kostoja e distribuimit (kostoja margjinale e ujit)","წყლის წარმოებისა და დისტრიბუციის ხარჯები ( ელექტრო ენერგია და ქიმიური საშუალებები)","Променливи разходи за производство и разпределение (крайни разходи за вода)","Proměnlivé výrobní a distribuční náklady (okrajová část ceny vody)"]
["per m3","per m3",{"$f":"'Language 3'!C83","v":0},"par m3","pro m3","на м3","/m3","per m3","por m3","per m3","por m3","/m3","لكل م3","ต่อ ลบ.ม.","po m3","每立方米","每立方米","每 m3","pe m3","po m3"," Për m3","მ3-ზე","за м3","za m3"]
["Currency","Currency",{"$f":"'Language 3'!C84","v":0},"Devise","Währung","Валюта","Đơn vị tiền tệ","Mata Uang","Moneda","Moneta","moeda","Pénznem","العملة","อัตราแลกเปลี่ยน","Valuta","货币","货币","貨幣","Valuta","Valuta"," Valuta","ვალუტა","Валута","Měna"]
["Components of Non-Revenue Water to be valued at either (i) Average Tariff - if water could be sold or (ii) Production and Distribution Cost if a reduction of the NRW component would only lead to reduced System Input Volume. For Average Tariff enter 1, for Production and Distribution Cost enter 2.","Components of Non-Revenue Water to be valued at either (i) Average Tariff - if water could be sold or (ii) Production and Distribution Cost if a reduction of the NRW component would only lead to reduced System Input Volume. For Average Tariff enter 1, for Production and Distribution Cost enter 2.",{"$f":"'Language 3'!C85","v":0},"Les composants de l'Eau Non Vendue sont évalués soit à partir\n (i) du Tarif Moyen si l'eau peut être vendue ou\n (ii) du Coût d'Exploitation si une réduction de l'ENV ne conduirait qu'à réduire le Volume Introduit. \nPour le Tarif Moyen, entrez 1, pour le Coût d'Exploitation, entrez 2.","Der Wert der Komponenten der nicht in Rechnung gestellten Wassermenge kann entweder (i) der durchschnittliche Wasserpreis oder (ii) die Kosten für Aufbereitung und Pumpen sein. 1 für Wasserpreis, 2 für Produktionskosten.","Компоненты недоходного водоснабжения (НДВ), расчитыв-ся либо  (i) по Средн. тарифу - если воду можно продавать, либо (ii) по Затратам на произв-во и реализ-ию, если сокращение компонента по НДВ приведет лишь к снижению V воды, подаваемой в систему. Для расчетов по Среднему тарифу ввести 1, по Затратам на произв. и реализ. ввести 2.  ","Các hợp phần của thất thu nước được định giá theo hai cách sau: (i) Giá nước trung bình - nếu bán được nước (ii) Chi phí sản xuất và phân phối nếu việc giảm thất thoát sẽ chỉ dẫn tới việc giảm Lưu lượng đầu vào hệ thống. Đối với Giá nước trung bình, ấn số 1; Đối với Chi phí sản xuất và phân phối, ấn số 2","Komponen Air Tak Berekening yang harus dinilai apakah (i) Tarif rata-rata - jika dapat dijual atau (ii) Biaya Produksi dan Distribusi jika penurunan komponen ATR hanya akan menurunkan Volume Sistem Input. Untuk Tarif Rata-rata masukkan 1, untuk Biaya Produksi dan Distribusi masukkan 2.","Para la valoración de los componentes del agua no facturada se puede emplear: (i) Tarifa promedio, si el agua puede ser vendida, o (ii) Costos de producción y distribución, si la reducción del nivel de agua no facturada sólo llevara a reducir el volumen de entrada al sistema. Para la opción de tarifa promedio, digite 1. Para la opción de Costos de producción y distribución, digite 2. ","Mancata Vendita di Acqua Valore (i) con Tariffa Media se vendibile (ii) con Costo Prod. Distr. Se riduzione di NRW conduce a riduzione di Volume Immesso Sistema. Per Tariffa Media immettere 1, per Prod.Distr. Immettere 2","Componentes da água não faturada para serem valorados a partir (i) Tarifa Média - se a água puder ser vendida ou (ii) Custo de Produção e Distribuição - se a redução da componente de água não faturada levar apenas à redução do volume de entrada no sistema","A bevételt nem hozó víz értéke vagy (i) az Átlagos díj alapján – ha a víz eladásra kerülhetett volna, vagy (ii) a Termelés és elosztás költségei alapján – ha csak a betáplálás csökkenése mérsékelné. Írjon 1-t az Átlag díj; 2-t a Termelés- elosztás költsége szerinti módhoz!"," عناصر المياه المفقودةيجب ان يتم تقيمهامن خلال :\n(1)معدل التعرفه إذاكانت المياه سلعه مباعه .\n(2)تكلفه الإنتاج والتوزيع إذا كان خفض الفاقد  يؤدي إلى تخفيض حجم المياه الداخلة للشبكه.\nلمعدل التعرفه ادخل (1) لمعدل تكلفه الانتاج والتوزيع ادخل (2).    \n","การหามูลค่าขององค์ประกอบของน้ำที่ไม่ก่อให้เกิดรายได้ทำได้ โดยอย่างใดอย่างหนึ่ง คือ (1) อัตราค่าน้ำเฉลี่ยถ้าสามารถขายน้ำ ได้ หรือ (2) ต้นทุนการผลิตและจ่ายน้ำ หากการลดปริมาณน้ำ ที่ไม่ก่อให้เกิดรายได้  ทำให้ปริมาณน้ำผลิตรวมลดลง, สำหรับ อัตราค่าน้ำเฉลี่ย กด 1,  สำหรับต้นทุนการผลิตและการจ่ายน้ำ กด 2","Komponente Nefakturisane vode (NRW) će biti vrednovane na jedan od načina (i) Prosečna cena- ako voda može biti prodata ili (ii) Troškovima proizvodnje i distribucije ako bi redukcija NRW komponente samo vodila ka smanjenom Ulazu u sistem. Za prosečnu tarifu pritisnite 1, za troškove proizvodnje i distribucije pritisnite 2","無收益水各成分的评价按照以下 ：1 按平均水价計算，假设水能够售出；或者2,如果无收益水的各个组成部分只是导致系统配水量的减少,则按照生产成本和配水成本计算。","未得到收入用水量之成分可以以下方式计价(i)平均水价（假定水被售出），或(ii)制水和配水成本（如果未得到收入用水量的降低仅导致系统进水量降低）。选取平均水价者，请进入１；选取制水或配水成本者，请进入２。","無計費水量之成分可以以下方式計價(i)平均水價（假定水被售出），或(ii)產水或配水成本（如果無計費水量之降低僅導致系統載入量減少）。選取平均水價者，請進入１；選取產水或配水成本者，請進入２。","Componentele apei nefacturate vor fi evaluate pe baza (i) Tarifului Mediu - dacă apa poate fi comercializată sau (ii) Costului de Producţie şi Distribuţie dacă o reducere a componentei apei nefacturate (NRW) va duce doar la scăderea Volumului de apă care intră în sistem. Pentru estimare pe baza Tarifului Mediu introduceţi 1 iar pentru estimare pe baza Costului de Producţie şi Distribuţie introduceţi 2.","Komponente neobračunate vode odrediti ili (i) kroz prosječnu cijenu - ako se voda može prodati ili (ii) kroz troškove proizvodnje i distribucije ako bi smanjenje komponenata neobračunate vode dovelo samo do smanjenja ulazne količine vode u sistem. Prosječnu cijenu unesite pod 1, a troškove proizvodnje i distribucije pod 2.","Komponentët e Ujit të pa-faturuar për t’u vlerësuar sipas (i) Tarifës mesatare - nëse uji mund të shitet ose (ii) Kostos së prodhimit dhe distribuimit nëse zvogëlimi i komponentit të UPF do të rezultonte vetëm në uljen e vëllimit hyrës në sistem. Për tarifën mesatare inserto 1, për koston e prodhimit dhe të distribuimit inserto 2."," აღურიცხავი წყლის კომპონენტები ფასება ან ა) საშუალო ტარიფით - თუ წყალი გაიყიდა ან ბ) წარმოებისა და დისტრიბუციის ხარჯით თუ - აღურიცხავი წყლის კომპონენტების შემცირება გამოიწვევდა სისტემაში გაშვებული მოცულობის შემცირებას.საშუალო ტარიფისთვის შეიყვანეთ 1, წარმოებისა და დისტრიბუციის ხარჯისთვის შეიყვანეთ 2.","Компоненти на водата неносеща приходи оценени като (i) Средна цена-ако водата може да бъде продадена или (ii) Разходите за добиване и пренос ако намалението на компонента вода неносеща приходи ще доведе до намаление на Общото кол. Вода на входа на системата. За средна цена натиснете 1 и за разходите за производство и доставка натиснете 2","Součásti nefakturované vody, které mají být oceněny buď (i) Průměrnou sazbou - pokud může být voda prodaná nebo (ii) Výrobními a distribučními náklady jestliže by redukce VNF součástí vedla pouze ke snížení celkového vstupního objemu vody. Pro průměrnou sazbu zvolte 1, pro výrobní a distribuční náklady zvolte 2"]
["NRW Component","NRW Component",{"$f":"'Language 3'!C86","v":0},"Composant de l'ENV","Komponente der nicht in Rechnung gestellten Wassermenge","Компонент НДВ","Hợp phần NRW","Komponen Air Tak Berekening","Componente del agua no facturada","Componente NRW","Componente de ANF","Bevételt nem hozó komponens","عناصر المياه المفقوده","ส่วนประกอบของน้ำที่ไม่ก่อให้เกิดรายได้","Komponente Nefakturisane vode (NRW)","無收益供水的成分构成","未得到收入用水量成分","無計費水量成分","Apa nefacturată (NRW)","Komponente neobračunate vode  ","Komponenti i UPF","აღურიცხავი წყლის კომპონენტი","Компоненти на водата неносеща приходи","VNF komponenty"]
["Annual Value","Annual Value",{"$f":"'Language 3'!C87","v":0},"Annual Value","Jährlicher Wert (Kosten)","Annual Value","Giá trị hàng năm","Nilai Tahunan","Valor Anual","Annual Value","Valor Anual","Annual Value","Annual Value","มูลค่ารายปี","Jednogodišnja vrednost","\n年度价值\n","年度价值","年度價值","Valoarea anuală","Godišnja vrijednost","Vlera vjetore","წლიური ღირებულება","Годишни стойности","Roční hodnota"]
["Total Value of NRW","Total Value of NRW",{"$f":"'Language 3'!C88","v":0},"Montant Total de l'ENV","Theoretischer Wert (Kosten) der nicht in Rechnung gestellten Wassermenge","Общая стоимость НДВ","Tổng giá trị NRW","Nilai Total Air Tak Berekening","Valor total del agua no facturada","Valore Totale di NRW","Valor total de ANF","Bevételt nem hozó összértéke","قيمه المياه المفقوده ","มูลค่ารวมของน้ำที่ไม่ก่อให้เกิดรายได้","Ukupna vrednost Nefakturisane vode (NRW)","無收益水總价值","未得到收入用水量之总价值","無計費水量之總價值","Valoarea totală a apei nefacturate (NRW)","Ukupna vrijednost neobračunate vode","Vlera totale e UPF","აღუიცხავი წყლის საერთო ღირებულება","Обща сума на водата неносеща приходи","Celková hodnota VNF"]
["Annual Operating Cost (without Depreciation)","Annual Operating Cost (without Depreciation)",{"$f":"'Language 3'!C89","v":0},"Coût d'Exploitation Annuel (sans Amortissement)","Jährliche Betriebskosten (ohne Abschreibungen)","Ежегодные операционные расходы (без амортизации)","Chi phí vận hành hàng năm (không tính Khấu hao)","Biaya Operasional Tahunan (tanpa penyusutan)","Costos anuales de operación (sin depreciación)","Costo Annuale di Esercizio (senza Deprezzamento)","Custo operacional anual (sem depreciação)","Éves működési költség (értékcsökkenés nélkül)","تكلفه التشغيل السنوي (بدون قيمه الاستهلاك) ","ต้นทุนการดำเนินการรายปี \n(ไม่รวมค่าเสื่อมราคา)","Godišnji operativni troškovi (bez amortizacije)","年度運營成本（不包括折舊）","年度操作成本（不含折旧）","年度操作成本（不含折舊）","Cheltuieli de exploatare anuale (fără amortizare)","Godišnji operativni troškovi (bez amortizacije)","Shpenzimet operative vjetore (pa zhvlerësim)","ოპერირების წლიური ხარჯი (ცვეთის გამოკლებით)","Годишни експлоатационни разходи (без обезценяване)","Roční provozní náklady (bez odpisů)"]
["Bulk Water Supply (Export)","Bulk Water Supply (Export)",{"$f":"'Language 3'!C90","v":0},"Distribution en Gros (Exportation)","Wasserexport","Общий объем водоснабжения (экспорт)","Cấp nước sỉ (xuất khẩu)","Suplai Air Curah (ekspor)","Agua en bloque (Exportada)","Volume Acqua Fornito (Export)","Venda de água por atacado (exportação)","Nagybani értékesítés (export)","كميه التزويد للمياه الخارجه (م3\\سنويا","การจ่ายน้ำ แบบเหมารวม\n(การจำหน่าย)","Masovno snabdevanja (Export)","批量供水（外输）","批量供水（售出）","躉售水量（售出）","Volumul total de apă furnizat (exportul)","Izvoz vode na veliko","Furnizimi me shumicë i ujit (Export)","წყლის მიწოდების საერთო მოცულობა (ექსპორტი)","Обем на доставената вода (експорт)","Náhradní zásobování vodou (vývoz)"]
["[m3]","[m3]",{"$f":"'Language 3'!C91","v":0},"[m3]","[m3]","м3","[m3]","[m3]","[m3]","[m3]","[m3]","[m3]","م3\\سنويا","(ลบ.ม.)","[m3]","立方米/年","[立方米]","[m3]","[m3]","[m3]","[m3] ","მ3","(м3)","[m3]"]
["Estimated Number","Estimated Number",{"$f":"'Language 3'!C92","v":0},"Nombre Estimé","Geschätzte Anzahl","Расчетное количество ","Con số ước tính","Estimasi Jumlah","Numero estimado  ","Numero Stimato","Número estimado","Becsült db","العدد التقريبي","จำนวนโดยประมาณ","Očekivani broj","估计数目","估计数","估計數","Numărul estimat","Procijenjeni broj  ","Numri i vlerësuar ","სავარაუდო რაოდენობა","Оценен брой","Odhadnutý počet"]
["Persons per House","Persons per House",{"$f":"'Language 3'!C93","v":0},"Habitants par Maison","Personen pro Haus","Количество человек на дом","Số người/hộ gia đình","Jumlah orang per Rumah Tangga","Personas por vivienda","Persone Abitazione","Pessoas por residência","Fő/lakás","عدد الاشخاص لكل منزل","จำนวนคนต่อบ้าน","Osoba na sat","每戶人數","每户人数","每戶人數","Număr de persoane pe locuinţă","Osoba po domaćinstvu","Persona për shtëpi ","სულადობა ერთ სახლზე","Жители на апартамент (Къща)","Obyvatel v domě"]
["Consumption [Litres/person/day]","Consumption [liters/person/day]",{"$f":"'Language 3'!C94","v":0},"Consommation [litres/hab./jour]","Prokopf-Verbrauch\n[Liter/Person/Tag]","Потребление [литр/чел/день]","Tiêu thụ [l/người/ngày]","Konsumsi\n[liter/orang/hari]","Consumo [litros/persona/día]","Consumo [litri/persona/g]","Consumo [litros/pessoa/dia]","Fogyasztás [liter/fő/nap]","الاستهلاك (لتر\\شخص\\يوم)","การใช้น้ำ (ลิตร/คน/วัน)","Potrošnja [l/potr/dan]","用水量（公升/人/天）","每人每日用水量\n[公升/人/日]","每人每日用水量\n［公升/人/日］","Consumul [litri/persoană/zi]","Potrošnja [litara/osoba/dan]","Konsumi\n[litra/person/ditë]","მოხმარება [ლ/სულზე/დღეში]","Консумация (л/ч/ден)","Spotřeba [litr/osoba/den]"]
["Total\n[m3]","Total\n[m3]",{"$f":"'Language 3'!C95","v":0},"Total\n[m3]","Gesamt\n[m3]","Итого \n[м3]","Tổng\n[m3]","Total\n[m3]","Total\n[m3]","Totale\n[m3]","Total\n[m3]","Összesen\n[m3]","المجموع\n(م3)","ยอดรวม\n(ลบ.ม.)","Ukupno [m3]","總量（立方米/年）","总计\n[立方米]","總計\n[m3]","Total [m3]","Ukupno [m3]","Totali\n[m3]","სულ [მ3]","Общо (м3)","Celkem     [m3]"]
["Consumption\n[Litres/connection/day]","Consumption\n[liters/connection/day]",{"$f":"'Language 3'!C96","v":0},"Consommation\n[litres/branchement/jour]","Verbrauch\n[Liter/Hausanschluss/Tag]","Потребление   [литр/отвод.линия/день]","Tiêu thụ\n[l/đấu nối/ngày]","Konsumsi [liter/sambungan/hari]","Consumo\n[litros/conexión/día]","Consumo [litri/allacciamento/g]","consumo\n[litros/ligação/dia]","Fogyasztás [liter/csatlakozás/nap]","الاستهلاك\n(لتر\\وصله\\يوم)","การใช้น้ำ\n(ลิตร/ราย/วัน)","Potrošnja [l/priklj/dan]","用水（公升/接驳用戶/天）","用水量\n[升/接户管/日]","用水量\n［公升/接管/日］","Consumul [litri/branşament/zi]","Potrošnja [litara/priključak/dan]","Konsumi\n[litra/kyçje/ditë]","მოხმარება [ლ/დაერთებაზე/დღეში]","Консумация (л/сгр. откл./ден)","Spotřeba [l/přípojka/den]"]
["Consumption\n[Litres/customer/day]","Consumption\n[liters/customer/day]",{"$f":"'Language 3'!C97","v":0},"Consommation\n[litres/abonné/jour]","Verbrauch\n[Liter/Verbraucher/Tag]","Потребление\n[литр/потребитель/день]","Tiêu thụ\n[l/khách hàng/ngày]","Konsumsi [liter/pelanggan/hari]","Consumo\n[litros/usuario/día]","Consumo\n[litri/cliente/g]","Consumo\n[litros/cliente/dia]","Fogyasztás [liter/fogyasztó/nap]","الاستهلاك\n(لتر\\مشترك\\يوم)","การใช้น้ำ\n(ลิตร/ลูกค้า 1 ราย/วัน)","Potrošnja [l/potr/dan]","用水（公升/戶/天）","用水量\n[公升/户/日]","用水量\n［公升/戶/日］","Consumul [litri/consumator/zi]","Potrošnja [litara/potrošač/dan]","Konsumi\n[litra/konsumatorë/ditë]","მოხმარება[ლიტრი/აბონენტი/დღეში]","Консумация (л/собственост/ден)","Spotřeba [l/zákazník/den]"]
["Unauthorised Consumption [m3]","Unauthorized Consumption [m3]",{"$f":"'Language 3'!C98","v":0},"Consommation Non Autorisée [m3]","Unzulässige Entnahme\n[m3]","Несанкционированное потребл-ие\n[м3]","Tiêu thụ bất hợp pháp [m3]","Konsumsi Tak Resmi [m3]","Consumo no autorizado [m3]","Consumo Non Autorizzato [m3]","Consumo não autorizado [m3]","Jogtalan fogyasztás [m3]","الاستهلاك غير المشروع (م3)","การใช้น้ำอย่างผิดกฎหมาย (ไม่ถูกต้อง) \n(ลบ.ม.)","Nelegalna potrošnja [m3]","未许可用水量（立方米/年)","未授权用水量 [立方米]","非法取水量 [m3]","Consumul neautorizat [m3]","Neovlaštena potrošnja [m3]","Konsumi i pa-autorizuar\n[m3]","არასანქცირებული მოხმარება [მ3]","Незаконна консумация (м3)","Neautorizovaná spotřeba [m3]"]
["Meter under-registration","Meter under-registration",{"$f":"'Language 3'!C99","v":0},"Sous-Comptage des Compteurs","Kundenzähler-Abweichungen","Занижение показаний счетчика ","Đăng ký dưới mức đồng hồ đo thực tế","Pencatatan Meter Lebih Rendah (meter under-registration)","Submedición","Sottoregistrazione contatore","Submedição","Mérő – regisztrálás alatt","تدني كفاءه التسجيل للعدادات","มาตรวัดน้ำที่ไม่ได้ลงทะเบียน","Manje registrovano na vodomeru","水表失準(少于正确計量）","注册水表负偏差","水錶負偏差","Înregistrarea diminuată a datelor contorului","Brojilo registrira manje [%]","Leximi më i ulët i ujëmatësit ","მრიცხველის მიერ არასწორი აღრიცხვა (ნაკლებობა)","Водомери в процес на регистрация ","Neregistrovaný objem vodoměrem"]
["Estimated % of under-reading","Estimated % of under-reading",{"$f":"'Language 3'!C100","v":0},"Estimation du Sous-comptage en %","Geschätzter % um den die Zähler zuwenig messen","Расчетный % занижения ","% ước tính việc biên đọc đồng hồ thấp hơn thực tế","Estimasi % dari pembacaan lebih rendah","% estimado de lecturas anómalas","Sottoregistrazione % stimata","% estimada de submedição","Elolvasás becsült %-a","النسبه % لتدني قراءه للعدادات","% โดยประมาณของการอ่านมาตรต่ำกว่าตัวเลขจริง","Procenjeni % manje registrovano na vodomeru","估計水表少計量的幅度（百分之幾）","读表误差估量％","讀錶負偏差之估計％","% estimativ al diminuărilor","Procijenjeni % manjeg očitanja","% e vlerësuar e leximit më të ulët të ujëmatësit ","მრიცვხელის ჩვენებით, დანაკლისის შეფასებითი % (იგულისხმება მირხველის ანათვლის მძიმის შემდეგ (ლიტრობრივი) აღრიცხვა და ა.შ.)","Оценен % понижени измервания","Odhadnuté % podměření"]
["Billed Metered Consumption (without Bulk Supply)","Billed Metered Consumption (without Bulk Supply)",{"$f":"'Language 3'!C101","v":0},"Consommation Facturée Mesurée (hors Vente en Gros)","Wasserverbrauch\n(ohne Export)","Измеряемое потребление, на которое выставлен счет (без Общего объема подачи)","Tiêu thụ đo được có hoá đơn (không kể Cấp nước sỉ)","Konsumsi Bermeter Berekening (tanpa Suplai Air Curah)","Consumo facturado medido (sin agua en bloque)","Consumo Misurato Fatturato (senza Fornito)","Consumo faturado medido (sem venda por atacado)","Számlázott, mért fogyasztás (nagybani nélkül)","الاستهلاك المسجل (بدون قراءات المصادر)","น้ำผ่านมาตรที่เรียกเก็บเงิน (ไม่ได้จ่ายแบบเหมารวม)","Fakturisana merena potrošnja ( Bez Masovnog snabdevanja)","据表收费用水（不含批量供水）","计量收费用水量（不含批量供水）","有水錶計量用水量（不含躉售水量）","Consumul măsurat cu contor şi facturat (fără export)","Obračunata izmjerena potrošnja (bez izvoza na veliko)","Konsumi i matur i faturuar (pa furnizimin me shumicë) ","დარიცხული გამრიცხველიანებული მოხმარება(მიწოდების საერთო მოცულობის გარდა)","Фактурирана измерена консумация (без блоковите водомери)","Fakturovaná měřená spotřeba (bez náhradního zásobování)"]
["Metered Bulk Supply (Export)","Metered Bulk Supply (Export)",{"$f":"'Language 3'!C102","v":0},"Vente en Gros (Export)","Gemessener Export","Измеряемый общий объем водоснабжения (экспорт)","Cấp nước sỉ đo được (xuất khẩu)","Suplai Air Curah Bermeter (ekspor)","Agua en bloque medida (Exportada)","Volume Fornito Misurato (Export)","Venda por atacado medida (exportação)","Mért nagybani eladás (export)","الاستهلاك المسجل  للمصادر(خارج)","การจ่ายน้ำแบบเหมารวมผ่านมาตรวัดน้ำ\n(การจำหน่าย)","Merena Bulk Suply (export)","据表批量供水（外输）","计量批量供水（售出）","有水錶計量之躉售水量（售出）","Volumul total contorizat (export)","Izmjereni izvoz na veliko","Furnizimi i matur me shumicë (Export) ","გამრიცხველიანებული მიწოდება (ექსპორტი)","Измерен обем доставена вода (експорт)","Měřené náhradní zásobování (vývoz)"]
["Unbilled Metered Consumption (without Bulk Supply)","Unbilled Metered Consumption (without Bulk Supply)",{"$f":"'Language 3'!C103","v":0},"Consommation Mesurée Non Facturée (hors Vente en Gros)","Gemessener unentgeltlicher Verbrauch (ohne Export)","Неизмеряемое потребление, на которое выставлен счет (без Общего объема подачи)","Tiêu thụ có đồng hồ đo, không có hoá đơn (không kể Cấp nước sỉ)","Konsumsi Bermeter Tak Berekening (tanpa Suplai Air Curah)","Consumo no facturado medido (sin agua en bloque)","Consumo Misurato Non Fatturato (senza Fornito)","Consumo não faturado medido (sem venda por atacado)","Nem számlázott, mért fogyasztás (nagybani nélkül)","الاستهلاك الغير مسجل (بدون قراءات المصادر)","น้ำผ่านมาตรที่ไม่เรียกเก็บเงิน\n(ไม่ได้จ่ายแบบเหมารวม)","Nefakturisana merena potrošnja (bez Masovnog snabdevanja)","据表不收费用水（不含批量供水）","未收费计量用水量（不含批量供水）","有水錶計量之不收費用水量（不含躉售水量）","Volumul contorizat nefacturat (fără export)","Neobračunata izmjerena potrošnja (bez izvoza na veliko)","Konsumi i matur i pa-faturuar (pa furnizimin me shumicë) ","დაურიცხავი გამრიცხველიანებული მოხმარება (საერთო მიწოდებული მოცულობის გარდა)","Нефактурирана неизмерена консумация (без  блоковите водомери)","Nefakturovaná měřená spotřeba (bez náhradního zásobování)"]
["Bulk Water Supply (Export)","Bulk Water Supply (Export)",{"$f":"'Language 3'!C104","v":0},"Vente en Gros (Export)","Wasserexport","Общий объем водоснабжения (экспорт)","Cấp nước sỉ (Xuất khẩu)","Suplai Air Curah (ekspor)","Agua en bloque (Exportada)","Volume Acqua Fornito (Export)","Venda de água por atacado (exportação)","Nagybani értékesítés (export)","تزويد  المصادر(خارج)","การจ่ายน้ำแบบเหมารวม\n(การจำหน่าย)","Masovno snabdevanje (Export)","批量供水（外输）","批量供水（售出）","躉售水量（售出）","Volumul total furnizat (export)","Izvoz vode na veliko","Furnizimi i ujit me shumicë (Export)","მიწოდებული წყლის საერთო მოცულობა (ექსპორტი)","Обем на доставената вода (експорт)","Náhradní zásobování vodou (vývoz)"]
["Corrupt Meter Reading Practices","Corrupt Meter Reading Practices",{"$f":"'Language 3'!C105","v":0},"Relevés Corrompus des Compteurs","Illegale Praktiken beim Zählerablesen","Коррупция при снятии показаний","Gian lận trong việc đọc đồng hồ","Kecurangan Bacaan Meter","Prácticas inadecuadas de lectura de los medidores","Operazioni Lettura Errate","Práticas de leitura erradas","Hibás mérő leolvasási gyakorlat","اخطاء قراءه العدادات","การทุจริตในการอ่านมาตรวัดน้ำ","Praksa pogrešnih očitavanja vodomera","读表作弊方法","计量窜改","計量竄改","Cazuri de înregistrare eronată a contoarelor","Nepravilno očitavanje brojila","Praktikat e leximit të gabuar të ujëmatësve ","კორუფცია ჩვენებების აღებასთან დაკავშირებით","Корупционни практики при отчитане на водомерите","Korupční praktiky při odečtení vodoměru"]
["Data Handling Errors (Office)","Data Handling Errors (Office)",{"$f":"'Language 3'!C106","v":0},"Erreurs de Manipulation des Données","Fehler im Rechnungswesen","Ошибки при обработке данных (офис)","Các lỗi xử lý dữ liệu (văn phòng)","Kesalahan Penanganan Data (kantor)","Errores en el manejo de los datos de lectura (Oficina)","Errori Elaborazione Dati (Ufficio)","Erros de manipulação de dados (escritório)","Adatkezelési hiba (irodai)","اخطاء نقل المعلومات (المكتب)","ความผิดพลาดจากการจัดการด้านข้อมูล\n(โดยทางสำนักงาน)","Greške rukovanja podacima (kancelarija)","数据處理误差（辦公室）","数据处理误差（办公室）","資料處理誤差（辦公室）","Erori la procesarea datelor (birou)","Greške pri obradi podataka (u uredu)","Gabimet në regjistrimin e të dhënave (zyre) ","შეცდომები მონაცემთა დამუშავების დორს (ოფისში)","Грешка обработка данни (офис)","Chyba při práci s daty (kancelář)"]
["m3/km mains per hour (w.s.p.)","m3/km mains per hour (w.s.p.)",{"$f":"'Language 3'!C107","v":0},"m3/km de conduites et par heure (r.s.p.)","m3/h/km Leitungslänge","м3/км магистрали в час (к.с.н.)","m3 / km Chiều dài đường ống / h (w.s.p.)","m3/km pipa/jam","m3/km de red por hora (c.s.p.)","m3/km condotte per ora\n(s.p.)","m3/km rede por hora (q.s.p.)","m3/km fővezeték óránként (ny.a)","م3\\كلم من الخط الرئيسي  بالساعة","ลบ.ม./ท่อส่งน้ำ 1 กม./ชม.","m3/km cevovoda po satu (kada je sistem pod pritiskom)","立方米/公里管道/小時","立方米/公里管线/小时（加压状况下）","立方公尺/公里管線/小時（加壓狀況下）","m3/km de conducte pe oră (p.a.a.)","m3/km cjevovoda na sat (k.s.p.p.)","m3/km të gypave për orë\n(k.s.n.p)","მ3/კმ მაგისტრალზე საათში (w.s.p.)","м3/км гл. Тръбопроводи на час (wsp)","m3/km hlavních řadů za hodinu (w.s.p.)"]
["Unbilled Unmetered Consumption [m3]","Unbilled Unmetered Consumption [m3]",{"$f":"'Language 3'!C108","v":0},"Consommation Non Mesurée Non Facturée [m3]","Nicht gemessener unentgeltlicher Verbrauch [m3]","Не измеряемое потребление, на которое не выставлен счет [м3]","Tiêu thụ không có đồng hồ, không có hoá đơn [m3]","Konsumsi Tak Bermeter Tak Berekening\n[m3]","Consumo no facturado no medido\n[m3]","Consumo Non Fatturato Non Misurato\n[m3]","Consumo não autorizado não faturado\n[m3]","Nem számlázott, nem mért fogyasztás [m3]","الاستهلاك الغير مسجل والغير موفوتر(م3)","น้ำไม่ผ่านมาตรและไม่เรียกเก็บเงิน \n(ลบ.ม.)","Nefakturisana nemerena potrošnja [m3]","不据表不收费用水（立方米/年）","未收费未计量用水量 [m3]","無水錶計量不收費用水量 [m3]","Consumul nemăsurat nefacturat [m3]","Neobračunata neizmjerena potrošnja [m3]","Konsumi i pa-matur i pa-faturuar [m3]","დაურიცხავი გაუმრიცხველიანებელი მოხმარება[მ3]","Нефактурирана неизмерена консумация (м3)","Neúčtovaná neměřená spotřeba [m3]"]
["Consumption [m3/day]","Consumption [m3/day]",{"$f":"'Language 3'!C109","v":0},"Consommation [m3/jour]","Verbrauch [m3/Tag]","Потребление [м3/год]","Tiêu thụ [m3/ngày]","Konsumsi [m3/hari]","Consumo [m3/día]","Consumo [m3/g]","Consumo [m3/dia]","Fogyasztás [m3/nap]","الاستهلاك (م3\\يوم)","การใช้น้ำ (ลบ.ม./วัน)","Potrošnja [m3/dan]","用水（立法米/天）","用水量 [m3/day]","用水量 [m3/day]","Consumul [m3/zi]","Potrošnja [m3/dan]","Konsumi [m3/ditë] ","მოხმარება[მ3/დღეში]","Консумация (м3/ден)","Spotřeba [m3/den]"]
["Illegal Connections - domestic","Illegal Connections - domestic",{"$f":"'Language 3'!C110","v":0},"Branchements Illégaux - Domestiques","Illegale Anschlüsse - Haushalte","Нелегальная врезка - бытовые","Đấu nối bất hợp pháp - sinh hoạt","Sambungan Ilegal - rumah tangga","Conexiones domésticas ilegales","Allacciamenti Abusivi - domestici","Ligações clandestinas - residenciais","Illegális csatlakozások – háztartási","الوصلات غير القانونية- منزلياً","การลักลอบใช้น้ำ - ประเภทที่อยู่อาศัย","Nelegalni priključci- domaćinstva","非法接驳用戶 - 生活用戶","非法接管－家庭用户","非法接管－家庭用戶","Conexiuni / branşamente ilegale - casnice","Nelegalni priključci - domaćinstva","Kyçjet ilegale - shtëpiake ","უკანონო დაერთებები -საყოფაცხოვრებო","Нелегални отклонения - жилища","Ilegální přípojky - domácnosti"]
["Illegal Connections - others","Illegal Connections - others",{"$f":"'Language 3'!C111","v":0},"Branchements Illégaux - Autres","Illegale Anschlüsse - Andere","Нелегальная врезка - прочие","Đấu nối bất hợp pháp - những sử dụng khác","Sambungan Ilegal - lainnya","Otras conexiones ilegales","Allacciamenti Abusivi - altri","Ligações clandestinas - outras","Illegális csatlakozások – egyéb","الوصلات غير القانونية- اخرى","การลักลอบใช้น้ำ - ประเภทอื่นๆ","Nelegalni priključci- ostali","非法接驳用戶 - 其他","非法接管－其它","非法接管－其他","Conexiuni / branşamente ilegale - altele","Nelegalni priključci - ostali","Kyçjet ilegale - të tjera ","უკანონო დაერთებები - სხვა","Нелегални отклонения - други","Ilegální přípojky - ostatní"]
["Meter tampering, bypasses, etc. at registered customers","Meter tampering, bypasses, etc. at registered customers",{"$f":"'Language 3'!C112","v":0},"Falsification, by-pass etc. de Compteurs d'Abonnés","Manipulationen and den Kundenwasserzählern","Обводн. трубы, фальсиф. показ.и т.п. у зарег-ых потреб-ей","Can thiệp xấu tới đồng hồ: gây nhiễu, lắp thêm ống nhánh… của những khách hàng đã đăng ký","Tampering meter, bypass, dll pada pelanggan resmi","Medidor intervenido, bypass en clientes registrados ","Manomissione contatori, by \npass, ecc. di utenze registrate","Hidrômetros violados, bypasses, etc em clientes registrados","Mérő megpiszkálás, átkötés, stb. regisztrált fogyasztóknál","عبث العدادات وصلات غير قانونيه ..الخ عند المشتركين المسجلين","การทำให้มาตรเสีย, การลักลอบต่อท่อขโมยน้ำ  และอื่นๆ ที่ท่อ ของลูกค้าลงทะเบียน (ใช้น้ำถูกกฎหมาย)","Potrošačko varanje na merenju kod registrovanih potrošača","登記用戶進行破壞水表，旁通等","注册用户之水表破坏、旁通管等","登記用戶之水錶破壞、旁通管等","Falsificarea, ocolirea contorului, etc. la consumatorii înregistraţi","Friziranje brojila, premoštavanje, itd. kod registriranih potrošača","Manipulimet e ujëmatësve, bajpaset, etj. te konsumatorët e regjistruar","მრიცხველი დაზიანება/გვერდის ავლა და ა.შ დარეგისტრირებულ აბონენტებში","Манипулиране водомери, байпаси при регистрирани ползватели","Manipulace měření, bypassy, atd. u registrovaných odběratelů"]
["Charts","Charts",{"$f":"'Language 3'!C113","v":0},"Graphiques","Grafiken","Графики","Các biểu đồ","Charts","Gráficas","Classifiche","Gráficos","Grafikonok","بيانات","แผนภูมิ","Dijagrami","图表","图表","圖表","Grafice","Dijagrami","Diagramet ","ჩარტები","Графики","Grafy"]
["Data Entry","Data Entry",{"$f":"'Language 3'!C114","v":0},"Entrée des Données","Dateneingabe","Ввод данных","Nhập dữ liệu","Data Entry","Datos de entrada","Inserimento Dati","Dados de entrada","Adatok bevitele","ادخال البيانات","การใส่ข้อมูล","Ulazni podatak","数据輸入","数据输入","資料輸入","Introducerea datelor","Unos podataka","Futja e të dhënave ","მონაცემთა შეყვანა","Входни данни","Vkládání dat"]
["Results","Results",{"$f":"'Language 3'!C115","v":0},"Résultats","Ergebnisse","Результаты ","Kết quả","Hasil","Resultados","Risultati","Resultados","Eredmények","النتائج","ผลลัพธ์","Rezultati","计算结果","结果","結果","Rezultate","Rezultati","Rezultatet ","შედეგები","Резултати","Výsledky"]
["Explanations","Explanations",{"$f":"'Language 3'!C116","v":0},"Explications","Erläuterung","Объяснения","Giải thích","Penjelasan","Explicaciones","Spiegazioni","Explicações","Magyarázat","التوضيحات","การอธิบาย","Objašnjenja","解答","说明","說明","Explicaţii","Objašnjenja","Sqarimet","განმარტებები","Обяснения","Vysvětlení"]
["Randomly Selected International Data Set","Randomly Selected International Data Set",{"$f":"'Language 3'!C117","v":0},"Echantillon de Résultats Internationaux","Willkürlich ausgewählte Internationale Werte","Набор международных данных, отобранных выборочно","Bộ dữ liệu quốc tế chọn lọc ngẫu nhiên","Data Internasional Terseleksi Acak","Serie de datos internacionales seleccionada aleatoriamente","Selezione Casuale Internazionale","Dados Internacionais selecionados aleatoriamente","Véletlenül választott nemzetközi adatkészlet","قاعدة البيانات الدولية المختارة عشوائياً","กลุ่มข้อมูลนานาชาติที่สุ่มเลือกมา","Slučajno selektovan internacionalni set podataka","随机挑選的國際數據","随机选取之国际数据库","隨機選取之國際資料庫","Setul de date internaţionale, selectate arbitrar","Nasumice izabran skup međunarodnih podataka","Grupi i të dhënave ndërkombëtare të zgjedhura rastësisht","რანდომულად შერჩეული საერთაშორისო მონაცემების ნაკრები","Случайно избрани международни данни за ВиК","Náhodně vybraný mezinárodní soubor dat"]
["Utility Name:","Utility Name:",{"$f":"'Language 3'!C118","v":0},"Nom : ","Versorgungsbetrieb:","Наименование предприятия:","Tên công ty:","Nama PDAM:","Nombre de la Empresa:","Nome Società:","Nome da Empresa:","Szolgáltató:","اسم الخدمه:","ชื่อหน่วยงานสาธารณูปโภคด้านน้ำ (การประปา)","Preduzeće","水务公司名稱","自来水单位名称：","自來水單位名稱：","Denumirea companiei:","Naziv vodovoda:","Emri i ndërmarrjes: ","საწარმოს დასახელება:","Название на ВиК:","Název provozovatele:"]
["Year:","Year:",{"$f":"'Language 3'!C119","v":0},"Année : ","Jahr:","Год:","Năm:","Tahun:","Año:","Anno:","Ano:","Év:","السنة:","ปี","Godina","年份","年：","年：","Anul:","Godina:","Viti: ","წელი:","Година:","Rok:"]
["Water Losses - Volume and Value (Cost)","Water Losses - Volume and Value (Cost)",{"$f":"'Language 3'!C120","v":0},"Pertes en Eau : Volume et Valeur (Financière)","Wasserverluste - Menge und Wert (Kosten)","Потери воды - Объем и ценность (стоимость) ","Thất thoát nước - Khối lượng và Giá trị (Chi phí)","Kehilangan Air - Volume dan Nilai (Biaya)","Pérdidas de agua - Volumen y costo","Perdite Acqua - Volume e Valore (Costo)","Perdas de água - Volume e valor (custo)","Vízveszteség – mennyiség és érték (költség)","المياه الضائعه-الحجم والقيمة(التكلفة)","น้ำสูญเสีย - ปริมาณและมูลค่า (ต้นทุน)","Gubici vode - Zapremina i Vrednost","水耗损 - 量和值","水损失－体积及价值（成本）","損失水量－體積及價值（成本）","Pierderi de apă – Volumul şi valoarea (costul)","Gubici vode - količina i vrijednost (trošak)","Humbjet e ujit - sasia dhe vlera (kostoja) ","წყლის დანაკარგები - მოცულობა და ღირებულება (ხარჯი)","Водни загуби-Обем и стойност (разходи)","Ztráty vody - objem a hodnota (náklady)"]
["International Benchmarking","International Benchmarking",{"$f":"'Language 3'!C121","v":0},"Benchmarking International","Internationales Benchmarking","Международный сопоставительный анализ показателей","Benchmarking quốc tế","Benchmarking Internasional","Comparación internacional","Comparazione Internazionale","Referências Internacionais","Nemzetközi összehasonlítás","نقطة المرجعيه الدولية","การกำหนดมาตรฐานเปรียบเทียบของนานาชาติ","Međunarodno poređenje","国际基准","国际基准","國際基準","Analiza comparativă cu indicatorii internaţionali (Benchmarking)","Međunarodna usporedba","Krahasimi ndërkombëtar ","საერთაშორისო ბენჩმარკინგი","Международен бенчмаркинг","Mezinárodní benchmarking"]
[null,null,null,null,null,null,null,null,null,0,0,null,null,null,null,null,null,null,null,0,null,null,null,0]
["Physical Loss Assessment Matrix","Physical Loss Assessment Matrix",{"$f":"'Language 3'!C123","v":0},"Matrice des Caractéristiques des Pertes Réelles","Wasserverlustkategorien","Матрица оценки физических потерь","Bảng đánh giá thất thoát cơ học","Matrix Perhitungan Kehilangan Air Fisik","Matriz de evaluación de la pérdidas reales (físicas)","Matrice Valutazione Perdita Tecnica","Matriz de Avaliação de Perdas Reais","Fizikai veszteség értékelési mátrix","مصفوفة الفاقد الحقيقي المسانده","ตัวเลขการประเมินน้ำสูญเสียที่เกิดจริง","Matrica procene fizičkih gubitaka","实際損失評價模型","实际损失水量评估矩阵","實際損失水量評估矩陣","Matricea de evaluare a pierderilor fizice","Matrica za procjenu fizičkih gubitaka","Matrica e vlerësimit të humbjeve fizike ","ფიზიკური დანაკარგების შეფასების მატრიცა","Матрица за оценка на физическите загуби","Matice posouzení reálných ztrát"]
["Technical Performance Category","Technical Performance Category",{"$f":"'Language 3'!C124","v":0},"Catégorie de Performance Technique","Technische Wasserverlust- kategorie","Категория технических характеристик","Nhóm tác nghiệp kỹ thuật","Kategori Kinerja Teknis","Categoría técnica de desempeño ","Categoria Prestazione Tecnica","Categoria de performance técnica","Technikai teljesítmény kategória","فئة الاداء الفني","ประเภทของการดำเนินการทางวิชาการ","Kategorija tehničke performanse","技術性能類別","技术性能分类","技術績效分類","Categoria de performanţă tehnică","Kategorije tehničke uspješnosti","Kategoria e performancës teknike ","ტექნიკური მახასიათებლების კატეგორია","Категории за техническо изпълнение","Kategorie technického výkonu"]
["Litres/connection/day ","Liters/connection/day ",{"$f":"'Language 3'!C125","v":0},"Litres/branchement/Jour","Liter/Hausanschluss/Tag","литры/отводящая линия/сутки ","Lít/đấu nối/ngày","Liter/sambungan/hari","Litros/conexión/día","Litri/allacciamento/g","litros/ligação/dia","Liter/csatlakozás/nap","لتر\\وصلة\\يوم","ลิตร/ราย/วัน","Litara/prikljuku/dan","公升/接驳用戶/天","升/接户管/日","公升/接管/日","Litri/branşament/zi","Litara/priključak/dan","Litra/kyçje/ditë ","ლიტრი/დაერთება/დღეში","литри/сгр. Отклонение/ден","Litr/přípojka/den"]
["(when the system is pressurised) at an average pressure of:","(when the system is pressurized) at an average pressure of:",{"$f":"'Language 3'!C126","v":0},"(quand le réseau est sous pression)\nà une pression moyenne de :","(bei kontinuierlicher Versorgung) bei einem mittleren Versorgungsdruck von:","(когда система под давлением) при среднем давлении:","(khi hệ thống được điều áp) tại mức áp lực trung bình : ","(saat jaringan bertekanan) pada tekanan rata-rata:","(cuando el sistema está presurizado) a una presión promedio de:","(con sistema in pressione) a una pressione media di:","(quando o sistema está pressurizado) numa pressão média de:","(amikor a rendszer nyomás alatt van) átlagos nyomáson:","عندما تكون الشبكه مضغوطه )على معدل الضغط ","(เมื่อเพิ่มแรงดันในระบบ) ที่ความดันเฉลี่ยของ :","(kada je sistem pod pritiskom) pri prosečnom pritisku od:","平均水壓（當系統加壓）","平均水压（如系统在加压状况下）：","平均水壓（如系統在加壓狀況下）：","(când sistemul este sub presiune) la o presiune medie de:","(kad je sistem pod pritiskom) uz prosječan pritisak od:","(kur sistemi është nën presion) me një mesatare të presionit prej: ","(როცა სისტემა წნევის ქვეშაა) საშუალო წნევაზე:","(когато системата е под налягане) средно налягане от:","(když je systém natlakovaný) v průměrném tlaku z:"]
["Back to Indicators","Back to Indicators",{"$f":"'Language 3'!C127","v":0},"Retour aux Indicateurs","Zurück zu den Kennzahlen","Возврат к показателям","Quay lại phần Các chỉ số","Kembali ke Indikator","Regresar a los indicadores","Ritorno a Indicatori","Voltar aos indicadores","Vissza a mutatókhoz","بالعودة للمؤشرات","กลับสู่ตัวชี้วัด","Povratak na indikatore","返回指標","回到指标","回到指標","Înapoi la indicatori","Povratak na pokazatelje","Kthim te treguesit ","დავუბრუნდეთ ინდიკატორებში","Обратно към индикаторите","Zpět k ukazatelům"]
["Home","Home",{"$f":"'Language 3'!C128","v":0},"Accueil","Start","В начало","Trang chủ","Kembali","Inicio","Inizio","Início","Címlap","المنزل","กลับไปที่หัวข้อเรื่อง ","Start","返回","首页","首頁","Pagina principală","Početna strana","Fillimi ","სტარტი","Home","Domů"]
["Further loss reduction may be uneconomic unless there are shortages; careful analysis needed to identify cost effective improvement","Further loss reduction may be uneconomic unless there are shortages; careful analysis needed to identify cost effective improvement",{"$f":"'Language 3'!C129","v":0},"Des réductions supplémentaires des pertes peuvent ne pas être économiques, hormis en cas de manque d'eau; une analyse détaillée est nécessaire pour en identifier l'intérêt économique réel","Weitere Verlustreduktion könnte unökonomisch sein, umfangreiche Analyse notwendig um einen Zielwert zu bestimmen","Дальнейшее сокращение потерь м.б. неэкономичным за исключением случаев дефицита; необходим тщат-ый анализ для опред-ия экономически эффективного улучшения","Tiếp tục giảm thất thoát hơn nữa có thể không kinh tế, trừ khi có sự khan hiếm nước sạch; cần phân tích kỹ để xác định biện pháp nâng cao hiệu quả chi phí ","Upaya penurunan kehilangan air tidak ekonomis kecuali ada kekurangan pasokan; analisis yang cermat diperlukan untuk identifikasi perbaikan yang ekonomis","La reducción adicional de las pérdidas puede ser antieconómica, aunque, se presenten racionamientos. Se requiere de un análisis cuidadoso para identificar las medidas de mejoramiento costo efectivas.","Riduzione Ulteriore Perdita può non essere economica salvo scarsità acqua; necessaria analisi approfondita per valutazione convenienza","Redução adicional de perda pode não ser econômica, ao menos que haja insuficiência de abastecimento; são necessárias análises mais criteriosas para identificar o custo de melhoria efetiva","További veszteség csökkentés nem gazdaságos, hacsak nincs hiány. Alapos elemzés szükséges a költséghatékonyság növeléséhez.","خفض الفاقد قد يكون غير ذا جدوى اقتصادية, إلا في حالة الفقر الشديد للمياه,\n التحليل الاقتصادي الحذر للجدوى يجب أن يتقارن مع التوفير\n","การลดน้ำสูญเสียต่อไปอาจไม่คุ้มค่าในเชิงเศรษฐศาสตร์  หากไม่มี ปัญหาการขาดแคลนน้ำ; ควรมีการวิเคราะห์อย่างรอบคอบเพื่อ ระบุเรื่องการปรับปรุงลดน้ำสูญเสียแบบมีประสิทธิภาพด้านต้นทุน","Dalja redukcija gubitaka može biti neekonomična ukoliko nema nedostatka vode; neophodna je pažljiva analiza da se identifikuju ekonomski smislena poboljšanja.","除非有水量的短缺，以及仔细的分析和判断能够有效成本，否则持续减漏将不经济","除非水资源短缺，否则进一步降低漏损可能不经济；有必要审慎分析，以确认是否具有成本效益。","除非水資源短缺，否則進一步降低漏水量可能不經濟；有必要審慎分析，以確認是否具有成本效益。","Reducerea în continuare a pierderilor poate fi nerentabilă, cu excepţia cazurilor cand nu poate fi asigurat necesarul de apă ; este necesară o analiză detaliată pentru identificarea masurilor de îmbunătăţire eficiente din punct de vedere al costurilor","Daljnje smanjivanje gubitaka može biti neekonomično osim ako postoji nedostatak vode; pažljivom analizom potrebno je identificirati troškovno efikasna poboljšanja","Zvogëlimi i mëtejshëm i humbjeve mund të mos jetë ekonomik përpos në rastet kur ka mungesë të ujit; janë të domosdoshme analiza të kujdesshme për të identifikuar përmirësimin sa më ekonomik-kosto efektiv ","დანაკარგების შემცირება შესაძლოა იყოს არაეკონომიური (იმ შემთხვევების გარდა როცა გვაქვს წყლის დეფიციტი); საჭიროა ანალიზი ხარჯთეფექტურობის დასადგენად. ","По-нататъшно намаление на загубите може да е икономически неизгодно докато има недостиг; необходим е анализ за да се определят икономически изгодните подобрения.","Budoucí redukce ztrát může být neekonomická ledaže jsou zde nedostatky; je potřebná pečlivá analýza k identifikaci zlepšení efektivity nákladů"]
["Potential for marked improvements; consider   pressure management; better active leakage control practices, and better network maintenance","Potential for marked improvements; consider   pressure management; better active leakage control practices, and better network maintenance",{"$f":"'Language 3'!C130","v":0},"Potentiel d'amélioration intéressant; gestion de la pression, meilleures pratiques de suivi des fuites, et meilleure maintenance du réseau","Potenzial für substanzielle Verlustreduktion vorhanden, Druckmanagement in die Überlegungen einbeziehen, Lecksuche öfter und intensiver durchführen, bessere Vorbeugende Wartung.","Потенциал для обозначенных улучшений; учет управления давлением; активный контроль над утечками, и более качественное обслуживание сети ","Tiềm năng cải thiện rõ rệt; xem xét việc quản lý áp lực; cải thiện các biện pháp kiểm soát rò rỉ chủ động, và bảo dưỡng mạng tốt hơn","Potensial untuk dilakukan perbaikan; coba pengaturan tekanan; penanganan kebocoran secara aktif, dan peningkatan pemeliharaan jaringan","Potencial de mejoramiento interesante. Considere la gestión de presiones, unas mejores prácticas para el  control activo de pérdidas y un mejor mantenimiento del sistema.","Potenziale per miglioramenti; considerare gestione pressione, migliore operazioni di controllo attivo perdita e migliore manutenzione","Potencial para melhorias significativas; considerar o gerenciamento de pressão; práticas melhores de controle ativo de vazamentos, e uma melhor manutenção da rede","Észrevehető javulás lehetséges; megfontolandó a nyomás menedzsment; jobb aktív veszteség ellenőrző gyakorlat és a jobb hálózat karbantartás bevezetése","التحسينات على خفض الفاقد , تشمل إدارة الضغوط  إضافة إلى ممارسة المسح الميداني ,والتحسين في صيانة الشبكة.\n","ศักยภาพสำหรับการปรับปรุงลดน้ำสูญเสียอย่างเด่นชัด; คำนึงถึง การบริหารจัดการด้านแรงดันน้ำ, ดำเนินการควบคุมน้ำสูญเสีย แบบมีประสิทธิภาพมากขึ้น และการบำรุงรักษาเครือข่ายระบบ ประปาให้ดีขึ้น","Potencijal za značajna poboljšanja: uteti u razmatranje redukciju pritiska; bolja praksa aktivne kontrole curenja i bolje održavanje vodovodne mreže","有潜力显著的改进；考虑应用压力管理，实行更有效泄漏控制，和更有效网线维修","具有显著改善之潜力，应考虑水压管理，需要较佳之积极漏损控制及管网维护。","具有顯著改善之潛力，應考量水壓管理，需要較佳之主動漏水防制措施及管網維護。","Exista potenţial pentru îmbunătăţiri substanţiale; aveti in vedere managementului presiunii, practici mai bune de control activ al pierderilor şi o întreţinere mai bună a reţelei","Potencijal za znatna poboljšanja; razmotriti kontrolu pritisaka; bolja aktivna kontrola curenja i bolje održavanje mreže","Potenciali për përmirësime të konsiderueshme; duhet marrë parasysh menaxhimin e presionit; praktika aktive më të mira për kontrollin e rrjedhjeve, dhe mirëmbajtje më e mirë e rrjetit","პოტენციალი აღნიშნული გაუმჯობესებებისთვის; გაითვალისწინეთ წნევის მენეჯმენტი;უმჯობესია დაჟონვების აქტიური კონტროლი და ქსელის უკედ მოვლა პატრონობა","Потенциал за подобрения, управление на налягането; по добри практики за контрол на течове и по добра експлоатация на мрежата.","Potenciál pro značné zlepšení; zvážit řízení tlakových poměrů; lepší praktikování aktivní kontroly ztrát a lepší údržba sítě"]
["Poor leakage record; tolerable only if water is plentiful and cheap; even then, analyze level and nature of leakage and intensify leakage reduction efforts","Poor leakage record; tolerable only if water is plentiful and cheap; even then, analyze level and nature of leakage and intensify leakage reduction efforts",{"$f":"'Language 3'!C131","v":0},"Fuites importantes; situation acceptable seulement en cas d'abondance de la ressource à coût réduit;  l'analyse du niveau et du type de fuites et l'intensification des efforts pour leur réduction restent nécessaires.","Schlechtes und unzureichendes Leckverlustmanagement, akzeptable nur falls Wasser ausreichend und sehr billig vorhanden, Analyse für die Gründe der hohen Verluste empfehlenswert.","Слабый учет утечек; терпимо только при обильных водных ресурсах и дешевой стоимости ; но при этом, нужен анализ уровня и характера утечек и усиление мер по сокращ. объемов утечек","Ghi chép số liệu rò rỉ kém; chỉ chấp nhận được khi nước dồi dào và chi phí thấp; kể cả như vậy cũng phải phân tích mức độ và bản chất rò rỉ đồng thời tăng cường nỗ lực giảm rò rỉ","Pencatatan kebocoran yang buruk; hanya dapat ditoleransi bila airnya berlimpah dan murah; meskipun begitu, harus tetap dianalisis tingkat dan penyebab kebocoran dan intensifkan upaya penurunan kebocoran","El nivel de pérdidas es importante. Esta situación es tolerable sólo si el agua es barata y en exceso. Aun así, analice el nivel y naturaleza de las pérdidas e intensifique los esfuerzos por su reducción.","Registrazioni perdite scarse, accettabile solo se acqua economica e grandi quantità; nondimeno analizzare livello/natura perdita e intensificare riduzione perdita","Registro deficiente de vazamentos; tolerável somente se a água é abundante e barata; mesmo assim, analise o nível e a natureza dos vazamentos e intensifique os esforços para redução de vazamentos","Rossz szivárgási adat; csak olcsó és bőséges vízkészlet esetén tolerálható, egyébként analizálja a szivárgás szintjét és természetét és intenzívebb szivárgás csökkentő lépéseket tegyen.","السجل السيئ لتسربات الشبكة من الممكن التغاضي عنه, إذا كان هنالك تكلفه بسيطة لسعرالمياه أضافه إلى ووفرتها, تحليل مستوى التسرب وطبيعته يجب إن تترافق مع الجهد لخفض الفاقد\n","ประวัติไม่ดีเรื่องน้ำรั่วไหล; ยอมรับได้ถ้าน้ำมีมากและราคาถูก  แต่ กระนั้นก็ตาม  ควรมีการวิเคราะห์ระดับและลักษณะของการรั่วไหล และเร่งรัดความพยายามลดการรั่วไหล","Loša evidencija kvarova; dopušteno samo ako vode ima dovoljno i ako je jeftina; čak i tada, analizirajte nivo i prirodu curenja i intenzivirajte napore na pronalaženju kvarova","泄漏记录不全；如果水源充足并且廉宜尚可被接受；虽然如此，还必须分析泄漏的水平和性质并尽力加强削减泄漏工作","不良之漏水纪录，只有在自来水量丰价廉下才可容忍，即使如此，仍应分析漏水之数量及性质，并加强漏损控制。","不良之漏水紀錄，只有在自來水量豐價廉下才可容忍，即使如此，仍應分析漏水之數量及性質，並加強漏水防制。","Inregistrare nesatisfăcătoare a pierderilor; situaţie acceptabilă doar în cazul abundenţei resurselor de apă şi a costului mic; chiar şi în astfel de cazuri însă este nevoie de o analiză a nivelului şi naturii pierderilor şi de o intensificare a măsurilor de reducere a acestora","Loša kontrola curenja; tolerira se samo ako je voda jeftina i ima je u izobilju; čak i tada je potrebno analizirati nivo i prirodu curenja i intenzivirati napore za njihovo smanjenje","Evidentim i mangët i rrjedhjeve; e lejueshme vetëm nëse ka ujë të mjaftueshëm dhe uji është i lirë; edhe në këtë rast, analizo nivelin dhe natyrën e rrjedhjes dhe intensifiko përpjekjet për reduktimin e rrjedhjeve","გაჟონვების არასწორი აღრიცხვა; ასატანია იმ შემთხვევაში თუ წყალი არის დიდი რაოდენობით და იაფი; საჭიროა დანაკარგების დონის ანალიზი და ძალისხმევა გაჟონვების შემცირებაზე.","Недостатъчен архив на течовете, толерирани когато водата е в излишък и доставката и е много евтина; дори тогава трябва да се анализира нивото и естеството на течове и интензивността наусилията за намаляването им.","Špatná evidence ztrát; snesitelná pouze tehdy je-li vody dostatek a je levná; dokonce i tehdy analyzovat úroveň ztrát a povahu úniků a zintenzivnit úsilí o snižování ztrát"]
["Horrendously inefficient use of resources; leakage reduction programs imperative and high priority","Horrendously inefficient use of resources; leakage reduction programs imperative and high priority",{"$f":"'Language 3'!C132","v":0},"Inefficacité flagrante dans l'utilisation des ressources; programme de réduction des fuites impératif et prioritaire","Höchst ineffizienter Umgang mit den Ressourcen, Leckverlustreduktion umgehend durchführen.","Совершенно неэффект. исп-ие ресурсов; программы по сокращ. утечек обязательны и имеют высок. приоритет ","Sử dụng các nguồn lực quá kém hiệu quả; các chương trình giảm rò rỉ chắc chắn có lợi và cần được ưu tiên cao","Pemborosan sumber daya secara yang luar biasa; program penurunan kebocoran harus diprioritaskan","El uso de los recursos es terriblemente ineficiente. Los programas de reducción de pérdidas son imperativos y de alta prioridad.","Utilizzo risorse molto insufficiente; alta priorità per programmi di riduzione perdite ","Uso muito ineficiente dos recursos; programa de redução de vazamentos é imperativo e altamente prioritário","Förtelmesen szakszerűtlen használata az erőforrásoknak. Szivárgás csökkentő program indítása sürgős és kiemelt fontosságú.","الاستخدام السيئ والغير فعال للمصادر:برامج خفض الفاقد اساسيه ولها الاولويه القصوى","การใช้ทรัพยากรน้ำอย่างไม่มีประสิทธิภาพ  ทำให้โครงการลดน้ำ รั่วไหลเป็นสิ่งที่จำเป็น และมีความสำคัญในระดับสูง","Vrlo neefikasno korišćenje resursa; Kampanja redukcije gubitaka je imperativ i visoko prioritetna","以惊人低效率使用物资；必须优先和强制处理削减泄漏方案","水资源利用严重缺乏效率，急须漏损控制计划且优先实施。","水資源利用嚴重缺乏效率，急須降低漏水計畫且優先實施。","Utilizare a resurselor absolut ineficientă; programele de reducere a pierderilor sunt obligatorii şi au un nivel înalt de prioritate","Strahovito neefikasno korištenje resursa; program za smanjenje curenja je imperativ i visoko prioritetan","Shfrytëzim shumë i keq dhe jo-efiçient i resurseve; të domosdoshme dhe me prioritet të lartë programet për reduktimin e rrjedhjeve","რესურსების მეტად არაეფექტურად გამოყენება; პროგრამებს გაჟონვების შესამცირებლად არქვს დიდი მნიშვნელობა და პრიორიტეტი","Изключително неефективно използване на ресурсите; програма за редуциране на загубите е зафължителна и от висок приоритет","Strašně neefektivní využívání vodních zdrojů; programy na snížení ztrát nutností s vysokou prioritou"]
["1.) WB-EasyCalc was designed in 2006 to help water utilities and consultants to properly apply the IWA Water Loss Specialist Group Methodology. During the last 10 years it has become the preferred NRW analysis tool for water utilities around the world. To celebrate its 10th anniversary, version 5 has been launched in August 2016. ","1.) WB-EasyCalc was designed in 2006 to help water utilities and consultants to properly apply the IWA Water Loss Specialist Group Methodology. During the last 10 years it has become the preferred NRW analysis tool for water utilities around the world. To celebrate its 10th anniversary, version 5 has been launched in August 2016. ",{"$f":"'Language 3'!C133","v":0},"1.) WB-EasyCalc was designed in 2006 to help water utilities and consultants to properly apply the IWA Water Loss Specialist Group Methodology. During the last 10 years it has become the preferred NRW analysis tool for water utilities around the world. To celebrate its 10th anniversary, version 5 has been launched in August 2016. ","1.) WB-EasyCalc wurde 2006 entwickelt um Wasserversorgern und Consultants zuhelfen, die IWA Water Loss Specialist Group Methodik korrekt anzuwenden. In den letzten 10 Jahren wurde es zum weltweit bevorzugten Wasserverlust-Analysewerkzeug. Rechzeitig zum zehnten Geburtstag wurde Version 5 veröffentlicht. ","1.) WB-EasyCalc was designed in 2006 to help water utilities and consultants to properly apply the IWA Water Loss Specialist Group Methodology. During the last 10 years it has become the preferred NRW analysis tool for water utilities around the world. To celebrate its 10th anniversary, version 5 has been launched in August 2016. ","1.) WB-EasyCalc was designed in 2006 to help water utilities and consultants to properly apply the IWA Water Loss Specialist Group Methodology. During the last 10 years it has become the preferred NRW analysis tool for water utilities around the world. To celebrate its 10th anniversary, version 5 has been launched in August 2016. ","1.) WB-EasyCalc was designed in 2006 to help water utilities and consultants to properly apply the IWA Water Loss Specialist Group Methodology. During the last 10 years it has become the preferred NRW analysis tool for water utilities around the world. To celebrate its 10th anniversary, version 5 has been launched in August 2016. ","1.) WB-EasyCalc se desarrolló en 2006 para ayudar a las empresas de agua y consultores en la aplicación correcta de la metodología del Grupo Especialista de pérdidas de agua de la IWA. Durante los últimos 10 años esta aplicación se ha convertido en la herramienta de análisis preferida por las empresas de agua al rededor del mundo. Para celebrar su décimo aniversario se ha lanzado la versión 5 en Agosto de 2016. ","1.) WB-EasyCalc was designed in 2006 to help water utilities and consultants to properly apply the IWA Water Loss Specialist Group Methodology. During the last 10 years it has become the preferred NRW analysis tool for water utilities around the world. To celebrate its 10th anniversary, version 5 has been launched in August 2016. ","1.) WB-EasyCalc was designed in 2006 to help water utilities and consultants to properly apply the IWA Water Loss Specialist Group Methodology. During the last 10 years it has become the preferred NRW analysis tool for water utilities around the world. To celebrate its 10th anniversary, version 5 has been launched in August 2016. ","1.) WB-EasyCalc was designed in 2006 to help water utilities and consultants to properly apply the IWA Water Loss Specialist Group Methodology. During the last 10 years it has become the preferred NRW analysis tool for water utilities around the world. To celebrate its 10th anniversary, version 5 has been launched in August 2016. ","1.) WB-EasyCalc was designed in 2006 to help water utilities and consultants to properly apply the IWA Water Loss Specialist Group Methodology. During the last 10 years it has become the preferred NRW analysis tool for water utilities around the world. To celebrate its 10th anniversary, version 5 has been launched in August 2016. ","1.) WB-EasyCalc was designed in 2006 to help water utilities and consultants to properly apply the IWA Water Loss Specialist Group Methodology. During the last 10 years it has become the preferred NRW analysis tool for water utilities around the world. To celebrate its 10th anniversary, version 5 has been launched in August 2016. ","1.) WB-EasyCalc was designed in 2006 to help water utilities and consultants to properly apply the IWA Water Loss Specialist Group Methodology. During the last 10 years it has become the preferred NRW analysis tool for water utilities around the world. To celebrate its 10th anniversary, version 5 has been launched in August 2016. ","1.) WB-EasyCalc was designed in 2006 to help water utilities and consultants to properly apply the IWA Water Loss Specialist Group Methodology. During the last 10 years it has become the preferred NRW analysis tool for water utilities around the world. To celebrate its 10th anniversary, version 5 has been launched in August 2016. ","1.) WB-EasyCalc was designed in 2006 to help water utilities and consultants to properly apply the IWA Water Loss Specialist Group Methodology. During the last 10 years it has become the preferred NRW analysis tool for water utilities around the world. To celebrate its 10th anniversary, version 5 has been launched in August 2016. ","1.) WB-EasyCalc was designed in 2006 to help water utilities and consultants to properly apply the IWA Water Loss Specialist Group Methodology. During the last 10 years it has become the preferred NRW analysis tool for water utilities around the world. To celebrate its 10th anniversary, version 5 has been launched in August 2016. ","1.) WB-EasyCalc was designed in 2006 to help water utilities and consultants to properly apply the IWA Water Loss Specialist Group Methodology. During the last 10 years it has become the preferred NRW analysis tool for water utilities around the world. To celebrate its 10th anniversary, version 5 has been launched in August 2016. ","1.) WB-EasyCalc was designed in 2006 to help water utilities and consultants to properly apply the IWA Water Loss Specialist Group Methodology. During the last 10 years it has become the preferred NRW analysis tool for water utilities around the world. To celebrate its 10th anniversary, version 5 has been launched in August 2016. ","1.) WB-EasyCalc was designed in 2006 to help water utilities and consultants to properly apply the IWA Water Loss Specialist Group Methodology. During the last 10 years it has become the preferred NRW analysis tool for water utilities around the world. To celebrate its 10th anniversary, version 5 has been launched in August 2016. ","1.) WB-EasyCalc was designed in 2006 to help water utilities and consultants to properly apply the IWA Water Loss Specialist Group Methodology. During the last 10 years it has become the preferred NRW analysis tool for water utilities around the world. To celebrate its 10th anniversary, version 5 has been launched in August 2016. ","1.) WB-EasyCalc was designed in 2006 to help water utilities and consultants to properly apply the IWA Water Loss Specialist Group Methodology. During the last 10 years it has become the preferred NRW analysis tool for water utilities around the world. To celebrate its 10th anniversary, version 5 has been launched in August 2016. ","1.) WB-EasyCalc byl navržen v roce 2006 jako pomoc vodárenským společnostem a konzultantům ke správné aplikace metodiky IWA od skupiny specialistů pro vodní ztráty. V posledních 10-ti let se tento nástroj stal preferovaným nástrojem pro analýzu VNF v celém světě. K oslavě 10. výročí byla dána k dispozici verze 5 v 08/2016"]
["2.) The pre-set Language is English using the IWA terminology. If you would like to use the World Bank favoured terms \"Physical Losses\" and \"Commercial Losses\" instead of the IWA terms \"Real Losses\" and \"Apparent Losses\" click on the button \"change language\" and select code 2.","2.) The pre-set Language is English using the IWA terminology. If you would like to use the World Bank favored terms \"Physical Losses\" and \"Commercial Losses\" instead of the IWA terms \"Real Losses\" and \"Apparent Losses\" click on the button \"change language\" and select code 2.",{"$f":"'Language 3'!C134","v":0},"2.) La langue par défaut est l'anglais, avec la terminologie de l'IWA. Si vous souhaitez utiliser la terminologie anglaise de la Banque Mondiale plutôt que celle de l'IWA (par exemple \"Physical Losses\" au lieu de \"Real Losses\", cliquez sur le bouton \"Changer de Langue\" et sélectionnez le code 2.","2.) Die voreingestellte Sprache ist Englisch und verwendet die IWA Terminologie. If you would like to use the World Bank favored terms \"Physical Losses\" and \"Commercial Losses\" instead of the IWA terms \"Real Losses\" and \"Apparent Losses\" click on the button \"change language\" and select code 2.","2.) Заданным языком является английский, исп-ый для терминологии МВА. Если Вы хотите исп-ть термины Всемирного Банка \"Физические потери\" и \"Коммерческие потери\" вместо терминов, принятых МВА, \"Реальные потери\" и \"Очевидные потери\", нажмите на окно \"изменить язык\" и выберите код 2.","2.) Ngôn ngữ cài đặt trước là tiếng Anh, sử dụng hệ thống thuật ngữ của IWA. Nếu bạn muốn sử dụng các thuật ngữ của WB \"Thất thoát cơ học\" và \"Thất thoát thương mại\" thay vì sử dụng các thuật ngữ của IWA \"Thất thoát thực sự\" và \"Thất thoát không thực sự \", ấn vào nút \"thay đổi ngôn ngữ\" và lựa chọn code 2","2.) Bahasa asli dalam Bahasa Inggris menggunakan terminologi IWA. Jika ingin menggunakan istilah Bank Dunia \"Physical Losses\" dan \"Commercial Losses\" dan bukannya istilah IWA \"Real Losses\" dan \"Apparent Losses\" klik pada \"ganti bahasa\" dan pilih Kode 2","2.) El idioma pre-establecido es el inglés con la terminología de la IWA. Si usted desea emplear los términos preferidos por el Banco Mundial de \"Pérdidas físicas\" y \"Pérdias comerciales\" en lugar de los términos \"Pérdidas reales\" y \"Pérdidas aparentes\" vaya al botón \"cambio de idioma\" y seleccione el código 2.","2.) Lingua predefinita Inglese + terminologia IWA. Se preferita World Bank termini \"Physical Losses\" e \"Commercial Losses\" invece di IWA \"Real Losses\" e \"Apparent Losses\" click su \"Change language\" e selezione codice 2.","2.) A língua pré-definida é o Inglês, utilizando a terminologia da IWA. Se desejar utilizar os termos preferenciais do Banco Mundial \"Physical Losses\" e \"Commercial Losses\", ao invés dos termos da IWA \"Real Losses\" e \"Apparent Losses\", clique no botão \"Change Language\" e selecione o código 2.","2, Az előre beállított nyelv az angol. Ha a Világ Bank terminológiáját „Fizikai veszteség” és „Kereskedelmi veszteség” favorizálod az IWA „Valódi veszteség” és „Látszólagos veszteség” fogalmak helyett, kattints a CHANGE LANGUAGE-ra és használd a 2. kódot a nyelv választásakor ","إن اللغة الأساسية المعتمدة لمصطلحات (IWA) هي الانجليزية , إذا أردت استخدام مصطلحات البنك الدولي مثل الفاقد الفيزيائي والفاقد التجاري بدلاعن مصطلحات (IWA) مثلا الفاقد الحقيقي , والفاقد الظاهر اضغط على   Chang languge \n","2.) มีการกำหนดให้ใช้ภาษาอังกฤษ  ซึ่งใช้ระบบคำศัพท์ของ IWA\n หากคุณต้องการใช้คำของธนาคารโลก เช่นคำว่า \"น้ำสูญเสียหลัก\"\n และ \"น้ำสูญเสียรอง\" แทนคำของ IWA ที่ใช้ \"น้ำสูญเสียที่เกิดจริง\"\n และ \"น้ำสูญเสียที่ดูเหมือนจริง\" โปรดกดปุ่ม \"เปลี่ยนภาษา\" และ\n เลือกรหัสหมายเลข 2","2.) Podešavanje jezika aplikacije je engleski sa IWA terminologijom. Ako želite da koristite terminologiju Svetske banke \"Fizički gubici\" i \"Komercijalni gubici\" umesto IWA termina \"Pravi gubici\" i \"Prividni gubici\" kliknite na dugme \"Promeni jezik\" i selektujte kod 2","2.)预先安装的语文是英语并沿用国际水务协会的术语名词。如果您选择应用世界银行所采纳的名词\"物质损失\"和\"账面损失\"，而不是国际水务协会通用的\"实质损失\"和\"外观损失”，请击\"change language\"按钮和选择code 2","2.)本软件之预设语言为使用国际水协会(IWA)专用术语之英语，欲使用世界银行(World Bank)惯用之术语「具体损失水量」(Physical Losses)及「商业损失水量」(Commercial Losses)，而非国际水协会之「实际损失水量」(Real Losses)及「表观损失水量」(Apparent Losses)者，可点选「change language」按键，并选择２号语言。","2.)本軟體之預設語言為使用國際水協會(IWA)專用術語之英語，欲使用世界銀行(World Bank)慣用之術語「具體損失水量」(Physical Losses)及「商業損失水量」(Commercial Losses)，而非國際水協會之「實際損失水量」(Real Losses)及「表面損失水量」(Apparent Losses)者，可點選「change language」按鍵，並選擇２號語言。","2.) Limba prestabilită este limba engleză şi se foloseşte terminologia IWA. Dacă Dvs. doriţi să folosiţi termenii Băncii Mondiale „Pierderi Fizice” şi „Pierderi Comerciale” în locul termenilor IWA „Pierderi reale” şi „Pierderi Aparente” actionaţi  „Modifică limba” şi selectaţi codul 2.","2.) Početni jezik je engleski sa IWA terminologijom. Ako želite koristiti termine Svjetske banke \"Fizički gubici\" i \"Komercijalni gubici\" umjesto IWA termina \"Stvarni gubici\" i \"Prividni gubici\" kliknite na polje \"change language\" i izaberite šifru 2.","2.) Gjuha e para-caktuar është ajo Angleze me përdorim të terminologjisë së IWA. Nëse dëshironi që të përdorni terminologjinë e Bankës Botërore si \"Humbjet Fizike\" dhe \"Humbjet Komerciale\" kliko në tastin \"Ndrysho gjuhën\" dhe përzgjedh kodin 2.","1) საწყისი ენა არის ინგლისური, რომელშიც გამოყენებულია  IWA-ის ტერმინოლოგია. თუ გსურთ მსოფლიო ბანკის ტერმინების \"ფიზიკური დანაკარგების\" და \"კომერციული დანაკარგების\" გამოყენება \"რეალური დანაკარგებისა\" და \"აშკარა დანაკარგების\" ნაცვლად, დააჭირეთ ღილაკს \"ენის შეცვლა\" და აირჩიეღ კოდი 2.","2.) Основния език е английски използвайки терминологията на МВА (IWA). Ако желаете да използвате термините нс СБ (WB) \"Физически загуби\" и \"Търговски загуби\" вместо термините на МВА (IWA) \"Реални загуби\" и \"очевидни загуби\" натриснете бутона \"смени езика\" и изберете код 2 ","2.) Přednastavený jazyk je angličtina používající terminologii IWA. Jestliže chce použít termíny užívané Světovou bankou \"Physical Losses\" and \"Commercial Losses\" namísto termínů IWA \"Real Losses\" a \"Zdánlivé ztráty\", klikněte na tlačítko \"change language\" a zvolte kód 2"]
["3.) In the World Bank Terminology, the IWA terms \"UARL - Unavoidable Annual Volume of Real Losses\" and \"CARL - Current Annual Volume of Real Losses\" were replaced with the World Bank favoured terms \"MAPL - Minimum Achievable Annual Volume of Physical Losses\" and \"CAPL - Current Annual Volume of Physical Losses\". However, the underlying formula remained of course unchanged.","3.) In the World Bank Terminology, the IWA terms \"UARL - Unavoidable Annual Volume of Real Losses\" and \"CARL - Current Annual Volume of Real Losses\" were replaced with the World Bank favored terms \"MAPL - Minimum Achievable Annual Volume of Physical Losses\" and \"CAPL - Current Annual Volume of Physical Losses\". However, the underlying formula remained of course unchanged.",{"$f":"'Language 3'!C135","v":0},"3.) Dans la terminologie (anglaise) de la Banque Mondiale, les termes de l'IWA \"UARL - Unavoidable Annual Volume of Real Losses\" et \"CARL - Current Annual Volume of Real Losses\" ont été remplacés par \"MAPL - Minimum Achievable Annual Volume of Physical Losses\" et \"CAPL - Current Annual Volume of Physical Losses\". Toutefois, les formules restent bien sûr inchangées.","3.) Wenn \"World Bank Terminology\" gewählt wird, werden die IWA Begriffe \"UARL - Unavoidable Annual Volume of Real Losses\" und \"CARL - Current Annual Volume of Real Losses\" ersetzt durch die von der Weltbank bevorzugten Begriffe \"MAPL - Minimum Achievable Annual Volume of Physical Losses\" und \"CAPL - Current Annual Volume of Physical Losses\". Die der Berechnung zugrunde liegende Formel bleibt natürlich unverändert.","3.) В терминологии ВБ, термины \"UARL - Unavoidable Annual Volume of Real Losses\" и \"CARL - Current Annual Volume of Real Losses\" были заменены на термины ВБ \"MAPL - Minimum Achievable Annual Volume of Physical Losses\" и \"CAPL - Current Annual Volume of Physical Losses\". Базовая формула ост. без изменений. ","3.) Trong hệ thống thuật ngữ của WB, các thuật ngữ của IWA như \"UARL - Unavoidable Annual Volume of Real Losses\" và \"CARL - Current Annual Volume of Real Losses\" được thay bằng các thuật ngữ mới, cũng của của WB là \"MAPL - Minimum Achievable Annual Volume of Physical Losses\" và \"CAPL - Current Annual Volume of Physical Losses\". Tuy nhiên, công thức vẫn không thay đổi.","3.) Dalam terminologi Bank Dunia, istilah IWA \"UARL - Unavoidable Annual Volume of Real Losses\" dan \"CARL - Current Annual Volume of Real Losses\" diganti dengan istilah yang dipakai Bank Dunia \"MAPL - Minimum Achievable Annual Volume of Physical Losses\" dan \"CAPL - Current Annual Volume of Physical Losses\". Meskipun demikian, rumus dasarnya tidak berubah.","3.) En la terminología inglesa del Banco Mundial, los términos de la IWA: \"UARL-Unavoidable Annual Volume of Real Losses\" y \"CARL-Current Annual Volume of Real Losses\" fueron reemplazados por \"MAPL-Minimum Achievable Annual Volume of Physical Losses\"; y \"CAPL-Current Annual Volume of Physical Losses\". Sin embargo, las fórmulas se mantiene sin cambio alguno. ","3.) Nella Terminologia World Bank, i termini IWA \"UARL-Unavoidable Annual Volume of Real Losses\" e \"CARL-Current Annual Volume of Real Losses\" sostituiti da termini preferiti dalla World Bank \"MAPL-Minimum Achievable Annual Volume of Physical Losses\" e \"CAPL-Current Annual Volume of Physical Losses\". La formula utilizzata è invariata.  ","3.) Na terminologia do Banco Mundial, os termos da IWA \"UARL-Unavoidable Annual Volume of Real Losses\" e \"CARL-Current Annual Volume of Real Losses\" foram trocados pelos termos preferenciais do Banco Munidal \"MAPL-Minimum Achievable Annual Volume of Physical Losses\" e \"CAPL-Current Annual Volume of Physical Losses\". Entretanto, a fórmula oculta permanece a mesma.","3, A Világ Bank-i terminológiában az IWA „UARL – Unavoindable Annual Volume of Real Losses” és a „CARL – Current Annual Volume of Real Losses” fogalmak helyett a „MAPL – Minimum Achievable Annual Volume of Physical Losses” és a „CAPL – Current Annual Volume of Physical Losses” fogalmakat használja.","في مصطلحات البنك الدولي مصطلحات (IWA) )UAPL) ) . الفاقد الحقيقي الذي لا يمكن تجنبه, وحجم الفاقد الحقيقي السنوي   CARL   تم استبداله بمصطلح(MAPL) الحد  الأدنى من حجم الفاقد الحقيقي السنوي المتحقق\n","3.) ในระบบคำศัพท์ของธนาคารโลก คำของ IWA เช่น \n\"UARL-ปริมาณน้ำสูญเสียที่เกิดจริงรายปีที่ไม่สามารถหลีกเลี่ยงได้\" \nและ \"CARL-ปริมาณน้ำสูญเสียจริงรายปีในปัจจุบัน\" ถูกแทนที่\nด้วยคำของธนาคารโลก \"MAPL-ปริมาณขั้นต่ำน้ำสูญเสียหลักรายปี\nที่แก้ไขได้  และ \"CAPL-ปริมาณน้ำสูญเสียหลักรายปีในปัจจุบัน \n\"อย่างไรก็ดี, หลักเกณฑ์พื้นฐานยังคงไม่เปลี่ยนแปลง","3.)U WB terminologiji , IWA termini \"UARL - Neizbežna godišnja zapremina stvarnih gubitaka\" i \"CARL- Minimalna ostvariva zapremina fizičkih gubitaka\" su zamenjene sa terminima koje forsira WB  \"MAPL-Minimalna očekivana godišnja zapremina stvarnih gubitaka\" i \"CAPL-Aktuelna godišnja zapremina fizičkih gubitaka\". Naravno, formula ostaje nepromenjena.","3.)国际水务协会的名词\"UARL-每年不可避免的实质泄损量\"和\"CARL-现年实质泄损量\",都被世行首选的名词\"MAPL-每年可达致最低物质泄损量\"和\"CAPL-现年物质泄损量\"所替代。无论如何，其中所使用的方程式都保持不变","3.)在世界银行专用术语中，国际水协会(IWA)所用之「不可避免的实际损失水量」(UARL - Unavoidable Annual Volume of Real Losses)及「目前实际年损失水量」(CARL - Current Annual Volume of Real Losses)被世界银行惯用之「最小可行之实际损失水量」(MAPL - Minimum Achievable Annual Volume of Physical Losses)及「目前具体年损失水量」(CAPL - Current Annual Volume of Physical Losses)所取代，不过基本公式维持不变。","3.)在世界銀行專用術語中，國際水協會(IWA)所用之「不可避免的實際漏水量」(UARL - Unavoidable Annual Volume of Real Losses)及「目前實際年漏水量」(CARL - Current Annual Volume of Real Losses)被世界銀行慣用之「最小可行之實際漏水量」(MAPL - Minimum Achievable Annual Volume of Physical Losses)及「目前具體年漏水量」(CAPL - Current Annual Volume of Physical Losses)所取代，不過基本公式維持不變。","3.) În terminologia Băncii Mondiale, termenii IWA „UARL – Volumul anual inevitabil al pierderilor reale” şi „CARL - Volumul anual actual al pierderilor reale” au fost înlocuite cu termenii Băncii Mondiale „MAPL - Volumul anual minim realizabil al pierderilor fizice” şi „CAPL - Volumul anual actual al pierderilor fizice”. Totuşi, formula de bază a rămas aceiaşi.","3.) U terminologiji Svjetske banke, IWA termini \"UARL - neizbježni godišnji stvarni gubici\" (NGSG) i \"CARL - tekući godišnji stvarni gubici\" (TGSG) su zamijenjeni sa terminima Svjetske banke \"MAPL - minimalni ostvarivi godišnji fizički gubici\" (MOGFG) i \"CAPL\" - tekući godišnji fizički gubici\" (TGFG). Naravno, osnovna formula ostaje nepromijenjena.","3.) Në terminologjinë e Bankës Botërore, termi i IWA “SPHRV - Sasia e Pashmangshme e Humbjeve Reale Vjetore” është zëvendësuar me termat e favorizuar të Bankës Botërore “MASVHF - Minimumi i Arritshëm i Sasisë Vjetore të Humbjeve Fizike” dhe “SAVHF - Sasia Aktuale Vjetore e Humbjeve Fizike”. Megjithatë formula bazë ka ngelur e pandryshuar.","3). მსოფლიო ბანკის ტერმინოლოგიაში, IWA-ის ტერმინები \"UARL- გარდაუალი წლიური რეალური დანაკარგები\" და \"CARL- რეალური დანაკარგების არსებული წლიური მოცულობა\" ჩანაცვლებულია მსოფლიო ბანკის ტერმინებით \"MAPL - ფიზიკური დანაკარგების მიღწევადი მინიმალური მოცულობა\" და \"CAPL - ფიზიკური დანაკარგების არსებული წლიური მოცულობა\". თუმცა, ფორმულა რათქმაუნდა უცვლელია.","3.)  По терминологията на СБ, терминът на МВА \"UARL-неснижаеми годишни реални загуби и CARL- Настоящ годишен обем на реалните загуби са заместени с термините на СБ \"MAPL-Минимално достижим годишен обем на физическите загуби и САРL- Сегашен годишен обем на физическите загуби\" като формулите остават непроменени.","3.) V terminologii Světové banky, byly termíny IWA \"UARL - Unavoidable Annual Volume of Real Losses\" a \"CARL - Current Annual Volume of Real Losses\" nahrazeny termíny preferované Světovou bankou \"MAPL - Minimum Achievable Annual Volume of Physical Losses\" a \"CAPL - Current Annual Volume of Physical Losses\". Nicméně základní rovnice samozřejmě zůstala nezměněna."]
["4.) WB-EasyCalc was optimized for a screen resolution of 1024 x 768 Pixel","4.) WB-EasyCalc was optimized for a screen resolution of 1024 x 768 Pixel",{"$f":"'Language 3'!C136","v":0},"4.) WB-EasyCalc est optimisé pour une résolution d'écran de 1024 x 768 pixels","4.) WB-EasyCalc wurde entworfen für eine Bildschirmauflösung von 1024 x 768 Pixel","4.) Упрощенные вычисления ВБ оптимизированы для разрешающей способности экрана 1024 x 768 пиксель","4.) WB-phần mềm EasyCalc được tối ưu hoá để đạt độ phân giải của màn hình 1024x 768 pixel","4.) WB-EasyCalc dioptimalkan untuk resolusi tampilan 1024 x 768 Pixel","4.) WB-EasyCalc se ha optimizado para una resolución de pantalla de 1024x768 píxeles","4.) WB-EasyCalc ottimizzato per monitor a 1024x768 Pixel","4.) WB-EasyCalc foi otimizado para a resolução de tela de 1024 x 768 Pixel","4, A WB-EasyCalc 1024x768 pixel felbontású képernyőre van optimalizálva","صمم هذا البرنامج لشاشة عرض دقّة صورتها       (Pixel ( 1024*768","4.) โปรแกรม WB-EasyCalc สามารถมองเห็นได้อย่างชัดเจน\nที่สุดในจอขนาด 1024 X 768 Pixel","4.) WB-EasyCalc je optimizovan za rezoluciju ekrana 1024 x 768 piksela","4.)WB-EasyCalc 已尽善使用1024x798像素荧屏分辨率","4.)WB-EasyCalc之屏幕分辨率最佳设定值为1024 × 768个像素。","4.)WB-EasyCalc之螢幕解析度最佳設定值為1024 × 768個畫素。","4.) WB-EasyCalc a fost optimizat pentru o rezoluţie a ecranului de 1024 x 768 Pixel","4. ) WB-EasyCalc je optimiziran za rezoluciju 1024 x 768 piksela","4.) WB-EasyCalc është optimizuar për rezulucion të monitorit në 10244 x 768 piksela","4). WB-EasyCalc-ი ოპტიმიზირებულია ეკრანის რეზოლუციაზე 1024x768 პიქსელი.","4.) WB-EasyCalc е оптимизирана за резолюция на екрана 1024 х 768 точки","4.) WB-EasyCalc byl optimalizován pro rozlišení obrazovky 1024 x 768 Pixelů"]
["5.) Colour Coding: ","5.) Color Coding: ",{"$f":"'Language 3'!C137","v":0},"5.) Code Couleurs : ","5.) Farbschema:","5.) Цветовое кодирование: ","5.) Mã hoá màu:","5.) Kode Warna:","5.) Código de color:","5.) Codice Colore:","5.) Código das cores:","5, Színjelölés:","رموز الألوان:","5.) รหัสของสี","5.)Značenje boja ćelija","5.) 顔色區分：","5.)颜色识别","5.)顏色識別","5.) Codul culorilor:","5.) Značenje boja:","5.) Kodet e ngjyrave","5) კოდირება ფერების მიხედვით","5.) Кодиране на цветовете","5.) Barevné značení:"]
["white cells are for data entry","white cells are for data entry",{"$f":"'Language 3'!C138","v":0},"Cellules blanches pour entrer les données","weiße Felder für die Dateneingabe","белые ячейки - для ввода данных","Ô màu trắng dành cho phần nhập dữ liệu","bidang putih untuk data entry","Las celdas en blanco son los datos de entrada","celle bianche per inserimento dati","Células brancas são para dados de entrada","Fehér cellák az adatbevitelt,","الخلايا البيضاء هي لإدخال المعلومات","ช่องสีขาว สำหรับใส่ข้อมูล","bele ćelije su za unos podataka","白色格子 - 輸入資料","白色空格供数据输入用","白色空格供資料輸入用","celulele de culoare albă sunt pentru introducerea datelor","bijela polja su za unos podataka","qelizat e barrdha janë për futje të të dhënave","თეთრი უჯრები განკუთვნილია მონაცემთა შეყვანისთვის","белите клетки са за вкарване на данни","bílé buňky jsou určeny pro vkládání dat"]
["dark blue cells are calculated values","dark blue cells are calculated values",{"$f":"'Language 3'!C139","v":0},"dark blue cells are calculated values","dunkelblaue Felder zeigen berechnete Werte an","dark blue cells are calculated values","dark blue cells are calculated values","dark blue cells are calculated values","Las celdas en azul oscuro son para los valores calculados","dark blue cells are calculated values","dark blue cells are calculated values","dark blue cells are calculated values","dark blue cells are calculated values","dark blue cells are calculated values","dark blue cells are calculated values","dark blue cells are calculated values","dark blue cells are calculated values","dark blue cells are calculated values","dark blue cells are calculated values","dark blue cells are calculated values","dark blue cells are calculated values","dark blue cells are calculated values","dark blue cells are calculated values","tmavé buňky jsou vypočtené hodnoty"]
["6.) While every effort has been made by the developers to ensure that WB-EasyCalc is free from error, those using the model do so at their own risk. Liemberger & Partners accept no liability of any nature for losses (direct or indirect) incurred through the use of this model.","6.) While every effort has been made by the developers to ensure that WB-EasyCalc is free from error, those using the model do so at their own risk. Liemberger & Partners accept no liability of any nature for losses (direct or indirect) incurred through the use of this model.",{"$f":"'Language 3'!C140","v":0},"6.) Malgré tous les efforts réalisés par les développeurs pour s'assurer de l'absence d'erreur dans WB-EasyCal, les utilisateurs le font à leurs seuls risques. Liemberger & Partners rejette toute responsabilité de quelque nature en cas de perte de données (directe ou indirecte) en liaison avec l'utilisation de ce modèle.","6.) Obwohl die Entwickler alles unternommen haben um  WB-EasyCalc fehlerfrei zu gestalten, wird klargestellt, dass die Benutzer dieses Programm auf eigenes Risiko verwenden. Liemberger & Partners akzeptieren keine wie immer geartete Haftung für jegliche Schäden (direkt oder indirekt) die durch die Verwendung dieses Programmes entstehen. ","6.) Несмотря на то, что разработчики приложили максимум усилий для составления Упрощенных вычислений ВБ без ошибок, пользователи модели выполняют вычисления на свой страх и риск. Компания \"Лиембергер и Партнеры\" не берет на себя ответственности за убытки (прямые или косвенные), понесенные в результате использования данной модели. ","6.) Mặc dù các nhà thiết kế đã nỗ lực nhằm đảm bảo rằng WB-EasyCalc không có sai sót, nhưng những người sử dụng phần mềm này phải tự chấp nhận rủi ro có thể xảy ra.  Công ty Liemberger & Partners không chịu trách nhiệm về bất kỳ mất mát  (trực tiếp hoặc gián tiếp) nảy sinh trong quá trình sử dụng phần mềm này.","6.) Meskipun telah diupayakan oleh pemrogram bahwa WB-EasyCalc tidak mengandung eror, tetapi pemakai program dapat melakukan kesalahan dengan risiko sendiri. Liemberger & Partners tidak bertanggung jawab atas setiap penyebab kerugian (langsung maupun tidak langsung) akibat penggunaan model ini.","6.) Se advierte que, aunque  los desarrolladores de este programa (WB-EasyCalc)  han realizado todos los esfuerzos para que este programa este libre de errores, quienes usan este modelo lo hacen por su propio riesgo. Liemberger & Asociados no aceptan ninguna responsabilidad por ningún tipo de pérdida (directa o indirecta) que se cause con el uso de este modelo.  ","6.) Benchè ogni sforzo sia stato fatto per ridurre gli errori di WB-EasyCalc, l'utilizzo del modello è a proprio rischio. Liemberger & Partners non hanno responsabilità di ogni natura per errori (diretti o non) dovuti al suo uso.","6.) Embora todo esforço tenha sido feito para garantir que WB-EasyCalc não contenha erros, o uso do modelo é a próprio risco. Liemberger & Associados não aceita nenhuma responsabilidade de qualquer natureza por danos (diretos ou indiretos) decorrentes do uso deste modelo.","6, A fejlesztők minden képességüket bevetették, hogy a WB-EasyCalc hibamentes legyen, ám ennek ellenére csak saját kockázatára használja. A Liemberger & Partners nem vállal felelősséget bármilyen veszteségért (direkt vagy indirekt), amely a modell használata okozna.","بينما كل الجهود تمت بواسطة المطور لتامين برنامج البنك الدولي \n WB-EasyCalc الخالي من الأخطاء علما بان المستخدم يستخدمه تحت مسؤوليته الخاصة.ولن تقبل Liemberger & Partners  أي مسؤولية مباشرة أو غير مباشرة لاستخدام هذا البرنامج\n","6.) ในขณะที่นักพัฒนาทั้งหลายได้พยายามสร้างความมั่นใจว่า \nโปรแกรม EasyCalc ของธนาคารโลกไม่มีข้อผิดพลาดใดๆ นั้น  \nกลุ่มคนที่ใช้ Model นี้ต้องเสี่ยงกันเอาเอง, Liemberger & Partners \nจะไม่รับผิดชอบต่อความเสียหายของข้อมูล (ทางตรงหรือทางอ้อม)\nที่เกิดขึ้นตลอดการใช้งาน Model นี้","6.) Iako su uloženi svi napori od strane tvoraca WBEasiCalc da program bude bez grešaka, oni koji ga koriste čine to na svoj sopstveni rizik. Liemberger & Partners ne prihvataju bilo kakvu odgovornost za gubitke (direktne ili indirektne) koji se dese korišćenjem ovog modela.","6.)虽然软件开发者尽力使WB-EasyCalc无任何误差，可是这个模式使用者须自负任何后果。Liemberger & Partners 将不会对使用这个模式所导致的任何损失(直接或间接的)承担任何义务或责任","6.)虽然软件开发者已尽最大努力以确保WB-EasyCalc无误，使用者应自行承担风险。Liemberger公司对于使用本软件所衍生任何性质之损失（直接或间接）一概不负责。","6.)雖然軟體開發者已盡最大努力以確保WB-EasyCalc無誤，使用者應自行承擔風險。Liemberger公司對於使用本軟體所衍生任何性質之損失（直接或間接）一概不負責。","6.) Desi au fost depuse toate eforturile de către cei care au dezvoltat aplicaţia pentru ca WB-EasyCalc să  fie lipsit de erori, cei care utilizeaza aplicatia o fac pe propria răspundere. Liemberger & Partners nu işi asumă nicio responsabilitate faţă de orice tip de pierderi (directe sau indirecte), care pot apărea ca rezultat al utilizării acestei aplicatii.","6.) Mada su uloženi svi napori od strane dizajnera softvera da WB-EasyCalc bude bez grešaka, oni koji koriste ovaj model to čine na svoj vlastiti rizik. Liemberger & Partners ne preuzima bilo kakvu odgovornost za gubitke (direktne ili indirektne) koji se ostvare korištenjem ovog modela.","6.) Edhe pse është bërë çdo përpjekje nga zhvilluesit për të siguruar që WB-EasyCalc të jetë pa asnjë gabim, ata të cilët e përdorin modelin (programin) e bëjnë këtë në rrezikun e tyre. Liemberger & Partners nuk marrin përsipër asnjë detyrim të çfarëdo natyre për humbjet(direkte ose indirekte) të shkaktuara nga përdorimi i këtij modeli","6). დიდი ძალისხმევა ჩაიდო იმისთვის, რომ WB-EasyCalc-ი ყოფილიყო უშეცდომო, მაგრამ მომხმარებელი თავის თავზე იღებს შესაძლო რისკებს. Liemberger-ი და პარტნიორები არ იღებენ პასუხისმგებლობას ამ მოდელის საფუძველზე მიღებულ ნებისმიერ (პირდაპირ თუ არაპირდაპირ) დანაკარგებზე.","6.) Положени са всички усилия от разработчиците за да са сигурни, че не са допуснати грешки във WB-EasyCalc, този който използва модела го прави за свой собствен риск. Liemberger&Partners не носят каквато и да е отговорност за каквито и да е загуби (директни или недиректни) в резултат от използването на този модел.","6.) Přestože byla věnována veškerá pozornost vývojáři k zajištění bezchybného chodu WB-EasyCalc, ti, kteří používají tento model používají, tak činí na své nebezpečí. Liemberger & Partners nepřijímají žádnou zodpovědnost za škody jakéhokoliv druhu (přímé či nepřímé) vzniklé používáním tohoto modelu."]
["7.) The program is protected with passwords which will not be revealed.","7.) The program is protected with passwords which will not be revealed.",{"$f":"'Language 3'!C141","v":0},"7.) Le programme est protégé par mots de passe qui ne seront pas révélés…","7.) Das Programm ist mit Paßwörtern geschützt die nicht bekannt gegeben werden.","7.) Программа защищена паролями,  которые не будут разглашаться.","7.) Chương trình này được bảo vệ bằng mật khẩu","7.) Program ini dilindungi password yang tidak bisa dibuka.","7.) El programa esta protegido y su clave de acceso no será revelada.","7.) Il programma è protetto con passwords non rivelate","7.) O programa está protegido com senhas, as quais não serão reveladas.","7, A program jelszóval védett, amelyet titokban kívánunk tartani.","خلايا البرنامج محمية بكلمة سرية لن يتم الكشف عنها.","7.) มีการป้องกันโปรแกรมด้วยรหัสผ่าน  ซึ่งไม่เป็นที่เปิดเผ","7.) Program je zaštićen lozinkom koja neće biti otkrivema","7.)保护这个程序的密码将不公开","7.)本软件受密码保护。","7.)本軟體受密碼保護。","7.) Programul este protejat de parole care nu vor fi divulgate.","7.) Program je zaštićen lozinkom koja neće biti otkrivena.","7.) Programi është i mbrojtur me fjalëkalim i cili nuk do të zbulohet.","7) პროგრამა დაცულია პაროლით","7.) Програмата е защитена с пароли и не може да се променя.","7.) Program je chráněn hesly, které nebudou odhaleny."]
["8.) GIGO - Garbage in Garbage out! The user has to be aware that results calculated with this program can be extremely wrong if base data is wrong or incomplete.","8.) GIGO - Garbage in Garbage out! The user has to be aware that results calculated with this program can be extremely wrong if base data is wrong or incomplete.",{"$f":"'Language 3'!C142","v":0},"8.) GIGO - Garbage In Garbage Out! L'utilisateur est averti que les résultats calculés par le programme peuvent être erronés si les données entrées sont fausses ou incomplètes","8.) GIGO - Garbage in Garbage out! Der Benutzer hat sich im Klaren zu sein, dass die Ergebnisse bei falschen Daten zu extrem falschen Schlußfolgerungen führen können.","8.) GIGO-мусор на входе-мусор на выходе! Результаты м.б.неверным,если базовые данные не верны/не полные. ","8.) Dữ liệu không chính xác thì kết quả đầu ra cũng không chính xác. Người sử dụng cần biết rằng các kết quả tính toán trong chương trình này có thể hoàn toàn sai nếu dữ liệu cơ sở không đúng hoặc không đầy đủ","8.) GIGO - Garbage in Garbage out! Pemakai program harus memahami bahwa hasil yang dihitung dengan program ini bisa saja salah bila data yang digunakan salah atau tidak lengkap.","8.) BEBS - Basura que entra Basura que sale! El usuario tiene que tener claro que los resultados calculados con este programa pueden ser extremadamente equivocados si los datos base están incompletos o equivocados.","8.) GIGO-Garbage in Garbage out! Essere consapevoli che risultati del programma decisamente errati se database errato o incompleto.","8.) LDLF - Lixo dentro, lixo fora! O usuário deve estar ciente que os resultados calculados com este programa podem estar extremamente errados, se a base de dados estiver errada ou incompleta.","8, Szemét be, szemét ki! Ha az alapadatok hibásak vagy nem teljesek, akkor extrém rossz eredményeket kaphat!","\nا:GIGO تعني أن المعطيات السيئة الداخلة للبرنامج تعطي مخرجات سيئة أيضا, لذلك يجب أن توخي الدقه للحصول على مخرجات صحيحة.\n","8.) GIGO - ใส่ขยะเข้าไป  ก็ได้ขยะออกมา  \nผู้ใช้โปรแกรมจะต้องระวังผลการคำนวณโดยโปรแกรมนี้  ซึ่งอาจ \nผิดพลาดอย่างมาก  หากข้อมูลพื้นฐานผิดหรือไม่สมบูรณ์","8.) GIGO- Garbage in Garbage out (Smeće podaci smeće rezultat!) ! Korisnik mora biti svestan da rezultati dobijeni ovim programom mogu biti ekstremno pogrešni ako su ulazni podaci pogrešni ili nekompletni.","8.)错误的输入导致错误的输出：若輸入錯誤資料，您將得到錯誤計算結果","8.)GIGO－垃圾输入，垃圾输出！使用者需注意，本软件可能因基础数据错误或不全产生出离谱之计算结果。","8.)GIGO－垃圾輸入，垃圾輸出！使用者需注意，本軟體可能因基礎資料錯誤或不全產生出離譜之計算結果。","8.) GIGO – Garbage in Garbage out! (Date greşite la intrare, Date greşite la ieşire!) Utilizatorul trebuie să fie conştient de faptul că rezultatele calculate cu acest program pot fi extrem de eronate dacă datele de intrare sunt greşite sau incomplete.","8.) LUPLIP - Loši ulazni podaci, loši izlazni podaci! Korisnik treba biti svjestan da rezultati izračunati ovim programom mogu biti izuzetno pogrešni ako su ulazni podaci pogrešni ili nekompletni."," 8.) Futja e të dhënave të gabuara = rezultate të gabuara). Përdoruesi duhet të ketë parasysh se rezultatet e llogaritura me këtë program mund të jenë plotësisht të gabuara nëse të dhënat bazë janë të gabuara ose jo të plota.","8). არასწორი მონაცემების შეყვანა იძლევა არასწორ შედეგებს! მომხმარებელმა უნდ აიცოდეს, რომ თუ საბაზისო მონაცემები არასწორია დაანგარიშებული მნიშვნელობები შესაძლოა აბსოლუტურად არასწორი იყოს!","8.) GIGO-При грешни данни и резултата ще бъде грешен! Ползвателя трябва да знае, че резултатите получени от тази програма могат да бъдат грешни ако базата данни е грешна или непълна.","8.) GIGO - Odpad dovnitř odpad ven! Uživatel si musí být vědom, že výsledky vypočtené tímto programem mohou být extrémně špatné, jsou-li vstupní data chybné nebo nekompletní."]
["9.) It is ALWAYS recommended to carry out a thorough leakage analysis based on measurements in the distribution network to support and verify the physical loss figure calculated with this program.","9.) It is ALWAYS recommended to carry out a thorough leakage analysis based on measurements in the distribution network to support and verify the physical loss figure calculated with this program.",{"$f":"'Language 3'!C143","v":0},"9). Il est TOUJOURS recommandé de réaliser une analyse poussée des pertes sur la base de mesures directes sur le réseau de distribution pour contrôler les pertes réelles calculées avec ce programme.","9.) Es ist IMMER empfehlenswert detailierte Messungen der tatsächlichen Leckverluste  durchzuführen und so den mit diesem Programm berechneten Wert zu verifizieren.","9.) ВСЕГДА реком-ся анализ утечек по измерениям в распред.сети для поддержки/проверки цифр по физ. потерям, получ-ых при вычислениях по этой программе. ","9.) THÔNG THƯỜNG, nên tiến hành phân tích kỹ tình hình rò rỉ dựa trên việc đo thực tế mạng phân phối để hỗ trợ và kiểm chứng với con số thất thoát cơ học tính được bằng chương trình này.","9.) SELALU disarankan untuk melakukan analisis kebocoran yang lengkap berdasarkan pengukuran di jaringan distribusi untuk mendukung dan verifikasi angka kehilangan air fisik yang dihitung dengan program ini. ","9.) Se recomienda realizar SIEMPRE un análisis de pérdidas completo basado en mediciones del sistema de distribución para soportar y verificar el valor de las pérdidas físicas calculado con este programa.","9.) SEMPRE raccomandato di svolgere un'analisi completa basata su misure nella rete di distribuzione per confronto con perdita tecnica calcolata dal programma","9.) Recomenda-se SEMPRE fazer uma análise completa dos vazamentos, baseada em medições na rede de distribuição, para auxiliar e verificar os valores de perdas físicas calculados com este programa.","9, MINDIG ajánlott alapos, méréseken alapuló szivárgás elemzést végezni az elosztó hálózaton és ellenőrizni a program által számított fizikai veszteséget!","\n\nيجب ان يتم أخذ قياسات لشبكه المياه لتحديد مستوى التسرب\n وللتأكد من ان معطيات البرنامج صحيحه\n","9.) มีข้อแนะนำว่าจะต้องมีการวิเคราะห์น้ำสูญเสีย (รั่วไหล) \nอย่างถี่ถ้วน  โดยการวัดในระบบเครือข่ายจ่ายน้ำเพื่อสนับสนุน\nและตรวจสอบตัวเลขน้ำสูญเสียหลัก  ซึ่งโปรแกรมคำนวณออกมา","9.) UVEK je preporučeno da rezultate dobijene ovim programom proverite i \"ručnom\" kalkulacijom na osnovu ezultata merenja u mreži.","9.)为了支持和证实由这个程序所计算出的物质泄损量，泄漏分析就必须依据对管网系统精细测量","9.)建议根据配水管网之量测值，执行彻底的漏损分析，以支持及证明本软件计算出之实际损失水量。","9.)建議根據配水管網之量測值，執行徹底的漏水分析，以支持及證明本軟體計算出之實際損失水量。","9.) Se recomandă INTOTDEAUNA să se efectueze o analiză detaliată a pierderilor pe baza măsurătorilor efectuate in reţeaua de distribuţie pentru a valida si verifica datele referitoare la pierderile fizice calculate prin acest program.","9.) Uvijek se PREPORUČUJE da se izvrši temeljita analiza curenja na osnovu mjerenja u distributivnoj mreži kako bi se provjerili fizički gubici izračunati ovim programom.","9.) ÇDO herë rekomandohet që të ndërmerren analiza të thukta të bazuara në matje të rrjetit shpërndarës për të mbështetur dhe verifikuar të dhënat e humbjeve fizike të përllogaritura me këtë program. ","9). რეკომენდებულია გაჟონვების ზედმიწევნითი ანალიზის ჩატარება გამანაწილებელ ქსელში ჩატარებული გაზომვების საფუძველზე რათა მოხდეს ამ პროგრამით დაანგარიშებული ფიზიკური დანაკარგების გადამოწმება.","9.) ВИНАГИ се препоръчва да се извърши анализ на загубите на основата на измервания в разпределителната мрежа за да се проверят стойностите на физическите загуби с тази програма.","9.) Je VŽDY doporučeno provést důkladnou analýzu úniků založenou na měření v distribuční síti k podpoře a ověření výpočtu skutečných ztrát tímto programem."]
["10.) When using this program for the first time, it is recommended to first familiarize with the methodology. A complete set of background reading materials can be downloaded from www.liemberger.cc","10.) When using this program for the first time, it is recommended to first familiarize with the methodology. A complete set of background reading materials can be downloaded from www.liemberger.cc",{"$f":"'Language 3'!C144","v":0},"10). Lors de la première utilisation, il est recommandé de se familiariser avec la méthodologie. Une documentation complète pour l'interprétation du modèle peut être téléchargée sur www.liemberger.cc","10.) Wenn Sie dieses Programm zum ersten Mal verwenden empfehlen wir Ihnen, sich zuerst mit der Methodik im Allgemeinen vertraut zu machen. Umfangreiche Literatur (in Englischer Sprache) können Sie von www.liemberger.cc herunterladen.","10.) При исполь-ии программы впервые, реком-ся ознакомиться с методологией на сайте www.liemberger.cc","10.) Khi sử dụng chương trình này lần đầu tiên, người sử dụng nên làm quen với phương pháp luận trước. Một bộ tài liệu hoàn chỉnh về thông tin nền có thể lấy từ trang web: www.liemberger.cc ","10.) Bila menggunakan program ini untuk kali pertama, disarankan untuk memahami terlebih dahulu metodologinya. Bahan bacaan yang lengkap tentang latar belakang dapat di-download dari www.liemberger.cc","10.) Cuando emplee este programa por primera vez, se recomienda familiarizarse inicialmente con la metodología. Para ello, usted puede descargar una serie de lecturas del sitio www.liemberger.cc  ","10.) Quando si usa il programma per la prima volta, RACCOMANDATO familiarizzare con la metodologia. Un insieme completo di materiali di lettura sull'argomento scaricabile da www.liemberger.cc","10.) Quando utilizar o programa pela primeira vez, é recomendável primeiro se familiarizar com a metodologia. Uma seleção completa de textos a respeito pode ser baixada do site www.liemberger.cc","10, A program első használata előtt ajánlott a módszer megismerése. A háttéranyagok letölthetők a www.liemberger.cc oldalról.","عند استخدام البرنامج لأول مرة يجب أن يتعرف المستخدم على طريقة العمل\n .علما بأن إيضاحات مختلفة للاستخدام يمكن الحصول عليها من خلال الموقعwww.liemberger.cc\n","10.) เมื่อมีการใช้โปรแกรมนี้เป็นครั้งแรก  ขอแนะนำว่าจะต้อง\nทำความคุ้นเคยกับวิธีการใช้  โดยสามารถอ่านภูมิหลังอย่าง \nละเอียดของโปรแกรมโดย download ได้จาก website (www.liemberger.cc)","10.) Preporučljivo je da se pre korišćenja ovog programa upoznate sa terminologijom. Možete ih preuzeti na: http://www.liemberger.cc ","10.)当您是第一次使用這個軟件,建議您先熟悉有關無效益水的控制和計算方法。 您可遊覽www.liemberger.cc以便下載有關文章和資料","10.)如果首次使用本软件，建议先熟悉其运算方法。完整可供阅读之背景资料可自www.liemberger.cc网址下载。","10.)如果首次使用本軟體，建議先熟悉其運算方法。完整可供閱讀之背景資料可自www.liemberger.cc網址下載。","10.) În cazul utilizării acestui program pentru prima dată, se recomandă iniţial  familiarizarea cu metodologia. Un set complet de materiale de bază pentru citit pot fi găsite la www.liemberger.cc","10.) Za nove korisnike ovog programa preporučuje se da se prvo upoznaju sa samom metodologijom. Kompletan set popratnih dokumenata može se naći na www.liemberger.cc","10.) Me rastin e përdorimit të programit për herë të parë, rekomandohet që së pari të keni njohuri për metodologjinë. Materialet komplete për lexim mund të shkarkohen nga www.liemberger.cc ","10). პროგრამასთან პირველად მუშაობისას, პირველ რიგში რეკომენდებულია მეთოდოლოგიასთან გაცნობა.თქვენ შეგიძიათ მასალების სრულად ჩამოტვირთვა შემდეგი ვებ გვერდიდან: www.liemberger.cc","10.) Когато програмата се използва за първи път се препоръчва първо да се запознаете с методологията. Пълен набор от документи за запознаване с методологията могат да бъдат качени от www.liemberger.cc","10.) Když je užíván program poprvé, je doporučeno se nejdříve obeznámit s metodikou. Kompletní sada materiálů "]
["11.) Liemberger & Partners would appreciate feedback! Please send your comments to office@liemberger.cc","11.) Liemberger & Partners would appreciate feedback! Please send your comments to office@liemberger.cc",{"$f":"'Language 3'!C145","v":0},"11.) Liemberger & Partners apprécieront vos commentaires. Merci de les transmettre à office@liemberger.cc","11.) Liemberger & Partners freuen sich über Anregungen und Kommentare! Bitte senden Sie emails an: office@liemberger.cc","11.) Компания \"Лиембергер и Партнеры\" будет призна-тельна получ. отзывы по адресу:  office@liemberger.cc","11.) Công ty Liember & Parners đánh giá cao sự phản hồi của người sử dụngi! Xin vui lòng gửi nhận xét của bạn tới địa chỉ email: office@liemberger.cc","11.) Liemberger & Partners sangat menghargai masukan Anda! Silakan kirim komentar kepada office@liemberger.cc","11.) Liemberger & Asociados agradecen sus comentarios. Por favor, enviarlos a office@liemberger.cc","11.) Liemberger & Partners sono contenti di ogni FEEDBACK! Commenti a office@liemberger.cc","11.) Liemberger & Associados apreciariam comentários e sugestões. Favor enviá-los para office@liemberger.cc","11, Liemberger & Partners megbecsüli a visszajelzéseket. Küldje el véleményét az office@liemberger.cc címre","نقدر الاستفسارات وعليه اذا كان لديك استفسار أرسله إلى office@liemberger.cc","11.) Liemberger & Partners ยินดีรับ ข้อมูลย้อนกลับ จากผู้ใช้ \nโปรแกรม  โปรดส่งความคิดเห็นของท่านไปที่ \noffice@liemberger.cc","11.) Liemberger & Partners očekuju vaše reakcije! Molimo Vas da šaljete komentare na office@liemberger.cc","11.) Liemberger & Partners 歡迎您的意見。 請把意見發到office@liembergee.cc","11.)Liemberger公司欢迎提供意见，请将意见传至 office@liemberger.cc","11.)Liemberger公司歡迎提供意見，請將意見傳至 office@liemberger.cc","11.) Liemberger & Partners va aprecia mult comentariile Dvs.! Vă rugăm să le transmiteţi pe adresa office@liemberger.cc","11.) Liemberger & Partners bi bio zahvalan na komentarima! Pošaljite komentare na office@liemberger.cc","11.) Liemberger & Partners mirëpresin përshtypjet tuaja! Luteni që komentet tuaja t’i dergoni në office@liemberger.cc ","11) Liemberger-ი და თავისი პარტნიორები მადლობელი იქნებიან თქვენს კომენტარებზე. გამოაგზავნეთ შენიშვნები შემდეგ მისამართზე office@liemberger.cc","11.) Liemberger & Partners ще оценят високо вашето мнение. Моля изпратете вашите коментари до office@liemberger.cc","11.) Liemberger & Partners by ocenili zpětnou vazbu! Prosím pošlete vaše komentáře na office@liemberger.cc"]
["12.) WB-EasyCalc will be continuously improved and upgraded - revisit www.liemberger.cc from time to time to check for new versions.","12.) WB-EasyCalc will be continuously improved and upgraded - revisit www.liemberger.cc from time to time to check for new versions.",{"$f":"'Language 3'!C146","v":0},"12.) WB-EasyCalc sera régulièrement mis à jour et amélioré - visitez www.liemberger.cc de temps en temps pour de nouvelles versions !","12.) WB-EasyCalc wird kontinuierlich verbessert - schauen Sie von Zeit zu Zeit auf www.liemberger.cc vorbei um die neueste Version herunterzuladen!","12.) Упрощенные вычисления ВБ будут постоянно совершенствоваться и обновляться - см. сайт www.liemberger.cc . ","12.) WB-EasyCalc sẽ liên tục được cải thiện và nâng cấp -xin vui lòng vào trang web: www.liemberger để tìm kiếm những phiên bản mới nhất","12.) WB-EasyCalc akan terus diperbaiki dan diperbarui - kunjungi www.liemberger.cc lagi untuk mendapatkan versi terbaru.","12.) El Balance hídrico se mejorará y actualizará continuamente, por lo que se recomienda que usted visite el sitio www.liemberger.cc de tiempo en tiempo para verificar la aparición de nuevas versiones.","12.) WB-EasyCalc è in costante aggiornamento e sviluppo - visitare www.liemberger.cc di tanto in tanto per nuove versioni.","12.) WB-EasyCalc será continuamente melhorado e atualizado - visite www.liemberger.cc de tempos em tempos para checar as novas versões.","12, A WB-EasyCalc programot folyamatosan fejlesztjük és frissítjük – időről időre nézzen vissza a www.liemberger.cc oldalunkra!","برنامج البنك الدولي WB-EasyCalc سيتم دائما تطويره وتحديثه , استمر\n في زيارة موقعنا من وقت لآخر www.liemberger.cc وتابع\n الإصدارات الجديدة\n","12.) จะมีการปรับปรุงและยกระดับโปรแกรม WB-EasyCalc \nอย่างต่อเนื่อง - ผู้ใช้สามารถเข้าไปเยี่ยมชมเป็นครั้งคราวได้ที่ \nwww.liemberger.cc  เพื่อตรวจสอบโปรแกรม รุ่น ใหม่ๆ","12.) WB-EasyCalc će biti konstantno unapređivan i nadgrađivan- posetite s' vremena na vreme http://www.liemberger.cc da proverite postojanje nove verzije","12.) WB-EasyCalc 會不停的被改善和提升。請不時遊覽www.liemberger.cc以便下載新版本","12.)WB-EasyCalc将会不断改进及升级－请不时造访 www.liemberger.cc 网页，以查询新版本之信息。","12.)WB-EasyCalc將會不斷改進及升級－請不時造訪 www.liemberger.cc 網頁，以查詢新版本之訊息。","12.) WB-EasyCalc va fi în continuu perfecţionat şi actualizat – vizitaţi din când în când www.liemberger.cc pentru a vedea noile versiuni.","12.) WB-EasyCalc će se stalno poboljšavati i unapređivati - posjetite www.liemberger.cc s vremena na vrijeme da provjerite da li je objavljena nova verzija.","12.) WB-EasyCalc vazhdimisht do të përmirësohet dhe ngritet në cilësi – vizitoni kohë pas kohe www.liemberger.cc për të parë nëse ka verzione të reja të programit.","12). WB-EasyCalc-ი მიდმივად ახლდება და უმჯობესდება - დროგამოშვებით ეწვიეთ  www.liemberger.cc-ის და იხილეთ ახალი ვერსიები","12.) WB-EasyCalc ще бъде непрекъснато подобрявана и ъпгрейдвана - посещавайте сайта www.liemberger периодично за да проверите за нови версии.","12.) WB-EasyCalc bude průběžně vylepšován a upgradován - občas znovu navštivte www.liemberger.cc a zkontrolujte nové verze."]
["Enter 1 to use an overall % for meter under-registration or 2 for manual entering of volumes and under-registration of different meter or customer types","Enter 1 to use an overall % for meter under-registration or 2 for manual entering of volumes and under-registration of different meter or customer types",{"$f":"'Language 3'!C147","v":0},"Enter 1 to use an overall % for meter under-registration or 2 for manual entering of volumes and under-registration of different meter or customer types","1 eingeben um einen eizigen Prozentsatz zu verwenden (Mittelwert für alle Zähler) oder 2 um Volumina und Prozentsätze für unterschiedliche Zähler typen oder Vunterschiedliche Verbrauchergruppen einzugeben","Enter 1 to use an overall % for meter under-registration or 2 for manual entering of volumes and under-registration of different meter or customer types","Ấn số 1 khi dùng % tổng đối với đồng hồ đo ghi thấp hơn thực tế hoặc số 2 khi nhập cụ thể khối lượng nước và lượng nước đo ghi thấp đối với từng đồng hồ khác nhau hoặc từng loại khách hàng khác nhau","Angka 1 untuk menggunakan % keseluruhan meter yang mencatat lebih rendah atau 2 untuk memasukkan volume metler yang mencatat lebih rendah secara manual atau meter yang berbeda atau jenis pelanggan ","Ingrese 1 para un valor general del subregistro de los medidores o 2 para entrar manualmente los volúmenes y el nivel de subregistro para diferentes tipos de medidores o clientes.","Enter 1 to use an overall % for meter under-registration or 2 for manual entering of volumes and under-registration of different meter or customer types","Digite 1 para usar % para submedição ou 2 para entrada manual de volumes e submedição para diferentes medidores  ou tipos de consumidores","Enter 1 to use an overall % for meter under-registration or 2 for manual entering of volumes and under-registration of different meter or customer types","Enter 1 to use an overall % for meter under-registration or 2 for manual entering of volumes and under-registration of different meter or customer types","กด 1 เพื่อหา % รวมทั้งหมดของมาตรที่อ่านปริมาณน้ำต่ำกว่าที่ใช้จริง  หรือกด 2 เพื่อหาปริมาณน้ำและรายการที่บันทึกต่ำกว่าการใช้จริงแยกตามขนาดของมาตรและประเภทของผู้ใช้น้ำ","Unesite 1 da koristite globalni % za grešku manjeg regisdtrovanja potrošnje ili 2 za korisničko unošenje zapremina i pod-registracije različitih tipova vodomera ili korisnika","若用整体水表失准百分比計算，输入1；若手工输入不同用户或不同类型水表的失准容量，则輸入2","欲使用水表负偏差所占之总百分比者，请进入１；欲手动输入不同水表或用户类型之水量及水表负偏差者，请进入２。","欲使用水錶負偏差所占之總百分比者，請進入１；欲手動輸入不同水錶或用戶類型之水量及水錶負偏差者，請進入２。","Introduceţi 1 pentru a utiliza un % fix pentru înregistrările diminuate ale contoarelor sau 2 pentru introducerea manuală a volumelor şi înregistrărilor diminuate pe diferite tipuri de contoare sau tipuri de consumatori","Unesite 1 ako želite koristiti jedan zajednički % za brojila koja registriraju manje ili unesite 2 za ručni unos količina i % za različite vrste potrošača ili brojila koja registriraju manje","Shtypni 1 për të përdorur % e përgjithshme të nën-leximit të ujëmatësve ose 2 për insertim manual të volumeve dhe nën-leximeve të ujëmatësve të ndryshëm ose kategorive të konsumatorëve","მრიცხველის გაუმართაობის საერთო %-ის გამოსაყენებლად შეიყვანეთ 1 ან სხვადასხვა ტიპის მრიცხველის გაუმართაობის და მნიშვნელობების ხელით ასაკრეფად შეიყვანეთ 2 ","Натиснете 1 за използване на общ % за водомерите в процес на регистрация или 2 за ръчно вкарване данни за обемите по време на регистрация за различни водомери или водомери по типове клиенти.","Zvolte 1 pro užití celkového % pro neregistrované měření nebo 2 pro manuální vkládání objemů"]
["Number of inactive accounts with existing service connection","Number of inactive accounts with existing service connection",{"$f":"'Language 3'!C148","v":0},"Number of inactive accounts with existing service connection","Anzahl der Hausanschlüsse die existieren aber derzeit nicht in Verwendung sind","Number of inactive accounts with existing service connection","Số lượng các khách hàng hiện đã có đấu nối nhưng không sử dụng","Jumlah pelanggan yang tidak aktif dengan pipa dinas yang ada","Nímero de cuentas inactivas con una conexión de servicio existente","Number of inactive accounts with existing service connection","Número de contas inativas com ligação existente","Number of inactive accounts with existing service connection","Number of inactive accounts with existing service connection","กรณีค้างชำระค่าน้ำ  (แต่ยังคงเป็นผู้ใช้น้ำอยู่)…….....ราย","Broj neaktivnih korisničkih naloga sa postojećim servisnim priključcima","不活跃接驳用戶总数","现有之闲置接户管数量","現有之閒置接管戶數量","Numărul de consumatori inactivi cu branşament existent ","Broj neaktivnih priključaka","Numri i kyçjeve jo-aktive me kyçje ekzistuese në shërbime","არაქტიური ანგარიშების რაოდენობა არსებულ დაერთებებზე","Брой неактивни клиенти със сградни отклонения","Počet neaktivních účtů s existující přípojkou"]
["The volumes used for this water balance are for a period of:","The volumes used for this water balance are for a period of:",{"$f":"'Language 3'!C149","v":0},"The volumes used for this water balance are for a period of:","Die Wassermengen die für diese Wasserbilanz verwendet wurden sind für einen Zeitraum von:","The volumes used for this water balance are for a period of:","Khối lượng sử dụng trong cân bằng nước này là của giai đoạn:"," Volume yang digunakan dalam neraca air ini untuk periode:","Los volúmenes empleados para este balance hídrico corresponden a un periodo de:","The volumes used for this water balance are for a period of:","Os volumes usados para este balanço são para um período de:","The volumes used for this water balance are for a period of:","The volumes used for this water balance are for a period of:","ปริมาณน้ำที่ใช้สำหรับการตรวจสอบปริมาณน้ำสำหรับช่วงเวลา.......","Zapremine korišćene za ovaj vodei balans su za period od:","此水量平衡的天数为:","本水平衡计算水量之用水期间：","本水平衡計算水量之用水期間：","Volumele folosite pentru Bilantul apei sunt pe o perioada de:","Količine korištene za ovaj vodni bilans su za period od:","Volumet e përdorura për këtë bilanc të ujit janë për periudhën:","მოცემული წყლის ბალანსისთვის გამოყენებული მაჩვენებლები ეკუთვნის შემდეგ პერიოდს:","Обема вода ползван за този воден баланс за период от","Objem vody použitý pro tuto bilanci vody je za období:"]
["days","days",{"$f":"'Language 3'!C150","v":0},"Days","Tagen","Days","Ngày","Hari ","Días","Days","Dias","Days","Days","วัน","Dana","天","日","日","Zile ","dana","Ditë","დღეები","Дни","dny"]
["m3/year","m3/year",{"$f":"'Language 3'!C151","v":0},"m3/an","m3/Jahr","м3/год","m3/năm","m3/tahun","m3/año","m3/anno","m3/ano","m3/év","م3\\سنويا","ลบ.ม./ปี","m3/god","立方米/年","m3/year","m3/year","m3/an","m3/god","m3/vit","მ3/წელიწადში","м3/год.","m3/rok"]
["Water Balance in m3/year","Water Balance in m3/year",{"$f":"'Language 3'!C152","v":0},"Water Balance in m3/year","Wasserbilanz in m3/Jahr","Water Balance in m3/year","Cân bằng Nước tính theo m3/năm"," Neraca Air dalam m3/tahun","Balance hídrico en m3 por año","Water Balance in m3/year","Balanço Hídrico em m3/ano","Water Balance in m3/year","Water Balance in m3/year","การตรวจสอบปริมาณน้ำเป็น ลบ.ม./ปี","Vodeni balans u m3/god","水量平衡 (立方米/年)","水平衡以 m3/year 计","以 m3/year 計之水平衡","Bilanţul apei în m3/an","Vodni bilans u m3/god","Bilanci i ujit në m3/vit","წყლის ბალანსი მ3/წელიწადში","Воден баланс в м3/год.","Bilance vody v m3/rok"]
["Water Balance in m3/day","Water Balance in m3/day",{"$f":"'Language 3'!C153","v":0},"Water Balance in m3/day","Wasserbilanz in m3/Tag","Water Balance in m3/day","Cân bằng Nước tính theo m3/ngày","Neraca Air dalam m3/hari","Balance hídrico en m3 por día","Water Balance in m3/day","Balanço Hídrico em m3/dia","Water Balance in m3/day","Water Balance in m3/day","การตรวจสอบปริมาณน้ำเป็น ลบ.ม./วัน","Vodeni balans u m3/dan","水量平衡 (立方米/天)","水平衡以 m3/day 计","以 m3/day 計之水平衡","Bilanţul apei în m3/zi","Vodni bilans u m3/dan","Bilanci i ujit në m3/ditë","წყლის ბალანსი მ3/დღეში","Воден баланс в м3/ден","Bilance vody v m3/den"]
["litres/connection/day","liters/connection/day",{"$f":"'Language 3'!C154","v":0},"litres/branchement/jour","Liter/Hausanschluss/Tag","литр/отвод.линия/день","l/đấu nối/ngày","liter/sambungan/hari","litros/conexión/día","litri/allacciamento/g","litros/ligação/dia","liter/csatlakozás/nap","لتر\\وصله\\يوم","ลิตร/ราย/วัน","lit/priključku/dan","公升/接驳用戶/天","升/接户管/日","公升/接管/日","Litri/branşament/zi","Litara/priključak/dan","litra/kyçje/ditë ","ლ/დაერთებაზე/დღეში","л/сгр. Откл/ден","litr/přípojka/den"]
["Water Balance in m3 for a period of","Water Balance in m3 for a period of",{"$f":"'Language 3'!C155","v":0},"Water Balance in m3 for a period of","Wasserbilanz in m3 für einen Zeitraum von","Water Balance in m3 for a period of","Cân bằng Nước tính theo m3 của giai đoạn","Neraca Air dalam m3 untuk periode ","Balance hídrico en m3 para un periodo de:","Water Balance in m3 for a period of","Balanço Hídrico em m3 para um período de","Water Balance in m3 for a period of","Water Balance in m3 for a period of","การตรวจสอบปริมาณน้ำเป็น ลบ.ม. สำหรับช่วงเวลา.......","Vodeni balans u m3 za period od","水量平衡（立方米) 天数：","以下期间以 m3 计之水平衡","以下期間以 m3 計之水平衡","Bilanţul apei în m3 pentru o perioadă de","Vodni bilans u m3 za period od","Bilanci i ujit në m3 për periudhën e ","წყლის ბალანსი მ3-ში მოცემული პერიოდისთვის","Воден баланс в м3 за период от","Bilance vody v m3 pro období"]
["Water Balance for Period","Water Balance for Period",{"$f":"'Language 3'!C156","v":0},"Water Balance for Period","Wasserbilanz für den Zeitraum","Water Balance for Period","Cân bằng Nước của giai đoạn","Neraca Air untuk Periode","Balance hídrico para el periodo:","Water Balance for Period","Balanço Hídrico para o período","Water Balance for Period","Water Balance for Period","การตรวจสอบปริมาณน้ำสำหรับช่วงเวลา.......","Vodeni balans za period","水量平衡期","水平衡期间","水平衡期間","Bilanţul apei pe perioada","Vodni bilans za period","Bilanci i ujit për periudhën","წყლის ბალანსი მოცემული პერიოდისთვის","Воден баланс за период","Bilance vody pro období"]
["Average Supply Time","Average Supply Time",{"$f":"'Language 3'!C157","v":0},"Average Supply Time","Durchschnittliche Versorgungszeit","Average Supply Time","Average Supply Time","Rata-rata Waktu Pasokan ","Continuidad del servicio","Average Supply Time","Average Supply Time","Average Supply Time","Average Supply Time","Average Supply Time","Average Supply Time","Average Supply Time","Average Supply Time","Average Supply Time","Average Supply Time","Average Supply Time","Average Supply Time","Average Supply Time","Средно време доставка на вода ","Průměrný čas zásobování"]
["Coverage","Coverage",{"$f":"'Language 3'!C158","v":0},"Coverage","Versorgungsgrad","Coverage","Coverage","Cakupan","Cobertura","Coverage","Coverage","Coverage","Coverage","Coverage","Coverage","Coverage","Coverage","Coverage","Coverage","Coverage","Coverage","Coverage","Покритие","Pokrytí"]
["THE \"WHAT IF\" TOOL","THE \"WHAT IF\" TOOL",{"$f":"'Language 3'!C159","v":0},"THE \"WHAT IF\" TOOL","WAS WÄRE WENN","THE \"WHAT IF\" TOOL","THE \"WHAT IF\" TOOL","PERANGKAT \"APA - JIKA\"","Análisis de hipótesis/sensibilidad","THE \"WHAT IF\" TOOL","THE \"WHAT IF\" TOOL","THE \"WHAT IF\" TOOL","THE \"WHAT IF\" TOOL","THE \"WHAT IF\" TOOL","THE \"WHAT IF\" TOOL","THE \"WHAT IF\" TOOL","THE \"WHAT IF\" TOOL","THE \"WHAT IF\" TOOL","THE \"WHAT IF\" TOOL","THE \"WHAT IF\" TOOL","THE \"WHAT IF\" TOOL","THE \"WHAT IF\" TOOL","СРЕДСТВО \"КАКВО ЩЕ СЕ СЛУЧИ АКО\"","\"CO KDYŽ\" NÁSTROJ"]
["IF","IF",{"$f":"'Language 3'!C160","v":0},"IF","WENN","IF","IF","JIKA","Si","IF","IF","IF","IF","IF","IF","IF","IF","IF","IF","IF","IF","IF","АКО","JESTLIŽE"]
["THEN","THEN",{"$f":"'Language 3'!C161","v":0},"THEN","DANN","THEN","THEN","MAKA","Entonces","THEN","THEN","THEN","THEN","THEN","THEN","THEN","THEN","THEN","THEN","THEN","THEN","THEN","ТОГАВА","POTOM"]
["h/day","h/day",{"$f":"'Language 3'!C162","v":0},"h/day","Stunden/Tag","h/day","h/day","jam/hari","h/día","h/day","h/day","h/day","h/day","h/day","h/day","h/day","h/day","h/day","h/day","h/day","h/day","h/day","ч/ден","h/den"]
["l/conn./d","l/conn./d",{"$f":"'Language 3'!C163","v":0},"l/conn./d","L/HA/Tag","l/conn./d","l/conn./d","l/samb./hari","litros/conexión/día","l/conn./d","l/conn./d","l/conn./d","l/conn./d","l/conn./d","l/conn./d","l/conn./d","l/conn./d","l/conn./d","l/conn./d","l/conn./d","l/conn./d","l/conn./d","л/m3/ден","l/příp./d"]
["from","from",{"$f":"'Language 3'!C164","v":0},"from","von","from","from","dari","de","from","from","from","from","from","from","from","from","from","from","from","from","from","от","z"]
["to","to",{"$f":"'Language 3'!C165","v":0},"to","auf","to","to","ke","a","to","to","to","to","to","to","to","to","to","to","to","to","to","до","do"]
["changes","changes",{"$f":"'Language 3'!C166","v":0},"changes","ändert sich","changes","changes","berubah","cambiara","changes","changes","changes","changes","changes","changes","changes","changes","changes","changes","changes","changes","changes","промени","změny"]
["increases","increases",{"$f":"'Language 3'!C167","v":0},"increases","steigt","increases","increases","meningkat","se incrementa ","increases","increases","increases","increases","increases","increases","increases","increases","increases","increases","increases","increases","increases","повишение","zvýšení"]
["change","change",{"$f":"'Language 3'!C168","v":0},"change","ändern sich","change","change","berubah","cambian","change","change","change","change","change","change","change","change","change","change","change","change","change","промяна","změna"]
["m","m",{"$f":"'Language 3'!C169","v":0},"m","m","m","m","m","m","m","m","m","m","m","m","m","m","m","m","m","m","m","m","m3/rok"]
["km","km",{"$f":"'Language 3'!C170","v":0},"km","km","km","km","km","km","km","km","km","km","km","km","km","km","km","km","km","km","km","km","km"]
["l/conn./d (w.s.p.)","l/conn./d (w.s.p.)",{"$f":"'Language 3'!C171","v":0},"l/conn./d (w.s.p.)","L/HA/Tag","l/conn./d (w.s.p.)","l/conn./d (w.s.p.)","l/samb/hari (w.s.p.)","litros/conexión/día (c.s.p.)","l/conn./d (w.s.p.)","l/conn./d (w.s.p.)","l/conn./d (w.s.p.)","l/conn./d (w.s.p.)","l/conn./d (w.s.p.)","l/conn./d (w.s.p.)","l/conn./d (w.s.p.)","l/conn./d (w.s.p.)","l/conn./d (w.s.p.)","l/conn./d (w.s.p.)","l/conn./d (w.s.p.)","l/conn./d (w.s.p.)","l/conn./d (w.s.p.)","л/сгр.откл./ден (КСП)","l/příp./d (w.s.p.)"]
["will increase approximately ","will increase approximately ",{"$f":"'Language 3'!C172","v":0},"will increase approximately ","steigt ungefähr","will increase approximately ","will increase approximately ","akan meningkat sekitar","se incrementará aproximadamente ","will increase approximately ","will increase approximately ","will increase approximately ","will increase approximately ","will increase approximately ","will increase approximately ","will increase approximately ","will increase approximately ","will increase approximately ","will increase approximately ","will increase approximately ","will increase approximately ","will increase approximately ","ще се повиши приблизително","zvýší přibližně"]
["will change approximately","will change approximately",{"$f":"'Language 3'!C173","v":0},"will change approximately","ändern sich ungefähr","will change approximately","will change approximately","akan meningkat sekitar","se cambiará aproximadamente","will change approximately","will change approximately","will change approximately","will change approximately","will change approximately","will change approximately","will change approximately","will change approximately","will change approximately","will change approximately","will change approximately","will change approximately","will change approximately","ще се промени приблизително","změní přibližně"]
["Length of mains","Length of mains",{"$f":"'Language 3'!C174","v":0},"Length of mains","Leitungslänge","Length of mains","Length of mains","Panjang Pipa [km]","Longitud de las tuberías [km]","Length of mains","Length of mains","Length of mains","Length of mains","Length of mains","Length of mains","Length of mains","Length of mains","Length of mains","Length of mains","Length of mains","Length of mains","Length of mains","дължина на главните тръбопроводи","Délka řadů"]
["Annual Revenues","Annual Revenues",{"$f":"'Language 3'!C175","v":0},"Annual Revenues","Jährliche Einnahmen","Annual Revenues","Annual Revenues","Pendapatan Tahunan","Ingresos anuales","Annual Revenues","Annual Revenues","Annual Revenues","Annual Revenues","Annual Revenues","Annual Revenues","Annual Revenues","Annual Revenues","Annual Revenues","Annual Revenues","Annual Revenues","Annual Revenues","Annual Revenues","Годишни приходи","Roční tržby"]
["Annual operating cost","Annual operating cost",{"$f":"'Language 3'!C176","v":0},"Annual operating cost","Jährliche Betriebskosten","Annual operating cost","Annual operating cost","Biaya Operasi Tahunan","Costo anual de operación","Annual operating cost","Annual operating cost","Annual operating cost","Annual operating cost","Annual operating cost","Annual operating cost","Annual operating cost","Annual operating cost","Annual operating cost","Annual operating cost","Annual operating cost","Annual operating cost","Annual operating cost","Годишни експлоатационни разходи","Roční provozní náklady"]
["The volume of NRW","The volume of NRW",{"$f":"'Language 3'!C177","v":0},"The volume of NRW","Volumen der nicht in Rechnung gestellten Wassermenge","The volume of NRW","The volume of NRW","Volume ATR","El volumen del ANF","The volume of NRW","The volume of NRW","The volume of NRW","The volume of NRW","The volume of NRW","The volume of NRW","The volume of NRW","The volume of NRW","The volume of NRW","The volume of NRW","The volume of NRW","The volume of NRW","The volume of NRW","Обем на ВНП","Obejm VNF"]
["The value of NRW","The value of NRW",{"$f":"'Language 3'!C178","v":0},"The value of NRW","Wert der nicht in Rechnung gestellten Wassermenge","The value of NRW","The value of NRW","Nilai ATR","El valor del ANF","The value of NRW","The value of NRW","The value of NRW","The value of NRW","The value of NRW","The value of NRW","The value of NRW","The value of NRW","The value of NRW","The value of NRW","The value of NRW","The value of NRW","The value of NRW","Стойност на ВНП","Hodnota VNF"]
["% of System Input Volume","% of System Input Volume",{"$f":"'Language 3'!C179","v":0},"% of System Input Volume","% der Einspeisemenge","% of System Input Volume","% of System Input Volume","% dari Volume Inpout Sistem","% del volumen que ingresa al sistema","% of System Input Volume","% of System Input Volume","% of System Input Volume","% of System Input Volume","% of System Input Volume","% of System Input Volume","% of System Input Volume","% of System Input Volume","% of System Input Volume","% of System Input Volume","% of System Input Volume","% of System Input Volume","% of System Input Volume","% от общото количество вода на входа на системата","% ze vstupního objemu"]
["% of Total Annual Operating Cost","% of Total Annual Operating Cost",{"$f":"'Language 3'!C180","v":0},"% of Total Annual Operating Cost","% der jährlichen Betriebskosten","% of Total Annual Operating Cost","% of Total Annual Operating Cost","% dari Total Biaya Operasi Tahunan","% del costo total anual de operación","% of Total Annual Operating Cost","% of Total Annual Operating Cost","% of Total Annual Operating Cost","% of Total Annual Operating Cost","% of Total Annual Operating Cost","% of Total Annual Operating Cost","% of Total Annual Operating Cost","% of Total Annual Operating Cost","% of Total Annual Operating Cost","% of Total Annual Operating Cost","% of Total Annual Operating Cost","% of Total Annual Operating Cost","% of Total Annual Operating Cost","% от годишните експлоатационни разходи","% z celkových ročních provozních nákladů"]
["ILI","ILI",{"$f":"'Language 3'!C181","v":0},"ILI","ILI","ILI","ILI","ILI","IFE","ILI","ILI","ILI","ILI","ILI","ILI","ILI","ILI","ILI","ILI","ILI","ILI","ILI","Инфраструктурен индекс на течове","ILI"]
["will change approximately","will change approximately",{"$f":"'Language 3'!C182","v":0},"will change approximately","ändert sich ungefähr","will change approximately","will change approximately","akan berubak sekitar","se cambiará aproximadamente","will change approximately","will change approximately","will change approximately","will change approximately","will change approximately","will change approximately","will change approximately","will change approximately","will change approximately","will change approximately","will change approximately","will change approximately","will change approximately","ще се промени приблизително","změní přibližně"]
["m3","m3",{"$f":"'Language 3'!C183","v":0},"m3","m3","м3","m3","m3","m3","m3","m3","m3","م3\\سنويا","(ลบ.ม.)","m3","立方米/年","立方米","m3","m3","m3","m3","მ3","м3","m3"]
["Number of Customers (active)","Number of Customers (active)",{"$f":"'Language 3'!C184","v":0},"Number of Customers (active)","Anzahl der Kunden","Number of Customers (active)","Number of Customers (active)","Number of Customers (active)","Número de clientes activos","Number of Customers (active)","Number of Customers (active)","Number of Customers (active)","Number of Customers (active)","Number of Customers (active)","Number of Customers (active)","Number of Customers (active)","Number of Customers (active)","Number of Customers (active)","Number of Customers (active)","Number of Customers (active)","Number of Customers (active)","Number of Customers (active)","Number of Customers (active)","Počet zákazníků (aktivních)"]
["liters/customer/day","liters/customer/day",{"$f":"'Language 3'!C185","v":0},"liters/customer/day","Liter/Kunde/Tag","liters/customer/day","liters/customer/day","liters/customer/day","litros/cliente/día","liters/customer/day","liters/customer/day","liters/customer/day","liters/customer/day","liters/customer/day","liters/customer/day","liters/customer/day","liters/customer/day","liters/customer/day","liters/customer/day","liters/customer/day","liters/customer/day","liters/customer/day","liters/customer/day","ltr/zákazník/den"]
["NRW Performance Indicators","NRW Performance Indicators",{"$f":"'Language 3'!C186","v":0},"NRW Performance Indicators","Kennzahlen der nicht in Rechnung gestellten Wassermenge","NRW Performance Indicators","NRW Performance Indicators","NRW Performance Indicators","Indicadores de pérdidas de agua","NRW Performance Indicators","NRW Performance Indicators","NRW Performance Indicators","NRW Performance Indicators","NRW Performance Indicators","NRW Performance Indicators","NRW Performance Indicators","NRW Performance Indicators","NRW Performance Indicators","NRW Performance Indicators","NRW Performance Indicators","NRW Performance Indicators","NRW Performance Indicators","NRW Performance Indicators","VNF výkonnostní ukazatel"]
["World class leakage management performance; only marginal further reductions theoretically possible","World class leakage management performance; only marginal further reductions theoretically possible",{"$f":"'Language 3'!C187","v":0},"World class leakage management performance; only marginal further reductions theoretically possible","Weltklasse Leckverlust Management; nur marginale weitere Reduktionen theoretisch möglich","World class leakage management performance; only marginal further reductions theoretically possible","World class leakage management performance; only marginal further reductions theoretically possible","World class leakage management performance; only marginal further reductions theoretically possible","Desempeño notable en la gestión de las pérdidas físicas. Teóricamente son posibles reducciones marginales adicionales.","World class leakage management performance; only marginal further reductions theoretically possible","World class leakage management performance; only marginal further reductions theoretically possible","World class leakage management performance; only marginal further reductions theoretically possible","World class leakage management performance; only marginal further reductions theoretically possible","World class leakage management performance; only marginal further reductions theoretically possible","World class leakage management performance; only marginal further reductions theoretically possible","World class leakage management performance; only marginal further reductions theoretically possible","World class leakage management performance; only marginal further reductions theoretically possible","World class leakage management performance; only marginal further reductions theoretically possible","World class leakage management performance; only marginal further reductions theoretically possible","World class leakage management performance; only marginal further reductions theoretically possible","World class leakage management performance; only marginal further reductions theoretically possible","World class leakage management performance; only marginal further reductions theoretically possible","World class leakage management performance; only marginal further reductions theoretically possible","Světová třída ve výkonnosti managementu ztrát; v budoucnu možné pouze teoretické okrajové snižování ztrát"]
["World class NRW management performance; the potential for further NRW reductions is small unless there is still potential for pressure reduction or accuracy improvement of large customer meters","World class NRW management performance; the potential for further NRW reductions is small unless there is still potential for pressure reduction or accuracy improvement of large customer meters",null,"World class NRW management performance; the potential for further NRW reductions is small unless there is still potential for pressure reduction or accuracy improvement of large customer meters","Weltklasse Wasserverlust Management; das Potenzial für weitere Wasserverlustreduktion ist klein, es sei denn es gibt noch Potenzial zur Druckreduzierung oder Verbesserung der Genauigkeit der Wasserzähler von Großabnehmern.","World class NRW management performance; the potential for further NRW reductions is small unless there is still potential for pressure reduction or accuracy improvement of large customer meters","World class NRW management performance; the potential for further NRW reductions is small unless there is still potential for pressure reduction or accuracy improvement of large customer meters","World class NRW management performance; the potential for further NRW reductions is small unless there is still potential for pressure reduction or accuracy improvement of large customer meters","Desempeño sobresaliente. El potencial para reducir las pérdidas es pequeño aun cuando existe potencial para la reducción de las presiones y la mejora de la gestión de los medidores de los grandes consumidores.","World class NRW management performance; the potential for further NRW reductions is small unless there is still potential for pressure reduction or accuracy improvement of large customer meters","World class NRW management performance; the potential for further NRW reductions is small unless there is still potential for pressure reduction or accuracy improvement of large customer meters","World class NRW management performance; the potential for further NRW reductions is small unless there is still potential for pressure reduction or accuracy improvement of large customer meters","World class NRW management performance; the potential for further NRW reductions is small unless there is still potential for pressure reduction or accuracy improvement of large customer meters","World class NRW management performance; the potential for further NRW reductions is small unless there is still potential for pressure reduction or accuracy improvement of large customer meters","World class NRW management performance; the potential for further NRW reductions is small unless there is still potential for pressure reduction or accuracy improvement of large customer meters","World class NRW management performance; the potential for further NRW reductions is small unless there is still potential for pressure reduction or accuracy improvement of large customer meters","World class NRW management performance; the potential for further NRW reductions is small unless there is still potential for pressure reduction or accuracy improvement of large customer meters","World class NRW management performance; the potential for further NRW reductions is small unless there is still potential for pressure reduction or accuracy improvement of large customer meters","World class NRW management performance; the potential for further NRW reductions is small unless there is still potential for pressure reduction or accuracy improvement of large customer meters","World class NRW management performance; the potential for further NRW reductions is small unless there is still potential for pressure reduction or accuracy improvement of large customer meters","World class NRW management performance; the potential for further NRW reductions is small unless there is still potential for pressure reduction or accuracy improvement of large customer meters","World class NRW management performance; the potential for further NRW reductions is small unless there is still potential for pressure reduction or accuracy improvement of large customer meters","World class NRW management performance; the potential for further NRW reductions is small unless there is still potential for pressure reduction or accuracy improvement of large customer meters","Světová třída ve výkonnosti managementu VNF; potenciál pro budoucí snížení VNF je malý, ledaže je ještě potenciál pro redukci tlaku nebo vylepšení přesnosti měření u velkých zákaznických vodoměrů"]
["Further NRW reduction may be uneconomic unless there are water shortages or very high water tariffs; a detailed water audit is required to identify cost-effective improvements\n","Further NRW reduction may be uneconomic unless there are water shortages or very high water tariffs; a detailed water audit is required to identify cost-effective improvements\n",null,"Further NRW reduction may be uneconomic unless there are water shortages or very high water tariffs; a detailed water audit is required to identify cost-effective improvements\n","Weitere Wasserverlustreduktion könnte schon es sei denn es gibt Wassermangel sind oder der Wasserpreis ist sehr hoch; eine detaillierte Studie ist erforderlich um kosteneffektive Verbesserungen zu identifizieren","Further NRW reduction may be uneconomic unless there are water shortages or very high water tariffs; a detailed water audit is required to identify cost-effective improvements\n","Further NRW reduction may be uneconomic unless there are water shortages or very high water tariffs; a detailed water audit is required to identify cost-effective improvements\n","Further NRW reduction may be uneconomic unless there are water shortages or very high water tariffs; a detailed water audit is required to identify cost-effective improvements\n","Reducciones adicionales de las pérdidas pueden ser antieconómicas si no hay escasez de agua o las tarifas son muy altas. Se requiere de una auditoria detallada para identificar mejoras de costo eficiente.\n","Further NRW reduction may be uneconomic unless there are water shortages or very high water tariffs; a detailed water audit is required to identify cost-effective improvements\n","Further NRW reduction may be uneconomic unless there are water shortages or very high water tariffs; a detailed water audit is required to identify cost-effective improvements\n","Further NRW reduction may be uneconomic unless there are water shortages or very high water tariffs; a detailed water audit is required to identify cost-effective improvements\n","Further NRW reduction may be uneconomic unless there are water shortages or very high water tariffs; a detailed water audit is required to identify cost-effective improvements\n","Further NRW reduction may be uneconomic unless there are water shortages or very high water tariffs; a detailed water audit is required to identify cost-effective improvements\n","Further NRW reduction may be uneconomic unless there are water shortages or very high water tariffs; a detailed water audit is required to identify cost-effective improvements\n","Further NRW reduction may be uneconomic unless there are water shortages or very high water tariffs; a detailed water audit is required to identify cost-effective improvements\n","Further NRW reduction may be uneconomic unless there are water shortages or very high water tariffs; a detailed water audit is required to identify cost-effective improvements\n","Further NRW reduction may be uneconomic unless there are water shortages or very high water tariffs; a detailed water audit is required to identify cost-effective improvements\n","Further NRW reduction may be uneconomic unless there are water shortages or very high water tariffs; a detailed water audit is required to identify cost-effective improvements\n","Further NRW reduction may be uneconomic unless there are water shortages or very high water tariffs; a detailed water audit is required to identify cost-effective improvements\n","Further NRW reduction may be uneconomic unless there are water shortages or very high water tariffs; a detailed water audit is required to identify cost-effective improvements\n","Further NRW reduction may be uneconomic unless there are water shortages or very high water tariffs; a detailed water audit is required to identify cost-effective improvements\n","Further NRW reduction may be uneconomic unless there are water shortages or very high water tariffs; a detailed water audit is required to identify cost-effective improvements\n","Budoucí snížení VNF může být neekonomické, ledaže je zde nedostatek vody nebo velmi vysoké poplatky za odběr vody; detailní analýza je vyžadována k identifikaci nákladově efektivních vylepšení"]
["Potential for marked improvements; establish a water balance to quantify the components of NRW; consider pressure management, better active leakage control practices, and better network maintenance; improve customer meter management, review meter reading, data handling and billing processed and identify improvement potentials\n","Potential for marked improvements; establish a water balance to quantify the components of NRW; consider pressure management, better active leakage control practices, and better network maintenance; improve customer meter management, review meter reading, data handling and billing processed and identify improvement potentials\n",{"$f":"'Language 3'!C190","v":0},"Potential for marked improvements; establish a water balance to quantify the components of NRW; consider pressure management, better active leakage control practices, and better network maintenance; improve customer meter management, review meter reading, data handling and billing processed and identify improvement potentials\n","Potenzial für deutliche Verbesserungen; erstelle eine Wasserbilanz um die  Komponenten der Wasserverluste zu quantifizieren;ziehe Druckreduktion, intensivere Lecksuche und eine bessere Wartung des Netzes in Betracht; Verbesserung des Kundenwasserzählermanagements, Zählerablesung, Datenverarbeitung und Abrechnung untersuchen und Verbesserungspotenziale identifizieren","Potential for marked improvements; establish a water balance to quantify the components of NRW; consider pressure management, better active leakage control practices, and better network maintenance; improve customer meter management, review meter reading, data handling and billing processed and identify improvement potentials\n","Potential for marked improvements; establish a water balance to quantify the components of NRW; consider pressure management, better active leakage control practices, and better network maintenance; improve customer meter management, review meter reading, data handling and billing processed and identify improvement potentials\n","Potential for marked improvements; establish a water balance to quantify the components of NRW; consider pressure management, better active leakage control practices, and better network maintenance; improve customer meter management, review meter reading, data handling and billing processed and identify improvement potentials\n","Potencial de mejora importante. Establezca un abalance hídrico para cuantificar los componentes de las pérdidas. Considere la gestión de presiones, mejores prácticas de control activo de fugas, y un mejor mantenimiento de la infraestructura. Mejore la gestión de los medidores, revise la lectura de los medidores, la manipulación de los datos y el proceso de facturación e identifique mejoras potenciales.\n","Potential for marked improvements; establish a water balance to quantify the components of NRW; consider pressure management, better active leakage control practices, and better network maintenance; improve customer meter management, review meter reading, data handling and billing processed and identify improvement potentials\n","Potential for marked improvements; establish a water balance to quantify the components of NRW; consider pressure management, better active leakage control practices, and better network maintenance; improve customer meter management, review meter reading, data handling and billing processed and identify improvement potentials\n","Potential for marked improvements; establish a water balance to quantify the components of NRW; consider pressure management, better active leakage control practices, and better network maintenance; improve customer meter management, review meter reading, data handling and billing processed and identify improvement potentials\n","Potential for marked improvements; establish a water balance to quantify the components of NRW; consider pressure management, better active leakage control practices, and better network maintenance; improve customer meter management, review meter reading, data handling and billing processed and identify improvement potentials\n","Potential for marked improvements; establish a water balance to quantify the components of NRW; consider pressure management, better active leakage control practices, and better network maintenance; improve customer meter management, review meter reading, data handling and billing processed and identify improvement potentials\n","Potential for marked improvements; establish a water balance to quantify the components of NRW; consider pressure management, better active leakage control practices, and better network maintenance; improve customer meter management, review meter reading, data handling and billing processed and identify improvement potentials\n","Potential for marked improvements; establish a water balance to quantify the components of NRW; consider pressure management, better active leakage control practices, and better network maintenance; improve customer meter management, review meter reading, data handling and billing processed and identify improvement potentials\n","Potential for marked improvements; establish a water balance to quantify the components of NRW; consider pressure management, better active leakage control practices, and better network maintenance; improve customer meter management, review meter reading, data handling and billing processed and identify improvement potentials\n","Potential for marked improvements; establish a water balance to quantify the components of NRW; consider pressure management, better active leakage control practices, and better network maintenance; improve customer meter management, review meter reading, data handling and billing processed and identify improvement potentials\n","Potential for marked improvements; establish a water balance to quantify the components of NRW; consider pressure management, better active leakage control practices, and better network maintenance; improve customer meter management, review meter reading, data handling and billing processed and identify improvement potentials\n","Potential for marked improvements; establish a water balance to quantify the components of NRW; consider pressure management, better active leakage control practices, and better network maintenance; improve customer meter management, review meter reading, data handling and billing processed and identify improvement potentials\n","Potential for marked improvements; establish a water balance to quantify the components of NRW; consider pressure management, better active leakage control practices, and better network maintenance; improve customer meter management, review meter reading, data handling and billing processed and identify improvement potentials\n","Potential for marked improvements; establish a water balance to quantify the components of NRW; consider pressure management, better active leakage control practices, and better network maintenance; improve customer meter management, review meter reading, data handling and billing processed and identify improvement potentials\n","Potential for marked improvements; establish a water balance to quantify the components of NRW; consider pressure management, better active leakage control practices, and better network maintenance; improve customer meter management, review meter reading, data handling and billing processed and identify improvement potentials\n","Potenciál pro značné zlepšení; udělat bilanci vody ke kvantifikaci jednotlivých komponentů VNF; sestávající se z managementu tlaku, lepších praktik pro aktivní vyhledávání ztrát a lepší údržby sítě; vylepšení managementu měření u zákazníků; přezkoumant odečet měření, práci s daty a fakturační proces a identifikovat potenciální vylepšení"]
["Poor NRW record; tolerable only if water is plentiful and cheap; even then, analyze level and causes of NRW and intensify NRW reduction efforts\n","Poor NRW record; tolerable only if water is plentiful and cheap; even then, analyze level and causes of NRW and intensify NRW reduction efforts\n",{"$f":"'Language 3'!C191","v":0},"Poor NRW record; tolerable only if water is plentiful and cheap; even then, analyze level and causes of NRW and intensify NRW reduction efforts\n","Hohe Wasserverluste, nur tolerierbar wenn Wasser reichlich vorhanden und preiswert is, aber auch dann analysiere die Ursachen der Wasserverluste und intensiviere Anstrengungen zu ihrer Reduktion.","Poor NRW record; tolerable only if water is plentiful and cheap; even then, analyze level and causes of NRW and intensify NRW reduction efforts\n","Poor NRW record; tolerable only if water is plentiful and cheap; even then, analyze level and causes of NRW and intensify NRW reduction efforts\n","Poor NRW record; tolerable only if water is plentiful and cheap; even then, analyze level and causes of NRW and intensify NRW reduction efforts\n","Desempeño pobre. Esto puede ser aceptable solo sí la disponibilidad del agua es abundante y de bajo costo. Inclusive en este caso se deben analizar las causas y el nivel de las pérdidas e intensificar los esfuerzos para reducir las pérdidas.\n","Poor NRW record; tolerable only if water is plentiful and cheap; even then, analyze level and causes of NRW and intensify NRW reduction efforts\n","Poor NRW record; tolerable only if water is plentiful and cheap; even then, analyze level and causes of NRW and intensify NRW reduction efforts\n","Poor NRW record; tolerable only if water is plentiful and cheap; even then, analyze level and causes of NRW and intensify NRW reduction efforts\n","Poor NRW record; tolerable only if water is plentiful and cheap; even then, analyze level and causes of NRW and intensify NRW reduction efforts\n","Poor NRW record; tolerable only if water is plentiful and cheap; even then, analyze level and causes of NRW and intensify NRW reduction efforts\n","Poor NRW record; tolerable only if water is plentiful and cheap; even then, analyze level and causes of NRW and intensify NRW reduction efforts\n","Poor NRW record; tolerable only if water is plentiful and cheap; even then, analyze level and causes of NRW and intensify NRW reduction efforts\n","Poor NRW record; tolerable only if water is plentiful and cheap; even then, analyze level and causes of NRW and intensify NRW reduction efforts\n","Poor NRW record; tolerable only if water is plentiful and cheap; even then, analyze level and causes of NRW and intensify NRW reduction efforts\n","Poor NRW record; tolerable only if water is plentiful and cheap; even then, analyze level and causes of NRW and intensify NRW reduction efforts\n","Poor NRW record; tolerable only if water is plentiful and cheap; even then, analyze level and causes of NRW and intensify NRW reduction efforts\n","Poor NRW record; tolerable only if water is plentiful and cheap; even then, analyze level and causes of NRW and intensify NRW reduction efforts\n","Poor NRW record; tolerable only if water is plentiful and cheap; even then, analyze level and causes of NRW and intensify NRW reduction efforts\n","Poor NRW record; tolerable only if water is plentiful and cheap; even then, analyze level and causes of NRW and intensify NRW reduction efforts\n","Špatný VNF výsledek; lze tolerovat pouze když je vody dost a je levná, dokonce i tehdy analyzovat úroveň a příčiny VNF a zintenzivnit snižování VNF"]
["Highly inefficient; a comprehensive NRW reduction program is imperative and high-priority","Highly inefficient; a comprehensive NRW reduction program is imperative and high-priority",{"$f":"'Language 3'!C192","v":0},"Highly inefficient; a comprehensive NRW reduction program is imperative and high-priority","Sehr ineffizient. Ein umfassendes Programm zur Wasserverlustreduktion ist hat hohe Priorität.","Highly inefficient; a comprehensive NRW reduction program is imperative and high-priority","Highly inefficient; a comprehensive NRW reduction program is imperative and high-priority","Highly inefficient; a comprehensive NRW reduction program is imperative and high-priority","Altamente ineficiente. Es imperativo y de alta prioridad desarrollar un programa integral de reducción de pérdidas.","Highly inefficient; a comprehensive NRW reduction program is imperative and high-priority","Highly inefficient; a comprehensive NRW reduction program is imperative and high-priority","Highly inefficient; a comprehensive NRW reduction program is imperative and high-priority","Highly inefficient; a comprehensive NRW reduction program is imperative and high-priority","Highly inefficient; a comprehensive NRW reduction program is imperative and high-priority","Highly inefficient; a comprehensive NRW reduction program is imperative and high-priority","Highly inefficient; a comprehensive NRW reduction program is imperative and high-priority","Highly inefficient; a comprehensive NRW reduction program is imperative and high-priority","Highly inefficient; a comprehensive NRW reduction program is imperative and high-priority","Highly inefficient; a comprehensive NRW reduction program is imperative and high-priority","Highly inefficient; a comprehensive NRW reduction program is imperative and high-priority","Highly inefficient; a comprehensive NRW reduction program is imperative and high-priority","Highly inefficient; a comprehensive NRW reduction program is imperative and high-priority","Highly inefficient; a comprehensive NRW reduction program is imperative and high-priority","Vysoce neefektivní; komplexní program na snížení VNF je nezbytně nutný a vysoce prioritní"]
["International NRW Assessment Matrix","International NRW Assessment Matrix",{"$f":"'Language 3'!C193","v":0},"International NRW Assessment Matrix","Internationale Wasserverlust- Bestimmungstabelle","International NRW Assessment Matrix","International NRW Assessment Matrix","International NRW Assessment Matrix","Matriz internacional de evaluación del desempeño","International NRW Assessment Matrix","International NRW Assessment Matrix","International NRW Assessment Matrix","International NRW Assessment Matrix","International NRW Assessment Matrix","International NRW Assessment Matrix","International NRW Assessment Matrix","International NRW Assessment Matrix","International NRW Assessment Matrix","International NRW Assessment Matrix","International NRW Assessment Matrix","International NRW Assessment Matrix","International NRW Assessment Matrix","International NRW Assessment Matrix","Mezinárodní matice posouzení VNF"]
["Total Volume (m3/d)","Total Volume (m3/d)",{"$f":"'Language 3'!C194","v":0},"Total Volume (m3/d)","Gesamtvolumen (m3/Tag)","Total Volume (m3/d)","Total Volume (m3/d)","Total Volume (m3/d)","Volumen total(m3/d)","Total Volume (m3/d)","Total Volume (m3/d)","Total Volume (m3/d)","Total Volume (m3/d)","Total Volume (m3/d)","Total Volume (m3/d)","Total Volume (m3/d)","Total Volume (m3/d)","Total Volume (m3/d)","Total Volume (m3/d)","Total Volume (m3/d)","Total Volume (m3/d)","Total Volume (m3/d)","Total Volume (m3/d)","Celkový objem (m3/d)"]
["Volume which could be sold to existing or new customers (m3/d)","Volume which could be sold to existing or new customers (m3/d)",{"$f":"'Language 3'!C195","v":0},"Volume which could be sold to existing or new customers (m3/d)","Volumen dass an bestehende oder zusätzliche Abnehmer verkauft werden könnte (m3/Tag)","Volume which could be sold to existing or new customers (m3/d)","Volume which could be sold to existing or new customers (m3/d)","Volume which could be sold to existing or new customers (m3/d)","Volumen que puede ser vendido a clientes existentes o potenciales (m3/d)","Volume which could be sold to existing or new customers (m3/d)","Volume which could be sold to existing or new customers (m3/d)","Volume which could be sold to existing or new customers (m3/d)","Volume which could be sold to existing or new customers (m3/d)","Volume which could be sold to existing or new customers (m3/d)","Volume which could be sold to existing or new customers (m3/d)","Volume which could be sold to existing or new customers (m3/d)","Volume which could be sold to existing or new customers (m3/d)","Volume which could be sold to existing or new customers (m3/d)","Volume which could be sold to existing or new customers (m3/d)","Volume which could be sold to existing or new customers (m3/d)","Volume which could be sold to existing or new customers (m3/d)","Volume which could be sold to existing or new customers (m3/d)","Volume which could be sold to existing or new customers (m3/d)","Objem který může být prodán stávajícím nebo novým zákazníkům (m3/d)"]
["Store up to 10 years of data and copy/paste easily to other Excel sheets!","Store up to 10 years of data and copy/paste easily to other Excel sheets!",{"$f":"'Language 3'!C196","v":0},"Store up to 10 years of data and copy/paste easily to other Excel sheets!","Speichere Daten von bis zu 10 Jahren un kopiere sie einfach in andere Dokumente.","Store up to 10 years of data and copy/paste easily to other Excel sheets!","Store up to 10 years of data and copy/paste easily to other Excel sheets!","Store up to 10 years of data and copy/paste easily to other Excel sheets!","Almacene hasta 10 años de datos y copie o pegue fácilmente a otras hojas de Excel!","Store up to 10 years of data and copy/paste easily to other Excel sheets!","Store up to 10 years of data and copy/paste easily to other Excel sheets!","Store up to 10 years of data and copy/paste easily to other Excel sheets!","Store up to 10 years of data and copy/paste easily to other Excel sheets!","Store up to 10 years of data and copy/paste easily to other Excel sheets!","Store up to 10 years of data and copy/paste easily to other Excel sheets!","Store up to 10 years of data and copy/paste easily to other Excel sheets!","Store up to 10 years of data and copy/paste easily to other Excel sheets!","Store up to 10 years of data and copy/paste easily to other Excel sheets!","Store up to 10 years of data and copy/paste easily to other Excel sheets!","Store up to 10 years of data and copy/paste easily to other Excel sheets!","Store up to 10 years of data and copy/paste easily to other Excel sheets!","Store up to 10 years of data and copy/paste easily to other Excel sheets!","Store up to 10 years of data and copy/paste easily to other Excel sheets!","Uložení dat až na 10 let a snadné kopírování/vložení do jiných sešitů Excelu!"]
["Copy \"Present\" to this column","Click the button to copy \"Present\" to this column",{"$f":"'Language 3'!C197","v":0},"Click the button to copy \"Present\" to this column","Klicke auf die Schaltfläche um die aktuellen Daten in diese Spalte zu kopieren","Click the button to copy \"Present\" to this column","Click the button to copy \"Present\" to this column","Click the button to copy \"Present\" to this column","Presione el botón para copiar \"Actual\" en esta columna","Click the button to copy \"Present\" to this column","Click the button to copy \"Present\" to this column","Click the button to copy \"Present\" to this column","Click the button to copy \"Present\" to this column","Click the button to copy \"Present\" to this column","Click the button to copy \"Present\" to this column","Click the button to copy \"Present\" to this column","Click the button to copy \"Present\" to this column","Click the button to copy \"Present\" to this column","Click the button to copy \"Present\" to this column","Click the button to copy \"Present\" to this column","Click the button to copy \"Present\" to this column","Click the button to copy \"Present\" to this column","Click the button to copy \"Present\" to this column","Klikněte na tlačítko ke kopírování \"Současnosti\" do tohoto sloupce"]
["Present","Present",{"$f":"'Language 3'!C198","v":0},"Present","Aktuell","Present","Present","Present","Actual","Present","Present","Present","Present","Present","Present","Present","Present","Present","Present","Present","Present","Present","Present","Současnost"]
["Historic data","Historic data",{"$f":"'Language 3'!C199","v":0},"Historic data","Alte Daten","Historic data","Historic data","Historic data","Datos históricos","Historic data","Historic data","Historic data","Historic data","Historic data","Historic data","Historic data","Historic data","Historic data","Historic data","Historic data","Historic data","Historic data","Historic data","Historická data"]
["Additional volume sold to existing customers","Additional volume sold to existing customers",{"$f":"'Language 3'!C200","v":0},"Additional volume sold to existing customers","Volumen das zusätzlich an bestehende Abnehmber verkauft wird","Additional volume sold to existing customers","Additional volume sold to existing customers","Additional volume sold to existing customers","Volumen adicional vendida a los clientes existentes","Additional volume sold to existing customers","Additional volume sold to existing customers","Additional volume sold to existing customers","Additional volume sold to existing customers","Additional volume sold to existing customers","Additional volume sold to existing customers","Additional volume sold to existing customers","Additional volume sold to existing customers","Additional volume sold to existing customers","Additional volume sold to existing customers","Additional volume sold to existing customers","Additional volume sold to existing customers","Additional volume sold to existing customers","Additional volume sold to existing customers","Dodatečný objem prodaný existujícím zákazníkům"]
["additional m3/d","additional m3/d",{"$f":"'Language 3'!C201","v":0},"additional m3/d","m3/Tag zusätzlich","additional m3/d","additional m3/d","additional m3/d","adicional m3/d","additional m3/d","additional m3/d","additional m3/d","additional m3/d","additional m3/d","additional m3/d","additional m3/d","additional m3/d","additional m3/d","additional m3/d","additional m3/d","additional m3/d","additional m3/d","additional m3/d","dodatečný m3/d"]
["Annual Production and Distribution Cost","Annual Production and Distribution Cost",{"$f":"'Language 3'!C202","v":0},"Coûts de Production et de Distribution","Jährliche Aufbereitungs- und Pumpkosten","Затраты на подкачку и отчистку","Chi phí sản xuất và phân phối","Biaya Produksi dan Distribusi","Costos annual de producción y distribución      ","Produzione Distribuzione Costo                 ","Custo variável de produção e distribuição","Termelés és elosztás változó költsége","تكلفه الانتاج والتوزيع ","ต้นทุนผันแปรของการผลิตและจ่ายน้ำ","Varijabilna proizvodnja i koštanje distribucije               ","变动生产成本和配水成本","变动制水及配水成本","變動產水及配水成本","Costuri variabile de producţie şi distribuţie ","Troškovi proizvodnje i distribucije        ","Prodhimi variabël dhe kostoja e distribuimit","წყლის წარმოებისა და დისტრიბუციის ხარჯები","Променливи разходи за производство и разпределение ","Roční výrobní a distribuční náklady"]

{"sheet":"Language 3","index":19,"n_rows":204,"n_cols":5,"rows_kept":204,"cut":false,"hidden":false,"merged":[[1,0,1,2],[4,4,12,5],[1,4,2,6]]}
[]
["Language Customisation",null,null,null,{"$f":"'Used Language'!C128","v":"Home"}]
[]
["English - World Bank preferred Terminology",null,"My Language"]
[{"$f":"'Language 2'!B5","v":"Getting Started"},null,null,null,"WARNING: if possible, the translated text should not exceed the length of the English text or at least not the texts of any of the other languages. This can be best seen on the sheet \"Language 2\""]
[{"$f":"'Language 2'!B6","v":"Water Balance"}]
[{"$f":"'Language 2'!B7","v":"Performance Indicators"}]
[{"$f":"'Language 2'!B8","v":"Network Data"}]
[{"$f":"'Language 2'!B9","v":"Pressure"}]
[{"$f":"'Language 2'!B10","v":"System Input Volume"}]
[{"$f":"'Language 2'!B11","v":"Billed Consumption"}]
[{"$f":"'Language 2'!B12","v":"Unbilled Consumption"}]
[{"$f":"'Language 2'!B13","v":"Unauthorized Consumption"}]
[{"$f":"'Language 2'!B14","v":"Customer Meter Inaccuracies and Data Handling Errors"}]
[{"$f":"'Language 2'!B15","v":"Change Language"},null,"Change Language"]
[{"$f":"'Language 2'!B16","v":"System Input Volume"}]
[{"$f":"'Language 2'!B17","v":"Authorized Consumption"}]
[{"$f":"'Language 2'!B18","v":"Water Losses"}]
[{"$f":"'Language 2'!B19","v":"Billed Authorized Consumption"}]
[{"$f":"'Language 2'!B20","v":"Unbilled Authorized Consumption"}]
[{"$f":"'Language 2'!B21","v":"Commercial Losses"}]
[{"$f":"'Language 2'!B22","v":"Physical Losses"}]
[{"$f":"'Language 2'!B23","v":"Billed Metered Consumption"}]
[{"$f":"'Language 2'!B24","v":"Billed Unmetered Consumption"}]
[{"$f":"'Language 2'!B25","v":"Unbilled Metered Consumption"}]
[{"$f":"'Language 2'!B26","v":"Unbilled Unmetered Consumption"}]
[{"$f":"'Language 2'!B27","v":"Customer Meter Inaccuracies and Data Handling Errors"}]
[{"$f":"'Language 2'!B28","v":"Revenue Water"}]
[{"$f":"'Language 2'!B29","v":"Non-Revenue Water"}]
[{"$f":"'Language 2'!B30","v":"Error Margin [+/-]:"}]
[{"$f":"'Language 2'!B31","v":"m3/day"}]
[{"$f":"'Language 2'!B32","v":"Best Estimate"}]
[{"$f":"'Language 2'!B33","v":"Error Margin\n[+/- %]"}]
[{"$f":"'Language 2'!B34","v":"Lower Bound"}]
[{"$f":"'Language 2'!B35","v":"Upper Bound"}]
[{"$f":"'Language 2'!B36","v":"Level of Service"}]
[{"$f":"'Language 2'!B37","v":"Volume of Physical Losses"}]
[{"$f":"'Language 2'!B38","v":"Physical Loss Performance Indicators"}]
[{"$f":"'Language 2'!B39","v":"Commercial Loss Performance Indicators"}]
[{"$f":"'Language 2'!B40","v":"Financial Performance Indicators"}]
[{"$f":"'Language 2'!B41","v":"Performance Group"}]
[{"$f":"'Language 2'!B42","v":"Standard"}]
[{"$f":"'Language 2'!B43","v":"Low and Middle Income Countries"}]
[{"$f":"'Language 2'!B44","v":"Average Supply Time [h/day]"}]
[{"$f":"'Language 2'!B45","v":"Average Pressure [m]"}]
[{"$f":"'Language 2'!B46","v":"CAPL - Current Annual Volume of Physical Losses [m3/day]"}]
[{"$f":"'Language 2'!B47","v":"MAPL - Minimum Achievable Volume of Physical Losses [m3/day]"}]
[{"$f":"'Language 2'!B48","v":"Liters per Connection per Day (w.s.p.)\n\nw.s.p.: when the system is pressurized - this means the value is already corrected in the case of intermittent supply"}]
[{"$f":"'Language 2'!B49","v":"Liters per Connection per Day per meter Pressure (w.s.p.)"}]
[{"$f":"'Language 2'!B50","v":"Infrastructure Leakage Index (ILI)"}]
[{"$f":"'Language 2'!B51","v":"Commercial Losses expressed in % of Authorized Consumption"}]
[{"$f":"'Language 2'!B52","v":"Volume of Non-Revenue Water expressed in % of System Input Volume"}]
[{"$f":"'Language 2'!B53","v":"Value of Non-Revenue Water expressed in % of Annual Operating Cost"}]
[{"$f":"'Language 2'!B54","v":"Distribution and Transmission Mains"}]
[{"$f":"'Language 2'!B55","v":"Service Connections"}]
[{"$f":"'Language 2'!B56","v":"Description"}]
[{"$f":"'Language 2'!B57","v":"Length\n[km]"}]
[{"$f":"'Language 2'!B58","v":"Number"}]
[{"$f":"'Language 2'!B59","v":"Total [km]"}]
[{"$f":"'Language 2'!B60","v":"Possible underestimation"}]
[{"$f":"'Language 2'!B61","v":"Pipe Length [km]"}]
[{"$f":"'Language 2'!B62","v":"Minimum"}]
[{"$f":"'Language 2'!B63","v":"Maximum"}]
[{"$f":"'Language 2'!B64","v":"Best Estimate"}]
[{"$f":"'Language 2'!B65","v":"Number of Connections of Registered Customers\n\nNote: this figure is most likely (a little bit) less than the number of customers"}]
[{"$f":"'Language 2'!B66","v":"Estimated Number of Illegal Connections"}]
[{"$f":"'Language 2'!B67","v":"Number of Connections"}]
[{"$f":"'Language 2'!B68","v":"Average Length of Service Connection from Property Boundary to Customer Meter [meter]"}]
[{"$f":"'Language 2'!B69","v":"Total Length of Service Connections from Property Boundary to Customer Meter [kilometer]"}]
[{"$f":"'Language 2'!B70","v":"Average Pressure"}]
[{"$f":"'Language 2'!B71","v":"Intermittent Supply"}]
[{"$f":"'Language 2'!B72","v":"Area"}]
[{"$f":"'Language 2'!B73","v":"Approximate Number of Connections"}]
[{"$f":"'Language 2'!B74","v":"Daily Average Pressure\n[m]"}]
[{"$f":"'Language 2'!B75","v":"Supply Time\n[days per week]"}]
[{"$f":"'Language 2'!B76","v":"Supply Time\n[hours per day]"}]
[{"$f":"'Language 2'!B77","v":"Average Daily Supply Time [hours]"}]
[{"$f":"'Language 2'!B78","v":"Water Source"}]
[{"$f":"'Language 2'!B79","v":"System Input Volume [m3]"}]
[{"$f":"'Language 2'!B80","v":"Financial Information"}]
[{"$f":"'Language 2'!B81","v":"Average Tariff"}]
[{"$f":"'Language 2'!B82","v":"Variable Production and Distribution Cost\n(Marginal Cost of Water)"}]
[{"$f":"'Language 2'!B83","v":"per m3"}]
[{"$f":"'Language 2'!B84","v":"Currency"}]
[{"$f":"'Language 2'!B85","v":"Components of Non-Revenue Water to be valued at either (i) Average Tariff - if water could be sold or (ii) Production and Distribution Cost if a reduction of the NRW component would only lead to reduced System Input Volume. For Average Tariff enter 1, for Production and Distribution Cost enter 2."}]
[{"$f":"'Language 2'!B86","v":"NRW Component"}]
[{"$f":"'Language 2'!B87","v":"Annual Value"}]
[{"$f":"'Language 2'!B88","v":"Total Value of NRW"}]
[{"$f":"'Language 2'!B89","v":"Annual Operating Cost (without Depreciation)"}]
[{"$f":"'Language 2'!B90","v":"Bulk Water Supply (Export)"}]
[{"$f":"'Language 2'!B91","v":"[m3]"}]
[{"$f":"'Language 2'!B92","v":"Estimated Number"}]
[{"$f":"'Language 2'!B93","v":"Persons per House"}]
[{"$f":"'Language 2'!B94","v":"Consumption [liters/person/day]"}]
[{"$f":"'Language 2'!B95","v":"Total\n[m3]"}]
[{"$f":"'Language 2'!B96","v":"Consumption\n[liters/connection/day]"}]
[{"$f":"'Language 2'!B97","v":"Consumption\n[liters/customer/day]"}]
[{"$f":"'Language 2'!B98","v":"Unauthorized Consumption [m3]"}]
[{"$f":"'Language 2'!B99","v":"Meter under-registration"}]
[{"$f":"'Language 2'!B100","v":"Estimated % of under-reading"}]
[{"$f":"'Language 2'!B101","v":"Billed Metered Consumption (without Bulk Supply)"}]
[{"$f":"'Language 2'!B102","v":"Metered Bulk Supply (Export)"}]
[{"$f":"'Language 2'!B103","v":"Unbilled Metered Consumption (without Bulk Supply)"}]
[{"$f":"'Language 2'!B104","v":"Bulk Water Supply (Export)"}]
[{"$f":"'Language 2'!B105","v":"Corrupt Meter Reading Practices"}]
[{"$f":"'Language 2'!B106","v":"Data Handling Errors (Office)"}]
[{"$f":"'Language 2'!B107","v":"m3/km mains per hour (w.s.p.)"}]
[{"$f":"'Language 2'!B108","v":"Unbilled Unmetered Consumption [m3]"}]
[{"$f":"'Language 2'!B109","v":"Consumption [m3/day]"}]
[{"$f":"'Language 2'!B110","v":"Illegal Connections - domestic"}]
[{"$f":"'Language 2'!B111","v":"Illegal Connections - others"}]
[{"$f":"'Language 2'!B112","v":"Meter tampering, bypasses, etc. at registered customers"}]
[{"$f":"'Language 2'!B113","v":"Charts"}]
[{"$f":"'Language 2'!B114","v":"Data Entry"}]
[{"$f":"'Language 2'!B115","v":"Results"}]
[{"$f":"'Language 2'!B116","v":"Explanations"}]
[{"$f":"'Language 2'!B117","v":"Randomly Selected International Data Set"}]
[{"$f":"'Language 2'!B118","v":"Utility Name:"}]
[{"$f":"'Language 2'!B119","v":"Year:"}]
[{"$f":"'Language 2'!B120","v":"Water Losses - Volume and Value (Cost)"}]
[{"$f":"'Language 2'!B121","v":"International Benchmarking"}]
[{"$f":"'Language 2'!B122","v":0}]
[{"$f":"'Language 2'!B123","v":"Physical Loss Assessment Matrix"}]
[{"$f":"'Language 2'!B124","v":"Technical Performance Category"}]
[{"$f":"'Language 2'!B125","v":"Liters/connection/day "}]
[{"$f":"'Language 2'!B126","v":"(when the system is pressurized) at an average pressure of:"}]
[{"$f":"'Language 2'!B127","v":"Back to Indicators"}]
[{"$f":"'Language 2'!B128","v":"Home"}]
[{"$f":"'Language 2'!B129","v":"Further loss reduction may be uneconomic unless there are shortages; careful analysis needed to identify cost effective improvement"}]
[{"$f":"'Language 2'!B130","v":"Potential for marked improvements; consider   pressure management; better active leakage control practices, and better network maintenance"}]
[{"$f":"'Language 2'!B131","v":"Poor leakage record; tolerable only if water is plentiful and cheap; even then, analyze level and nature of leakage and intensify leakage reduction efforts"}]
[{"$f":"'Language 2'!B132","v":"Horrendously inefficient use of resources; leakage reduction programs imperative and high priority"}]
[{"$f":"'Language 2'!B133","v":"1.) WB-EasyCalc was designed in 2006 to help water utilities and consultants to properly apply the IWA Water Loss Specialist Group Methodology. During the last 10 years it has become the preferred NRW analysis tool for water utilities around the world. To celebrate its 10th anniversary, version 5 has been launched in August 2016. "}]
[{"$f":"'Language 2'!B134","v":"2.) The pre-set Language is English using the IWA terminology. If you would like to use the World Bank favored terms \"Physical Losses\" and \"Commercial Losses\" instead of the IWA terms \"Real Losses\" and \"Apparent Losses\" click on the button \"change language\" and select code 2."}]
[{"$f":"'Language 2'!B135","v":"3.) In the World Bank Terminology, the IWA terms \"UARL - Unavoidable Annual Volume of Real Losses\" and \"CARL - Current Annual Volume of Real Losses\" were replaced with the World Bank favored terms \"MAPL - Minimum Achievable Annual Volume of Physical Losses\" and \"CAPL - Current Annual Volume of Physical Losses\". However, the underlying formula remained of course unchanged."}]
[{"$f":"'Language 2'!B136","v":"4.) WB-EasyCalc was optimized for a screen resolution of 1024 x 768 Pixel"}]
[{"$f":"'Language 2'!B137","v":"5.) Color Coding: "}]
[{"$f":"'Language 2'!B138","v":"white cells are for data entry"}]
[{"$f":"'Language 2'!B139","v":"dark blue cells are calculated values"}]
[{"$f":"'Language 2'!B140","v":"6.) While every effort has been made by the developers to ensure that WB-EasyCalc is free from error, those using the model do so at their own risk. Liemberger & Partners accept no liability of any nature for losses (direct or indirect) incurred through the use of this model."}]
[{"$f":"'Language 2'!B141","v":"7.) The program is protected with passwords which will not be revealed."}]
[{"$f":"'Language 2'!B142","v":"8.) GIGO - Garbage in Garbage out! The user has to be aware that results calculated with this program can be extremely wrong if base data is wrong or incomplete."}]
[{"$f":"'Language 2'!B143","v":"9.) It is ALWAYS recommended to carry out a thorough leakage analysis based on measurements in the distribution network to support and verify the physical loss figure calculated with this program."}]
[{"$f":"'Language 2'!B144","v":"10.) When using this program for the first time, it is recommended to first familiarize with the methodology. A complete set of background reading materials can be downloaded from www.liemberger.cc"}]
[{"$f":"'Language 2'!B145","v":"11.) Liemberger & Partners would appreciate feedback! Please send your comments to office@liemberger.cc"}]
[{"$f":"'Language 2'!B146","v":"12.) WB-EasyCalc will be continuously improved and upgraded - revisit www.liemberger.cc from time to time to check for new versions."}]
[{"$f":"'Language 2'!B147","v":"Enter 1 to use an overall % for meter under-registration or 2 for manual entering of volumes and under-registration of different meter or customer types"}]
[{"$f":"'Language 2'!B148","v":"Number of inactive accounts with existing service connection"}]
[{"$f":"'Language 2'!B149","v":"The volumes used for this water balance are for a period of:"}]
[{"$f":"'Language 2'!B150","v":"days"}]
[{"$f":"'Language 2'!B151","v":"m3/year"}]
[{"$f":"'Language 2'!B152","v":"Water Balance in m3/year"}]
[{"$f":"'Language 2'!B153","v":"Water Balance in m3/day"}]
[{"$f":"'Language 2'!B154","v":"liters/connection/day"}]
[{"$f":"'Language 2'!B155","v":"Water Balance in m3 for a period of"}]
[{"$f":"'Language 2'!B156","v":"Water Balance for Period"}]
[{"$f":"'Language 2'!B157","v":"Average Supply Time"}]
[{"$f":"'Language 2'!B158","v":"Coverage"}]
[{"$f":"'Language 2'!B159","v":"THE \"WHAT IF\" TOOL"}]
[{"$f":"'Language 2'!B160","v":"IF"}]
[{"$f":"'Language 2'!B161","v":"THEN"}]
[{"$f":"'Language 2'!B162","v":"h/day"}]
[{"$f":"'Language 2'!B163","v":"l/conn./d"}]
[{"$f":"'Language 2'!B164","v":"from"}]
[{"$f":"'Language 2'!B165","v":"to"}]
[{"$f":"'Language 2'!B166","v":"changes"}]
[{"$f":"'Language 2'!B167","v":"increases"}]
[{"$f":"'Language 2'!B168","v":"change"}]
[{"$f":"'Language 2'!B169","v":"m"}]
[{"$f":"'Language 2'!B170","v":"km"}]
[{"$f":"'Language 2'!B171","v":"l/conn./d (w.s.p.)"}]
[{"$f":"'Language 2'!B172","v":"will increase approximately "}]
[{"$f":"'Language 2'!B173","v":"will change approximately"}]
[{"$f":"'Language 2'!B174","v":"Length of mains"}]
[{"$f":"'Language 2'!B175","v":"Annual Revenues"}]
[{"$f":"'Language 2'!B176","v":"Annual operating cost"}]
[{"$f":"'Language 2'!B177","v":"The volume of NRW"}]
[{"$f":"'Language 2'!B178","v":"The value of NRW"}]
[{"$f":"'Language 2'!B179","v":"% of System Input Volume"}]
[{"$f":"'Language 2'!B180","v":"% of Total Annual Operating Cost"}]
[{"$f":"'Language 2'!B181","v":"ILI"}]
[{"$f":"'Language 2'!B182","v":"will change approximately"}]
[{"$f":"'Language 2'!B183","v":"m3"}]
[{"$f":"'Language 2'!B184","v":"Number of Customers (active)"}]
[{"$f":"'Language 2'!B185","v":"liters/customer/day"}]
[{"$f":"'Language 2'!B186","v":"NRW Performance Indicators"}]
[{"$f":"'Language 2'!B187","v":"World class leakage management performance; only marginal further reductions theoretically possible"}]
[{"$f":"'Language 2'!B188","v":"World class NRW management performance; the potential for further NRW reductions is small unless there is still potential for pressure reduction or accuracy improvement of large customer meters"}]
[{"$f":"'Language 2'!B189","v":"Further NRW reduction may be uneconomic unless there are water shortages or very high water tariffs; a detailed water audit is required to identify cost-effective improvements\n"}]
[{"$f":"'Language 2'!B190","v":"Potential for marked improvements; establish a water balance to quantify the components of NRW; consider pressure management, better active leakage control practices, and better network maintenance; improve customer meter management, review meter reading, data handling and billing processed and identify improvement potentials\n"}]
[{"$f":"'Language 2'!B191","v":"Poor NRW record; tolerable only if water is plentiful and cheap; even then, analyze level and causes of NRW and intensify NRW reduction efforts\n"}]
[{"$f":"'Language 2'!B192","v":"Highly inefficient; a comprehensive NRW reduction program is imperative and high-priority"}]
[{"$f":"'Language 2'!B193","v":"International NRW Assessment Matrix"}]
[{"$f":"'Language 2'!B194","v":"Total Volume (m3/d)"}]
[{"$f":"'Language 2'!B195","v":"Volume which could be sold to existing or new customers (m3/d)"}]
[{"$f":"'Language 2'!B196","v":"Store up to 10 years of data and copy/paste easily to other Excel sheets!"}]
[{"$f":"'Language 2'!B197","v":"Click the button to copy \"Present\" to this column"}]
[{"$f":"'Language 2'!B198","v":"Present"}]
[{"$f":"'Language 2'!B199","v":"Historic data"}]
[{"$f":"'Language 2'!B200","v":"Additional volume sold to existing customers"}]
[{"$f":"'Language 2'!B201","v":"additional m3/d"}]
[{"$f":"'Language 2'!B202","v":"Annual Production and Distribution Cost"}]
[{"$f":"'Language 2'!B203","v":0}]
[{"$f":"'Language 2'!B204","v":0}]

{"sheet":"Used Language","index":20,"n_rows":208,"n_cols":5,"rows_kept":208,"cut":false,"hidden":false,"merged":[[1,4,3,4]]}
[]
[null,null,"Language Used",null,{"$f":"'Used Language'!C128","v":"Home"}]
[]
[null,null,{"$f":"IF('Language 1'!I4=0,1,'Language 1'!I4)","v":2}]
[4,null,{"$f":"HLOOKUP(C$4,'Language 2'!$A$2:$AC$150,A5)","v":"Getting Started"}]
[5,null,{"$f":"HLOOKUP(C$4,'Language 2'!$A$2:$AC$150,A6)","v":"Water Balance"}]
[6,null,{"$f":"HLOOKUP(C$4,'Language 2'!$A$2:$AC$150,A7)","v":"Performance Indicators"}]
[7,null,{"$f":"HLOOKUP(C$4,'Language 2'!$A$2:$AC$150,A8)","v":"Network Data"}]
[8,null,{"$f":"HLOOKUP(C$4,'Language 2'!$A$2:$AC$150,A9)","v":"Pressure"}]
[9,null,{"$f":"HLOOKUP(C$4,'Language 2'!$A$2:$AC$150,A10)","v":"System Input Volume"}]
[10,null,{"$f":"HLOOKUP(C$4,'Language 2'!$A$2:$AC$150,A11)","v":"Billed Consumption"}]
[11,null,{"$f":"HLOOKUP(C$4,'Language 2'!$A$2:$AC$150,A12)","v":"Unbilled Consumption"}]
[12,null,{"$f":"HLOOKUP(C$4,'Language 2'!$A$2:$AC$150,A13)","v":"Unauthorized Consumption"}]
[13,null,{"$f":"HLOOKUP(C$4,'Language 2'!$A$2:$AC$150,A14)","v":"Customer Meter Inaccuracies and Data Handling Errors"}]
[14,null,{"$f":"HLOOKUP(C$4,'Language 2'!$A$2:$AC$150,A15)","v":"Change Language"}]
[15,null,{"$f":"HLOOKUP(C$4,'Language 2'!$A$2:$AC$150,A16)","v":"System Input Volume"}]
[16,null,{"$f":"HLOOKUP(C$4,'Language 2'!$A$2:$AC$150,A17)","v":"Authorized Consumption"}]
[17,null,{"$f":"HLOOKUP(C$4,'Language 2'!$A$2:$AC$150,A18)","v":"Water Losses"}]
[18,null,{"$f":"HLOOKUP(C$4,'Language 2'!$A$2:$AC$150,A19)","v":"Billed Authorized Consumption"}]
[19,null,{"$f":"HLOOKUP(C$4,'Language 2'!$A$2:$AC$150,A20)","v":"Unbilled Authorized Consumption"}]
[20,null,{"$f":"HLOOKUP(C$4,'Language 2'!$A$2:$AC$150,A21)","v":"Commercial Losses"}]
[21,null,{"$f":"HLOOKUP(C$4,'Language 2'!$A$2:$AC$150,A22)","v":"Physical Losses"}]
[22,null,{"$f":"HLOOKUP(C$4,'Language 2'!$A$2:$AC$150,A23)","v":"Billed Metered Consumption"}]
[23,null,{"$f":"HLOOKUP(C$4,'Language 2'!$A$2:$AC$150,A24)","v":"Billed Unmetered Consumption"}]
[24,null,{"$f":"HLOOKUP(C$4,'Language 2'!$A$2:$AC$150,A25)","v":"Unbilled Metered Consumption"}]
[25,null,{"$f":"HLOOKUP(C$4,'Language 2'!$A$2:$AC$150,A26)","v":"Unbilled Unmetered Consumption"}]
[26,null,{"$f":"HLOOKUP(C$4,'Language 2'!$A$2:$AC$150,A27)","v":"Customer Meter Inaccuracies and Data Handling Errors"}]
[27,null,{"$f":"HLOOKUP(C$4,'Language 2'!$A$2:$AC$150,A28)","v":"Revenue Water"}]
[28,null,{"$f":"HLOOKUP(C$4,'Language 2'!$A$2:$AC$150,A29)","v":"Non-Revenue Water"}]
[29,null,{"$f":"HLOOKUP(C$4,'Language 2'!$A$2:$AC$150,A30)","v":"Error Margin [+/-]:"}]
[30,null,{"$f":"HLOOKUP(C$4,'Language 2'!$A$2:$AC$150,A31)","v":"m3/day"}]
[31,null,{"$f":"HLOOKUP(C$4,'Language 2'!$A$2:$AC$150,A32)","v":"Best Estimate"}]
[32,null,{"$f":"HLOOKUP(C$4,'Language 2'!$A$2:$AC$150,A33)","v":"Error Margin\n[+/- %]"}]
[33,null,{"$f":"HLOOKUP(C$4,'Language 2'!$A$2:$AC$150,A34)","v":"Lower Bound"}]
[34,null,{"$f":"HLOOKUP(C$4,'Language 2'!$A$2:$AC$150,A35)","v":"Upper Bound"}]
[35,null,{"$f":"HLOOKUP(C$4,'Language 2'!$A$2:$AC$150,A36)","v":"Level of Service"}]
[36,null,{"$f":"HLOOKUP(C$4,'Language 2'!$A$2:$AC$150,A37)","v":"Volume of Physical Losses"}]
[37,null,{"$f":"HLOOKUP(C$4,'Language 2'!$A$2:$AC$150,A38)","v":"Physical Loss Performance Indicators"}]
[38,null,{"$f":"HLOOKUP(C$4,'Language 2'!$A$2:$AC$150,A39)","v":"Commercial Loss Performance Indicators"}]
[39,null,{"$f":"HLOOKUP(C$4,'Language 2'!$A$2:$AC$150,A40)","v":"Financial Performance Indicators"}]
[40,null,{"$f":"HLOOKUP(C$4,'Language 2'!$A$2:$AC$150,A41)","v":"Performance Group"}]
[41,null,{"$f":"HLOOKUP(C$4,'Language 2'!$A$2:$AC$150,A42)","v":"Standard"}]
[42,null,{"$f":"HLOOKUP(C$4,'Language 2'!$A$2:$AC$150,A43)","v":"Low and Middle Income Countries"}]
[43,null,{"$f":"HLOOKUP(C$4,'Language 2'!$A$2:$AC$150,A44)","v":"Average Supply Time [h/day]"}]
[44,null,{"$f":"HLOOKUP(C$4,'Language 2'!$A$2:$AC$150,A45)","v":"Average Pressure [m]"}]
[45,null,{"$f":"HLOOKUP(C$4,'Language 2'!$A$2:$AC$150,A46)","v":"CAPL - Current Annual Volume of Physical Losses [m3/day]"}]
[46,null,{"$f":"HLOOKUP(C$4,'Language 2'!$A$2:$AC$150,A47)","v":"MAPL - Minimum Achievable Volume of Physical Losses [m3/day]"}]
[47,null,{"$f":"HLOOKUP(C$4,'Language 2'!$A$2:$AC$150,A48)","v":"Liters per Connection per Day (w.s.p.)\n\nw.s.p.: when the system is pressurized - this means the value is already corrected in the case of intermittent supply"}]
[48,null,{"$f":"HLOOKUP(C$4,'Language 2'!$A$2:$AC$150,A49)","v":"Liters per Connection per Day per meter Pressure (w.s.p.)"}]
[49,null,{"$f":"HLOOKUP(C$4,'Language 2'!$A$2:$AC$150,A50)","v":"Infrastructure Leakage Index (ILI)"}]
[50,null,{"$f":"HLOOKUP(C$4,'Language 2'!$A$2:$AC$150,A51)","v":"Commercial Losses expressed in % of Authorized Consumption"}]
[51,null,{"$f":"HLOOKUP(C$4,'Language 2'!$A$2:$AC$150,A52)","v":"Volume of Non-Revenue Water expressed in % of System Input Volume"}]
[52,null,{"$f":"HLOOKUP(C$4,'Language 2'!$A$2:$AC$150,A53)","v":"Value of Non-Revenue Water expressed in % of Annual Operating Cost"}]
[53,null,{"$f":"HLOOKUP(C$4,'Language 2'!$A$2:$AC$150,A54)","v":"Distribution and Transmission Mains"}]
[54,null,{"$f":"HLOOKUP(C$4,'Language 2'!$A$2:$AC$150,A55)","v":"Service Connections"}]
[55,null,{"$f":"HLOOKUP(C$4,'Language 2'!$A$2:$AC$150,A56)","v":"Description"}]
[56,null,{"$f":"HLOOKUP(C$4,'Language 2'!$A$2:$AC$150,A57)","v":"Length\n[km]"}]
[57,null,{"$f":"HLOOKUP(C$4,'Language 2'!$A$2:$AC$150,A58)","v":"Number"}]
[58,null,{"$f":"HLOOKUP(C$4,'Language 2'!$A$2:$AC$150,A59)","v":"Total [km]"}]
[59,null,{"$f":"HLOOKUP(C$4,'Language 2'!$A$2:$AC$150,A60)","v":"Possible underestimation"}]
[60,null,{"$f":"HLOOKUP(C$4,'Language 2'!$A$2:$AC$150,A61)","v":"Pipe Length [km]"}]
[61,null,{"$f":"HLOOKUP(C$4,'Language 2'!$A$2:$AC$150,A62)","v":"Minimum"}]
[62,null,{"$f":"HLOOKUP(C$4,'Language 2'!$A$2:$AC$150,A63)","v":"Maximum"}]
[63,null,{"$f":"HLOOKUP(C$4,'Language 2'!$A$2:$AC$150,A64)","v":"Best Estimate"}]
[64,null,{"$f":"HLOOKUP(C$4,'Language 2'!$A$2:$AC$150,A65)","v":"Number of Connections of Registered Customers\n\nNote: this figure is most likely (a little bit) less than the number of customers"}]
[65,null,{"$f":"HLOOKUP(C$4,'Language 2'!$A$2:$AC$150,A66)","v":"Estimated Number of Illegal Connections"}]
[66,null,{"$f":"HLOOKUP(C$4,'Language 2'!$A$2:$AC$150,A67)","v":"Number of Connections"}]
[67,null,{"$f":"HLOOKUP(C$4,'Language 2'!$A$2:$AC$150,A68)","v":"Average Length of Service Connection from Property Boundary to Customer Meter [meter]"}]
[68,null,{"$f":"HLOOKUP(C$4,'Language 2'!$A$2:$AC$150,A69)","v":"Total Length of Service Connections from Property Boundary to Customer Meter [kilometer]"}]
[69,null,{"$f":"HLOOKUP(C$4,'Language 2'!$A$2:$AC$150,A70)","v":"Average Pressure"}]
[70,null,{"$f":"HLOOKUP(C$4,'Language 2'!$A$2:$AC$150,A71)","v":"Intermittent Supply"}]
[71,null,{"$f":"HLOOKUP(C$4,'Language 2'!$A$2:$AC$150,A72)","v":"Area"}]
[72,null,{"$f":"HLOOKUP(C$4,'Language 2'!$A$2:$AC$150,A73)","v":"Approximate Number of Connections"}]
[73,null,{"$f":"HLOOKUP(C$4,'Language 2'!$A$2:$AC$150,A74)","v":"Daily Average Pressure\n[m]"}]
[74,null,{"$f":"HLOOKUP(C$4,'Language 2'!$A$2:$AC$150,A75)","v":"Supply Time\n[days per week]"}]
[75,null,{"$f":"HLOOKUP(C$4,'Language 2'!$A$2:$AC$150,A76)","v":"Supply Time\n[hours per day]"}]
[76,null,{"$f":"HLOOKUP(C$4,'Language 2'!$A$2:$AC$150,A77)","v":"Average Daily Supply Time [hours]"}]
[77,null,{"$f":"HLOOKUP(C$4,'Language 2'!$A$2:$AC$150,A78)","v":"Water Source"}]
[78,null,{"$f":"HLOOKUP(C$4,'Language 2'!$A$2:$AC$150,A79)","v":"System Input Volume [m3]"}]
[79,null,{"$f":"HLOOKUP(C$4,'Language 2'!$A$2:$AC$150,A80)","v":"Financial Information"}]
[80,null,{"$f":"HLOOKUP(C$4,'Language 2'!$A$2:$AC$150,A81)","v":"Average Tariff"}]
[81,null,{"$f":"HLOOKUP(C$4,'Language 2'!$A$2:$AC$150,A82)","v":"Variable Production and Distribution Cost\n(Marginal Cost of Water)"}]
[82,null,{"$f":"HLOOKUP(C$4,'Language 2'!$A$2:$AC$150,A83)","v":"per m3"}]
[83,null,{"$f":"HLOOKUP(C$4,'Language 2'!$A$2:$AC$150,A84)","v":"Currency"}]
[84,null,{"$f":"HLOOKUP(C$4,'Language 2'!$A$2:$AC$150,A85)","v":"Components of Non-Revenue Water to be valued at either (i) Average Tariff - if water could be sold or (ii) Production and Distribution Cost if a reduction of the NRW component would only lead to reduced System Input Volume. For Average Tariff enter 1, for Production and Distribution Cost enter 2."}]
[85,null,{"$f":"HLOOKUP(C$4,'Language 2'!$A$2:$AC$150,A86)","v":"NRW Component"}]
[86,null,{"$f":"HLOOKUP(C$4,'Language 2'!$A$2:$AC$150,A87)","v":"Annual Value"}]
[87,null,{"$f":"HLOOKUP(C$4,'Language 2'!$A$2:$AC$150,A88)","v":"Total Value of NRW"}]
[88,null,{"$f":"HLOOKUP(C$4,'Language 2'!$A$2:$AC$150,A89)","v":"Annual Operating Cost (without Depreciation)"}]
[89,null,{"$f":"HLOOKUP(C$4,'Language 2'!$A$2:$AC$150,A90)","v":"Bulk Water Supply (Export)"}]
[90,null,{"$f":"HLOOKUP(C$4,'Language 2'!$A$2:$AC$150,A91)","v":"[m3]"}]
[91,null,{"$f":"HLOOKUP(C$4,'Language 2'!$A$2:$AC$150,A92)","v":"Estimated Number"}]
[92,null,{"$f":"HLOOKUP(C$4,'Language 2'!$A$2:$AC$150,A93)","v":"Persons per House"}]
[93,null,{"$f":"HLOOKUP(C$4,'Language 2'!$A$2:$AC$150,A94)","v":"Consumption [liters/person/day]"}]
[94,null,{"$f":"HLOOKUP(C$4,'Language 2'!$A$2:$AC$150,A95)","v":"Total\n[m3]"}]
[95,null,{"$f":"HLOOKUP(C$4,'Language 2'!$A$2:$AC$150,A96)","v":"Consumption\n[liters/connection/day]"}]
[96,null,{"$f":"HLOOKUP(C$4,'Language 2'!$A$2:$AC$150,A97)","v":"Consumption\n[liters/customer/day]"}]
[97,null,{"$f":"HLOOKUP(C$4,'Language 2'!$A$2:$AC$150,A98)","v":"Unauthorized Consumption [m3]"}]
[98,null,{"$f":"HLOOKUP(C$4,'Language 2'!$A$2:$AC$150,A99)","v":"Meter under-registration"}]
[99,null,{"$f":"HLOOKUP(C$4,'Language 2'!$A$2:$AC$150,A100)","v":"Estimated % of under-reading"}]
[100,null,{"$f":"HLOOKUP(C$4,'Language 2'!$A$2:$AC$150,A101)","v":"Billed Metered Consumption (without Bulk Supply)"}]
[101,null,{"$f":"HLOOKUP(C$4,'Language 2'!$A$2:$AC$150,A102)","v":"Metered Bulk Supply (Export)"}]
[102,null,{"$f":"HLOOKUP(C$4,'Language 2'!$A$2:$AC$150,A103)","v":"Unbilled Metered Consumption (without Bulk Supply)"}]
[103,null,{"$f":"HLOOKUP(C$4,'Language 2'!$A$2:$AC$150,A104)","v":"Bulk Water Supply (Export)"}]
[104,null,{"$f":"HLOOKUP(C$4,'Language 2'!$A$2:$AC$150,A105)","v":"Corrupt Meter Reading Practices"}]
[105,null,{"$f":"HLOOKUP(C$4,'Language 2'!$A$2:$AC$150,A106)","v":"Data Handling Errors (Office)"}]
[106,null,{"$f":"HLOOKUP(C$4,'Language 2'!$A$2:$AC$150,A107)","v":"m3/km mains per hour (w.s.p.)"}]
[107,null,{"$f":"HLOOKUP(C$4,'Language 2'!$A$2:$AC$150,A108)","v":"Unbilled Unmetered Consumption [m3]"}]
[108,null,{"$f":"HLOOKUP(C$4,'Language 2'!$A$2:$AC$150,A109)","v":"Consumption [m3/day]"}]
[109,null,{"$f":"HLOOKUP(C$4,'Language 2'!$A$2:$AC$150,A110)","v":"Illegal Connections - domestic"}]
[110,null,{"$f":"HLOOKUP(C$4,'Language 2'!$A$2:$AC$150,A111)","v":"Illegal Connections - others"}]
[111,null,{"$f":"HLOOKUP(C$4,'Language 2'!$A$2:$AC$150,A112)","v":"Meter tampering, bypasses, etc. at registered customers"}]
[112,null,{"$f":"HLOOKUP(C$4,'Language 2'!$A$2:$AC$150,A113)","v":"Charts"}]
[113,null,{"$f":"HLOOKUP(C$4,'Language 2'!$A$2:$AC$150,A114)","v":"Data Entry"}]
[114,null,{"$f":"HLOOKUP(C$4,'Language 2'!$A$2:$AC$150,A115)","v":"Results"}]
[115,null,{"$f":"HLOOKUP(C$4,'Language 2'!$A$2:$AC$150,A116)","v":"Explanations"}]
[116,null,{"$f":"HLOOKUP(C$4,'Language 2'!$A$2:$AC$150,A117)","v":"Randomly Selected International Data Set"}]
[117,null,{"$f":"HLOOKUP(C$4,'Language 2'!$A$2:$AC$150,A118)","v":"Utility Name:"}]
[118,null,{"$f":"HLOOKUP(C$4,'Language 2'!$A$2:$AC$150,A119)","v":"Year:"}]
[119,null,{"$f":"HLOOKUP(C$4,'Language 2'!$A$2:$AC$150,A120)","v":"Water Losses - Volume and Value (Cost)"}]
[120,null,{"$f":"HLOOKUP(C$4,'Language 2'!$A$2:$AC$150,A121)","v":"International Benchmarking"}]
[121,null,{"$f":"HLOOKUP(C$4,'Language 2'!$A$2:$AC$150,A122)","v":0}]
[122,null,{"$f":"HLOOKUP(C$4,'Language 2'!$A$2:$AC$150,A123)","v":"Physical Loss Assessment Matrix"}]
[123,null,{"$f":"HLOOKUP(C$4,'Language 2'!$A$2:$AC$150,A124)","v":"Technical Performance Category"}]
[124,null,{"$f":"HLOOKUP(C$4,'Language 2'!$A$2:$AC$150,A125)","v":"Liters/connection/day "}]
[125,null,{"$f":"HLOOKUP(C$4,'Language 2'!$A$2:$AC$150,A126)","v":"(when the system is pressurized) at an average pressure of:"}]
[126,null,{"$f":"HLOOKUP(C$4,'Language 2'!$A$2:$AC$150,A127)","v":"Back to Indicators"}]
[127,null,{"$f":"HLOOKUP(C$4,'Language 2'!$A$2:$AC$150,A128)","v":"Home"}]
[128,null,{"$f":"HLOOKUP(C$4,'Language 2'!$A$2:$AC$150,A129)","v":"Further loss reduction may be uneconomic unless there are shortages; careful analysis needed to identify cost effective improvement"}]
[129,null,{"$f":"HLOOKUP(C$4,'Language 2'!$A$2:$AC$150,A130)","v":"Potential for marked improvements; consider   pressure management; better active leakage control practices, and better network maintenance"}]
[130,null,{"$f":"HLOOKUP(C$4,'Language 2'!$A$2:$AC$150,A131)","v":"Poor leakage record; tolerable only if water is plentiful and cheap; even then, analyze level and nature of leakage and intensify leakage reduction efforts"}]
[131,null,{"$f":"HLOOKUP(C$4,'Language 2'!$A$2:$AC$150,A132)","v":"Horrendously inefficient use of resources; leakage reduction programs imperative and high priority"}]
[132,null,{"$f":"HLOOKUP(C$4,'Language 2'!$A$2:$AC$150,A133)","v":"1.) WB-EasyCalc was designed in 2006 to help water utilities and consultants to properly apply the IWA Water Loss Specialist Group Methodology. During the last 10 years it has become the preferred NRW analysis tool for water utilities around the world. To celebrate its 10th anniversary, version 5 has been launched in August 2016. "}]
[133,null,{"$f":"HLOOKUP(C$4,'Language 2'!$A$2:$AC$150,A134)","v":"2.) The pre-set Language is English using the IWA terminology. If you would like to use the World Bank favored terms \"Physical Losses\" and \"Commercial Losses\" instead of the IWA terms \"Real Losses\" and \"Apparent Losses\" click on the button \"change language\" and select code 2."}]
[134,null,{"$f":"HLOOKUP(C$4,'Language 2'!$A$2:$AC$150,A135)","v":"3.) In the World Bank Terminology, the IWA terms \"UARL - Unavoidable Annual Volume of Real Losses\" and \"CARL - Current Annual Volume of Real Losses\" were replaced with the World Bank favored terms \"MAPL - Minimum Achievable Annual Volume of Physical Losses\" and \"CAPL - Current Annual Volume of Physical Losses\". However, the underlying formula remained of course unchanged."}]
[135,null,{"$f":"HLOOKUP(C$4,'Language 2'!$A$2:$AC$150,A136)","v":"4.) WB-EasyCalc was optimized for a screen resolution of 1024 x 768 Pixel"}]
[136,null,{"$f":"HLOOKUP(C$4,'Language 2'!$A$2:$AC$150,A137)","v":"5.) Color Coding: "}]
[137,null,{"$f":"HLOOKUP(C$4,'Language 2'!$A$2:$AC$150,A138)","v":"white cells are for data entry"}]
[138,null,{"$f":"HLOOKUP(C$4,'Language 2'!$A$2:$AC$150,A139)","v":"dark blue cells are calculated values"}]
[139,null,{"$f":"HLOOKUP(C$4,'Language 2'!$A$2:$AC$150,A140)","v":"6.) While every effort has been made by the developers to ensure that WB-EasyCalc is free from error, those using the model do so at their own risk. Liemberger & Partners accept no liability of any nature for losses (direct or indirect) incurred through the use of this model."}]
[140,null,{"$f":"HLOOKUP(C$4,'Language 2'!$A$2:$AC$150,A141)","v":"7.) The program is protected with passwords which will not be revealed."}]
[141,null,{"$f":"HLOOKUP(C$4,'Language 2'!$A$2:$AC$150,A142)","v":"8.) GIGO - Garbage in Garbage out! The user has to be aware that results calculated with this program can be extremely wrong if base data is wrong or incomplete."}]
[142,null,{"$f":"HLOOKUP(C$4,'Language 2'!$A$2:$AC$150,A143)","v":"9.) It is ALWAYS recommended to carry out a thorough leakage analysis based on measurements in the distribution network to support and verify the physical loss figure calculated with this program."}]
[143,null,{"$f":"HLOOKUP(C$4,'Language 2'!$A$2:$AC$150,A144)","v":"10.) When using this program for the first time, it is recommended to first familiarize with the methodology. A complete set of background reading materials can be downloaded from www.liemberger.cc"}]
[144,null,{"$f":"HLOOKUP(C$4,'Language 2'!$A$2:$AC$150,A145)","v":"11.) Liemberger & Partners would appreciate feedback! Please send your comments to office@liemberger.cc"}]
[145,null,{"$f":"HLOOKUP(C$4,'Language 2'!$A$2:$AC$150,A146)","v":"12.) WB-EasyCalc will be continuously improved and upgraded - revisit www.liemberger.cc from time to time to check for new versions."}]
[146,null,{"$f":"HLOOKUP(C$4,'Language 2'!$A$2:$AC$150,A147)","v":"Enter 1 to use an overall % for meter under-registration or 2 for manual entering of volumes and under-registration of different meter or customer types"}]
[147,null,{"$f":"HLOOKUP(C$4,'Language 2'!$A$2:$AC$150,A148)","v":"Number of inactive accounts with existing service connection"}]
[148,null,{"$f":"HLOOKUP(C$4,'Language 2'!$A$2:$AC$150,A149)","v":"The volumes used for this water balance are for a period of:"}]
[149,null,{"$f":"HLOOKUP(C$4,'Language 2'!$A$2:$AC$150,A150)","v":"days"}]
[150,null,{"$f":"HLOOKUP(C$4,'Language 2'!$A$2:$AC151,A151)","v":"m3/year"}]
[151,null,{"$f":"HLOOKUP(C$4,'Language 2'!$A$2:$AC152,A152)","v":"Water Balance in m3/year"}]
[152,null,{"$f":"HLOOKUP(C$4,'Language 2'!$A$2:$AC153,A153)","v":"Water Balance in m3/day"}]
[153,null,{"$f":"HLOOKUP(C$4,'Language 2'!$A$2:$AC154,A154)","v":"liters/connection/day"}]
[154,null,{"$f":"HLOOKUP(C$4,'Language 2'!$A$2:$AC155,A155)","v":"Water Balance in m3 for a period of"}]
[155,null,{"$f":"HLOOKUP(C$4,'Language 2'!$A$2:$AC156,A156)","v":"Water Balance for Period"}]
[156,null,{"$f":"HLOOKUP(C$4,'Language 2'!$A$2:$AC157,A157)","v":"Average Supply Time"}]
[157,null,{"$f":"HLOOKUP(C$4,'Language 2'!$A$2:$AC158,A158)","v":"Coverage"}]
[158,null,{"$f":"HLOOKUP(C$4,'Language 2'!$A$2:$AC159,A159)","v":"THE \"WHAT IF\" TOOL"}]
[159,null,{"$f":"HLOOKUP(C$4,'Language 2'!$A$2:$AC160,A160)","v":"IF"}]
[160,null,{"$f":"HLOOKUP(C$4,'Language 2'!$A$2:$AC161,A161)","v":"THEN"}]
[161,null,{"$f":"HLOOKUP(C$4,'Language 2'!$A$2:$AC162,A162)","v":"h/day"}]
[162,null,{"$f":"HLOOKUP(C$4,'Language 2'!$A$2:$AC163,A163)","v":"l/conn./d"}]
[163,null,{"$f":"HLOOKUP(C$4,'Language 2'!$A$2:$AC164,A164)","v":"from"}]
[164,null,{"$f":"HLOOKUP(C$4,'Language 2'!$A$2:$AC165,A165)","v":"to"}]
[165,null,{"$f":"HLOOKUP(C$4,'Language 2'!$A$2:$AC166,A166)","v":"changes"}]
[166,null,{"$f":"HLOOKUP(C$4,'Language 2'!$A$2:$AC167,A167)","v":"increases"}]
[167,null,{"$f":"HLOOKUP(C$4,'Language 2'!$A$2:$AC168,A168)","v":"change"}]
[168,null,{"$f":"HLOOKUP(C$4,'Language 2'!$A$2:$AC169,A169)","v":"m"}]
[169,null,{"$f":"HLOOKUP(C$4,'Language 2'!$A$2:$AC170,A170)","v":"km"}]
[170,null,{"$f":"HLOOKUP(C$4,'Language 2'!$A$2:$AC171,A171)","v":"l/conn./d (w.s.p.)"}]
[171,null,{"$f":"HLOOKUP(C$4,'Language 2'!$A$2:$AC172,A172)","v":"will increase approximately "}]
[172,null,{"$f":"HLOOKUP(C$4,'Language 2'!$A$2:$AC173,A173)","v":"will change approximately"}]
[173,null,{"$f":"HLOOKUP(C$4,'Language 2'!$A$2:$AC174,A174)","v":"Length of mains"}]
[174,null,{"$f":"HLOOKUP(C$4,'Language 2'!$A$2:$AC175,A175)","v":"Annual Revenues"}]
[175,null,{"$f":"HLOOKUP(C$4,'Language 2'!$A$2:$AC176,A176)","v":"Annual operating cost"}]
[176,null,{"$f":"HLOOKUP(C$4,'Language 2'!$A$2:$AC177,A177)","v":"The volume of NRW"}]
[177,null,{"$f":"HLOOKUP(C$4,'Language 2'!$A$2:$AC178,A178)","v":"The value of NRW"}]
[178,null,{"$f":"HLOOKUP(C$4,'Language 2'!$A$2:$AC179,A179)","v":"% of System Input Volume"}]
[179,null,{"$f":"HLOOKUP(C$4,'Language 2'!$A$2:$AC180,A180)","v":"% of Total Annual Operating Cost"}]
[180,null,{"$f":"HLOOKUP(C$4,'Language 2'!$A$2:$AC181,A181)","v":"ILI"}]
[181,null,{"$f":"HLOOKUP(C$4,'Language 2'!$A$2:$AC182,A182)","v":"will change approximately"}]
[182,null,{"$f":"HLOOKUP(C$4,'Language 2'!$A$2:$AC183,A183)","v":"m3"}]
[183,null,{"$f":"HLOOKUP(C$4,'Language 2'!$A$2:$AC184,A184)","v":"Number of Customers (active)"}]
[184,null,{"$f":"HLOOKUP(C$4,'Language 2'!$A$2:$AC185,A185)","v":"liters/customer/day"}]
[185,null,{"$f":"HLOOKUP(C$4,'Language 2'!$A$2:$AC186,A186)","v":"NRW Performance Indicators"}]
[186,null,{"$f":"HLOOKUP(C$4,'Language 2'!$A$2:$AC187,A187)","v":"World class leakage management performance; only marginal further reductions theoretically possible"}]
[187,null,{"$f":"HLOOKUP(C$4,'Language 2'!$A$2:$AC188,A188)","v":"World class NRW management performance; the potential for further NRW reductions is small unless there is still potential for pressure reduction or accuracy improvement of large customer meters"}]
[188,null,{"$f":"HLOOKUP(C$4,'Language 2'!$A$2:$AC201,A189)","v":"Further NRW reduction may be uneconomic unless there are water shortages or very high water tariffs; a detailed water audit is required to identify cost-effective improvements\n"}]
[189,null,{"$f":"HLOOKUP(C$4,'Language 2'!$A$2:$AC202,A190)","v":"Potential for marked improvements; establish a water balance to quantify the components of NRW; consider pressure management, better active leakage control practices, and better network maintenance; improve customer meter management, review meter reading, data handling and billing processed and identify improvement potentials\n"}]
[190,null,{"$f":"HLOOKUP(C$4,'Language 2'!$A$2:$AC203,A191)","v":"Poor NRW record; tolerable only if water is plentiful and cheap; even then, analyze level and causes of NRW and intensify NRW reduction efforts\n"}]
[191,null,{"$f":"HLOOKUP(C$4,'Language 2'!$A$2:$AC204,A192)","v":"Highly inefficient; a comprehensive NRW reduction program is imperative and high-priority"}]
[192,null,{"$f":"HLOOKUP(C$4,'Language 2'!$A$2:$AC205,A193)","v":"International NRW Assessment Matrix"}]
[193,null,{"$f":"HLOOKUP(C$4,'Language 2'!$A$2:$AC206,A194)","v":"Total Volume (m3/d)"}]
[194,null,{"$f":"HLOOKUP(C$4,'Language 2'!$A$2:$AC207,A195)","v":"Volume which could be sold to existing or new customers (m3/d)"}]
[195,null,{"$f":"HLOOKUP(C$4,'Language 2'!$A$2:$AC208,A196)","v":"Store up to 10 years of data and copy/paste easily to other Excel sheets!"}]
[196,null,{"$f":"HLOOKUP(C$4,'Language 2'!$A$2:$AC209,A197)","v":"Click the button to copy \"Present\" to this column"}]
[197,null,{"$f":"HLOOKUP(C$4,'Language 2'!$A$2:$AC210,A198)","v":"Present"}]
[198,null,{"$f":"HLOOKUP(C$4,'Language 2'!$A$2:$AC211,A199)","v":"Historic data"}]
[199,null,{"$f":"HLOOKUP(C$4,'Language 2'!$A$2:$AC212,A200)","v":"Additional volume sold to existing customers"}]
[200,null,{"$f":"HLOOKUP(C$4,'Language 2'!$A$2:$AC213,A201)","v":"additional m3/d"}]
[201,null,{"$f":"HLOOKUP(C$4,'Language 2'!$A$2:$AC214,A202)","v":"Annual Production and Distribution Cost"}]
[202,null,{"$f":"HLOOKUP(C$4,'Language 2'!$A$2:$AC215,A203)","v":0}]
[203,null,{"$f":"HLOOKUP(C$4,'Language 2'!$A$2:$AC216,A204)","v":0}]
[204,null,{"$f":"HLOOKUP(C$4,'Language 2'!$A$2:$AC217,A205)","v":0}]
[205,null,{"$f":"HLOOKUP(C$4,'Language 2'!$A$2:$AC218,A206)","v":0}]
[206,null,{"$f":"HLOOKUP(C$4,'Language 2'!$A$2:$AC219,A207)","v":0}]
[207,null,{"$f":"HLOOKUP(C$4,'Language 2'!$A$2:$AC220,A208)","v":0}]

{"sheet":"Matrix","index":21,"n_rows":22,"n_cols":11,"rows_kept":22,"cut":false,"hidden":false,"merged":[[20,3,20,8],[21,3,21,8],[19,3,19,8],[6,1,10,1],[11,1,15,1],[1,10,2,10],[4,10,5,10],[18,3,18,8],[1,1,1,8],[3,1,5,2],[3,3,5,3],[3,4,3,8],[4,4,4,8],[17,3,17,8]]}
[]
[null,{"$f":"'Used Language'!C123","v":"Physical Loss Assessment Matrix"},null,null,null,null,null,null,null,null,{"$f":"'Used Language'!C128","v":"Home"}]
[]
[null,{"$f":"'Used Language'!C124","v":"Technical Performance Category"},null,"ILI",{"$f":"'Used Language'!C125","v":"Liters/connection/day "}]
[null,null,null,null,{"$f":"'Used Language'!C126","v":"(when the system is pressurized) at an average pressure of:"},null,null,null,null,null,{"$f":"'Used Language'!C127","v":"Back to Indicators"}]
[null,null,null,null,"10 m","20 m","30 m","40 m","50 m"]
[null,{"$f":"'Used Language'!C42","v":"Standard"},"A1","< 1.5",null,"< 25","< 40","< 50","< 60"]
[null,null,"A2","1.5 - 2",null,"25-50","40-75","50-100","60-125"]
[null,null,"B","2 - 4",null,"50-100","75-150","100-200","125-250"]
[null,null,"C","4 - 8",null,"100-200","150-300","200-400","250-500"]
[null,null,"D","> 8",null,"> 200","> 300","> 400","> 500"]
[null,{"$f":"'Used Language'!C43","v":"Low and Middle Income Countries"},"A1","< 2","< 25","< 50","< 75","< 100","< 125"]
[null,null,"A2","2-4","25-50","50-100","75-150","100-200","125-250"]
[null,null,"B","4 - 8","50-100","100-200","150-300","200-400","250-500"]
[null,null,"C","8 - 16","100-200","200-400","300-600","400-800","500-1000"]
[null,null,"D","> 16","> 200","> 400","> 600","> 800","> 1000"]
[]
[null,null,"A1",{"$f":"'Used Language'!C187","v":"World class leakage management performance; only marginal further reductions theoretically possible"}]
[null,null,"A2",{"$f":"'Used Language'!C129","v":"Further loss reduction may be uneconomic unless there are shortages; careful analysis needed to identify cost effective improvement"}]
[null,null,"B",{"$f":"'Used Language'!C130","v":"Potential for marked improvements; consider   pressure management; better active leakage control practices, and better network maintenance"}]
[null,null,"C",{"$f":"'Used Language'!C131","v":"Poor leakage record; tolerable only if water is plentiful and cheap; even then, analyze level and nature of leakage and intensify leakage reduction efforts"}]
[null,null,"D",{"$f":"'Used Language'!C132","v":"Horrendously inefficient use of resources; leakage reduction programs imperative and high priority"}]

{"sheet":"Matrix (2)","index":22,"n_rows":22,"n_cols":10,"rows_kept":22,"cut":false,"hidden":false,"merged":[[21,3,21,7],[1,1,1,7],[1,9,2,9],[3,1,5,2],[3,3,3,7],[4,3,4,7],[4,9,5,9],[18,3,18,7],[6,1,10,1],[11,1,15,1],[17,3,17,7],[19,3,19,7],[20,3,20,7]]}
[]
[null,{"$f":"'Used Language'!C193","v":"International NRW Assessment Matrix"},null,null,null,null,null,null,null,{"$f":"'Used Language'!C128","v":"Home"}]
[]
[null,{"$f":"'Used Language'!C124","v":"Technical Performance Category"},null,{"$f":"'Used Language'!C125","v":"Liters/connection/day "}]
[null,null,null,{"$f":"'Used Language'!C126","v":"(when the system is pressurized) at an average pressure of:"},null,null,null,null,null,{"$f":"'Used Language'!C127","v":"Back to Indicators"}]
[null,null,null,"10 m","20 m","30 m","40 m","50 m"]
[null,{"$f":"'Used Language'!C42","v":"Standard"},"A1",null,"< 50","< 65","< 75","< 85"]
[null,null,"A2",null,"50-100","65-125","75-150","85-175"]
[null,null,"B",null,"100-200","125-250","150-300","175-350"]
[null,null,"C",null,"200-350","250-450","300-550","350-650"]
[null,null,"D",null,"> 350","> 450","> 550","> 650"]
[null,{"$f":"'Used Language'!C43","v":"Low and Middle Income Countries"},"A1","<55","<80","<105","<130","< 155"]
[null,null,"A2","55-110","80-160","105-210","130-260","155-310"]
[null,null,"B","110-220","160-320","210-420","260-520","310-620"]
[null,null,"C","220-400","320-600","420-800","520-1000","620-1200"]
[null,null,"D","> 400","> 600","> 800","> 1000","> 1200"]
[]
[null,null,"A1",{"$f":"'Used Language'!C188","v":"World class NRW management performance; the potential for further NRW reductions is small unless there is still potential for pressure reduction or accuracy improvement of large customer meters"}]
[null,null,"A2",{"$f":"'Used Language'!C189","v":"Further NRW reduction may be uneconomic unless there are water shortages or very high water tariffs; a detailed water audit is required to identify cost-effective improvements\n"}]
[null,null,"B",{"$f":"'Used Language'!C190","v":"Potential for marked improvements; establish a water balance to quantify the components of NRW; consider pressure management, better active leakage control practices, and better network maintenance; improve customer meter management, review meter reading, data handling and billing processed and identify improvement potentials\n"}]
[null,null,"C",{"$f":"'Used Language'!C191","v":"Poor NRW record; tolerable only if water is plentiful and cheap; even then, analyze level and causes of NRW and intensify NRW reduction efforts\n"}]
[null,null,"D",{"$f":"'Used Language'!C192","v":"Highly inefficient; a comprehensive NRW reduction program is imperative and high-priority"}]